{"text_format":"1","workbook":"xlsx","n_sheets":4,"sheets":["Accueil","Param","Listing","Nuancier"],"not_rendered":{"charts":0,"images":1,"macros":1,"external_links":0,"defined_names":10,"comments":0,"pivot_tables":0},"unopened":[],"bounds":{"document_bytes":16777216,"sheet_cells":100000,"rows_first":2000,"rows_last":500,"rows_between":2000,"halvings":0,"cell_chars":16384,"cell_head_chars":4096},"cells_cut":0,"cells_raw":0,"read":"whole","date_system":"1900"}

{"sheet":"Accueil","index":0,"n_rows":0,"n_cols":0,"rows_kept":0,"cut":false,"hidden":false,"merged":[]}

{"sheet":"Param","index":1,"n_rows":12,"n_cols":3,"rows_kept":12,"cut":false,"hidden":false,"merged":[]}
["Harmonies étendues",null,"Pantone"]
["Harmonies voisines",null,"RAL"]
["Harmonies 60°",null,"Resene"]
["Harmonie 120°",null,"HTML"]
["Harmonies opposées",null,"Quadrichromie"]
["Harmonies -120°",null,"WebSafe"]
["Harmonies -60°",null,"ColorIndex"]
["Purete"]
["Lumiere"]
["Influences Rouges"]
["Influences Vertes"]
["Influences Bleues"]

{"sheet":"Listing","index":2,"n_rows":3046,"n_cols":123,"rows_kept":1125,"cut":true,"hidden":false,"merged":[],"bounds":{"rows_first":500,"rows_last":125,"rows_between":500,"halvings":2}}
["Name","Ref Pantone","RGB","cc","Hex","R","G","B","H","S","L","C","M","J","N",null,null,null,null,null,"nom","Ref RAL","RGB",null,null,null,null,null,null,null,null,null,null,null,null,null,null,null,null,null,"Colour name","Ref Resene","RGB",null,null,null,null,null,null,null,null,null,null,null,null,null,null,null,null,null,"Nom","CMJN","RGB",null,null,null,null,null,null,null,null,null,null,null,null,null,null,null,null,null,"Name","Html","RGB",null,null,null,null,null,null,{"$f":"COLUMN()","v":90},{"$f":"COLUMN()","v":91},{"$f":"COLUMN()","v":92},{"$f":"COLUMN()","v":93},{"$f":"COLUMN()","v":94},{"$f":"COLUMN()","v":95},{"$f":"COLUMN()","v":96},{"$f":"COLUMN()","v":97},{"$f":"COLUMN()","v":98},{"$f":"COLUMN()","v":99},{"$f":"COLUMN()","v":100},"Html","Websafe","dec",null,null,null,null,null,null,null,null,null,null,null,null,null,null,null,null,null,"ColorIndex","Idx","dec"]
[null,"Pantone 485 2X",3276,null,{"$f":"DEC2HEX(C2,6)","v":"000CCC"},{"$f":"getrvb($C2,1)","v":204},{"$f":"getrvb($C2,2)","v":12},{"$f":"getrvb($C2,3)","v":0},{"$f":"gettsl($C2,1)","v":9.8039215686274508E-3},{"$f":"gettsl($C2,2)","v":1},{"$f":"gettsl($C2,3)","v":0.4},{"$f":"GetCMJN($C2,1)","v":0},{"$f":"GetCMJN($C2,2)","v":0.94117647058823517},{"$f":"GetCMJN($C2,3)","v":1},{"$f":"GetCMJN($C2,4)","v":0.2},null,null,null,null,null,"Beige vert","RAL 1000",8371646,null,null,null,null,null,null,null,null,null,null,null,null,null,null,null,null,null,"Apollo Blue","10CW43",6830358,null,null,null,null,null,null,null,null,null,null,null,null,null,null,null,null,null,"Abricot",null,3178214,null,null,null,null,null,null,null,null,null,null,null,null,null,null,null,null,null,"Abricot",null,3178214,null,null,null,null,null,null,null,null,null,null,null,null,null,null,null,null,null,{"$f":"\"&h\"&DEC2HEX(CY2,6)","v":"&h000000"},null,0,null,null,null,null,null,null,null,null,null,null,null,null,null,null,null,null,null,"ColorIndex 1",null,{"$f":"colorindextorgb(ROW()-1)","v":0}]
[null,"Pantone 1852 2X",5841,null,null,null,null,null,null,null,null,null,null,null,null,null,null,null,null,null,"Beige","RAL 1001",7909570,null,null,null,null,null,null,null,null,null,null,null,null,null,null,null,null,null,"Black Pepper","10CW38",3225404,null,null,null,null,null,null,null,null,null,null,null,null,null,null,null,null,null,"Acajou",null,1917576,null,null,null,null,null,null,null,null,null,null,null,null,null,null,null,null,null,"Acajou",null,1917576,null,null,null,null,null,null,null,null,null,null,null,null,null,null,null,null,null,"&h000033",null,51,null,null,null,null,null,null,null,null,null,null,null,null,null,null,null,null,null,"ColorIndex 2",null,16777215]
[null,"Pantone 1788 2X",8662,null,null,null,null,null,null,null,null,null,null,null,null,null,null,null,null,null,"Jaune sable","RAL 1002",6596294,null,null,null,null,null,null,null,null,null,null,null,null,null,null,null,null,null,"Blackwood","10CW11",3028799,null,null,null,null,null,null,null,null,null,null,null,null,null,null,null,null,null,"Aigue-marine",null,16316537,null,null,null,null,null,null,null,null,null,null,null,null,null,null,null,null,null,"Acier Bleu",null,9333539,null,null,null,null,null,null,null,null,null,null,null,null,null,null,null,null,null,"&h000066",null,102,null,null,null,null,null,null,null,null,null,null,null,null,null,null,null,null,null,"ColorIndex 3",null,255]
[null,"Warm Red 2X",15072,null,null,null,null,null,null,null,null,null,null,null,null,null,null,null,null,null,"Jaune de sécurité","RAL 1003",114405,null,null,null,null,null,null,null,null,null,null,null,null,null,null,null,null,null,"Candlelight","10CW22",3644896,null,null,null,null,null,null,null,null,null,null,null,null,null,null,null,null,null,"Aile de corbeau",null,0,null,null,null,null,null,null,null,null,null,null,null,null,null,null,null,null,null,"Acier Bleu",null,11829830,null,null,null,null,null,null,null,null,null,null,null,null,null,null,null,null,null,"&h000099",null,153,null,null,null,null,null,null,null,null,null,null,null,null,null,null,null,null,null,"ColorIndex 4",null,65280]
[null,"Pantone 1535",17548,null,null,null,null,null,null,null,null,null,null,null,null,null,null,null,null,null,"Jaune or","RAL 1005",492457,null,null,null,null,null,null,null,null,null,null,null,null,null,null,null,null,null,"Capri","10CW35",6964016,null,null,null,null,null,null,null,null,null,null,null,null,null,null,null,null,null,"Albâtre",null,16711422,null,null,null,null,null,null,null,null,null,null,null,null,null,null,null,null,null,"Acier Bleu1",null,16758883,null,null,null,null,null,null,null,null,null,null,null,null,null,null,null,null,null,"&h0000CC",null,204,null,null,null,null,null,null,null,null,null,null,null,null,null,null,null,null,null,"ColorIndex 5",null,16711680]
[null,"Pantone 165 2X",20458,null,null,null,null,null,null,null,null,null,null,null,null,null,null,null,null,null,"Jaune miel","RAL 1004",3450061,null,null,null,null,null,null,null,null,null,null,null,null,null,null,null,null,null,"Clairvoyant","10CW32",8207208,null,null,null,null,null,null,null,null,null,null,null,null,null,null,null,null,null,"Alezan",null,2516903,null,null,null,null,null,null,null,null,null,null,null,null,null,null,null,null,null,"Acier Bleu2",null,15641692,null,null,null,null,null,null,null,null,null,null,null,null,null,null,null,null,null,"&h0000FF",null,255,null,null,null,null,null,null,null,null,null,null,null,null,null,null,null,null,null,"ColorIndex 6",null,65535]
[null,"Pantone 1525",21685,null,null,null,null,null,null,null,null,null,null,null,null,null,null,null,null,null,"Jaune maïs","RAL 1006",1089764,null,null,null,null,null,null,null,null,null,null,null,null,null,null,null,null,null,"Clementine","10CW28",3887041,null,null,null,null,null,null,null,null,null,null,null,null,null,null,null,null,null,"Amarante",null,3877009,null,null,null,null,null,null,null,null,null,null,null,null,null,null,null,null,null,"Acier Bleu3",null,13472847,null,null,null,null,null,null,null,null,null,null,null,null,null,null,null,null,null,"&h003300",null,13056,null,null,null,null,null,null,null,null,null,null,null,null,null,null,null,null,null,"ColorIndex 7",null,16711935]
[null,"Pantone 166",23005,null,null,null,null,null,null,null,null,null,null,null,null,null,null,null,null,null,"Jaune narcisse","RAL 1007",40412,null,null,null,null,null,null,null,null,null,null,null,null,null,null,null,null,null,"Creme De Banane","10CW23",6406624,null,null,null,null,null,null,null,null,null,null,null,null,null,null,null,null,null,"Ambre",null,50160,null,null,null,null,null,null,null,null,null,null,null,null,null,null,null,null,null,"Acier Bleu4",null,9135158,null,null,null,null,null,null,null,null,null,null,null,null,null,null,null,null,null,"&h003333",null,13107,null,null,null,null,null,null,null,null,null,null,null,null,null,null,null,null,null,"ColorIndex 8",null,16776960]
[null,"Pantone 718",23487,null,null,null,null,null,null,null,null,null,null,null,null,null,null,null,null,null,"Beige brun","RAL 1011",4351626,null,null,null,null,null,null,null,null,null,null,null,null,null,null,null,null,null,"Dark Ebony","10CW14",2830647,null,null,null,null,null,null,null,null,null,null,null,null,null,null,null,null,null,"Améthyste",null,10964360,null,null,null,null,null,null,null,null,null,null,null,null,null,null,null,null,null,"Aigue-marine",null,16316537,null,null,null,null,null,null,null,null,null,null,null,null,null,null,null,null,null,"&h003366",null,13158,null,null,null,null,null,null,null,null,null,null,null,null,null,null,null,null,null,"ColorIndex 9",null,128]
[null,"Orange 021",27631,null,null,null,null,null,null,null,null,null,null,null,null,null,null,null,null,null,"Jaune citron","RAL 1012",4633799,null,null,null,null,null,null,null,null,null,null,null,null,null,null,null,null,null,"Dark Rimu","10CW16",2638192,null,null,null,null,null,null,null,null,null,null,null,null,null,null,null,null,null,"Ardoise",null,7036506,null,null,null,null,null,null,null,null,null,null,null,null,null,null,null,null,null,"Albâtre",null,16711422,null,null,null,null,null,null,null,null,null,null,null,null,null,null,null,null,null,"&h003399",null,13209,null,null,null,null,null,null,null,null,null,null,null,null,null,null,null,null,null,"ColorIndex 10",null,32768]
[null,"Pantone 717",28115,null,null,null,null,null,null,null,null,null,null,null,null,null,null,null,null,null,"Blanc perlé","RAL 1013",13297386,null,null,null,null,null,null,null,null,null,null,null,null,null,null,null,null,null,"Deep Cove","10CW34",5787194,null,null,null,null,null,null,null,null,null,null,null,null,null,null,null,null,null,"Argent",null,13553358,null,null,null,null,null,null,null,null,null,null,null,null,null,null,null,null,null,"Alezan (chevaux)",null,2516903,null,null,null,null,null,null,null,null,null,null,null,null,null,null,null,null,null,"&h0033CC",null,13260,null,null,null,null,null,null,null,null,null,null,null,null,null,null,null,null,null,"ColorIndex 11",null,8388608]
[null,"Pantone 152",30173,null,null,null,null,null,null,null,null,null,null,null,null,null,null,null,null,null,"Ivoire","RAL 1014",5229793,null,null,null,null,null,null,null,null,null,null,null,null,null,null,null,null,null,"Deep Oak","10CW10",2896445,null,null,null,null,null,null,null,null,null,null,null,null,null,null,null,null,null,"Argile",null,15724527,null,null,null,null,null,null,null,null,null,null,null,null,null,null,null,null,null,"AliceBleu",null,16775408,null,null,null,null,null,null,null,null,null,null,null,null,null,null,null,null,null,"&h0033FF",null,13311,null,null,null,null,null,null,null,null,null,null,null,null,null,null,null,null,null,"ColorIndex 12",null,32896]
[null,"Pantone 1505",31988,null,null,null,null,null,null,null,null,null,null,null,null,null,null,null,null,null,"Ivoire clair","RAL 1015",9492198,null,null,null,null,null,null,null,null,null,null,null,null,null,null,null,null,null,"Deep Purple","10CW45",5251909,null,null,null,null,null,null,null,null,null,null,null,null,null,null,null,null,null,"Asperge",null,6004859,null,null,null,null,null,null,null,null,null,null,null,null,null,null,null,null,null,"Amarante",null,3877008,null,null,null,null,null,null,null,null,null,null,null,null,null,null,null,null,null,"&h006600",null,26112,null,null,null,null,null,null,null,null,null,null,null,null,null,null,null,null,null,"ColorIndex 13",null,8388736]
[null,"Pantone 151",32759,null,null,null,null,null,null,null,null,null,null,null,null,null,null,null,null,null,"Jaune soufre","RAL 1016",2228205,null,null,null,null,null,null,null,null,null,null,null,null,null,null,null,null,null,"Desert Yellow","10CW42",1478090,null,null,null,null,null,null,null,null,null,null,null,null,null,null,null,null,null,"Aubergine",null,2621495,null,null,null,null,null,null,null,null,null,null,null,null,null,null,null,null,null,"Ambre jaune",null,50160,null,null,null,null,null,null,null,null,null,null,null,null,null,null,null,null,null,"&h006633",null,26163,null,null,null,null,null,null,null,null,null,null,null,null,null,null,null,null,null,"ColorIndex 14",null,8421376]
[null,"Pantone 130 2X",37346,null,null,null,null,null,null,null,null,null,null,null,null,null,null,null,null,null,"Jaune safran","RAL 1017",3395829,null,null,null,null,null,null,null,null,null,null,null,null,null,null,null,null,null,"Egg White","10CW24",9292000,null,null,null,null,null,null,null,null,null,null,null,null,null,null,null,null,null,"Auburn",null,802461,null,null,null,null,null,null,null,null,null,null,null,null,null,null,null,null,null,"Ambre rouge",null,932269,null,null,null,null,null,null,null,null,null,null,null,null,null,null,null,null,null,"&h006666",null,26214,null,null,null,null,null,null,null,null,null,null,null,null,null,null,null,null,null,"ColorIndex 15",null,12632256]
[null,"Pantone 376",47743,null,null,null,null,null,null,null,null,null,null,null,null,null,null,null,null,null,"Jaune zinc","RAL 1018",2880504,null,null,null,null,null,null,null,null,null,null,null,null,null,null,null,null,null,"Emerald Green","10CW54",4615168,null,null,null,null,null,null,null,null,null,null,null,null,null,null,null,null,null,"Aurore",null,6343679,null,null,null,null,null,null,null,null,null,null,null,null,null,null,null,null,null,"Améthyste",null,10964360,null,null,null,null,null,null,null,null,null,null,null,null,null,null,null,null,null,"&h006699",null,26265,null,null,null,null,null,null,null,null,null,null,null,null,null,null,null,null,null,"ColorIndex 16",null,8421504]
[null,"Pantone 612",47812,null,null,null,null,null,null,null,null,null,null,null,null,null,null,null,null,null,"Beige gris","RAL 1019",6592414,null,null,null,null,null,null,null,null,null,null,null,null,null,null,null,null,null,"Greenstone","10CW39",4615204,null,null,null,null,null,null,null,null,null,null,null,null,null,null,null,null,null,"Azur",null,13336350,null,null,null,null,null,null,null,null,null,null,null,null,null,null,null,null,null,"AntiqueBlanc ",null,14150650,null,null,null,null,null,null,null,null,null,null,null,null,null,null,null,null,null,"&h0066CC",null,26316,null,null,null,null,null,null,null,null,null,null,null,null,null,null,null,null,null,"ColorIndex 17",null,16751001]
[null,"Pantone 375 2X",48212,null,null,null,null,null,null,null,null,null,null,null,null,null,null,null,null,null,"Jaune olive","RAL 1020",5282201,null,null,null,null,null,null,null,null,null,null,null,null,null,null,null,null,null,"Hibiscus","10CW25",5519027,null,null,null,null,null,null,null,null,null,null,null,null,null,null,null,null,null,"Azur",null,16744192,null,null,null,null,null,null,null,null,null,null,null,null,null,null,null,null,null,"AntiqueBlanc 1",null,14413823,null,null,null,null,null,null,null,null,null,null,null,null,null,null,null,null,null,"&h0066FF",null,26367,null,null,null,null,null,null,null,null,null,null,null,null,null,null,null,null,null,"ColorIndex 18",null,6697881]
[null,"Pantone 382 2X",50334,null,null,null,null,null,null,null,null,null,null,null,null,null,null,null,null,null,"Jaune colza","RAL 1021",776947,null,null,null,null,null,null,null,null,null,null,null,null,null,null,null,null,null,"Ironbark","10CW17",2903405,null,null,null,null,null,null,null,null,null,null,null,null,null,null,null,null,null,"Azur brume",null,16777200,null,null,null,null,null,null,null,null,null,null,null,null,null,null,null,null,null,"AntiqueBlanc 2",null,13426670,null,null,null,null,null,null,null,null,null,null,null,null,null,null,null,null,null,"&h009900",null,39168,null,null,null,null,null,null,null,null,null,null,null,null,null,null,null,null,null,"ColorIndex 19",null,13434879]
[null,"Pantone 375",54924,null,null,null,null,null,null,null,null,null,null,null,null,null,null,null,null,null,"Jaune trafic","RAL 1023",119546,null,null,null,null,null,null,null,null,null,null,null,null,null,null,null,null,null,"Jarrah Stain","10CW47",2896727,null,null,null,null,null,null,null,null,null,null,null,null,null,null,null,null,null,"Azur clair",null,15847540,null,null,null,null,null,null,null,null,null,null,null,null,null,null,null,null,null,"AntiqueBlanc 3",null,11583693,null,null,null,null,null,null,null,null,null,null,null,null,null,null,null,null,null,"&h009933",null,39219,null,null,null,null,null,null,null,null,null,null,null,null,null,null,null,null,null,"ColorIndex 20",null,16777164]
[null,"Pantone 725",145525,null,null,null,null,null,null,null,null,null,null,null,null,null,null,null,null,null,"Jaune ocre","RAL 1024",4956334,null,null,null,null,null,null,null,null,null,null,null,null,null,null,null,null,null,"Mahogany","10CW30",3158600,null,null,null,null,null,null,null,null,null,null,null,null,null,null,null,null,null,"Azurin",null,16706217,null,null,null,null,null,null,null,null,null,null,null,null,null,null,null,null,null,"AntiqueBlanc 4",null,7897995,null,null,null,null,null,null,null,null,null,null,null,null,null,null,null,null,null,"&h009966",null,39270,null,null,null,null,null,null,null,null,null,null,null,null,null,null,null,null,null,"ColorIndex 21",null,6684774]
[null,"Pantone 471 2X",148643,null,null,null,null,null,null,null,null,null,null,null,null,null,null,null,null,null,"Jaune brillant","RAL 1026",65535,null,null,null,null,null,null,null,null,null,null,null,null,null,null,null,null,null,"Matai","10CW49",2903158,null,null,null,null,null,null,null,null,null,null,null,null,null,null,null,null,null,"Basané",null,4353163,null,null,null,null,null,null,null,null,null,null,null,null,null,null,null,null,null,"Aquamarine",null,9689968,null,null,null,null,null,null,null,null,null,null,null,null,null,null,null,null,null,"&h009999",null,39321,null,null,null,null,null,null,null,null,null,null,null,null,null,null,null,null,null,"ColorIndex 22",null,8421631]
[null,"Pantone 172",150007,null,null,null,null,null,null,null,null,null,null,null,null,null,null,null,null,null,"Jaune curry","RAL 1027",102813,null,null,null,null,null,null,null,null,null,null,null,null,null,null,null,null,null,"Meranti","10CW15",2765931,null,null,null,null,null,null,null,null,null,null,null,null,null,null,null,null,null,"Beige",null,8367560,null,null,null,null,null,null,null,null,null,null,null,null,null,null,null,null,null,"aquamarine",null,13959039,null,null,null,null,null,null,null,null,null,null,null,null,null,null,null,null,null,"&h0099CC",null,39372,null,null,null,null,null,null,null,null,null,null,null,null,null,null,null,null,null,"ColorIndex 23",null,13395456]
[null,"Pantone 1655",153337,null,null,null,null,null,null,null,null,null,null,null,null,null,null,null,null,null,"Jaune melon","RAL 1028",43508,null,null,null,null,null,null,null,null,null,null,null,null,null,null,null,null,null,"Oregon","10CW21",3763377,null,null,null,null,null,null,null,null,null,null,null,null,null,null,null,null,null,"Beige clair",null,14480885,null,null,null,null,null,null,null,null,null,null,null,null,null,null,null,null,null,"aquamarine2",null,13037174,null,null,null,null,null,null,null,null,null,null,null,null,null,null,null,null,null,"&h0099FF",null,39423,null,null,null,null,null,null,null,null,null,null,null,null,null,null,null,null,null,"ColorIndex 24",null,16764108]
[null,"Pantone 1665",153337,null,null,null,null,null,null,null,null,null,null,null,null,null,null,null,null,null,"Jaune genêt","RAL 1032",110294,null,null,null,null,null,null,null,null,null,null,null,null,null,null,null,null,null,"Pea Soup","10CW41",8435897,null,null,null,null,null,null,null,null,null,null,null,null,null,null,null,null,null,"Beigeasse",null,7907247,null,null,null,null,null,null,null,null,null,null,null,null,null,null,null,null,null,"aquamarine4",null,7637829,null,null,null,null,null,null,null,null,null,null,null,null,null,null,null,null,null,"&h00CC00",null,52224,null,null,null,null,null,null,null,null,null,null,null,null,null,null,null,null,null,"ColorIndex 25",null,8388608]
[null,"Pantone 3995",155757,null,null,null,null,null,null,null,null,null,null,null,null,null,null,null,null,null,"Jaune dahlia","RAL 1033",370163,null,null,null,null,null,null,null,null,null,null,null,null,null,null,null,null,null,"Peach Schnapps","10CW29",5865670,null,null,null,null,null,null,null,null,null,null,null,null,null,null,null,null,null,"Beurre",null,7070704,null,null,null,null,null,null,null,null,null,null,null,null,null,null,null,null,null,"Aquilain (chevaux)",null,610221,null,null,null,null,null,null,null,null,null,null,null,null,null,null,null,null,null,"&h00CC33",null,52275,null,null,null,null,null,null,null,null,null,null,null,null,null,null,null,null,null,"ColorIndex 26",null,16711935]
[null,"Pantone 165",156665,null,null,null,null,null,null,null,null,null,null,null,null,null,null,null,null,null,"Jaune pastel","RAL 1034",4893167,null,null,null,null,null,null,null,null,null,null,null,null,null,null,null,null,null,"Pigeon Post","10CW36",9340023,null,null,null,null,null,null,null,null,null,null,null,null,null,null,null,null,null,"Beurre frais",null,9303295,null,null,null,null,null,null,null,null,null,null,null,null,null,null,null,null,null,"Ardoise",null,7036506,null,null,null,null,null,null,null,null,null,null,null,null,null,null,null,null,null,"&h00CC66",null,52326,null,null,null,null,null,null,null,null,null,null,null,null,null,null,null,null,null,"ColorIndex 27",null,65535]
[null,"Pantone 1385",162508,null,null,null,null,null,null,null,null,null,null,null,null,null,null,null,null,null,"Beige nacré","RAL 1035",5070186,null,null,null,null,null,null,null,null,null,null,null,null,null,null,null,null,null,"Pistachio","10CW40",2582887,null,null,null,null,null,null,null,null,null,null,null,null,null,null,null,null,null,"Bis",null,12509937,null,null,null,null,null,null,null,null,null,null,null,null,null,null,null,null,null,"Ardoise Bleu",null,16744192,null,null,null,null,null,null,null,null,null,null,null,null,null,null,null,null,null,"&h00CC99",null,52377,null,null,null,null,null,null,null,null,null,null,null,null,null,null,null,null,null,"ColorIndex 28",null,16776960]
[null,"Pantone 138",167128,null,null,null,null,null,null,null,null,null,null,null,null,null,null,null,null,null,"Or nacré","RAL 1036",3494768,null,null,null,null,null,null,null,null,null,null,null,null,null,null,null,null,null,"Punch","10CW27",3748520,null,null,null,null,null,null,null,null,null,null,null,null,null,null,null,null,null,"Bis",null,6582134,null,null,null,null,null,null,null,null,null,null,null,null,null,null,null,null,null,"Ardoise Bleu",null,13458026,null,null,null,null,null,null,null,null,null,null,null,null,null,null,null,null,null,"&h00CCCC",null,52428,null,null,null,null,null,null,null,null,null,null,null,null,null,null,null,null,null,"ColorIndex 29",null,8388736]
[null,"Pantone 377",168816,null,null,null,null,null,null,null,null,null,null,null,null,null,null,null,null,null,"Jaune soleil","RAL 1037",1613811,null,null,null,null,null,null,null,null,null,null,null,null,null,null,null,null,null,"Raincloud","10CW37",8493219,null,null,null,null,null,null,null,null,null,null,null,null,null,null,null,null,null,"Bisque",null,12903679,null,null,null,null,null,null,null,null,null,null,null,null,null,null,null,null,null,"Ardoise Bleu1",null,16740227,null,null,null,null,null,null,null,null,null,null,null,null,null,null,null,null,null,"&h00CCFF",null,52479,null,null,null,null,null,null,null,null,null,null,null,null,null,null,null,null,null,"ColorIndex 30",null,128]
[null,"Pantone 485",335576,null,null,null,null,null,null,null,null,null,null,null,null,null,null,null,null,null,"Orangé jaune","RAL 2000",947949,null,null,null,null,null,null,null,null,null,null,null,null,null,null,null,null,null,"Red Beech","10CW20",3891873,null,null,null,null,null,null,null,null,null,null,null,null,null,null,null,null,null,"Bistre",null,5074309,null,null,null,null,null,null,null,null,null,null,null,null,null,null,null,null,null,"Ardoise Bleu2",null,15624058,null,null,null,null,null,null,null,null,null,null,null,null,null,null,null,null,null,"&h00FF00",null,65280,null,null,null,null,null,null,null,null,null,null,null,null,null,null,null,null,null,"ColorIndex 31",null,8421376]
[null,"Pantone 724",346510,null,null,null,null,null,null,null,null,null,null,null,null,null,null,null,null,null,"Orangé rouge","RAL 2001",2112713,null,null,null,null,null,null,null,null,null,null,null,null,null,null,null,null,null,"Red Pepper","10CW46",2757051,null,null,null,null,null,null,null,null,null,null,null,null,null,null,null,null,null,"Bistre",null,2042685,null,null,null,null,null,null,null,null,null,null,null,null,null,null,null,null,null,"Ardoise Bleu3",null,13457769,null,null,null,null,null,null,null,null,null,null,null,null,null,null,null,null,null,"&h00FF33",null,65331,null,null,null,null,null,null,null,null,null,null,null,null,null,null,null,null,null,"ColorIndex 32",null,16711680]
[null,"Pantone 154",350617,null,null,null,null,null,null,null,null,null,null,null,null,null,null,null,null,null,"Orangé sang","RAL 2002",2173131,null,null,null,null,null,null,null,null,null,null,null,null,null,null,null,null,null,"Ribbon","10CW31",3945329,null,null,null,null,null,null,null,null,null,null,null,null,null,null,null,null,null,"Bitume",null,2637134,null,null,null,null,null,null,null,null,null,null,null,null,null,null,null,null,null,"Ardoise Bleu4",null,9124935,null,null,null,null,null,null,null,null,null,null,null,null,null,null,null,null,null,"&h00FF66",null,65382,null,null,null,null,null,null,null,null,null,null,null,null,null,null,null,null,null,"ColorIndex 33",null,{"$f":"colorindextorgb(ROW()-1)","v":16763904}]
[null,"Pantone 1595",351185,null,null,null,null,null,null,null,null,null,null,null,null,null,null,null,null,null,"Orangé pastel","RAL 2003",1340927,null,null,null,null,null,null,null,null,null,null,null,null,null,null,null,null,null,"Rock Salt","10CW25",12113638,null,null,null,null,null,null,null,null,null,null,null,null,null,null,null,null,null,"Blanc cassé",null,14876414,null,null,null,null,null,null,null,null,null,null,null,null,null,null,null,null,null,"Ardoise gris ",null,9470064,null,null,null,null,null,null,null,null,null,null,null,null,null,null,null,null,null,"&h00FF99",null,65433,null,null,null,null,null,null,null,null,null,null,null,null,null,null,null,null,null,"ColorIndex 34",null,16777164]
[null,"Pantone 159",352454,null,null,null,null,null,null,null,null,null,null,null,null,null,null,null,null,null,"Orangé pur","RAL 2004",1132276,null,null,null,null,null,null,null,null,null,null,null,null,null,null,null,null,null,"Rosewood","10CW18",4144783,null,null,null,null,null,null,null,null,null,null,null,null,null,null,null,null,null,"Blanc céruse",null,16711422,null,null,null,null,null,null,null,null,null,null,null,null,null,null,null,null,null,"Ardoise gris 1",null,16769734,null,null,null,null,null,null,null,null,null,null,null,null,null,null,null,null,null,"&h00FFCC",null,65484,null,null,null,null,null,null,null,null,null,null,null,null,null,null,null,null,null,"ColorIndex 35",null,13434828]
[null,"Pantone 146",355230,null,null,null,null,null,null,null,null,null,null,null,null,null,null,null,null,null,"Orangé brillant","RAL 2005",74751,null,null,null,null,null,null,null,null,null,null,null,null,null,null,null,null,null,"Satin Orange","10CW44",2113734,null,null,null,null,null,null,null,null,null,null,null,null,null,null,null,null,null,"Blanc crème",null,12120573,null,null,null,null,null,null,null,null,null,null,null,null,null,null,null,null,null,"Ardoise gris 2",null,15651769,null,null,null,null,null,null,null,null,null,null,null,null,null,null,null,null,null,"&h00FFFF",null,65535,null,null,null,null,null,null,null,null,null,null,null,null,null,null,null,null,null,"ColorIndex 36",null,10092543]
[null,"Pantone 139",357807,null,null,null,null,null,null,null,null,null,null,null,null,null,null,null,null,null,"Orangé clair","RAL 2007",2139391,null,null,null,null,null,null,null,null,null,null,null,null,null,null,null,null,null,"Tabasco","10CW19",3553934,null,null,null,null,null,null,null,null,null,null,null,null,null,null,null,null,null,"Blanc d'argent",null,16711422,null,null,null,null,null,null,null,null,null,null,null,null,null,null,null,null,null,"Ardoise gris 3",null,13481631,null,null,null,null,null,null,null,null,null,null,null,null,null,null,null,null,null,"&h330000",null,3342336,null,null,null,null,null,null,null,null,null,null,null,null,null,null,null,null,null,"ColorIndex 37",null,16764057]
[null,"Pantone 392",361092,null,null,null,null,null,null,null,null,null,null,null,null,null,null,null,null,null,"Orangé rouge clair","RAL 2008",2449143,null,null,null,null,null,null,null,null,null,null,null,null,null,null,null,null,null,"Teak Stain","10CW12",2700622,null,null,null,null,null,null,null,null,null,null,null,null,null,null,null,null,null,"Blanc de lait",null,16448763,null,null,null,null,null,null,null,null,null,null,null,null,null,null,null,null,null,"Ardoise gris 4",null,9141100,null,null,null,null,null,null,null,null,null,null,null,null,null,null,null,null,null,"&h330033",null,3342387,null,null,null,null,null,null,null,null,null,null,null,null,null,null,null,null,null,"ColorIndex 38",null,13408767]
[null,"Pantone 583",362887,null,null,null,null,null,null,null,null,null,null,null,null,null,null,null,null,null,"Orangé trafic","RAL 2009",2179317,null,null,null,null,null,null,null,null,null,null,null,null,null,null,null,null,null,"Walnut","10CW13",3034489,null,null,null,null,null,null,null,null,null,null,null,null,null,null,null,null,null,"Blanc de lin",null,15134970,null,null,null,null,null,null,null,null,null,null,null,null,null,null,null,null,null,"Argile kaolin",null,15724527,null,null,null,null,null,null,null,null,null,null,null,null,null,null,null,null,null,"&h330066",null,3342438,null,null,null,null,null,null,null,null,null,null,null,null,null,null,null,null,null,"ColorIndex 39",null,16751052]
[null,"Pantone 144",363746,null,null,null,null,null,null,null,null,null,null,null,null,null,null,null,null,null,"Orangé de sécurité","RAL 2010",2116568,null,null,null,null,null,null,null,null,null,null,null,null,null,null,null,null,null,"Western Red Cedar","10CW48",2766714,null,null,null,null,null,null,null,null,null,null,null,null,null,null,null,null,null,"Blanc de platine",null,12972282,null,null,null,null,null,null,null,null,null,null,null,null,null,null,null,null,null,"Asperge",null,6004859,null,null,null,null,null,null,null,null,null,null,null,null,null,null,null,null,null,"&h330099",null,3342489,null,null,null,null,null,null,null,null,null,null,null,null,null,null,null,null,null,"ColorIndex 40",null,10079487]
[null,"Pantone 384",366995,null,null,null,null,null,null,null,null,null,null,null,null,null,null,null,null,null,"Orangé foncé","RAL 2011",2522348,null,null,null,null,null,null,null,null,null,null,null,null,null,null,null,null,null,"Wisteria","10CW33",9144228,null,null,null,null,null,null,null,null,null,null,null,null,null,null,null,null,null,"Blanc de plomb",null,16711422,null,null,null,null,null,null,null,null,null,null,null,null,null,null,null,null,null,"Aubergine",null,2621495,null,null,null,null,null,null,null,null,null,null,null,null,null,null,null,null,null,"&h3300CC",null,3342540,null,null,null,null,null,null,null,null,null,null,null,null,null,null,null,null,null,"ColorIndex 41",null,16737843]
[null,"Pantone 390",378042,null,null,null,null,null,null,null,null,null,null,null,null,null,null,null,null,null,"Orangé saumon","RAL 2012",3625445,null,null,null,null,null,null,null,null,null,null,null,null,null,null,null,null,null,"Indian Ink","B26-017-270",3286819,null,null,null,null,null,null,null,null,null,null,null,null,null,null,null,null,null,"Blanc de Saturne",null,16711422,null,null,null,null,null,null,null,null,null,null,null,null,null,null,null,null,null,"Auburn (cheveux)",null,802461,null,null,null,null,null,null,null,null,null,null,null,null,null,null,null,null,null,"&h3300FF",null,3342591,null,null,null,null,null,null,null,null,null,null,null,null,null,null,null,null,null,"ColorIndex 42",null,13421619]
[null,"Pantone 167",479164,null,null,null,null,null,null,null,null,null,null,null,null,null,null,null,null,null,"Orangé nacré","RAL 2013",3233987,null,null,null,null,null,null,null,null,null,null,null,null,null,null,null,null,null,"Botany Bay","B27-014-268",3618871,null,null,null,null,null,null,null,null,null,null,null,null,null,null,null,null,null,"Blanc de Troyes",null,15793662,null,null,null,null,null,null,null,null,null,null,null,null,null,null,null,null,null,"Aurore",null,6343679,null,null,null,null,null,null,null,null,null,null,null,null,null,null,null,null,null,"&h333300",null,3355392,null,null,null,null,null,null,null,null,null,null,null,null,null,null,null,null,null,"ColorIndex 43",null,52377]
[null,"Pantone 1395",483481,null,null,null,null,null,null,null,null,null,null,null,null,null,null,null,null,null,"Rouge feu","RAL 3000",1977263,null,null,null,null,null,null,null,null,null,null,null,null,null,null,null,null,null,"Celestial Blue","B27-023-269",3088410,null,null,null,null,null,null,null,null,null,null,null,null,null,null,null,null,null,"Blanc de Zinc",null,16711414,null,null,null,null,null,null,null,null,null,null,null,null,null,null,null,null,null,"Azur",null,15847540,null,null,null,null,null,null,null,null,null,null,null,null,null,null,null,null,null,"&h333333",null,3355443,null,null,null,null,null,null,null,null,null,null,null,null,null,null,null,null,null,"ColorIndex 44",null,52479]
[null,"Pantone 1585",486393,null,null,null,null,null,null,null,null,null,null,null,null,null,null,null,null,null,"Rouge de sécurité","RAL 3001",1646757,null,null,null,null,null,null,null,null,null,null,null,null,null,null,null,null,null,"Jaguar","B27-008-276",3090729,null,null,null,null,null,null,null,null,null,null,null,null,null,null,null,null,null,"Blanc d'Espagne",null,15793662,null,null,null,null,null,null,null,null,null,null,null,null,null,null,null,null,null,"azure",null,16777200,null,null,null,null,null,null,null,null,null,null,null,null,null,null,null,null,null,"&h333366",null,3355494,null,null,null,null,null,null,null,null,null,null,null,null,null,null,null,null,null,"ColorIndex 45",null,39423]
[null,"Pantone 145",491462,null,null,null,null,null,null,null,null,null,null,null,null,null,null,null,null,null,"Rouge carmin","RAL 3002",1909666,null,null,null,null,null,null,null,null,null,null,null,null,null,null,null,null,null,"Nite Life","B27-028-276",3416349,null,null,null,null,null,null,null,null,null,null,null,null,null,null,null,null,null,"Blanc d'ivoire",null,15794175,null,null,null,null,null,null,null,null,null,null,null,null,null,null,null,null,null,"azure2",null,15658720,null,null,null,null,null,null,null,null,null,null,null,null,null,null,null,null,null,"&h333399",null,3355545,null,null,null,null,null,null,null,null,null,null,null,null,null,null,null,null,null,"ColorIndex 46",null,26367]
[null,"Pantone 399",495257,null,null,null,null,null,null,null,null,null,null,null,null,null,null,null,null,null,"Rouge rubis","RAL 3003",1970587,null,null,null,null,null,null,null,null,null,null,null,null,null,null,null,null,null,"Blue Night","B28-028-267",3876383,null,null,null,null,null,null,null,null,null,null,null,null,null,null,null,null,null,"Blanc écru",null,14745342,null,null,null,null,null,null,null,null,null,null,null,null,null,null,null,null,null,"azure3",null,13487553,null,null,null,null,null,null,null,null,null,null,null,null,null,null,null,null,null,"&h3333CC",null,3355596,null,null,null,null,null,null,null,null,null,null,null,null,null,null,null,null,null,"ColorIndex 47",null,10053222]
[null,"Pantone 391",499358,null,null,null,null,null,null,null,null,null,null,null,null,null,null,null,null,null,"Rouge pourpre","RAL 3004",1971573,null,null,null,null,null,null,null,null,null,null,null,null,null,null,null,null,null,"Blueprint","B28-023-266",4141354,null,null,null,null,null,null,null,null,null,null,null,null,null,null,null,null,null,"Blanc lunaire",null,16711412,null,null,null,null,null,null,null,null,null,null,null,null,null,null,null,null,null,"azure4",null,9145219,null,null,null,null,null,null,null,null,null,null,null,null,null,null,null,null,null,"&h3333FF",null,3355647,null,null,null,null,null,null,null,null,null,null,null,null,null,null,null,null,null,"ColorIndex 48",null,9868950]
[null,"Pantone 383",503715,null,null,null,null,null,null,null,null,null,null,null,null,null,null,null,null,null,"Rouge vin","RAL 3005",2695518,null,null,null,null,null,null,null,null,null,null,null,null,null,null,null,null,null,"Magnum","B28-023-249",3220241,null,null,null,null,null,null,null,null,null,null,null,null,null,null,null,null,null,"Blanc neige",null,16711422,null,null,null,null,null,null,null,null,null,null,null,null,null,null,null,null,null,"Azurin",null,16706217,null,null,null,null,null,null,null,null,null,null,null,null,null,null,null,null,null,"&h336600",null,3368448,null,null,null,null,null,null,null,null,null,null,null,null,null,null,null,null,null,"ColorIndex 49",null,6697728]
[null,"Pantone 389",516302,null,null,null,null,null,null,null,null,null,null,null,null,null,null,null,null,null,"Rouge noir","RAL 3007",2564673,null,null,null,null,null,null,null,null,null,null,null,null,null,null,null,null,null,"Tornado","B28-020-264",3943719,null,null,null,null,null,null,null,null,null,null,null,null,null,null,null,null,null,"Blanc opalin",null,16777202,null,null,null,null,null,null,null,null,null,null,null,null,null,null,null,null,null,"Baillet (chevaux vieilli)",null,2974894,null,null,null,null,null,null,null,null,null,null,null,null,null,null,null,null,null,"&h336633",null,3368499,null,null,null,null,null,null,null,null,null,null,null,null,null,null,null,null,null,"ColorIndex 50",null,6723891]
[null,"Pantone 3945",518895,null,null,null,null,null,null,null,null,null,null,null,null,null,null,null,null,null,"Rouge oxyde","RAL 3009",2368612,null,null,null,null,null,null,null,null,null,null,null,null,null,null,null,null,null,"Bastille","B29-009-283",3288108,null,null,null,null,null,null,null,null,null,null,null,null,null,null,null,null,null,"Blanc-bleu",null,16711422,null,null,null,null,null,null,null,null,null,null,null,null,null,null,null,null,null,"baker's chocolate",null,1520476,null,null,null,null,null,null,null,null,null,null,null,null,null,null,null,null,null,"&h336666",null,3368550,null,null,null,null,null,null,null,null,null,null,null,null,null,null,null,null,null,"ColorIndex 51",null,13056]
[null,"Pantone 732",668512,null,null,null,null,null,null,null,null,null,null,null,null,null,null,null,null,null,"Rouge brun","RAL 3011",1646456,null,null,null,null,null,null,null,null,null,null,null,null,null,null,null,null,null,"Black Pearl","B29-013-232",2893598,null,null,null,null,null,null,null,null,null,null,null,null,null,null,null,null,null,"Blé",null,3200744,null,null,null,null,null,null,null,null,null,null,null,null,null,null,null,null,null,"Beige",null,8367560,null,null,null,null,null,null,null,null,null,null,null,null,null,null,null,null,null,"&h336699",null,3368601,null,null,null,null,null,null,null,null,null,null,null,null,null,null,null,null,null,"ColorIndex 52",null,13107]
[null,"Pantone 731",671602,null,null,null,null,null,null,null,null,null,null,null,null,null,null,null,null,null,"Rouge beige","RAL 3012",7047105,null,null,null,null,null,null,null,null,null,null,null,null,null,null,null,null,null,"Bledisloe","B29-014-216",2828313,null,null,null,null,null,null,null,null,null,null,null,null,null,null,null,null,null,"Blet",null,1129563,null,null,null,null,null,null,null,null,null,null,null,null,null,null,null,null,null,"beige",null,14480885,null,null,null,null,null,null,null,null,null,null,null,null,null,null,null,null,null,"&h3366CC",null,3368652,null,null,null,null,null,null,null,null,null,null,null,null,null,null,null,null,null,"ColorIndex 53",null,13209]
[null,"Pantone 160",677022,null,null,null,null,null,null,null,null,null,null,null,null,null,null,null,null,null,"Rouge tomate","RAL 3013",1188769,null,null,null,null,null,null,null,null,null,null,null,null,null,null,null,null,null,"Blue Charcoal","B29-008-243",3091238,null,null,null,null,null,null,null,null,null,null,null,null,null,null,null,null,null,"Bleu acier",null,12226106,null,null,null,null,null,null,null,null,null,null,null,null,null,null,null,null,null,"Beigeasse (péjoratif)",null,8103855,null,null,null,null,null,null,null,null,null,null,null,null,null,null,null,null,null,"&h3366FF",null,3368703,null,null,null,null,null,null,null,null,null,null,null,null,null,null,null,null,null,"ColorIndex 54",null,6697881]
[null,"Pantone 133",678768,null,null,null,null,null,null,null,null,null,null,null,null,null,null,null,null,null,"Vieux rose","RAL 3014",7368403,null,null,null,null,null,null,null,null,null,null,null,null,null,null,null,null,null,"Quarterback","B29-024-274",3943208,null,null,null,null,null,null,null,null,null,null,null,null,null,null,null,null,null,"Bleu ardoise",null,9203560,null,null,null,null,null,null,null,null,null,null,null,null,null,null,null,null,null,"Beurre",null,7070704,null,null,null,null,null,null,null,null,null,null,null,null,null,null,null,null,null,"&h339900",null,3381504,null,null,null,null,null,null,null,null,null,null,null,null,null,null,null,null,null,"ColorIndex 55",null,10040115]
[null,"Pantone 153",683452,null,null,null,null,null,null,null,null,null,null,null,null,null,null,null,null,null,"Rose clair","RAL 3015",10127850,null,null,null,null,null,null,null,null,null,null,null,null,null,null,null,null,null,"Sentry","B29-011-217",2631452,null,null,null,null,null,null,null,null,null,null,null,null,null,null,null,null,null,"Bleu barbeau",null,11432532,null,null,null,null,null,null,null,null,null,null,null,null,null,null,null,null,null,"Beurre frais",null,9303295,null,null,null,null,null,null,null,null,null,null,null,null,null,null,null,null,null,"&h339933",null,3381555,null,null,null,null,null,null,null,null,null,null,null,null,null,null,null,null,null,"ColorIndex 56",null,3355443]
[null,"Pantone 132",687262,null,null,null,null,null,null,null,null,null,null,null,null,null,null,null,null,null,"Rouge corail","RAL 3016",2173107,null,null,null,null,null,null,null,null,null,null,null,null,null,null,null,null,null,"Surfs Up","B29-058-284",4333855,null,null,null,null,null,null,null,null,null,null,null,null,null,null,null,null,null,"Bleu bleuet",null,11432532,null,null,null,null,null,null,null,null,null,null,null,null,null,null,null,null,null,"Bis",null,6582134,null,null,null,null,null,null,null,null,null,null,null,null,null,null,null,null,null,"&h339966",null,3381606]
[null,"Pantone 112",689305,null,null,null,null,null,null,null,null,null,null,null,null,null,null,null,null,null,"Rosé","RAL 3017",4469478,null,null,null,null,null,null,null,null,null,null,null,null,null,null,null,null,null,"Zinzan","B29-032-265",4270617,null,null,null,null,null,null,null,null,null,null,null,null,null,null,null,null,null,"Bleu bondi",null,11965696,null,null,null,null,null,null,null,null,null,null,null,null,null,null,null,null,null,"Bis (héraldique)",null,12509937,null,null,null,null,null,null,null,null,null,null,null,null,null,null,null,null,null,"&h339999",null,3381657]
[null,"Pantone 3985",691353,null,null,null,null,null,null,null,null,null,null,null,null,null,null,null,null,null,"Rouge fraise","RAL 3018",3289301,null,null,null,null,null,null,null,null,null,null,null,null,null,null,null,null,null,"Black Rock","B30-023-279",3943724,null,null,null,null,null,null,null,null,null,null,null,null,null,null,null,null,null,"Bleu céleste",null,15516710,null,null,null,null,null,null,null,null,null,null,null,null,null,null,null,null,null,"Bisque",null,12903679,null,null,null,null,null,null,null,null,null,null,null,null,null,null,null,null,null,"&h3399CC",null,3381708]
[null,"Pantone 125",691381,null,null,null,null,null,null,null,null,null,null,null,null,null,null,null,null,null,"Rouge trafic","RAL 3020",329420,null,null,null,null,null,null,null,null,null,null,null,null,null,null,null,null,null,"Loch Ness","B30-032-213",3616519,null,null,null,null,null,null,null,null,null,null,null,null,null,null,null,null,null,"Bleu céruléen",null,12024373,null,null,null,null,null,null,null,null,null,null,null,null,null,null,null,null,null,"bisque2",null,12047854,null,null,null,null,null,null,null,null,null,null,null,null,null,null,null,null,null,"&h3399FF",null,3381759]
[null,"Pantone 118",691882,null,null,null,null,null,null,null,null,null,null,null,null,null,null,null,null,null,"Rouge saumon","RAL 3022",3166425,null,null,null,null,null,null,null,null,null,null,null,null,null,null,null,null,null,"Regatta","B30-039-264",4795417,null,null,null,null,null,null,null,null,null,null,null,null,null,null,null,null,null,"Bleu céruléen",null,15244559,null,null,null,null,null,null,null,null,null,null,null,null,null,null,null,null,null,"bisque3",null,10401741,null,null,null,null,null,null,null,null,null,null,null,null,null,null,null,null,null,"&h33CC00",null,3394560]
[null,"Pantone 111",693162,null,null,null,null,null,null,null,null,null,null,null,null,null,null,null,null,null,"Rouge brillant","RAL 3024",248,null,null,null,null,null,null,null,null,null,null,null,null,null,null,null,null,null,"Dark Knight","B31-014-247",3550499,null,null,null,null,null,null,null,null,null,null,null,null,null,null,null,null,null,"Bleu charrette",null,13017742,null,null,null,null,null,null,null,null,null,null,null,null,null,null,null,null,null,"bisque4",null,7044491,null,null,null,null,null,null,null,null,null,null,null,null,null,null,null,null,null,"&h33CC33",null,3394611]
[null,"Pantone 131",693190,null,null,null,null,null,null,null,null,null,null,null,null,null,null,null,null,null,"Clair brillant","RAL 3026",254,null,null,null,null,null,null,null,null,null,null,null,null,null,null,null,null,null,"Midnight","B31-025-246",4075553,null,null,null,null,null,null,null,null,null,null,null,null,null,null,null,null,null,"Bleu charron",null,13017742,null,null,null,null,null,null,null,null,null,null,null,null,null,null,null,null,null,"Bistre",null,5074309,null,null,null,null,null,null,null,null,null,null,null,null,null,null,null,null,null,"&h33CC66",null,3394662]
[null,"Pantone 398",698543,null,null,null,null,null,null,null,null,null,null,null,null,null,null,null,null,null,"Rouge framboise","RAL 3027",3415493,null,null,null,null,null,null,null,null,null,null,null,null,null,null,null,null,null,"Midnight Express","B31-030-276",3810849,null,null,null,null,null,null,null,null,null,null,null,null,null,null,null,null,null,"Bleu charron",null,8217879,null,null,null,null,null,null,null,null,null,null,null,null,null,null,null,null,null,"Bitume",null,2637134,null,null,null,null,null,null,null,null,null,null,null,null,null,null,null,null,null,"&h33CC99",null,3394713]
[null,"Pantone 584",703146,null,null,null,null,null,null,null,null,null,null,null,null,null,null,null,null,null,"Rouge pur","RAL 3028",3420875,null,null,null,null,null,null,null,null,null,null,null,null,null,null,null,null,null,"Prussian Blue","B31-038-237",4271897,null,null,null,null,null,null,null,null,null,null,null,null,null,null,null,null,null,"Bleu ciel",null,16692599,null,null,null,null,null,null,null,null,null,null,null,null,null,null,null,null,null,"Blanc",null,16777215,null,null,null,null,null,null,null,null,null,null,null,null,null,null,null,null,null,{"$f":"\"&h\"&DEC2HEX(CY66,6)","v":"&h33CCCC"},null,3394764]
[null,"Pantone 397",704449,null,null,null,null,null,null,null,null,null,null,null,null,null,null,null,null,null,"Rouge oriental","RAL 3031",2630835,null,null,null,null,null,null,null,null,null,null,null,null,null,null,null,null,null,"Allegro","B32-019-258",3878436,null,null,null,null,null,null,null,null,null,null,null,null,null,null,null,null,null,"Bleu cobalt",null,8143394,null,null,null,null,null,null,null,null,null,null,null,null,null,null,null,null,null,"Blanc",null,16053234,null,null,null,null,null,null,null,null,null,null,null,null,null,null,null,null,null,"&h33CCFF",null,3394815]
[null,"Pantone 382",710842,null,null,null,null,null,null,null,null,null,null,null,null,null,null,null,null,null,"Rouge rubis nacré","RAL 3032",2233458,null,null,null,null,null,null,null,null,null,null,null,null,null,null,null,null,null,"Billabong","B32-037-241",4272407,null,null,null,null,null,null,null,null,null,null,null,null,null,null,null,null,null,"Bleu de Berlin",null,6046756,null,null,null,null,null,null,null,null,null,null,null,null,null,null,null,null,null,"Blanc bleuté",null,15591913,null,null,null,null,null,null,null,null,null,null,null,null,null,null,null,null,null,"&h33FF00",null,3407616]
[null,"Pantone 1245",823743,null,null,null,null,null,null,null,null,null,null,null,null,null,null,null,null,null,"Rose nacré","RAL 3033",4410548,null,null,null,null,null,null,null,null,null,null,null,null,null,null,null,null,null,"Bunting","B32-030-265",4797483,null,null,null,null,null,null,null,null,null,null,null,null,null,null,null,null,null,"Bleu de France",null,15174705,null,null,null,null,null,null,null,null,null,null,null,null,null,null,null,null,null,"Blanc cassé",null,14876414,null,null,null,null,null,null,null,null,null,null,null,null,null,null,null,null,null,"&h33FF33",null,3407667]
[null,"Pantone 104",826285,null,null,null,null,null,null,null,null,null,null,null,null,null,null,null,null,null,"Lilas rouge","RAL 4001",5980013,null,null,null,null,null,null,null,null,null,null,null,null,null,null,null,null,null,"Checkmate","B32-034-278",4862511,null,null,null,null,null,null,null,null,null,null,null,null,null,null,null,null,null,"Bleu de minuit",null,6697728,null,null,null,null,null,null,null,null,null,null,null,null,null,null,null,null,null,"Blanc crème",null,12120573,null,null,null,null,null,null,null,null,null,null,null,null,null,null,null,null,null,"&h33FF66",null,3407718]
[null,"Pantone 457",826293,null,null,null,null,null,null,null,null,null,null,null,null,null,null,null,null,null,"Violet rouge","RAL 4002",4074386,null,null,null,null,null,null,null,null,null,null,null,null,null,null,null,null,null,"Crescendo","B32-033-265",4468514,null,null,null,null,null,null,null,null,null,null,null,null,null,null,null,null,null,"Bleu de Prusse",null,6046756,null,null,null,null,null,null,null,null,null,null,null,null,null,null,null,null,null,"Blanc de lait",null,16448763,null,null,null,null,null,null,null,null,null,null,null,null,null,null,null,null,null,"&h33FF99",null,3407769]
[null,"Pantone 1375",826361,null,null,null,null,null,null,null,null,null,null,null,null,null,null,null,null,null,"Violet bruyère","RAL 4003",9063646,null,null,null,null,null,null,null,null,null,null,null,null,null,null,null,null,null,"Double Resolution Blue","B32-079-273",5384478,null,null,null,null,null,null,null,null,null,null,null,null,null,null,null,null,null,"Bleu denim",null,12410901,null,null,null,null,null,null,null,null,null,null,null,null,null,null,null,null,null,"Blanc de zinc (pigment)",null,16711414,null,null,null,null,null,null,null,null,null,null,null,null,null,null,null,null,null,"&h33FFCC",null,3407820]
[null,"Pantone 613",827567,null,null,null,null,null,null,null,null,null,null,null,null,null,null,null,null,null,"Violet bordeaux","RAL 4004",3415140,null,null,null,null,null,null,null,null,null,null,null,null,null,null,null,null,null,"Gunmetal","B32-011-234",3749164,null,null,null,null,null,null,null,null,null,null,null,null,null,null,null,null,null,"Bleu des mers du sud",null,13356032,null,null,null,null,null,null,null,null,null,null,null,null,null,null,null,null,null,"Blanc d'Espagne (pigment)",null,15793662,null,null,null,null,null,null,null,null,null,null,null,null,null,null,null,null,null,"&h33FFFF",null,3407871]
[null,"Pantone 117",827590,null,null,null,null,null,null,null,null,null,null,null,null,null,null,null,null,null,"Lilas bleu","RAL 4005",7685740,null,null,null,null,null,null,null,null,null,null,null,null,null,null,null,null,null,"Lucky Point","B32-055-280",5188905,null,null,null,null,null,null,null,null,null,null,null,null,null,null,null,null,null,"Bleu dragée",null,16773855,null,null,null,null,null,null,null,null,null,null,null,null,null,null,null,null,null,"Blanc jaunâtre",null,14084848,null,null,null,null,null,null,null,null,null,null,null,null,null,null,null,null,null,"&h660000",null,6684672]
[null,"Pantone 3975",829621,null,null,null,null,null,null,null,null,null,null,null,null,null,null,null,null,null,"Pourpre trafic","RAL 4006",7484576,null,null,null,null,null,null,null,null,null,null,null,null,null,null,null,null,null,"Oxford Blue","B32-013-230",3814696,null,null,null,null,null,null,null,null,null,null,null,null,null,null,null,null,null,"Bleu égyptien",null,10892304,null,null,null,null,null,null,null,null,null,null,null,null,null,null,null,null,null,"Blanc lunaire",null,16711412,null,null,null,null,null,null,null,null,null,null,null,null,null,null,null,null,null,"&h660033",null,6684723]
[null,"Pantone 116 2X",833015,null,null,null,null,null,null,null,null,null,null,null,null,null,null,null,null,null,"Violet pourpre","RAL 4007",2890058,null,null,null,null,null,null,null,null,null,null,null,null,null,null,null,null,null,"Style Pasifika Ocean Deep","B32-025-247",3944222,null,null,null,null,null,null,null,null,null,null,null,null,null,null,null,null,null,"Bleu électrique",null,16741676,null,null,null,null,null,null,null,null,null,null,null,null,null,null,null,null,null,"Blanc rosé",null,14803946,null,null,null,null,null,null,null,null,null,null,null,null,null,null,null,null,null,"&h660066",null,6684774]
[null,"Pantone 809 2X",841430,null,null,null,null,null,null,null,null,null,null,null,null,null,null,null,null,null,"Violet de sécurité","RAL 4008",8212114,null,null,null,null,null,null,null,null,null,null,null,null,null,null,null,null,null,"Aviator","B33-064-279",5713962,null,null,null,null,null,null,null,null,null,null,null,null,null,null,null,null,null,"Bleu guède",null,10122070,null,null,null,null,null,null,null,null,null,null,null,null,null,null,null,null,null,"Blanc verdâtre",null,15265247,null,null,null,null,null,null,null,null,null,null,null,null,null,null,null,null,null,"&h660099",null,6684825]
[null,"Pantone 396",844512,null,null,null,null,null,null,null,null,null,null,null,null,null,null,null,null,null,"Violet pastel","RAL 4009",9733537,null,null,null,null,null,null,null,null,null,null,null,null,null,null,null,null,null,"Elephant","B33-023-236",4208164,null,null,null,null,null,null,null,null,null,null,null,null,null,null,null,null,null,"Bleu horizon",null,10915711,null,null,null,null,null,null,null,null,null,null,null,null,null,null,null,null,null,"Blanc violacé",null,15066088,null,null,null,null,null,null,null,null,null,null,null,null,null,null,null,null,null,"&h6600CC",null,6684876]
[null,"Black 6 2X",986119,null,null,null,null,null,null,null,null,null,null,null,null,null,null,null,null,null,"Télé magenta","RAL 4010",7746767,null,null,null,null,null,null,null,null,null,null,null,null,null,null,null,null,null,"Galactica","B33-047-278",5584432,null,null,null,null,null,null,null,null,null,null,null,null,null,null,null,null,null,"Bleu majorelle",null,14438496,null,null,null,null,null,null,null,null,null,null,null,null,null,null,null,null,null,"BlanchedAlmond",null,13495295,null,null,null,null,null,null,null,null,null,null,null,null,null,null,null,null,null,"&h6600FF",null,6684927]
[null,"Black 5 2X",986129,null,null,null,null,null,null,null,null,null,null,null,null,null,null,null,null,null,"Violet nacré","RAL 4011",10580870,null,null,null,null,null,null,null,null,null,null,null,null,null,null,null,null,null,"Barometer","B34-038-239",4995345,null,null,null,null,null,null,null,null,null,null,null,null,null,null,null,null,null,"Bleu marine",null,4989443,null,null,null,null,null,null,null,null,null,null,null,null,null,null,null,null,null,"Blé",null,3200744,null,null,null,null,null,null,null,null,null,null,null,null,null,null,null,null,null,"&h663300",null,6697728]
[null,"Black 4 2X",986895,null,null,null,null,null,null,null,null,null,null,null,null,null,null,null,null,null,"Mûre nacré","RAL 4012",7628908,null,null,null,null,null,null,null,null,null,null,null,null,null,null,null,null,null,"Confidante","B34-064-281",6762787,null,null,null,null,null,null,null,null,null,null,null,null,null,null,null,null,null,"Bleu maya",null,16499315,null,null,null,null,null,null,null,null,null,null,null,null,null,null,null,null,null,"Blet",null,1129563,null,null,null,null,null,null,null,null,null,null,null,null,null,null,null,null,null,"&h663333",null,6697779]
[null,"Pantone 1545",993356,null,null,null,null,null,null,null,null,null,null,null,null,null,null,null,null,null,"Bleu violet","RAL 5000",7556405,null,null,null,null,null,null,null,null,null,null,null,null,null,null,null,null,null,"Dark Side","B34-017-261",4207914,null,null,null,null,null,null,null,null,null,null,null,null,null,null,null,null,null,"Bleu minéral",null,6046756,null,null,null,null,null,null,null,null,null,null,null,null,null,null,null,null,null,"Bleu acier",null,12226106,null,null,null,null,null,null,null,null,null,null,null,null,null,null,null,null,null,"&h663366",null,6697830]
[null,"Pantone 1615",999300,null,null,null,null,null,null,null,null,null,null,null,null,null,null,null,null,null,"Bleu vert","RAL 5001",3683359,null,null,null,null,null,null,null,null,null,null,null,null,null,null,null,null,null,"Shadowy Blue","B34-028-255",4601123,null,null,null,null,null,null,null,null,null,null,null,null,null,null,null,null,null,"Bleu nuit",null,7013647,null,null,null,null,null,null,null,null,null,null,null,null,null,null,null,null,null,"Bleu ardoise",null,9203560,null,null,null,null,null,null,null,null,null,null,null,null,null,null,null,null,null,"&h663399",null,6697881]
[null,"Pantone 1675",999333,null,null,null,null,null,null,null,null,null,null,null,null,null,null,null,null,null,"Bleu outremer","RAL 5002",5185824,null,null,null,null,null,null,null,null,null,null,null,null,null,null,null,null,null,"Warrior","B34-018-232",4340525,null,null,null,null,null,null,null,null,null,null,null,null,null,null,null,null,null,"Bleu outremer",null,10092587,null,null,null,null,null,null,null,null,null,null,null,null,null,null,null,null,null,"Bleu azur (héraldique)",null,13336350,null,null,null,null,null,null,null,null,null,null,null,null,null,null,null,null,null,"&h6633CC",null,6697932]
[null,"Pantone 105",1013122,null,null,null,null,null,null,null,null,null,null,null,null,null,null,null,null,null,"Bleu saphir","RAL 5003",3350045,null,null,null,null,null,null,null,null,null,null,null,null,null,null,null,null,null,"Whale Tail","B34-062-260",6764800,null,null,null,null,null,null,null,null,null,null,null,null,null,null,null,null,null,"Bleu outremer",null,10158363,null,null,null,null,null,null,null,null,null,null,null,null,null,null,null,null,null,"Bleu bleuet",null,11432532,null,null,null,null,null,null,null,null,null,null,null,null,null,null,null,null,null,"&h6633FF",null,6697983]
[null,"Pantone 368 2X",1023488,null,null,null,null,null,null,null,null,null,null,null,null,null,null,null,null,null,"Bleu noir","RAL 5004",1840920,null,null,null,null,null,null,null,null,null,null,null,null,null,null,null,null,null,"Wishing Well","B34-045-255",5584657,null,null,null,null,null,null,null,null,null,null,null,null,null,null,null,null,null,"Bleu paon",null,9467654,null,null,null,null,null,null,null,null,null,null,null,null,null,null,null,null,null,"Bleu brillant",null,13670217,null,null,null,null,null,null,null,null,null,null,null,null,null,null,null,null,null,"&h666600",null,6710784]
[null,"Pantone 124",1026784,null,null,null,null,null,null,null,null,null,null,null,null,null,null,null,null,null,"Bleu de sécurité","RAL 5005",6300702,null,null,null,null,null,null,null,null,null,null,null,null,null,null,null,null,null,"Aquarium","B35-028-231",4733989,null,null,null,null,null,null,null,null,null,null,null,null,null,null,null,null,null,"Bleu persan",null,16711782,null,null,null,null,null,null,null,null,null,null,null,null,null,null,null,null,null,"Bleu canard",null,10128132,null,null,null,null,null,null,null,null,null,null,null,null,null,null,null,null,null,"&h666633",null,6710835]
[null,"Pantone 103",1027526,null,null,null,null,null,null,null,null,null,null,null,null,null,null,null,null,null,"Bleu brillant","RAL 5007",9068350,null,null,null,null,null,null,null,null,null,null,null,null,null,null,null,null,null,"Black Marlin","B35-014-284",4208440,null,null,null,null,null,null,null,null,null,null,null,null,null,null,null,null,null,"Bleu pétrole",null,5326877,null,null,null,null,null,null,null,null,null,null,null,null,null,null,null,null,null,"Bleu céleste",null,15516710,null,null,null,null,null,null,null,null,null,null,null,null,null,null,null,null,null,"&h666666",null,6710886]
[null,"Pantone 130",1028074,null,null,null,null,null,null,null,null,null,null,null,null,null,null,null,null,null,"Bleu gris","RAL 5008",2958630,null,null,null,null,null,null,null,null,null,null,null,null,null,null,null,null,null,"Blue Whale","B35-028-238",4338718,null,null,null,null,null,null,null,null,null,null,null,null,null,null,null,null,null,"Bleu roi",null,15174705,null,null,null,null,null,null,null,null,null,null,null,null,null,null,null,null,null,"Bleu céruléen",null,12024373,null,null,null,null,null,null,null,null,null,null,null,null,null,null,null,null,null,"&h666699",null,6710937]
[null,"Pantone 809",1040605,null,null,null,null,null,null,null,null,null,null,null,null,null,null,null,null,null,"Bleu azur","RAL 5009",6903298,null,null,null,null,null,null,null,null,null,null,null,null,null,null,null,null,null,"Coast","B35-023-248",4338724,null,null,null,null,null,null,null,null,null,null,null,null,null,null,null,null,null,"Bleu saphir",null,11809025,null,null,null,null,null,null,null,null,null,null,null,null,null,null,null,null,null,"Bleu charron",null,13017742,null,null,null,null,null,null,null,null,null,null,null,null,null,null,null,null,null,"&h6666CC",null,6710988]
[null,"Pantone 388",1042646,null,null,null,null,null,null,null,null,null,null,null,null,null,null,null,null,null,"Bleu gentiane","RAL 5010",4925710,null,null,null,null,null,null,null,null,null,null,null,null,null,null,null,null,null,"Gotham","B35-017-246",4471600,null,null,null,null,null,null,null,null,null,null,null,null,null,null,null,null,null,"Bleu sarcelle",null,9342464,null,null,null,null,null,null,null,null,null,null,null,null,null,null,null,null,null,"Bleu ciel",null,16692599,null,null,null,null,null,null,null,null,null,null,null,null,null,null,null,null,null,"&h6666FF",null,6711039]
[null,"Pantone 433 2X",1117194,null,null,null,null,null,null,null,null,null,null,null,null,null,null,null,null,null,"Bleu acier","RAL 5011",2365987,null,null,null,null,null,null,null,null,null,null,null,null,null,null,null,null,null,"Into The Blue","B35-060-269",6698777,null,null,null,null,null,null,null,null,null,null,null,null,null,null,null,null,null,"Bleu sarcelle",null,8421376,null,null,null,null,null,null,null,null,null,null,null,null,null,null,null,null,null,"Bleu clair",null,13411184,null,null,null,null,null,null,null,null,null,null,null,null,null,null,null,null,null,"&h669900",null,6723840]
[null,"Black 2 2X",1118481,null,null,null,null,null,null,null,null,null,null,null,null,null,null,null,null,null,"Bleu clair","RAL 5012",12419899,null,null,null,null,null,null,null,null,null,null,null,null,null,null,null,null,null,"Licorice","B35-028-263",4798254,null,null,null,null,null,null,null,null,null,null,null,null,null,null,null,null,null,"Bleu smalt",null,10040064,null,null,null,null,null,null,null,null,null,null,null,null,null,null,null,null,null,"Bleu de cobalt (pigment)",null,8143394,null,null,null,null,null,null,null,null,null,null,null,null,null,null,null,null,null,"&h669933",null,6723891]
[null,"Pantone 4625",1123143,null,null,null,null,null,null,null,null,null,null,null,null,null,null,null,null,null,"Bleu cobalt","RAL 5013",4006174,null,null,null,null,null,null,null,null,null,null,null,null,null,null,null,null,null,"Nile Blue","B35-036-233",5127973,null,null,null,null,null,null,null,null,null,null,null,null,null,null,null,null,null,"Bleu tiffany",null,11909642,null,null,null,null,null,null,null,null,null,null,null,null,null,null,null,null,null,"Bleu de minuit",null,6697728,null,null,null,null,null,null,null,null,null,null,null,null,null,null,null,null,null,"&h669966",null,6723942]
[null,"Pantone 168",1126509,null,null,null,null,null,null,null,null,null,null,null,null,null,null,null,null,null,"Bleu pigeon","RAL 5014",9203296,null,null,null,null,null,null,null,null,null,null,null,null,null,null,null,null,null,"Nordic","B35-024-210",3946781,null,null,null,null,null,null,null,null,null,null,null,null,null,null,null,null,null,"Bleu turquin",null,9067330,null,null,null,null,null,null,null,null,null,null,null,null,null,null,null,null,null,"Bleu de Prusse (pigment)",null,6046756,null,null,null,null,null,null,null,null,null,null,null,null,null,null,null,null,null,"&h669999",null,6723993]
[null,"Pantone 469",1127264,null,null,null,null,null,null,null,null,null,null,null,null,null,null,null,null,null,"Bleu ciel","RAL 5015",11759906,null,null,null,null,null,null,null,null,null,null,null,null,null,null,null,null,null,"Green Vogue","B36-034-229",5128483,null,null,null,null,null,null,null,null,null,null,null,null,null,null,null,null,null,"Blond",null,7650530,null,null,null,null,null,null,null,null,null,null,null,null,null,null,null,null,null,"Bleu des mers du sud",null,13356032,null,null,null,null,null,null,null,null,null,null,null,null,null,null,null,null,null,"&h6699CC",null,6724044]
[null,"Pantone 174",1127315,null,null,null,null,null,null,null,null,null,null,null,null,null,null,null,null,null,"Bleu turquoise","RAL 5018",9406527,null,null,null,null,null,null,null,null,null,null,null,null,null,null,null,null,null,"High Tide","B36-011-261",4142898,null,null,null,null,null,null,null,null,null,null,null,null,null,null,null,null,null,"Bordeaux",null,1705837,null,null,null,null,null,null,null,null,null,null,null,null,null,null,null,null,null,"Bleu dragée",null,16773855,null,null,null,null,null,null,null,null,null,null,null,null,null,null,null,null,null,"&h6699FF",null,6724095]
[null,"Pantone 1685",1127812,null,null,null,null,null,null,null,null,null,null,null,null,null,null,null,null,null,"Bleu capri","RAL 5019",8607003,null,null,null,null,null,null,null,null,null,null,null,null,null,null,null,null,null,"Midnight Oil","B36-045-266",5519400,null,null,null,null,null,null,null,null,null,null,null,null,null,null,null,null,null,"Boutton d'or",null,1236220,null,null,null,null,null,null,null,null,null,null,null,null,null,null,null,null,null,"Bleu électrique",null,16741676,null,null,null,null,null,null,null,null,null,null,null,null,null,null,null,null,null,"&h66CC00",null,6736896]
[null,"Pantone 161",1129059,null,null,null,null,null,null,null,null,null,null,null,null,null,null,null,null,null,"Bleu océan","RAL 5020",4862749,null,null,null,null,null,null,null,null,null,null,null,null,null,null,null,null,null,"St Kilda","B36-045-231",5850368,null,null,null,null,null,null,null,null,null,null,null,null,null,null,null,null,null,"Brique",null,1781380,null,null,null,null,null,null,null,null,null,null,null,null,null,null,null,null,null,"Bleu foncé",null,5124096,null,null,null,null,null,null,null,null,null,null,null,null,null,null,null,null,null,"&h66CC33",null,6736947]
[null,"Pantone 5815",1131593,null,null,null,null,null,null,null,null,null,null,null,null,null,null,null,null,null,"Bleu d'eau","RAL 5021",8088869,null,null,null,null,null,null,null,null,null,null,null,null,null,null,null,null,null,"Storm","B36-058-284",6108726,null,null,null,null,null,null,null,null,null,null,null,null,null,null,null,null,null,"Bronze",null,1724001,null,null,null,null,null,null,null,null,null,null,null,null,null,null,null,null,null,"Bleu foncé grisâtre",null,5195062,null,null,null,null,null,null,null,null,null,null,null,null,null,null,null,null,null,"&h66CC66",null,6736998]
[null,"Pantone 4485",1133664,null,null,null,null,null,null,null,null,null,null,null,null,null,null,null,null,null,"Bleu nocturne","RAL 5022",5253157,null,null,null,null,null,null,null,null,null,null,null,null,null,null,null,null,null,"Submerge","B36-073-272",7681809,null,null,null,null,null,null,null,null,null,null,null,null,null,null,null,null,null,"Brou de noix",null,270911,null,null,null,null,null,null,null,null,null,null,null,null,null,null,null,null,null,"Bleu franc",null,10839808,null,null,null,null,null,null,null,null,null,null,null,null,null,null,null,null,null,"&h66CC99",null,6737049]
[null,"Pantone 1605",1134496,null,null,null,null,null,null,null,null,null,null,null,null,null,null,null,null,null,"Bleu distant","RAL 5023",9267017,null,null,null,null,null,null,null,null,null,null,null,null,null,null,null,null,null,"Biscay","B37-033-264",5454895,null,null,null,null,null,null,null,null,null,null,null,null,null,null,null,null,null,"Bulle",null,9229293,null,null,null,null,null,null,null,null,null,null,null,null,null,null,null,null,null,"Bleu fumée",null,14799547,null,null,null,null,null,null,null,null,null,null,null,null,null,null,null,null,null,"&h66CCCC",null,6737100]
[null,"Pantone 140",1137530,null,null,null,null,null,null,null,null,null,null,null,null,null,null,null,null,null,"Bleu pastel","RAL 5024",10197853,null,null,null,null,null,null,null,null,null,null,null,null,null,null,null,null,null,"Charade","B37-008-229",4407353,null,null,null,null,null,null,null,null,null,null,null,null,null,null,null,null,null,"Bureau",null,3233643,null,null,null,null,null,null,null,null,null,null,null,null,null,null,null,null,null,"Bleu givré",null,13684864,null,null,null,null,null,null,null,null,null,null,null,null,null,null,null,null,null,"&h66CCFF",null,6737151]
[null,"Pantone 582",1138272,null,null,null,null,null,null,null,null,null,null,null,null,null,null,null,null,null,"Gentiane nacré","RAL 5025",7889962,null,null,null,null,null,null,null,null,null,null,null,null,null,null,null,null,null,"Decadence","B37-091-284",6895153,null,null,null,null,null,null,null,null,null,null,null,null,null,null,null,null,null,"Byzantin",null,10761149,null,null,null,null,null,null,null,null,null,null,null,null,null,null,null,null,null,"Bleu grisâtre",null,7891027,null,null,null,null,null,null,null,null,null,null,null,null,null,null,null,null,null,"&h66FF00",null,6749952]
[null,"Pantone 158",1144296,null,null,null,null,null,null,null,null,null,null,null,null,null,null,null,null,null,"Bleu nuit nacré","RAL 5026",5516304,null,null,null,null,null,null,null,null,null,null,null,null,null,null,null,null,null,"Mine Shaft","B37-009-239",4275767,null,null,null,null,null,null,null,null,null,null,null,null,null,null,null,null,null,"Byzantium",null,6498672,null,null,null,null,null,null,null,null,null,null,null,null,null,null,null,null,null,"Bleu guède",null,10122070,null,null,null,null,null,null,null,null,null,null,null,null,null,null,null,null,null,"&h66FF33",null,6750003]
[null,"Pantone 620",1144708,null,null,null,null,null,null,null,null,null,null,null,null,null,null,null,null,null,"Vert platine","RAL 6000",5269041,null,null,null,null,null,null,null,null,null,null,null,null,null,null,null,null,null,"True Blue","B37-037-270",5717299,null,null,null,null,null,null,null,null,null,null,null,null,null,null,null,null,null,"Caca d'oie",null,904653,null,null,null,null,null,null,null,null,null,null,null,null,null,null,null,null,null,"Bleu Klein",null,8197921,null,null,null,null,null,null,null,null,null,null,null,null,null,null,null,null,null,"&h66FF66",null,6750054]
[null,"Pantone 716",1148146,null,null,null,null,null,null,null,null,null,null,null,null,null,null,null,null,null,"Vert émeraude","RAL 6001",3371560,null,null,null,null,null,null,null,null,null,null,null,null,null,null,null,null,null,"Astronaut Blue","B38-052-231",5850401,null,null,null,null,null,null,null,null,null,null,null,null,null,null,null,null,null,"Cacao",null,3820385,null,null,null,null,null,null,null,null,null,null,null,null,null,null,null,null,null,"Bleu Majorelle",null,14438496,null,null,null,null,null,null,null,null,null,null,null,null,null,null,null,null,null,"&h66FF99",null,6750105]
[null,"Pantone 137",1156092,null,null,null,null,null,null,null,null,null,null,null,null,null,null,null,null,null,"Vert feuillage","RAL 6002",2905901,null,null,null,null,null,null,null,null,null,null,null,null,null,null,null,null,null,"Big Stone","B38-015-234",4603955,null,null,null,null,null,null,null,null,null,null,null,null,null,null,null,null,null,"Cachou",null,793391,null,null,null,null,null,null,null,null,null,null,null,null,null,null,null,null,null,"Bleu marine",null,4989443,null,null,null,null,null,null,null,null,null,null,null,null,null,null,null,null,null,"&h66FFCC",null,6750156]
[null,"Pantone 110",1160664,null,null,null,null,null,null,null,null,null,null,null,null,null,null,null,null,null,"Vert olive","RAL 6003",3294786,null,null,null,null,null,null,null,null,null,null,null,null,null,null,null,null,null,"Deep South","B38-044-211",5457920,null,null,null,null,null,null,null,null,null,null,null,null,null,null,null,null,null,"Cæruléum",null,15516710,null,null,null,null,null,null,null,null,null,null,null,null,null,null,null,null,null,"Bleu moyen",null,9792323,null,null,null,null,null,null,null,null,null,null,null,null,null,null,null,null,null,"&h66FFFF",null,6750207]
[null,"Pantone 606",1163219,null,null,null,null,null,null,null,null,null,null,null,null,null,null,null,null,null,"Vert bleu","RAL 6004",4012575,null,null,null,null,null,null,null,null,null,null,null,null,null,null,null,null,null,"Madison","B38-037-258",5520429,null,null,null,null,null,null,null,null,null,null,null,null,null,null,null,null,null,"Café",null,77382,null,null,null,null,null,null,null,null,null,null,null,null,null,null,null,null,null,"Bleu noirâtre",null,3156000,null,null,null,null,null,null,null,null,null,null,null,null,null,null,null,null,null,"&h990000",null,10027008]
[null,"Pantone 605",1167069,null,null,null,null,null,null,null,null,null,null,null,null,null,null,null,null,null,"Vert mousse","RAL 6005",3687727,null,null,null,null,null,null,null,null,null,null,null,null,null,null,null,null,null,"Mirage","B38-009-238",4407095,null,null,null,null,null,null,null,null,null,null,null,null,null,null,null,null,null,"Café au lait",null,3104376,null,null,null,null,null,null,null,null,null,null,null,null,null,null,null,null,null,"Bleu nuit",null,7013647,null,null,null,null,null,null,null,null,null,null,null,null,null,null,null,null,null,"&h990033",null,10027059]
[null,"Pantone 3965",1170920,null,null,null,null,null,null,null,null,null,null,null,null,null,null,null,null,null,"Olive gris","RAL 6006",3291966,null,null,null,null,null,null,null,null,null,null,null,null,null,null,null,null,null,"Regal Blue","B38-053-243",5783328,null,null,null,null,null,null,null,null,null,null,null,null,null,null,null,null,null,"Canard",null,10128132,null,null,null,null,null,null,null,null,null,null,null,null,null,null,null,null,null,"Bleu outremer",null,10158363,null,null,null,null,null,null,null,null,null,null,null,null,null,null,null,null,null,"&h990066",null,10027110]
[null,"Pantone 3955",1172205,null,null,null,null,null,null,null,null,null,null,null,null,null,null,null,null,null,"Vert bouteille","RAL 6007",2702132,null,null,null,null,null,null,null,null,null,null,null,null,null,null,null,null,null,"Blue Clouds","B39-058-260",5913639,null,null,null,null,null,null,null,null,null,null,null,null,null,null,null,null,null,"Cannelle",null,3496062,null,null,null,null,null,null,null,null,null,null,null,null,null,null,null,null,null,"Bleu pâle",null,11576209,null,null,null,null,null,null,null,null,null,null,null,null,null,null,null,null,null,"&h990099",null,10027161]
[null,"Pantone 395",1173733,null,null,null,null,null,null,null,null,null,null,null,null,null,null,null,null,null,"Vert brun","RAL 6008",2766137,null,null,null,null,null,null,null,null,null,null,null,null,null,null,null,null,null,"Catwalk","B39-018-280",4996669,null,null,null,null,null,null,null,null,null,null,null,null,null,null,null,null,null,"Caramel",null,13182,null,null,null,null,null,null,null,null,null,null,null,null,null,null,null,null,null,"Bleu paon",null,9467654,null,null,null,null,null,null,null,null,null,null,null,null,null,null,null,null,null,"&h9900CC",null,10027212]
[null,"Black 3 2X",1315089,null,null,null,null,null,null,null,null,null,null,null,null,null,null,null,null,null,"Vert sapin","RAL 6009",2832177,null,null,null,null,null,null,null,null,null,null,null,null,null,null,null,null,null,"Cloud Burst","B39-022-263",5193269,null,null,null,null,null,null,null,null,null,null,null,null,null,null,null,null,null,"Carotte",null,1795828,null,null,null,null,null,null,null,null,null,null,null,null,null,null,null,null,null,"Bleu persan",null,16711782,null,null,null,null,null,null,null,null,null,null,null,null,null,null,null,null,null,"&h9900FF",null,10027263]
[null,"Pantone 464 2X",1327728,null,null,null,null,null,null,null,null,null,null,null,null,null,null,null,null,null,"Vert herbe","RAL 6010",2975797,null,null,null,null,null,null,null,null,null,null,null,null,null,null,null,null,null,"Cove Grey","B39-039-267",6045492,null,null,null,null,null,null,null,null,null,null,null,null,null,null,null,null,null,"Cassis",null,852538,null,null,null,null,null,null,null,null,null,null,null,null,null,null,null,null,null,"Bleu pétrole",null,5326877,null,null,null,null,null,null,null,null,null,null,null,null,null,null,null,null,null,"&h993300",null,10040064]
[null,"Pantone 173",1328337,null,null,null,null,null,null,null,null,null,null,null,null,null,null,null,null,null,"Vert réséda","RAL 6011",4616792,null,null,null,null,null,null,null,null,null,null,null,null,null,null,null,null,null,"Dotcom","B39-034-283",6111553,null,null,null,null,null,null,null,null,null,null,null,null,null,null,null,null,null,"Cassis",null,721708,null,null,null,null,null,null,null,null,null,null,null,null,null,null,null,null,null,"Bleu primaire",null,16711680,null,null,null,null,null,null,null,null,null,null,null,null,null,null,null,null,null,"&h993333",null,10040115]
[null,"Pantone 1405",1329003,null,null,null,null,null,null,null,null,null,null,null,null,null,null,null,null,null,"Vert noir","RAL 6012",4210228,null,null,null,null,null,null,null,null,null,null,null,null,null,null,null,null,null,"Majestic Blue","B39-017-236",4866870,null,null,null,null,null,null,null,null,null,null,null,null,null,null,null,null,null,"Céladon",null,9938563,null,null,null,null,null,null,null,null,null,null,null,null,null,null,null,null,null,"Bleu profond",null,6963456,null,null,null,null,null,null,null,null,null,null,null,null,null,null,null,null,null,"&h993366",null,10040166]
[null,"Pantone 455",1332838,null,null,null,null,null,null,null,null,null,null,null,null,null,null,null,null,null,"Vert jonc","RAL 6013",5665132,null,null,null,null,null,null,null,null,null,null,null,null,null,null,null,null,null,"New Denim Blue","B39-012-250",4800825,null,null,null,null,null,null,null,null,null,null,null,null,null,null,null,null,null,"Cerise",null,6500830,null,null,null,null,null,null,null,null,null,null,null,null,null,null,null,null,null,"Bleu roi",null,15174705,null,null,null,null,null,null,null,null,null,null,null,null,null,null,null,null,null,"&h993399",null,10040217]
[null,"Pantone 378",1336150,null,null,null,null,null,null,null,null,null,null,null,null,null,null,null,null,null,"Olive jaune","RAL 6014",3031111,null,null,null,null,null,null,null,null,null,null,null,null,null,null,null,null,null,"Shipshape","B39-058-250",6242849,null,null,null,null,null,null,null,null,null,null,null,null,null,null,null,null,null,"Cerise",null,723899,null,null,null,null,null,null,null,null,null,null,null,null,null,null,null,null,null,"Bleu saphir",null,11809025,null,null,null,null,null,null,null,null,null,null,null,null,null,null,null,null,null,"&h9933CC",null,10040268]
[null,"Pantone 385",1339504,null,null,null,null,null,null,null,null,null,null,null,null,null,null,null,null,null,"Olive noir","RAL 6015",3554363,null,null,null,null,null,null,null,null,null,null,null,null,null,null,null,null,null,"Teal Blue","B39-040-223",5589029,null,null,null,null,null,null,null,null,null,null,null,null,null,null,null,null,null,"Cérulé",null,15847540,null,null,null,null,null,null,null,null,null,null,null,null,null,null,null,null,null,"Bleu sarcelle",null,9342464,null,null,null,null,null,null,null,null,null,null,null,null,null,null,null,null,null,"&h9933FF",null,10040319]
[null,"Pantone 1255",1343395,null,null,null,null,null,null,null,null,null,null,null,null,null,null,null,null,null,"Vert turquoise","RAL 6016",4544798,null,null,null,null,null,null,null,null,null,null,null,null,null,null,null,null,null,"Arapawa","B40-045-235",6113831,null,null,null,null,null,null,null,null,null,null,null,null,null,null,null,null,null,"Chair",null,11322366,null,null,null,null,null,null,null,null,null,null,null,null,null,null,null,null,null,"Bleu très clair",null,15846049,null,null,null,null,null,null,null,null,null,null,null,null,null,null,null,null,null,"&h996600",null,10053120]
[null,"Pantone 456",1345433,null,null,null,null,null,null,null,null,null,null,null,null,null,null,null,null,null,"Vert mai","RAL 6017",4297036,null,null,null,null,null,null,null,null,null,null,null,null,null,null,null,null,null,"Avalanche","B40-023-258",5390645,null,null,null,null,null,null,null,null,null,null,null,null,null,null,null,null,null,"Chamois",null,8044752,null,null,null,null,null,null,null,null,null,null,null,null,null,null,null,null,null,"Bleu très pâle",null,15127740,null,null,null,null,null,null,null,null,null,null,null,null,null,null,null,null,null,"&h996633",null,10053171]
[null,"Pantone 370",1347158,null,null,null,null,null,null,null,null,null,null,null,null,null,null,null,null,null,"Vert jaune","RAL 6018",3778135,null,null,null,null,null,null,null,null,null,null,null,null,null,null,null,null,null,"Bay Of Many","B40-052-275",6569525,null,null,null,null,null,null,null,null,null,null,null,null,null,null,null,null,null,"Champagne",null,12055291,null,null,null,null,null,null,null,null,null,null,null,null,null,null,null,null,null,"Bleu turquin",null,9067330,null,null,null,null,null,null,null,null,null,null,null,null,null,null,null,null,null,"&h996666",null,10053222]
[null,"Pantone 1235",1357308,null,null,null,null,null,null,null,null,null,null,null,null,null,null,null,null,null,"Vert blanc","RAL 6019",11988157,null,null,null,null,null,null,null,null,null,null,null,null,null,null,null,null,null,"Bondi Blue","B40-077-256",7029030,null,null,null,null,null,null,null,null,null,null,null,null,null,null,null,null,null,"Châtaigne",null,5926272,null,null,null,null,null,null,null,null,null,null,null,null,null,null,null,null,null,"Bleu turquoise",null,15334693,null,null,null,null,null,null,null,null,null,null,null,null,null,null,null,null,null,"&h996699",null,10053273]
[null,"Pantone 102",1370361,null,null,null,null,null,null,null,null,null,null,null,null,null,null,null,null,null,"Oxyde chromique","RAL 6020",2308654,null,null,null,null,null,null,null,null,null,null,null,null,null,null,null,null,null,"Resolution Blue","B40-097-275",7683890,null,null,null,null,null,null,null,null,null,null,null,null,null,null,null,null,null,"Châtain",null,4353163,null,null,null,null,null,null,null,null,null,null,null,null,null,null,null,null,null,"Bleu verdâtre brillant",null,12230179,null,null,null,null,null,null,null,null,null,null,null,null,null,null,null,null,null,"&h9966CC",null,10053324]
[null,"Pantone 5757",1460034,null,null,null,null,null,null,null,null,null,null,null,null,null,null,null,null,null,"Vert pâle","RAL 6021",7777417,null,null,null,null,null,null,null,null,null,null,null,null,null,null,null,null,null,"Port Gore","B41-060-278",7095099,null,null,null,null,null,null,null,null,null,null,null,null,null,null,null,null,null,"Chaudron",null,1004421,null,null,null,null,null,null,null,null,null,null,null,null,null,null,null,null,null,"Bleu verdâtre clair",null,12364390,null,null,null,null,null,null,null,null,null,null,null,null,null,null,null,null,null,"&h9966FF",null,10053375]
[null,"Pantone 811 2X",1463551,null,null,null,null,null,null,null,null,null,null,null,null,null,null,null,null,null,"Olive brun","RAL 6022",1778213,null,null,null,null,null,null,null,null,null,null,null,null,null,null,null,null,null,"Rhino","B41-020-259",5457469,null,null,null,null,null,null,null,null,null,null,null,null,null,null,null,null,null,"Chocolat",null,2243162,null,null,null,null,null,null,null,null,null,null,null,null,null,null,null,null,null,"Bleu verdâtre foncé",null,5785856,null,null,null,null,null,null,null,null,null,null,null,null,null,null,null,null,null,"&h999900",null,10066176]
[null,"Pantone 1265",1467260,null,null,null,null,null,null,null,null,null,null,null,null,null,null,null,null,null,"Vert trafic","RAL 6024",4621360,null,null,null,null,null,null,null,null,null,null,null,null,null,null,null,null,null,"Spinnaker","B41-046-245",6704431,null,null,null,null,null,null,null,null,null,null,null,null,null,null,null,null,null,"Chrome",null,393215,null,null,null,null,null,null,null,null,null,null,null,null,null,null,null,null,null,"Bleu verdâtre franc",null,9533184,null,null,null,null,null,null,null,null,null,null,null,null,null,null,null,null,null,"&h999933",null,10066227]
[null,"Pantone 116",1495548,null,null,null,null,null,null,null,null,null,null,null,null,null,null,null,null,null,"Vert fougère","RAL 6025",2974781,null,null,null,null,null,null,null,null,null,null,null,null,null,null,null,null,null,"Wanaka","B41-039-249",6441256,null,null,null,null,null,null,null,null,null,null,null,null,null,null,null,null,null,"Chrome",null,851949,null,null,null,null,null,null,null,null,null,null,null,null,null,null,null,null,null,"Bleu verdâtre moyen",null,8942902,null,null,null,null,null,null,null,null,null,null,null,null,null,null,null,null,null,{"$f":"\"&h\"&DEC2HEX(CY130,6)","v":"&h999966"},null,10066278]
[null,"Pantone 109",1496825,null,null,null,null,null,null,null,null,null,null,null,null,null,null,null,null,null,"Vert opale","RAL 6026",5397761,null,null,null,null,null,null,null,null,null,null,null,null,null,null,null,null,null,"Atomic","B42-016-232",5393213,null,null,null,null,null,null,null,null,null,null,null,null,null,null,null,null,null,"Citron",null,3997687,null,null,null,null,null,null,null,null,null,null,null,null,null,null,null,null,null,"Bleu verdâtre profond",null,9798702,null,null,null,null,null,null,null,null,null,null,null,null,null,null,null,null,null,"&h999999",null,10066329]
[null,"Pantone 803 2X",1497343,null,null,null,null,null,null,null,null,null,null,null,null,null,null,null,null,null,"Vert clair","RAL 6027",12501892,null,null,null,null,null,null,null,null,null,null,null,null,null,null,null,null,null,"Beatnik","B42-040-206",5525279,null,null,null,null,null,null,null,null,null,null,null,null,null,null,null,null,null,"Citrouille",null,1338847,null,null,null,null,null,null,null,null,null,null,null,null,null,null,null,null,null,"Bleu verdâtre très clair",null,14471580,null,null,null,null,null,null,null,null,null,null,null,null,null,null,null,null,null,"&h9999CC",null,10066380]
[null,"Pantone 108",1498615,null,null,null,null,null,null,null,null,null,null,null,null,null,null,null,null,null,"Vert pin","RAL 6028",4543788,null,null,null,null,null,null,null,null,null,null,null,null,null,null,null,null,null,"Espirit","B42-023-206",5328437,null,null,null,null,null,null,null,null,null,null,null,null,null,null,null,null,null,"Colombin",null,6112618,null,null,null,null,null,null,null,null,null,null,null,null,null,null,null,null,null,"Bleu verdâtre très foncé",null,3878400,null,null,null,null,null,null,null,null,null,null,null,null,null,null,null,null,null,"&h9999FF",null,10066431]
[null,"Yellow 2X",1499900,null,null,null,null,null,null,null,null,null,null,null,null,null,null,null,null,null,"Vert menthe","RAL 6029",4022304,null,null,null,null,null,null,null,null,null,null,null,null,null,null,null,null,null,"Guru","B42-078-222",6638613,null,null,null,null,null,null,null,null,null,null,null,null,null,null,null,null,null,"Coquille d'oeuf",null,14739965,null,null,null,null,null,null,null,null,null,null,null,null,null,null,null,null,null,"Bleu verdâtre vif",null,10585344,null,null,null,null,null,null,null,null,null,null,null,null,null,null,null,null,null,"&h99CC00",null,10079232]
[null,"Pantone 119",1669001,null,null,null,null,null,null,null,null,null,null,null,null,null,null,null,null,null,"Vert de sécurité","RAL 6032",4423473,null,null,null,null,null,null,null,null,null,null,null,null,null,null,null,null,null,"Ivanhoe","B42-022-240",5721147,null,null,null,null,null,null,null,null,null,null,null,null,null,null,null,null,null,"Corail",null,81639,null,null,null,null,null,null,null,null,null,null,null,null,null,null,null,null,null,"Bleu vif",null,12755200,null,null,null,null,null,null,null,null,null,null,null,null,null,null,null,null,null,"&h99CC33",null,10079283]
[null,"Pantone 4975",1842756,null,null,null,null,null,null,null,null,null,null,null,null,null,null,null,null,null,"Turquoise menthe","RAL 6033",7765577,null,null,null,null,null,null,null,null,null,null,null,null,null,null,null,null,null,"Wind Talker","B42-024-255",5851194,null,null,null,null,null,null,null,null,null,null,null,null,null,null,null,null,null,"Cuisse de nymphe",null,15788030,null,null,null,null,null,null,null,null,null,null,null,null,null,null,null,null,null,"Bleu violacé brillant",null,12089708,null,null,null,null,null,null,null,null,null,null,null,null,null,null,null,null,null,"&h99CC66",null,10079334]
[null,"Pantone 4695",1844817,null,null,null,null,null,null,null,null,null,null,null,null,null,null,null,null,null,"Turquoise pastel","RAL 6034",11908479,null,null,null,null,null,null,null,null,null,null,null,null,null,null,null,null,null,"Bellbottom Blue","B43-045-255",7162924,null,null,null,null,null,null,null,null,null,null,null,null,null,null,null,null,null,"Cuivre",null,26547,null,null,null,null,null,null,null,null,null,null,null,null,null,null,null,null,null,"Bleu violacé clair",null,12554631,null,null,null,null,null,null,null,null,null,null,null,null,null,null,null,null,null,"&h99CC99",null,10079385]
[null,"Pantone 484",1847451,null,null,null,null,null,null,null,null,null,null,null,null,null,null,null,null,null,"Vert nacré","RAL 6035",2970652,null,null,null,null,null,null,null,null,null,null,null,null,null,null,null,null,null,"Cello","B43-028-245",6245946,null,null,null,null,null,null,null,null,null,null,null,null,null,null,null,null,null,"Cyan",null,16448043,null,null,null,null,null,null,null,null,null,null,null,null,null,null,null,null,null,"Bleu violacé foncé",null,4203557,null,null,null,null,null,null,null,null,null,null,null,null,null,null,null,null,null,"&h99CCCC",null,10079436]
[null,"Pantone 369",1878614,null,null,null,null,null,null,null,null,null,null,null,null,null,null,null,null,null,"Vert opal nacré","RAL 6036",3618585,null,null,null,null,null,null,null,null,null,null,null,null,null,null,null,null,null,"Explorer","B43-024-232",5852727,null,null,null,null,null,null,null,null,null,null,null,null,null,null,null,null,null,"Cyan",null,16776960,null,null,null,null,null,null,null,null,null,null,null,null,null,null,null,null,null,"Bleu violacé franc",null,10967636,null,null,null,null,null,null,null,null,null,null,null,null,null,null,null,null,null,"&h99CCFF",null,10079487]
[null,"Pantone 1815",1974652,null,null,null,null,null,null,null,null,null,null,null,null,null,null,null,null,null,"Vert pur","RAL 6037",3772160,null,null,null,null,null,null,null,null,null,null,null,null,null,null,null,null,null,"Limitless","B43-058-261",7686949,null,null,null,null,null,null,null,null,null,null,null,null,null,null,null,null,null,"Dorian",null,1447435,null,null,null,null,null,null,null,null,null,null,null,null,null,null,null,null,null,"Bleu violacé grisâtre",null,7164236,null,null,null,null,null,null,null,null,null,null,null,null,null,null,null,null,null,"&h99FF00",null,10092288]
[null,"Pantone 804 2X",1998847,null,null,null,null,null,null,null,null,null,null,null,null,null,null,null,null,null,"Vert brillant","RAL 6038",2996992,null,null,null,null,null,null,null,null,null,null,null,null,null,null,null,null,null,"Astronaut","B44-042-265",7491908,null,null,null,null,null,null,null,null,null,null,null,null,null,null,null,null,null,"Ebène",null,0,null,null,null,null,null,null,null,null,null,null,null,null,null,null,null,null,null,"Bleu violacé moyen",null,8409422,null,null,null,null,null,null,null,null,null,null,null,null,null,null,null,null,null,"&h99FF33",null,10092339]
[null,"Pantone 123",2017023,null,null,null,null,null,null,null,null,null,null,null,null,null,null,null,null,null,"Gris petit-gris","RAL 7000",9143672,null,null,null,null,null,null,null,null,null,null,null,null,null,null,null,null,null,"Casal","B44-022-220",5919807,null,null,null,null,null,null,null,null,null,null,null,null,null,null,null,null,null,"Ecarlate",null,237,null,null,null,null,null,null,null,null,null,null,null,null,null,null,null,null,null,"Bleu violacé pâle",null,11309708,null,null,null,null,null,null,null,null,null,null,null,null,null,null,null,null,null,"&h99FF66",null,10092390]
[null,"Pantone 810",2018559,null,null,null,null,null,null,null,null,null,null,null,null,null,null,null,null,null,"Gris argent","RAL 7001",9934218,null,null,null,null,null,null,null,null,null,null,null,null,null,null,null,null,null,"Elvis","B44-097-273",10176534,null,null,null,null,null,null,null,null,null,null,null,null,null,null,null,null,null,"Etain oxydé",null,12237498,null,null,null,null,null,null,null,null,null,null,null,null,null,null,null,null,null,"Bleu violacé profond",null,5776423,null,null,null,null,null,null,null,null,null,null,null,null,null,null,null,null,null,"&h99FF99",null,10092441]
[null,"Pantone 419",2172968,null,null,null,null,null,null,null,null,null,null,null,null,null,null,null,null,null,"Gris olive","RAL 7002",5405566,null,null,null,null,null,null,null,null,null,null,null,null,null,null,null,null,null,"Jetsetter","B44-019-235",5918784,null,null,null,null,null,null,null,null,null,null,null,null,null,null,null,null,null,"Etain pur",null,15592941,null,null,null,null,null,null,null,null,null,null,null,null,null,null,null,null,null,"Bleu violacé très clair",null,14859443,null,null,null,null,null,null,null,null,null,null,null,null,null,null,null,null,null,"&h99FFCC",null,10092492]
[null,"Pantone 483",2175083,null,null,null,null,null,null,null,null,null,null,null,null,null,null,null,null,null,"Gris mousse","RAL 7003",5861484,null,null,null,null,null,null,null,null,null,null,null,null,null,null,null,null,null,"Navigate","B44-032-232",6180400,null,null,null,null,null,null,null,null,null,null,null,null,null,null,null,null,null,"Fauve",null,610221,null,null,null,null,null,null,null,null,null,null,null,null,null,null,null,null,null,"Bleu violacé très pâle",null,14796992,null,null,null,null,null,null,null,null,null,null,null,null,null,null,null,null,null,"&h99FFFF",null,10092543]
[null,"Black 2",2175802,null,null,null,null,null,null,null,null,null,null,null,null,null,null,null,null,null,"Gris de sécurité","RAL 7004",9607574,null,null,null,null,null,null,null,null,null,null,null,null,null,null,null,null,null,"Abbey","B45-009-231",5525833,null,null,null,null,null,null,null,null,null,null,null,null,null,null,null,null,null,"Feuille-morte",null,2838937,null,null,null,null,null,null,null,null,null,null,null,null,null,null,null,null,null,"Bleu violacé vif",null,8005168,null,null,null,null,null,null,null,null,null,null,null,null,null,null,null,null,null,"&hCC0000",null,13369344]
[null,"Pantone 175",2175853,null,null,null,null,null,null,null,null,null,null,null,null,null,null,null,null,null,"Gris souris","RAL 7005",6515556,null,null,null,null,null,null,null,null,null,null,null,null,null,null,null,null,null,"Balderdash","B45-014-217",5854790,null,null,null,null,null,null,null,null,null,null,null,null,null,null,null,null,null,"Flave",null,9955046,null,null,null,null,null,null,null,null,null,null,null,null,null,null,null,null,null,"Bleu2",null,15597568,null,null,null,null,null,null,null,null,null,null,null,null,null,null,null,null,null,"&hCC0033",null,13369395]
[null,"Pantone 371",2190166,null,null,null,null,null,null,null,null,null,null,null,null,null,null,null,null,null,"Gris beige","RAL 7006",5399917,null,null,null,null,null,null,null,null,null,null,null,null,null,null,null,null,null,"East Bay","B45-040-272",7230023,null,null,null,null,null,null,null,null,null,null,null,null,null,null,null,null,null,"Fleur de soufre",null,7077887,null,null,null,null,null,null,null,null,null,null,null,null,null,null,null,null,null,"Bleu4",null,9109504,null,null,null,null,null,null,null,null,null,null,null,null,null,null,null,null,null,"&hCC0066",null,13369446]
[null,"Pantone 810 2X",2211071,null,null,null,null,null,null,null,null,null,null,null,null,null,null,null,null,null,"Gris kaki","RAL 7008",3235690,null,null,null,null,null,null,null,null,null,null,null,null,null,null,null,null,null,"Haast Shale","B45-019-268",6575697,null,null,null,null,null,null,null,null,null,null,null,null,null,null,null,null,null,"Fraise",null,3158207,null,null,null,null,null,null,null,null,null,null,null,null,null,null,null,null,null,"BleuViolet",null,14822282,null,null,null,null,null,null,null,null,null,null,null,null,null,null,null,null,null,"&hCC0099",null,13369497]
[null,"Pantone 368",2211675,null,null,null,null,null,null,null,null,null,null,null,null,null,null,null,null,null,"Gris vert","RAL 7009",4544077,null,null,null,null,null,null,null,null,null,null,null,null,null,null,null,null,null,"Half Resolution Blue","B45-097-272",10702365,null,null,null,null,null,null,null,null,null,null,null,null,null,null,null,null,null,"Fraise écrasée",null,2368676,null,null,null,null,null,null,null,null,null,null,null,null,null,null,null,null,null,"Bleu-violet brillant",null,12088190,null,null,null,null,null,null,null,null,null,null,null,null,null,null,null,null,null,"&hCC00CC",null,13369548]
[null,"Pantone 604",2219496,null,null,null,null,null,null,null,null,null,null,null,null,null,null,null,null,null,"Gris tente","RAL 7010",4870476,null,null,null,null,null,null,null,null,null,null,null,null,null,null,null,null,null,"Jimmy Dean","B45-013-277",6116177,null,null,null,null,null,null,null,null,null,null,null,null,null,null,null,null,null,"Framboise",null,4730055,null,null,null,null,null,null,null,null,null,null,null,null,null,null,null,null,null,"Bleu-violet clair",null,11960972,null,null,null,null,null,null,null,null,null,null,null,null,null,null,null,null,null,"&hCC00FF",null,13369599]
[null,"Pantone 181",2305404,null,null,null,null,null,null,null,null,null,null,null,null,null,null,null,null,null,"Gris fer","RAL 7011",5065539,null,null,null,null,null,null,null,null,null,null,null,null,null,null,null,null,null,"Magik","B45-066-273",8014910,null,null,null,null,null,null,null,null,null,null,null,null,null,null,null,null,null,"Fumée",null,14799547,null,null,null,null,null,null,null,null,null,null,null,null,null,null,null,null,null,"Bleu-violet foncé",null,4202799,null,null,null,null,null,null,null,null,null,null,null,null,null,null,null,null,null,"&hCC3300",null,13382400]
[null,"Black 4",2306109,null,null,null,null,null,null,null,null,null,null,null,null,null,null,null,null,null,"Gris basalte","RAL 7012",5527374,null,null,null,null,null,null,null,null,null,null,null,null,null,null,null,null,null,"Marathon","B45-038-226",6509872,null,null,null,null,null,null,null,null,null,null,null,null,null,null,null,null,null,"Fushia",null,9584637,null,null,null,null,null,null,null,null,null,null,null,null,null,null,null,null,null,"Bleu-violet franc",null,9916000,null,null,null,null,null,null,null,null,null,null,null,null,null,null,null,null,null,"&hCC3333",null,13382451]
[null,"Pantone 462",2312027,null,null,null,null,null,null,null,null,null,null,null,null,null,null,null,null,null,"Gris brun","RAL 7013",3228998,null,null,null,null,null,null,null,null,null,null,null,null,null,null,null,null,null,"Night Moves","B45-048-275",7556165,null,null,null,null,null,null,null,null,null,null,null,null,null,null,null,null,null,"Givré",null,13684864,null,null,null,null,null,null,null,null,null,null,null,null,null,null,null,null,null,"Bleu-violet grisâtre",null,6900821,null,null,null,null,null,null,null,null,null,null,null,null,null,null,null,null,null,"&hCC3366",null,13382502]
[null,"Pantone 186",2494926,null,null,null,null,null,null,null,null,null,null,null,null,null,null,null,null,null,"Gris ardoise","RAL 7015",5261123,null,null,null,null,null,null,null,null,null,null,null,null,null,null,null,null,null,"Bahama Blue","B46-084-237",8345893,null,null,null,null,null,null,null,null,null,null,null,null,null,null,null,null,null,"Glauque",null,8952676,null,null,null,null,null,null,null,null,null,null,null,null,null,null,null,null,null,"Bleu-violet moyen",null,8474208,null,null,null,null,null,null,null,null,null,null,null,null,null,null,null,null,null,"&hCC3399",null,13382553]
[null,"Pantone 504",2498129,null,null,null,null,null,null,null,null,null,null,null,null,null,null,null,null,null,"Gris anthracite","RAL 7016",3354921,null,null,null,null,null,null,null,null,null,null,null,null,null,null,null,null,null,"Blumine","B46-053-231",7429168,null,null,null,null,null,null,null,null,null,null,null,null,null,null,null,null,null,"Glycine",null,14459081,null,null,null,null,null,null,null,null,null,null,null,null,null,null,null,null,null,"Bleu-violet pâle",null,11243670,null,null,null,null,null,null,null,null,null,null,null,null,null,null,null,null,null,"&hCC33CC",null,13382604]
[null,"Pantone 490",2500187,null,null,null,null,null,null,null,null,null,null,null,null,null,null,null,null,null,"Gris noir","RAL 7021",2828323,null,null,null,null,null,null,null,null,null,null,null,null,null,null,null,null,null,"Captain Cook","B46-079-240",10184704,null,null,null,null,null,null,null,null,null,null,null,null,null,null,null,null,null,"Gomme-gutte",null,1022959,null,null,null,null,null,null,null,null,null,null,null,null,null,null,null,null,null,"Bleu-violet profond",null,5052210,null,null,null,null,null,null,null,null,null,null,null,null,null,null,null,null,null,"&hCC33FF",null,13382655]
[null,"Pantone 1805",2500271,null,null,null,null,null,null,null,null,null,null,null,null,null,null,null,null,null,"Gris terre d'ombre","RAL 7022",2895667,null,null,null,null,null,null,null,null,null,null,null,null,null,null,null,null,null,"Chathams Blue","B46-054-232",7428396,null,null,null,null,null,null,null,null,null,null,null,null,null,null,null,null,null,"Grège",null,10006203,null,null,null,null,null,null,null,null,null,null,null,null,null,null,null,null,null,"Bleu-violet très clair",null,16765148,null,null,null,null,null,null,null,null,null,null,null,null,null,null,null,null,null,"&hCC6600",null,13395456]
[null,"Pantone 497",2500689,null,null,null,null,null,null,null,null,null,null,null,null,null,null,null,null,null,"Gris béton","RAL 7023",6188136,null,null,null,null,null,null,null,null,null,null,null,null,null,null,null,null,null,"Discover","B46-075-226",9004800,null,null,null,null,null,null,null,null,null,null,null,null,null,null,null,null,null,"Grenadine",null,4143337,null,null,null,null,null,null,null,null,null,null,null,null,null,null,null,null,null,"Bleu-violet très pâle",null,14533572,null,null,null,null,null,null,null,null,null,null,null,null,null,null,null,null,null,"&hCC6633",null,13395507]
[null,"Black 3",2501928,null,null,null,null,null,null,null,null,null,null,null,null,null,null,null,null,null,"Gris graphite","RAL 7024",5327431,null,null,null,null,null,null,null,null,null,null,null,null,null,null,null,null,null,"Enigma","B46-040-283",7491665,null,null,null,null,null,null,null,null,null,null,null,null,null,null,null,null,null,"Grenat",null,1313646,null,null,null,null,null,null,null,null,null,null,null,null,null,null,null,null,null,"Bleu-violet vif",null,13264272,null,null,null,null,null,null,null,null,null,null,null,null,null,null,null,null,null,"&hCC6666",null,13395558]
[null,"Pantone 627",2502668,null,null,null,null,null,null,null,null,null,null,null,null,null,null,null,null,null,"Gris granit","RAL 7026",3880239,null,null,null,null,null,null,null,null,null,null,null,null,null,null,null,null,null,"Maestro","B46-071-214",7167488,null,null,null,null,null,null,null,null,null,null,null,null,null,null,null,null,null,"Gris acier",null,11513775,null,null,null,null,null,null,null,null,null,null,null,null,null,null,null,null,null,"Blond vénitien (cheveux)",null,5548263,null,null,null,null,null,null,null,null,null,null,null,null,null,null,null,null,null,"&hCC6699",null,13395609]
[null,"Pantone 477",2504803,null,null,null,null,null,null,null,null,null,null,null,null,null,null,null,null,null,"Gris pierre","RAL 7030",8031371,null,null,null,null,null,null,null,null,null,null,null,null,null,null,null,null,null,"Style Pasifika Blue Whale","B46-058-268",7884093,null,null,null,null,null,null,null,null,null,null,null,null,null,null,null,null,null,"Gris anthracite",null,3158064,null,null,null,null,null,null,null,null,null,null,null,null,null,null,null,null,null,"Blondeur (cheveux)",null,7650530,null,null,null,null,null,null,null,null,null,null,null,null,null,null,null,null,null,"&hCC66CC",null,13395660]
[null,"Pantone 449",2508628,null,null,null,null,null,null,null,null,null,null,null,null,null,null,null,null,null,"Gris bleu","RAL 7031",5131079,null,null,null,null,null,null,null,null,null,null,null,null,null,null,null,null,null,"Superhero","B46-093-269",8932919,null,null,null,null,null,null,null,null,null,null,null,null,null,null,null,null,null,"Gris de lin",null,15518418,null,null,null,null,null,null,null,null,null,null,null,null,null,null,null,null,null,"Bordeaux",null,1705837,null,null,null,null,null,null,null,null,null,null,null,null,null,null,null,null,null,"&hCC66FF",null,13395711]
[null,"Pantone 5753",2509119,null,null,null,null,null,null,null,null,null,null,null,null,null,null,null,null,null,"Gris silex","RAL 7032",10074040,null,null,null,null,null,null,null,null,null,null,null,null,null,null,null,null,null,"Timekeeper","B46-018-207",5921089,null,null,null,null,null,null,null,null,null,null,null,null,null,null,null,null,null,"Gris de maure",null,4415080,null,null,null,null,null,null,null,null,null,null,null,null,null,null,null,null,null,"Bourgogne",null,855403,null,null,null,null,null,null,null,null,null,null,null,null,null,null,null,null,null,"&hCC9900",null,13408512]
[null,"Pantone 463",2511989,null,null,null,null,null,null,null,null,null,null,null,null,null,null,null,null,null,"Gris ciment","RAL 7033",7439485,null,null,null,null,null,null,null,null,null,null,null,null,null,null,null,null,null,"Venice Blue","B46-066-241",7886636,null,null,null,null,null,null,null,null,null,null,null,null,null,null,null,null,null,"Gris de Payne",null,7958887,null,null,null,null,null,null,null,null,null,null,null,null,null,null,null,null,null,"Bouton d'or",null,1236220,null,null,null,null,null,null,null,null,null,null,null,null,null,null,null,null,null,"&hCC9933",null,13408563]
[null,"Pantone 147",2514546,null,null,null,null,null,null,null,null,null,null,null,null,null,null,null,null,null,"Gris jaune","RAL 7034",6720399,null,null,null,null,null,null,null,null,null,null,null,null,null,null,null,null,null,"A B Sea","B47-087-258",8605747,null,null,null,null,null,null,null,null,null,null,null,null,null,null,null,null,null,"Gris fer",null,8684676,null,null,null,null,null,null,null,null,null,null,null,null,null,null,null,null,null,"brass",null,4368053,null,null,null,null,null,null,null,null,null,null,null,null,null,null,null,null,null,"&hCC9966",null,13408614]
[null,"Pantone 381",2548428,null,null,null,null,null,null,null,null,null,null,null,null,null,null,null,null,null,"Gris clair","RAL 7035",14145495,null,null,null,null,null,null,null,null,null,null,null,null,null,null,null,null,null,"Fiord","B47-019-238",6445643,null,null,null,null,null,null,null,null,null,null,null,null,null,null,null,null,null,"Gris fer",null,8355711,null,null,null,null,null,null,null,null,null,null,null,null,null,null,null,null,null,"Brillant Or",null,1694169,null,null,null,null,null,null,null,null,null,null,null,null,null,null,null,null,null,"&hCC9999",null,13408665]
[null,"Pantone 107",2549241,null,null,null,null,null,null,null,null,null,null,null,null,null,null,null,null,null,"Gris platine","RAL 7036",7960191,null,null,null,null,null,null,null,null,null,null,null,null,null,null,null,null,null,"Half New Denim Blue","B47-012-249",6577235,null,null,null,null,null,null,null,null,null,null,null,null,null,null,null,null,null,"Gris Perle",null,13553358,null,null,null,null,null,null,null,null,null,null,null,null,null,null,null,null,null,"Brique",null,1781380,null,null,null,null,null,null,null,null,null,null,null,null,null,null,null,null,null,"&hCC99CC",null,13408716]
[null,"Pantone 188",2630012,null,null,null,null,null,null,null,null,null,null,null,null,null,null,null,null,null,"Gris poussière","RAL 7037",8224637,null,null,null,null,null,null,null,null,null,null,null,null,null,null,null,null,null,"Orient","B47-071-229",7822117,null,null,null,null,null,null,null,null,null,null,null,null,null,null,null,null,null,"Gris Perle",null,13422791,null,null,null,null,null,null,null,null,null,null,null,null,null,null,null,null,null,"bronze",null,5470348,null,null,null,null,null,null,null,null,null,null,null,null,null,null,null,null,null,"&hCC99FF",null,13408767]
[null,"Pantone 491",2631797,null,null,null,null,null,null,null,null,null,null,null,null,null,null,null,null,null,"Gris agate","RAL 7038",11647157,null,null,null,null,null,null,null,null,null,null,null,null,null,null,null,null,null,"San Juan","B47-022-236",6379332,null,null,null,null,null,null,null,null,null,null,null,null,null,null,null,null,null,"Gris souris",null,10395294,null,null,null,null,null,null,null,null,null,null,null,null,null,null,null,null,null,"Bronze",null,1724001,null,null,null,null,null,null,null,null,null,null,null,null,null,null,null,null,null,"&hCCCC00",null,13421568]
[null,"Pantone 704",2631838,null,null,null,null,null,null,null,null,null,null,null,null,null,null,null,null,null,"Gris quartz","RAL 7039",6318444,null,null,null,null,null,null,null,null,null,null,null,null,null,null,null,null,null,"Spray Drift","B47-063-238",7821357,null,null,null,null,null,null,null,null,null,null,null,null,null,null,null,null,null,"Gris tourterelle",null,11316411,null,null,null,null,null,null,null,null,null,null,null,null,null,null,null,null,null,"bronze II",null,4029862,null,null,null,null,null,null,null,null,null,null,null,null,null,null,null,null,null,"&hCCCC33",null,13421619]
[null,"Pantone 1795",2631894,null,null,null,null,null,null,null,null,null,null,null,null,null,null,null,null,null,"Gris fenêtre","RAL 7040",11182493,null,null,null,null,null,null,null,null,null,null,null,null,null,null,null,null,null,"St Tropaz","B47-069-266",8541234,null,null,null,null,null,null,null,null,null,null,null,null,null,null,null,null,null,"Héliotrope",null,16741343,null,null,null,null,null,null,null,null,null,null,null,null,null,null,null,null,null,"Brou de noix",null,270911,null,null,null,null,null,null,null,null,null,null,null,null,null,null,null,null,null,"&hCCCC66",null,13421670]
[null,"Pantone 426",2632491,null,null,null,null,null,null,null,null,null,null,null,null,null,null,null,null,null,"Gris trafic A","RAL 7042",9278605,null,null,null,null,null,null,null,null,null,null,null,null,null,null,null,null,null,"Chambray","B48-043-265",7821383,null,null,null,null,null,null,null,null,null,null,null,null,null,null,null,null,null,"Hooker",null,544539,null,null,null,null,null,null,null,null,null,null,null,null,null,null,null,null,null,"Brun ",null,2763430,null,null,null,null,null,null,null,null,null,null,null,null,null,null,null,null,null,"&hCCCC99",null,13421721]
[null,"Pantone 1817",2633051,null,null,null,null,null,null,null,null,null,null,null,null,null,null,null,null,null,"Gris trafic B","RAL 7043",5395534,null,null,null,null,null,null,null,null,null,null,null,null,null,null,null,null,null,"Compass","B48-017-244",6379339,null,null,null,null,null,null,null,null,null,null,null,null,null,null,null,null,null,"Incarnadin",null,10524414,null,null,null,null,null,null,null,null,null,null,null,null,null,null,null,null,null,"Brun 0",null,2763429,null,null,null,null,null,null,null,null,null,null,null,null,null,null,null,null,null,"&hCCCCCC",null,13421772]
[null,"Pantone 412",2633789,null,null,null,null,null,null,null,null,null,null,null,null,null,null,null,null,null,"Gris soie","RAL 7044",11584714,null,null,null,null,null,null,null,null,null,null,null,null,null,null,null,null,null,"Endeavour","B48-102-250",9132329,null,null,null,null,null,null,null,null,null,null,null,null,null,null,null,null,null,"Incarnat",null,8220671,null,null,null,null,null,null,null,null,null,null,null,null,null,null,null,null,null,"Brun 1",null,4210943,null,null,null,null,null,null,null,null,null,null,null,null,null,null,null,null,null,"&hCCCCFF",null,13421823]
[null,"Pantone 180",2635969,null,null,null,null,null,null,null,null,null,null,null,null,null,null,null,null,null,"Télé gris 1","RAL 7045",9474192,null,null,null,null,null,null,null,null,null,null,null,null,null,null,null,null,null,"Hammerhead","B48-023-268",6903633,null,null,null,null,null,null,null,null,null,null,null,null,null,null,null,null,null,"Indigo",null,16260217,null,null,null,null,null,null,null,null,null,null,null,null,null,null,null,null,null,"Brun 2",null,3881966,null,null,null,null,null,null,null,null,null,null,null,null,null,null,null,null,null,"&hCCFF00",null,13434624]
[null,"Pantone 179",2637282,null,null,null,null,null,null,null,null,null,null,null,null,null,null,null,null,null,"Télé gris 2","RAL 7046",9406850,null,null,null,null,null,null,null,null,null,null,null,null,null,null,null,null,null,"Sapphire","B48-064-268",8475199,null,null,null,null,null,null,null,null,null,null,null,null,null,null,null,null,null,"Indigo",null,7077934,null,null,null,null,null,null,null,null,null,null,null,null,null,null,null,null,null,"Brun 2",null,3355596,null,null,null,null,null,null,null,null,null,null,null,null,null,null,null,null,null,"&hCCFF33",null,13434675]
[null,"Pantone 478",2637690,null,null,null,null,null,null,null,null,null,null,null,null,null,null,null,null,null,"Télé gris 4","RAL 7047",13684944,null,null,null,null,null,null,null,null,null,null,null,null,null,null,null,null,null,"Yarra","B48-062-249",9330720,null,null,null,null,null,null,null,null,null,null,null,null,null,null,null,null,null,"Indigo du web",null,8519755,null,null,null,null,null,null,null,null,null,null,null,null,null,null,null,null,null,"Brun 3",null,3355597,null,null,null,null,null,null,null,null,null,null,null,null,null,null,null,null,null,"&hCCFF66",null,13434726]
[null,"Pantone 575",2644297,null,null,null,null,null,null,null,null,null,null,null,null,null,null,null,null,null,"Gris souris nacré","RAL 7048",7766409,null,null,null,null,null,null,null,null,null,null,null,null,null,null,null,null,null,"Hendrix","B49-044-275",8148556,null,null,null,null,null,null,null,null,null,null,null,null,null,null,null,null,null,"Jade",null,9496967,null,null,null,null,null,null,null,null,null,null,null,null,null,null,null,null,null,"Brun 4",null,2302859,null,null,null,null,null,null,null,null,null,null,null,null,null,null,null,null,null,"&hCCFF99",null,13434777]
[null,"Pantone 464",2646151,null,null,null,null,null,null,null,null,null,null,null,null,null,null,null,null,null,"Brun vert","RAL 8000",3435650,null,null,null,null,null,null,null,null,null,null,null,null,null,null,null,null,null,"Matisse","B49-059-247",8215606,null,null,null,null,null,null,null,null,null,null,null,null,null,null,null,null,null,"Jaune auréolin",null,4379375,null,null,null,null,null,null,null,null,null,null,null,null,null,null,null,null,null,"Brun clair",null,5995430,null,null,null,null,null,null,null,null,null,null,null,null,null,null,null,null,null,"&hCCFFCC",null,13434828]
[null,"Pantone 364",2651962,null,null,null,null,null,null,null,null,null,null,null,null,null,null,null,null,null,"Terre de Sienne","RAL 8001",2121621,null,null,null,null,null,null,null,null,null,null,null,null,null,null,null,null,null,"Snapshot","B49-016-240",6774608,null,null,null,null,null,null,null,null,null,null,null,null,null,null,null,null,null,"Jaune banane",null,440017,null,null,null,null,null,null,null,null,null,null,null,null,null,null,null,null,null,"Brun clair",null,4163021,null,null,null,null,null,null,null,null,null,null,null,null,null,null,null,null,null,"&hCCFFFF",null,13434879]
[null,"Pantone 619",2657430,null,null,null,null,null,null,null,null,null,null,null,null,null,null,null,null,null,"Brun de sécurité","RAL 8002",2767724,null,null,null,null,null,null,null,null,null,null,null,null,null,null,null,null,null,"Tax Break","B49-025-216",6907209,null,null,null,null,null,null,null,null,null,null,null,null,null,null,null,null,null,"Jaune canari",null,913639,null,null,null,null,null,null,null,null,null,null,null,null,null,null,null,null,null,"Brun clair grisâtre",null,7372949,null,null,null,null,null,null,null,null,null,null,null,null,null,null,null,null,null,"&hFF0000",null,16711680]
[null,"Pantone 802 2X",2674204,null,null,null,null,null,null,null,null,null,null,null,null,null,null,null,null,null,"Brun argile","RAL 8003",2245235,null,null,null,null,null,null,null,null,null,null,null,null,null,null,null,null,null,"Torea Bay","B49-093-279",7683381,null,null,null,null,null,null,null,null,null,null,null,null,null,null,null,null,null,"Jaune chartreuse",null,65503,null,null,null,null,null,null,null,null,null,null,null,null,null,null,null,null,null,"Brun foncé",null,1582402,null,null,null,null,null,null,null,null,null,null,null,null,null,null,null,null,null,"&hFF0033",null,16711731]
[null,"Pantone 505",2825830,null,null,null,null,null,null,null,null,null,null,null,null,null,null,null,null,null,"Brun cuivré","RAL 8004",2769038,null,null,null,null,null,null,null,null,null,null,null,null,null,null,null,null,null,"Undercurrent","B49-037-228",7101494,null,null,null,null,null,null,null,null,null,null,null,null,null,null,null,null,null,"Jaune de cobalt",null,61181,null,null,null,null,null,null,null,null,null,null,null,null,null,null,null,null,null,"Brun franc",null,1787520,null,null,null,null,null,null,null,null,null,null,null,null,null,null,null,null,null,"&hFF0066",null,16711782]
[null,"Black 7 2X",2830387,null,null,null,null,null,null,null,null,null,null,null,null,null,null,null,null,null,"Brun fauve","RAL 8007",2045273,null,null,null,null,null,null,null,null,null,null,null,null,null,null,null,null,null,"Wet N Wild","B49-089-260",7684901,null,null,null,null,null,null,null,null,null,null,null,null,null,null,null,null,null,"jaune de Naples",null,12382463,null,null,null,null,null,null,null,null,null,null,null,null,null,null,null,null,null,"Brun grisâtre",null,4673891,null,null,null,null,null,null,null,null,null,null,null,null,null,null,null,null,null,"&hFF0099",null,16711833]
[null,"Pantone 440",2830399,null,null,null,null,null,null,null,null,null,null,null,null,null,null,null,null,null,"Brun olive","RAL 8008",2641775,null,null,null,null,null,null,null,null,null,null,null,null,null,null,null,null,null,"Governor Bay","B50-095-281",10179921,null,null,null,null,null,null,null,null,null,null,null,null,null,null,null,null,null,"Jaune d'or",null,514287,null,null,null,null,null,null,null,null,null,null,null,null,null,null,null,null,null,"Brun jaunâtre clair",null,7051969,null,null,null,null,null,null,null,null,null,null,null,null,null,null,null,null,null,"&hFF00CC",null,16711884]
[null,"Black",2831165,null,null,null,null,null,null,null,null,null,null,null,null,null,null,null,null,null,"Brun noisette","RAL 8011",2701915,null,null,null,null,null,null,null,null,null,null,null,null,null,null,null,null,null,"Kitsch","B50-093-205",8350720,null,null,null,null,null,null,null,null,null,null,null,null,null,null,null,null,null,"Jaune impérial",null,3597567,null,null,null,null,null,null,null,null,null,null,null,null,null,null,null,null,null,"Brun jaunâtre clair grisâtre",null,8559534,null,null,null,null,null,null,null,null,null,null,null,null,null,null,null,null,null,"&hFF00FF",null,16711935]
[null,"Pantone 498",2831213,null,null,null,null,null,null,null,null,null,null,null,null,null,null,null,null,null,"Brun rouge","RAL 8012",2171737,null,null,null,null,null,null,null,null,null,null,null,null,null,null,null,null,null,"Muse","B50-047-207",7170350,null,null,null,null,null,null,null,null,null,null,null,null,null,null,null,null,null,"Jaune mimosa",null,7141630,null,null,null,null,null,null,null,null,null,null,null,null,null,null,null,null,null,"Brun jaunâtre foncé",null,2176587,null,null,null,null,null,null,null,null,null,null,null,null,null,null,null,null,null,"&hFF3300",null,16724736]
[null,"Pantone 805 2X",2833145,null,null,null,null,null,null,null,null,null,null,null,null,null,null,null,null,null,"Brun sépia","RAL 8014",1977400,null,null,null,null,null,null,null,null,null,null,null,null,null,null,null,null,null,"Quadrant Grey","B50-017-273",7036505,null,null,null,null,null,null,null,null,null,null,null,null,null,null,null,null,null,"Jaune moutarde",null,53191,null,null,null,null,null,null,null,null,null,null,null,null,null,null,null,null,null,"Brun jaunâtre foncé grisâtre",null,3292232,null,null,null,null,null,null,null,null,null,null,null,null,null,null,null,null,null,"&hFF3333",null,16724787]
[null,"Pantone 476",2833753,null,null,null,null,null,null,null,null,null,null,null,null,null,null,null,null,null,"Marron","RAL 8015",3422819,null,null,null,null,null,null,null,null,null,null,null,null,null,null,null,null,null,"Smalt Blue","B50-023-212",6775369,null,null,null,null,null,null,null,null,null,null,null,null,null,null,null,null,null,"Jaune nankin",null,6939383,null,null,null,null,null,null,null,null,null,null,null,null,null,null,null,null,null,"Brun jaunâtre franc",null,1402265,null,null,null,null,null,null,null,null,null,null,null,null,null,null,null,null,null,"&hFF3366",null,16724838]
[null,"Pantone 450",2839648,null,null,null,null,null,null,null,null,null,null,null,null,null,null,null,null,null,"Brun acajou","RAL 8016",2568012,null,null,null,null,null,null,null,null,null,null,null,null,null,null,null,null,null,"Allports","B51-085-212",8219167,null,null,null,null,null,null,null,null,null,null,null,null,null,null,null,null,null,"Jaune olive",null,32896,null,null,null,null,null,null,null,null,null,null,null,null,null,null,null,null,null,"Brun jaunâtre grisâtre",null,5926270,null,null,null,null,null,null,null,null,null,null,null,null,null,null,null,null,null,"&hFF3399",null,16724889]
[null,"Pantone 5767",2846827,null,null,null,null,null,null,null,null,null,null,null,null,null,null,null,null,null,"Brun chocolat","RAL 8017",3027525,null,null,null,null,null,null,null,null,null,null,null,null,null,null,null,null,null,"Gypsy Queen","B51-091-284",11294286,null,null,null,null,null,null,null,null,null,null,null,null,null,null,null,null,null,"Jaune paille",null,4711422,null,null,null,null,null,null,null,null,null,null,null,null,null,null,null,null,null,"Brun jaunâtre moyen",null,4482690,null,null,null,null,null,null,null,null,null,null,null,null,null,null,null,null,null,"&hFF33CC",null,16724940]
[null,"Pantone 5825",2846837,null,null,null,null,null,null,null,null,null,null,null,null,null,null,null,null,null,"Brun gris","RAL 8019",3816000,null,null,null,null,null,null,null,null,null,null,null,null,null,null,null,null,null,"River Bed","B51-010-210",6381653,null,null,null,null,null,null,null,null,null,null,null,null,null,null,null,null,null,"Jaune poussin",null,6284279,null,null,null,null,null,null,null,null,null,null,null,null,null,null,null,null,null,"Brun jaunâtre profond",null,2245989,null,null,null,null,null,null,null,null,null,null,null,null,null,null,null,null,null,"&hFF33FF",null,16724991]
[null,"Pantone 185",2953704,null,null,null,null,null,null,null,null,null,null,null,null,null,null,null,null,null,"Brun noir","RAL 8022",2171169,null,null,null,null,null,null,null,null,null,null,null,null,null,null,null,null,null,"Streetwise","B51-024-217",7432527,null,null,null,null,null,null,null,null,null,null,null,null,null,null,null,null,null,"Kaki",null,2851220,null,null,null,null,null,null,null,null,null,null,null,null,null,null,null,null,null,"Brun moyen",null,3624559,null,null,null,null,null,null,null,null,null,null,null,null,null,null,null,null,null,{"$f":"\"&h\"&DEC2HEX(CY194,6)","v":"&hFF6600"},null,16737792]
[null,"Pantone 187",2956975,null,null,null,null,null,null,null,null,null,null,null,null,null,null,null,null,null,"Brun orangé","RAL 8023",3038886,null,null,null,null,null,null,null,null,null,null,null,null,null,null,null,null,null,"Dauntless","B52-058-215",8351510,null,null,null,null,null,null,null,null,null,null,null,null,null,null,null,null,null,"Klein",null,8197921,null,null,null,null,null,null,null,null,null,null,null,null,null,null,null,null,null,"Brun Olive clair",null,1536406,null,null,null,null,null,null,null,null,null,null,null,null,null,null,null,null,null,"&hFF6633",null,16737843]
[null,"Pantone 1788",2960367,null,null,null,null,null,null,null,null,null,null,null,null,null,null,null,null,null,"Brun beige","RAL 8024",4019577,null,null,null,null,null,null,null,null,null,null,null,null,null,null,null,null,null,"Lifesaver","B52-037-268",8347219,null,null,null,null,null,null,null,null,null,null,null,null,null,null,null,null,null,"Klein",null,10956544,null,null,null,null,null,null,null,null,null,null,null,null,null,null,null,null,null,"Brun Olive foncé",null,2175291,null,null,null,null,null,null,null,null,null,null,null,null,null,null,null,null,null,"&hFF6666",null,16737894]
[null,"Red 032",2960367,null,null,null,null,null,null,null,null,null,null,null,null,null,null,null,null,null,"Brun pâle","RAL 8025",4742261,null,null,null,null,null,null,null,null,null,null,null,null,null,null,null,null,null,"Shuttle Grey","B52-008-257",7038561,null,null,null,null,null,null,null,null,null,null,null,null,null,null,null,null,null,"Lapis-lazuli",null,10248486,null,null,null,null,null,null,null,null,null,null,null,null,null,null,null,null,null,"Brun Olive moyen",null,1987692,null,null,null,null,null,null,null,null,null,null,null,null,null,null,null,null,null,"&hFF6699",null,16737945]
[null,"Black 5",2960706,null,null,null,null,null,null,null,null,null,null,null,null,null,null,null,null,null,"Brun terre","RAL 8028",3226446,null,null,null,null,null,null,null,null,null,null,null,null,null,null,null,null,null,"Steam Roller","B52-012-262",7234911,null,null,null,null,null,null,null,null,null,null,null,null,null,null,null,null,null,"Lavallière",null,2251151,null,null,null,null,null,null,null,null,null,null,null,null,null,null,null,null,null,"Brun profond",null,1651545,null,null,null,null,null,null,null,null,null,null,null,null,null,null,null,null,null,"&hFF66CC",null,16737996]
[null,"Pantone 499",2963578,null,null,null,null,null,null,null,null,null,null,null,null,null,null,null,null,null,"Cuivre nacré","RAL 8029",2636918,null,null,null,null,null,null,null,null,null,null,null,null,null,null,null,null,null,"Wavelength","B52-054-243",8808508,null,null,null,null,null,null,null,null,null,null,null,null,null,null,null,null,null,"Lavande",null,15500182,null,null,null,null,null,null,null,null,null,null,null,null,null,null,null,null,null,"Brun rougeâtre clair",null,7175336,null,null,null,null,null,null,null,null,null,null,null,null,null,null,null,null,null,"&hFF66FF",null,16738047]
[null,"Pantone 5605",2964003,null,null,null,null,null,null,null,null,null,null,null,null,null,null,null,null,null,"Blanc crème","RAL 9001",14939389,null,null,null,null,null,null,null,null,null,null,null,null,null,null,null,null,null,"Bismark","B53-034-224",8023112,null,null,null,null,null,null,null,null,null,null,null,null,null,null,null,null,null,"Lie de vin",null,4464300,null,null,null,null,null,null,null,null,null,null,null,null,null,null,null,null,null,"Brun rougeâtre clair grisâtre",null,7569303,null,null,null,null,null,null,null,null,null,null,null,null,null,null,null,null,null,"&hFF9900",null,16750848]
[null,"Pantone 448",2967380,null,null,null,null,null,null,null,null,null,null,null,null,null,null,null,null,null,"Blanc gris","RAL 9002",14347239,null,null,null,null,null,null,null,null,null,null,null,null,null,null,null,null,null,"Blue Jeans","B53-058-263",9463118,null,null,null,null,null,null,null,null,null,null,null,null,null,null,null,null,null,"Lilas",null,13788854,null,null,null,null,null,null,null,null,null,null,null,null,null,null,null,null,null,"Brun rougeâtre foncé",null,1973566,null,null,null,null,null,null,null,null,null,null,null,null,null,null,null,null,null,"&hFF9933",null,16750899]
[null,"Pantone 143",2994927,null,null,null,null,null,null,null,null,null,null,null,null,null,null,null,null,null,"Blanc de sécurité","RAL 9003",16053492,null,null,null,null,null,null,null,null,null,null,null,null,null,null,null,null,null,"Comet","B53-018-282",7562083,null,null,null,null,null,null,null,null,null,null,null,null,null,null,null,null,null,"Magenta",null,16711935,null,null,null,null,null,null,null,null,null,null,null,null,null,null,null,null,null,"Brun rougeâtre foncé grisâtre",null,3027011,null,null,null,null,null,null,null,null,null,null,null,null,null,null,null,null,null,"&hFF9966",null,16750950]
[null,"Pantone 193",3148479,null,null,null,null,null,null,null,null,null,null,null,null,null,null,null,null,null,"Noir de sécurité","RAL 9004",2631720,null,null,null,null,null,null,null,null,null,null,null,null,null,null,null,null,null,"Mariner","B53-094-264",10445634,null,null,null,null,null,null,null,null,null,null,null,null,null,null,null,null,null,"Magenta foncé",null,8388736,null,null,null,null,null,null,null,null,null,null,null,null,null,null,null,null,null,"Brun rougeâtre franc",null,1518984,null,null,null,null,null,null,null,null,null,null,null,null,null,null,null,null,null,"&hFF9999",null,16751001]
[null,"Black 6",3155484,null,null,null,null,null,null,null,null,null,null,null,null,null,null,null,null,null,"Noir foncé","RAL 9005",657930,null,null,null,null,null,null,null,null,null,null,null,null,null,null,null,null,null,"Norwegian Blue","B53-037-267",8610904,null,null,null,null,null,null,null,null,null,null,null,null,null,null,null,null,null,"Magenta fushia",null,7536859,null,null,null,null,null,null,null,null,null,null,null,null,null,null,null,null,null,"Brun rougeâtre grisâtre",null,4672615,null,null,null,null,null,null,null,null,null,null,null,null,null,null,null,null,null,"&hFF99CC",null,16751052]
[null,"Pantone 1797",3157452,null,null,null,null,null,null,null,null,null,null,null,null,null,null,null,null,null,"Aluminium blanc","RAL 9006",10855845,null,null,null,null,null,null,null,null,null,null,null,null,null,null,null,null,null,"Optimist","B53-082-235",9267243,null,null,null,null,null,null,null,null,null,null,null,null,null,null,null,null,null,"Maïs",null,7724799,null,null,null,null,null,null,null,null,null,null,null,null,null,null,null,null,null,"Brun rougeâtre moyen",null,3884153,null,null,null,null,null,null,null,null,null,null,null,null,null,null,null,null,null,"&hFF99FF",null,16751103]
[null,"Pantone 5535",3161377,null,null,null,null,null,null,null,null,null,null,null,null,null,null,null,null,null,"Aluminium gris","RAL 9007",9408399,null,null,null,null,null,null,null,null,null,null,null,null,null,null,null,null,null,"Wedgewood","B53-043-247",8940364,null,null,null,null,null,null,null,null,null,null,null,null,null,null,null,null,null,"Mandarine",null,4695038,null,null,null,null,null,null,null,null,null,null,null,null,null,null,null,null,null,"Brun rougeâtre profond",null,788310,null,null,null,null,null,null,null,null,null,null,null,null,null,null,null,null,null,"&hFFCC00",null,16763904]
[null,"Pantone 3435",3164418,null,null,null,null,null,null,null,null,null,null,null,null,null,null,null,null,null,"Blanc pur","RAL 9010",16777215,null,null,null,null,null,null,null,null,null,null,null,null,null,null,null,null,null,"Astral","B54-062-229",9006903,null,null,null,null,null,null,null,null,null,null,null,null,null,null,null,null,null,"Marron",null,10584,null,null,null,null,null,null,null,null,null,null,null,null,null,null,null,null,null,"Brun sombre grisâtre",null,2896446,null,null,null,null,null,null,null,null,null,null,null,null,null,null,null,null,null,"&hFFCC33",null,16763955]
[null,"Pantone 4495",3175815,null,null,null,null,null,null,null,null,null,null,null,null,null,null,null,null,null,"Noir graphite","RAL 9011",1842204,null,null,null,null,null,null,null,null,null,null,null,null,null,null,null,null,null,"Azure","B54-064-262",10119502,null,null,null,null,null,null,null,null,null,null,null,null,null,null,null,null,null,"Mars",null,5493230,null,null,null,null,null,null,null,null,null,null,null,null,null,null,null,null,null,"Bureau",null,3233643,null,null,null,null,null,null,null,null,null,null,null,null,null,null,null,null,null,"&hFFCC66",null,16764006]
[null,"Pantone 723",3175866,null,null,null,null,null,null,null,null,null,null,null,null,null,null,null,null,null,"Blanc trafic","RAL 9016",16185078,null,null,null,null,null,null,null,null,null,null,null,null,null,null,null,null,null,"Breakwater","B54-054-263",9660499,null,null,null,null,null,null,null,null,null,null,null,null,null,null,null,null,null,"Mastic",null,9548211,null,null,null,null,null,null,null,null,null,null,null,null,null,null,null,null,null,"burlywood",null,8894686,null,null,null,null,null,null,null,null,null,null,null,null,null,null,null,null,null,"&hFFCC99",null,16764057]
[null,"Pantone 576",3176276,null,null,null,null,null,null,null,null,null,null,null,null,null,null,null,null,null,"Noir trafic","RAL 9017",1973790,null,null,null,null,null,null,null,null,null,null,null,null,null,null,null,null,null,"Calypso","B54-052-225",8941885,null,null,null,null,null,null,null,null,null,null,null,null,null,null,null,null,null,"Mauve",null,13923284,null,null,null,null,null,null,null,null,null,null,null,null,null,null,null,null,null,"burlywood1",null,10212351,null,null,null,null,null,null,null,null,null,null,null,null,null,null,null,null,null,"&hFFCCCC",null,16764108]
[null,"Pantone 202",3352204,null,null,null,null,null,null,null,null,null,null,null,null,null,null,null,null,null,"Blanc papyrus","RAL 9018",14145495,null,null,null,null,null,null,null,null,null,null,null,null,null,null,null,null,null,"Half Hammerhead","B54-026-268",8218462,null,null,null,null,null,null,null,null,null,null,null,null,null,null,null,null,null,"Melon",null,1480926,null,null,null,null,null,null,null,null,null,null,null,null,null,null,null,null,null,"burlywood2",null,9553390,null,null,null,null,null,null,null,null,null,null,null,null,null,null,null,null,null,"&hFFCCFF",null,16764159]
[null,"Pantone 711",3354065,null,null,null,null,null,null,null,null,null,null,null,null,null,null,null,null,null,"Gris clair nacré","RAL 9022",10263708,null,null,null,null,null,null,null,null,null,null,null,null,null,null,null,null,null,"Kingfisher Blue","B54-041-263",9136729,null,null,null,null,null,null,null,null,null,null,null,null,null,null,null,null,null,"Menthe",null,5158934,null,null,null,null,null,null,null,null,null,null,null,null,null,null,null,null,null,"burlywood3",null,8235725,null,null,null,null,null,null,null,null,null,null,null,null,null,null,null,null,null,"&hFFFF00",null,16776960]
[null,"Pantone 1807",3354784,null,null,null,null,null,null,null,null,null,null,null,null,null,null,null,null,null,"Gris foncé nacré","RAL 9023",8553090,null,null,null,null,null,null,null,null,null,null,null,null,null,null,null,null,null,"Point Break","B54-092-270",12150069,null,null,null,null,null,null,null,null,null,null,null,null,null,null,null,null,null,"Menthe à l'eau",null,9304404,null,null,null,null,null,null,null,null,null,null,null,null,null,null,null,null,null,"burlywood4",null,5600139,null,null,null,null,null,null,null,null,null,null,null,null,null,null,null,null,null,"&hFFFF33",null,16777011]
[null,"Pantone 439",3355977,null,null,null,null,null,null,null,null,null,null,null,null,null,null,null,null,null,null,null,null,null,null,null,null,null,null,null,null,null,null,null,null,null,null,null,null,null,"Quarter New Denim Blue","B54-013-247",8089957,null,null,null,null,null,null,null,null,null,null,null,null,null,null,null,null,null,"Miel",null,701402,null,null,null,null,null,null,null,null,null,null,null,null,null,null,null,null,null,"Caca d'oie",null,904653,null,null,null,null,null,null,null,null,null,null,null,null,null,null,null,null,null,"&hFFFF66",null,16777062]
[null,"Pantone 5467",3356697,null,null,null,null,null,null,null,null,null,null,null,null,null,null,null,null,null,null,null,null,null,null,null,null,null,null,null,null,null,null,null,null,null,null,null,null,null,"She'll Be Right","B54-073-210",9272320,null,null,null,null,null,null,null,null,null,null,null,null,null,null,null,null,null,"Mordoré",null,1726855,null,null,null,null,null,null,null,null,null,null,null,null,null,null,null,null,null,"Cacao",null,3820385,null,null,null,null,null,null,null,null,null,null,null,null,null,null,null,null,null,"&hFFFF99",null,16777113]
[null,"Pantone 350",3362595,null,null,null,null,null,null,null,null,null,null,null,null,null,null,null,null,null,null,null,null,null,null,null,null,null,null,null,null,null,null,null,null,null,null,null,null,null,"Waratah","B54-041-260",9136469,null,null,null,null,null,null,null,null,null,null,null,null,null,null,null,null,null,"Nacarat",null,6118908,null,null,null,null,null,null,null,null,null,null,null,null,null,null,null,null,null,"Cachou",null,793391,null,null,null,null,null,null,null,null,null,null,null,null,null,null,null,null,null,"&hFFFFCC",null,16777164]
[null,"Pantone 4635",3365260,null,null,null,null,null,null,null,null,null,null,null,null,null,null,null,null,null,null,null,null,null,null,null,null,null,null,null,null,null,null,null,null,null,null,null,null,null,"Bowie","B55-090-225",11305984,null,null,null,null,null,null,null,null,null,null,null,null,null,null,null,null,null,"Noir animal",null,0,null,null,null,null,null,null,null,null,null,null,null,null,null,null,null,null,null,"Cadet Bleu",null,10461023,null,null,null,null,null,null,null,null,null,null,null,null,null,null,null,null,null,"&hFFFFFF",null,16777215]
[null,"Pantone 357",3365665,null,null,null,null,null,null,null,null,null,null,null,null,null,null,null,null,null,null,null,null,null,null,null,null,null,null,null,null,null,null,null,null,null,null,null,null,null,"Half Smalt Blue","B55-028-217",8420446,null,null,null,null,null,null,null,null,null,null,null,null,null,null,null,null,null,"Noir charbon",null,0,null,null,null,null,null,null,null,null,null,null,null,null,null,null,null,null,null,"CadetBleu0",null,10526303]
[null,"Pantone 363",3378749,null,null,null,null,null,null,null,null,null,null,null,null,null,null,null,null,null,null,null,null,null,null,null,null,null,null,null,null,null,null,null,null,null,null,null,null,null,"Kashmir Blue","B55-041-254",9334103,null,null,null,null,null,null,null,null,null,null,null,null,null,null,null,null,null,"Noir d'aniline",null,1445138,null,null,null,null,null,null,null,null,null,null,null,null,null,null,null,null,null,"CadetBleu1",null,16774552]
[null,"Pantone 1945",3476648,null,null,null,null,null,null,null,null,null,null,null,null,null,null,null,null,null,null,null,null,null,null,null,null,null,null,null,null,null,null,null,null,null,null,null,null,null,"Lochmara","B55-104-244",10513969,null,null,null,null,null,null,null,null,null,null,null,null,null,null,null,null,null,"Noir de carbone",null,658963,null,null,null,null,null,null,null,null,null,null,null,null,null,null,null,null,null,"CadetBleu2",null,15656334]
[null,"Pantone 194",3482009,null,null,null,null,null,null,null,null,null,null,null,null,null,null,null,null,null,null,null,null,null,null,null,null,null,null,null,null,null,null,null,null,null,null,null,null,null,"Pale Sky","B55-011-232",7368035,null,null,null,null,null,null,null,null,null,null,null,null,null,null,null,null,null,"Noir de fumée",null,658963,null,null,null,null,null,null,null,null,null,null,null,null,null,null,null,null,null,"CadetBleu3",null,13485434]
[null,"Pantone 5185",3483719,null,null,null,null,null,null,null,null,null,null,null,null,null,null,null,null,null,null,null,null,null,null,null,null,null,null,null,null,null,null,null,null,null,null,null,null,null,"Quarter Tuna","B55-009-258",7367269,null,null,null,null,null,null,null,null,null,null,null,null,null,null,null,null,null,"Noir de jais",null,0,null,null,null,null,null,null,null,null,null,null,null,null,null,null,null,null,null,"CadetBleu4",null,9143891]
[null,"Pantone 195",3485047,null,null,null,null,null,null,null,null,null,null,null,null,null,null,null,null,null,null,null,null,null,null,null,null,null,null,null,null,null,null,null,null,null,null,null,null,null,"Sabbatical","B55-026-213",7828308,null,null,null,null,null,null,null,null,null,null,null,null,null,null,null,null,null,"Noir d'encre",null,0,null,null,null,null,null,null,null,null,null,null,null,null,null,null,null,null,null,"Café",null,77382]
[null,"Pantone 553",3490851,null,null,null,null,null,null,null,null,null,null,null,null,null,null,null,null,null,null,null,null,null,null,null,null,null,null,null,null,null,null,null,null,null,null,null,null,null,"San Marino","B55-064-262",10316878,null,null,null,null,null,null,null,null,null,null,null,null,null,null,null,null,null,"Noir d'ivoire",null,0,null,null,null,null,null,null,null,null,null,null,null,null,null,null,null,null,null,"Café au lait",null,3104376]
[null,"Pantone 362",3513907,null,null,null,null,null,null,null,null,null,null,null,null,null,null,null,null,null,null,null,null,null,null,null,null,null,null,null,null,null,null,null,null,null,null,null,null,null,"Seachange","B55-033-240",8482382,null,null,null,null,null,null,null,null,null,null,null,null,null,null,null,null,null,"Noiraud",null,925231,null,null,null,null,null,null,null,null,null,null,null,null,null,null,null,null,null,"Cannelle",null,3496062]
[null,"Pantone 394",3534314,null,null,null,null,null,null,null,null,null,null,null,null,null,null,null,null,null,null,null,null,null,null,null,null,null,null,null,null,null,null,null,null,null,null,null,null,null,"Jelly Bean","B56-051-225",9337156,null,null,null,null,null,null,null,null,null,null,null,null,null,null,null,null,null,"Noisette",null,2643605,null,null,null,null,null,null,null,null,null,null,null,null,null,null,null,null,null,"Caramel",null,13182]
[null,"Pantone 1935",3671489,null,null,null,null,null,null,null,null,null,null,null,null,null,null,null,null,null,null,null,null,null,null,null,null,null,null,null,null,null,null,null,null,null,null,null,null,null,"Waikawa Grey","B56-043-263",9530971,null,null,null,null,null,null,null,null,null,null,null,null,null,null,null,null,null,"Ocre jaune",null,2928607,null,null,null,null,null,null,null,null,null,null,null,null,null,null,null,null,null,"Carnation (héraldique)",null,11322366]
[null,"Pantone 1955",3675795,null,null,null,null,null,null,null,null,null,null,null,null,null,null,null,null,null,null,null,null,null,null,null,null,null,null,null,null,null,null,null,null,null,null,null,null,null,"Anchor","B57-073-272",11693394,null,null,null,null,null,null,null,null,null,null,null,null,null,null,null,null,null,"Ocre rouge",null,6068445,null,null,null,null,null,null,null,null,null,null,null,null,null,null,null,null,null,"Carotte",null,1795828]
[null,"Pantone 506",3679866,null,null,null,null,null,null,null,null,null,null,null,null,null,null,null,null,null,null,null,null,null,null,null,null,null,null,null,null,null,null,null,null,null,null,null,null,null,"Blue Bayoux","B57-021-225",8288098,null,null,null,null,null,null,null,null,null,null,null,null,null,null,null,null,null,"Or",null,55295,null,null,null,null,null,null,null,null,null,null,null,null,null,null,null,null,null,"Cassis",null,852538]
[null,"Pantone 201",3679907,null,null,null,null,null,null,null,null,null,null,null,null,null,null,null,null,null,null,null,null,null,null,null,null,null,null,null,null,null,null,null,null,null,null,null,null,null,"Lure","B57-069-246",11106095,null,null,null,null,null,null,null,null,null,null,null,null,null,null,null,null,null,"Orangé",null,107770,null,null,null,null,null,null,null,null,null,null,null,null,null,null,null,null,null,"Chamois",null,8044752]
[null,"Pantone 492",3683217,null,null,null,null,null,null,null,null,null,null,null,null,null,null,null,null,null,null,null,null,null,null,null,null,null,null,null,null,null,null,null,null,null,null,null,null,null,"Primetime","B57-094-245",11105081,null,null,null,null,null,null,null,null,null,null,null,null,null,null,null,null,null,"Orange brûlée",null,21964,null,null,null,null,null,null,null,null,null,null,null,null,null,null,null,null,null,"Champagne",null,12055291]
[null,"Black 7",3685700,null,null,null,null,null,null,null,null,null,null,null,null,null,null,null,null,null,null,null,null,null,null,null,null,null,null,null,null,null,null,null,null,null,null,null,null,null,"Waterfront","B57-051-232",10321726,null,null,null,null,null,null,null,null,null,null,null,null,null,null,null,null,null,"Orchidée",null,14053594,null,null,null,null,null,null,null,null,null,null,null,null,null,null,null,null,null,"Charbonneux",null,1048576]
[null,"Pantone 447",3686207,null,null,null,null,null,null,null,null,null,null,null,null,null,null,null,null,null,null,null,null,null,null,null,null,null,null,null,null,null,null,null,null,null,null,null,null,null,"Norwester","B58-044-223",9075016,null,null,null,null,null,null,null,null,null,null,null,null,null,null,null,null,null,"Orpiment",null,1889020,null,null,null,null,null,null,null,null,null,null,null,null,null,null,null,null,null,"chartreuse",null,65407]
[null,"Pantone 3308",3687424,null,null,null,null,null,null,null,null,null,null,null,null,null,null,null,null,null,null,null,null,null,null,null,null,null,null,null,null,null,null,null,null,null,null,null,null,null,"Panorama","B58-045-260",10056793,null,null,null,null,null,null,null,null,null,null,null,null,null,null,null,null,null,"Parme",null,15311055,null,null,null,null,null,null,null,null,null,null,null,null,null,null,null,null,null,"chartreuse2",null,61046]
[null,"Pantone 804",3707903,null,null,null,null,null,null,null,null,null,null,null,null,null,null,null,null,null,null,null,null,null,null,null,null,null,null,null,null,null,null,null,null,null,null,null,null,null,"Raven","B58-009-256",8090735,null,null,null,null,null,null,null,null,null,null,null,null,null,null,null,null,null,"Passe-velours",null,3877009,null,null,null,null,null,null,null,null,null,null,null,null,null,null,null,null,null,"chartreuse3",null,52582]
[null,"Pantone 803",3730943,null,null,null,null,null,null,null,null,null,null,null,null,null,null,null,null,null,null,null,null,null,null,null,null,null,null,null,null,null,null,null,null,null,null,null,null,null,"Waterloo ","B58-018-281",8548978,null,null,null,null,null,null,null,null,null,null,null,null,null,null,null,null,null,"Pastel",null,10122070,null,null,null,null,null,null,null,null,null,null,null,null,null,null,null,null,null,"chartreuse4",null,35653]
[null,"Pantone 192",3802597,null,null,null,null,null,null,null,null,null,null,null,null,null,null,null,null,null,null,null,null,null,null,null,null,null,null,null,null,null,null,null,null,null,null,null,null,null,"Weathered Blue","B58-020-246",8615271,null,null,null,null,null,null,null,null,null,null,null,null,null,null,null,null,null,"Pêche",null,12042237,null,null,null,null,null,null,null,null,null,null,null,null,null,null,null,null,null,"Châtaigne",null,5926272]
[null,"Pantone 200",3808964,null,null,null,null,null,null,null,null,null,null,null,null,null,null,null,null,null,null,null,null,null,null,null,null,null,null,null,null,null,null,null,null,null,null,null,null,null,"Bluff","B59-015-229",8880497,null,null,null,null,null,null,null,null,null,null,null,null,null,null,null,null,null,"Pervenche",null,16764108,null,null,null,null,null,null,null,null,null,null,null,null,null,null,null,null,null,"Châtain",null,4353163]
[null,"Pantone 5115",3809615,null,null,null,null,null,null,null,null,null,null,null,null,null,null,null,null,null,null,null,null,null,null,null,null,null,null,null,null,null,null,null,null,null,null,null,null,null,"Eastern Blue","B59-088-212",10454784,null,null,null,null,null,null,null,null,null,null,null,null,null,null,null,null,null,"Pinchard",null,13421772,null,null,null,null,null,null,null,null,null,null,null,null,null,null,null,null,null,"Chaudron",null,1004421]
[null,"Pantone 5395",3811330,null,null,null,null,null,null,null,null,null,null,null,null,null,null,null,null,null,null,null,null,null,null,null,null,null,null,null,null,null,null,null,null,null,null,null,null,null,"Hoki","B59-024-225",8813924,null,null,null,null,null,null,null,null,null,null,null,null,null,null,null,null,null,"Plomb",null,8487033,null,null,null,null,null,null,null,null,null,null,null,null,null,null,null,null,null,"Chocolat",null,2243162]
[null,"Pantone 5463",3814656,null,null,null,null,null,null,null,null,null,null,null,null,null,null,null,null,null,null,null,null,null,null,null,null,null,null,null,null,null,null,null,null,null,null,null,null,null,"Sea Crest","B59-063-206",9405984,null,null,null,null,null,null,null,null,null,null,null,null,null,null,null,null,null,"Poil de chameau",null,2324662,null,null,null,null,null,null,null,null,null,null,null,null,null,null,null,null,null,"chocolate",null,1993170]
[null,"Pantone 433",3815472,null,null,null,null,null,null,null,null,null,null,null,null,null,null,null,null,null,null,null,null,null,null,null,null,null,null,null,null,null,null,null,null,null,null,null,null,null,"Storm Grey","B59-011-262",8419444,null,null,null,null,null,null,null,null,null,null,null,null,null,null,null,null,null,"Pourpre",null,4198046,null,null,null,null,null,null,null,null,null,null,null,null,null,null,null,null,null,"chocolate1",null,2392063]
[null,"Pantone 697",3815551,null,null,null,null,null,null,null,null,null,null,null,null,null,null,null,null,null,null,null,null,null,null,null,null,null,null,null,null,null,null,null,null,null,null,null,null,null,"Chetwode Blue","B60-084-279",11824998,null,null,null,null,null,null,null,null,null,null,null,null,null,null,null,null,null,"Prune",null,5444737,null,null,null,null,null,null,null,null,null,null,null,null,null,null,null,null,null,"chocolate2",null,2193134]
[null,"Pantone 171",3825913,null,null,null,null,null,null,null,null,null,null,null,null,null,null,null,null,null,null,null,null,null,null,null,null,null,null,null,null,null,null,null,null,null,null,null,null,null,"Cruising","B60-045-261",10516831,null,null,null,null,null,null,null,null,null,null,null,null,null,null,null,null,null,"Puce",null,595534,null,null,null,null,null,null,null,null,null,null,null,null,null,null,null,null,null,"chocolate3",null,1926861]
[null,"Pantone 5763",3827294,null,null,null,null,null,null,null,null,null,null,null,null,null,null,null,null,null,null,null,null,null,null,null,null,null,null,null,null,null,null,null,null,null,null,null,null,null,"Lynch","B60-023-238",9010537,null,null,null,null,null,null,null,null,null,null,null,null,null,null,null,null,null,"Queue de vache",null,7386307,null,null,null,null,null,null,null,null,null,null,null,null,null,null,null,null,null,"ciel Bleu",null,15453831]
[null,"Pantone 577",3837536,null,null,null,null,null,null,null,null,null,null,null,null,null,null,null,null,null,null,null,null,null,null,null,null,null,null,null,null,null,null,null,null,null,null,null,null,null,"Seeker","B60-075-211",10850816,null,null,null,null,null,null,null,null,null,null,null,null,null,null,null,null,null,"Queue de vache",null,7641256,null,null,null,null,null,null,null,null,null,null,null,null,null,null,null,null,null,"ciel Bleu",null,13408562]
[null,"Pantone 361",3847454,null,null,null,null,null,null,null,null,null,null,null,null,null,null,null,null,null,null,null,null,null,null,null,null,null,null,null,null,null,null,null,null,null,null,null,null,null,"Skydiver","B60-085-267",13137734,null,null,null,null,null,null,null,null,null,null,null,null,null,null,null,null,null,"Réglisse",null,1975341,null,null,null,null,null,null,null,null,null,null,null,null,null,null,null,null,null,"ciel Bleu1",null,16764551]
[null,"Pantone 207",3997871,null,null,null,null,null,null,null,null,null,null,null,null,null,null,null,null,null,null,null,null,null,null,null,null,null,null,null,null,null,null,null,null,null,null,null,null,null,"Escapade","B61-029-247",9534566,null,null,null,null,null,null,null,null,null,null,null,null,null,null,null,null,null,"Rose balais",null,9398724,null,null,null,null,null,null,null,null,null,null,null,null,null,null,null,null,null,"ciel Bleu2",null,15646846]
[null,"Rubine Red 2X",3997894,null,null,null,null,null,null,null,null,null,null,null,null,null,null,null,null,null,null,null,null,null,null,null,null,null,null,null,null,null,null,null,null,null,null,null,null,null,"Curious Blue","B62-098-238",12092733,null,null,null,null,null,null,null,null,null,null,null,null,null,null,null,null,null,"Rose bonbon",null,10371833,null,null,null,null,null,null,null,null,null,null,null,null,null,null,null,null,null,"ciel Bleu3",null,13477484]
[null,"Pantone 222",4004208,null,null,null,null,null,null,null,null,null,null,null,null,null,null,null,null,null,null,null,null,null,null,null,null,null,null,null,null,null,null,null,null,null,null,null,null,null,"Eighth Tuna","B62-009-256",8748922,null,null,null,null,null,null,null,null,null,null,null,null,null,null,null,null,null,"Rose dragée",null,13811710,null,null,null,null,null,null,null,null,null,null,null,null,null,null,null,null,null,"ciel Bleu4",null,9138250]
[null,"Pantone 2767",4006164,null,null,null,null,null,null,null,null,null,null,null,null,null,null,null,null,null,null,null,null,null,null,null,null,null,null,null,null,null,null,null,null,null,null,null,null,null,"Float","B62-075-261",12812620,null,null,null,null,null,null,null,null,null,null,null,null,null,null,null,null,null,"Rose Mountbatten",null,9271961,null,null,null,null,null,null,null,null,null,null,null,null,null,null,null,null,null,"Citrouille",null,1338847]
[null,"Pantone 209",4007541,null,null,null,null,null,null,null,null,null,null,null,null,null,null,null,null,null,null,null,null,null,null,null,null,null,null,null,null,null,null,null,null,null,null,null,null,null,"Half Baked","B62-046-205",9670485,null,null,null,null,null,null,null,null,null,null,null,null,null,null,null,null,null,"Rose thé",null,6981375,null,null,null,null,null,null,null,null,null,null,null,null,null,null,null,null,null,"Clarissimo (cigare)",null,7779001]
[null,"Pantone 438",4013913,null,null,null,null,null,null,null,null,null,null,null,null,null,null,null,null,null,null,null,null,null,null,null,null,null,null,null,null,null,null,null,null,null,null,null,null,null,"Hippie Blue","B62-052-217",10127433,null,null,null,null,null,null,null,null,null,null,null,null,null,null,null,null,null,"Rose vif",null,8323327,null,null,null,null,null,null,null,null,null,null,null,null,null,null,null,null,null,"Claro (cigare)",null,3889796]
[null,"Pantone 4705",4018556,null,null,null,null,null,null,null,null,null,null,null,null,null,null,null,null,null,null,null,null,null,null,null,null,null,null,null,null,null,null,null,null,null,null,null,null,null,"Regent Grey","B62-011-233",8946809,null,null,null,null,null,null,null,null,null,null,null,null,null,null,null,null,null,"Rouge alizarine",null,1376729,null,null,null,null,null,null,null,null,null,null,null,null,null,null,null,null,null,"Claro claro (cigare)",null,6396858]
[null,"Pantone 356",4028928,null,null,null,null,null,null,null,null,null,null,null,null,null,null,null,null,null,null,null,null,null,null,null,null,null,null,null,null,null,null,null,null,null,null,null,null,null,"Rugged Lavender","B62-011-275",9142656,null,null,null,null,null,null,null,null,null,null,null,null,null,null,null,null,null,"Rouge anglais",null,795639,null,null,null,null,null,null,null,null,null,null,null,null,null,null,null,null,null,"Colombin (vieilli)",null,6112618]
[null,"Pantone 129",4051442,null,null,null,null,null,null,null,null,null,null,null,null,null,null,null,null,null,null,null,null,null,null,null,null,null,null,null,null,null,null,null,null,null,null,null,null,null,"Tsunami","B62-025-238",9667435,null,null,null,null,null,null,null,null,null,null,null,null,null,null,null,null,null,"Rouge bismarck",null,665253,null,null,null,null,null,null,null,null,null,null,null,null,null,null,null,null,null,"Colorado (cigare)",null,1455472]
[null,"Pantone 199",4136152,null,null,null,null,null,null,null,null,null,null,null,null,null,null,null,null,null,null,null,null,null,null,null,null,null,null,null,null,null,null,null,null,null,null,null,null,null,"Abacus","B63-019-235",9668982,null,null,null,null,null,null,null,null,null,null,null,null,null,null,null,null,null,"Rouge bourgogne",null,855403,null,null,null,null,null,null,null,null,null,null,null,null,null,null,null,null,null,"Colorado claro (cigare)",null,2181994]
[null,"Pantone 216",4136572,null,null,null,null,null,null,null,null,null,null,null,null,null,null,null,null,null,null,null,null,null,null,null,null,null,null,null,null,null,null,null,null,null,null,null,null,null,"Boston Blue","B63-072-224",11308611,null,null,null,null,null,null,null,null,null,null,null,null,null,null,null,null,null,"Rouge capucine",null,5070591,null,null,null,null,null,null,null,null,null,null,null,null,null,null,null,null,null,"cool copper",null,1673177]
[null,"Pantone 229",4137325,null,null,null,null,null,null,null,null,null,null,null,null,null,null,null,null,null,null,null,null,null,null,null,null,null,null,null,null,null,null,null,null,null,null,null,null,null,"Gothic","B63-029-222",9472105,null,null,null,null,null,null,null,null,null,null,null,null,null,null,null,null,null,"Rouge cardinal",null,1056952,null,null,null,null,null,null,null,null,null,null,null,null,null,null,null,null,null,"copper",null,3371960]
[null,"Pantone 3302",4147456,null,null,null,null,null,null,null,null,null,null,null,null,null,null,null,null,null,null,null,null,null,null,null,null,null,null,null,null,null,null,null,null,null,null,null,null,null,"Havelock Blue","B63-084-258",12682327,null,null,null,null,null,null,null,null,null,null,null,null,null,null,null,null,null,"Rouge carmin",null,1573014,null,null,null,null,null,null,null,null,null,null,null,null,null,null,null,null,null,"Coquille d'œuf",null,14739965]
[null,"Pantone 560",4148267,null,null,null,null,null,null,null,null,null,null,null,null,null,null,null,null,null,null,null,null,null,null,null,null,null,null,null,null,null,null,null,null,null,null,null,null,null,"Horizon","B63-034-224",9734244,null,null,null,null,null,null,null,null,null,null,null,null,null,null,null,null,null,"Rouge cinabre",null,2508541,null,null,null,null,null,null,null,null,null,null,null,null,null,null,null,null,null,"Corail",null,81639]
[null,"Pantone 626",4150305,null,null,null,null,null,null,null,null,null,null,null,null,null,null,null,null,null,null,null,null,null,null,null,null,null,null,null,null,null,null,null,null,null,null,null,null,null,"Kookaburra","B63-017-281",9601921,null,null,null,null,null,null,null,null,null,null,null,null,null,null,null,null,null,"Rouge cinabre",null,137179,null,null,null,null,null,null,null,null,null,null,null,null,null,null,null,null,null,"Corail ",null,5275647]
[null,"Pantone 343",4150784,null,null,null,null,null,null,null,null,null,null,null,null,null,null,null,null,null,null,null,null,null,null,null,null,null,null,null,null,null,null,null,null,null,null,null,null,null,"Masquerade","B63-056-274",12354930,null,null,null,null,null,null,null,null,null,null,null,null,null,null,null,null,null,"Rouge coquelicot",null,2246,null,null,null,null,null,null,null,null,null,null,null,null,null,null,null,null,null,"Corail ",null,32767]
[null,"Pantone 349",4156160,null,null,null,null,null,null,null,null,null,null,null,null,null,null,null,null,null,null,null,null,null,null,null,null,null,null,null,null,null,null,null,null,null,null,null,null,null,"Retreat","B63-057-208",10195001,null,null,null,null,null,null,null,null,null,null,null,null,null,null,null,null,null,"Rouge cramoisi",null,3937500,null,null,null,null,null,null,null,null,null,null,null,null,null,null,null,null,null,"Corail 1",null,5665535]
[null,"Pantone 730",4158890,null,null,null,null,null,null,null,null,null,null,null,null,null,null,null,null,null,null,null,null,null,null,null,null,null,null,null,null,null,null,null,null,null,null,null,null,null,"Revolution","B63-009-257",9143422,null,null,null,null,null,null,null,null,null,null,null,null,null,null,null,null,null,"Rouge cramoisi",null,1573014,null,null,null,null,null,null,null,null,null,null,null,null,null,null,null,null,null,"Corail 2",null,5270254]
[null,"Pantone 164",4161532,null,null,null,null,null,null,null,null,null,null,null,null,null,null,null,null,null,null,null,null,null,null,null,null,null,null,null,null,null,null,null,null,null,null,null,null,null,"Scooter","B63-071-211",10522160,null,null,null,null,null,null,null,null,null,null,null,null,null,null,null,null,null,"Rouge d'Andrinople",null,70057,null,null,null,null,null,null,null,null,null,null,null,null,null,null,null,null,null,"Corail 3",null,4545485]
[null,"Pantone 1495",4168191,null,null,null,null,null,null,null,null,null,null,null,null,null,null,null,null,null,null,null,null,null,null,null,null,null,null,null,null,null,null,null,null,null,null,null,null,null,"Bermuda Grey","B64-030-239",10456175,null,null,null,null,null,null,null,null,null,null,null,null,null,null,null,null,null,"Rouge d'aniline",null,235,null,null,null,null,null,null,null,null,null,null,null,null,null,null,null,null,null,"Corail 4",null,3096203]
[null,"Pantone 221",4325523,null,null,null,null,null,null,null,null,null,null,null,null,null,null,null,null,null,null,null,null,null,null,null,null,null,null,null,null,null,null,null,null,null,null,null,null,null,"Danube","B64-073-252",12618075,null,null,null,null,null,null,null,null,null,null,null,null,null,null,null,null,null,"Rouge de falun",null,1579136,null,null,null,null,null,null,null,null,null,null,null,null,null,null,null,null,null,"Corn Flower Bleu",null,7291458]
[null,"Pantone 690",4334448,null,null,null,null,null,null,null,null,null,null,null,null,null,null,null,null,null,null,null,null,null,null,null,null,null,null,null,null,null,null,null,null,null,null,null,null,null,"Hemisphere","B64-058-237",12227406,null,null,null,null,null,null,null,null,null,null,null,null,null,null,null,null,null,"Rouge de mars",null,795639,null,null,null,null,null,null,null,null,null,null,null,null,null,null,null,null,null,"CornflowerBleu",null,15570276]
[null,"Pantone 532",4339765,null,null,null,null,null,null,null,null,null,null,null,null,null,null,null,null,null,null,null,null,null,null,null,null,null,null,null,null,null,null,null,null,null,null,null,null,null,"Whirlwind","B64-026-214",9604203,null,null,null,null,null,null,null,null,null,null,null,null,null,null,null,null,null,"Rouge écrevisse",null,73916,null,null,null,null,null,null,null,null,null,null,null,null,null,null,null,null,null,"cornsilk",null,14481663]
[null,"Pantone 3305",4345600,null,null,null,null,null,null,null,null,null,null,null,null,null,null,null,null,null,null,null,null,null,null,null,null,null,null,null,null,null,null,null,null,null,null,null,null,null,"Wot Eva","B64-059-212",10786116,null,null,null,null,null,null,null,null,null,null,null,null,null,null,null,null,null,"Rouge feu",null,84479,null,null,null,null,null,null,null,null,null,null,null,null,null,null,null,null,null,"cornsilk2",null,13494510]
[null,"Pantone 1645",4354809,null,null,null,null,null,null,null,null,null,null,null,null,null,null,null,null,null,null,null,null,null,null,null,null,null,null,null,null,null,null,null,null,null,null,null,null,null,"Endorphin","B65-074-222",11374657,null,null,null,null,null,null,null,null,null,null,null,null,null,null,null,null,null,"Rouge feu",null,7166,null,null,null,null,null,null,null,null,null,null,null,null,null,null,null,null,null,"cornsilk3",null,11651277]
[null,"Pantone 380",4384214,null,null,null,null,null,null,null,null,null,null,null,null,null,null,null,null,null,null,null,null,null,null,null,null,null,null,null,null,null,null,null,null,null,null,null,null,null,"Freefall","B65-081-234",13210909,null,null,null,null,null,null,null,null,null,null,null,null,null,null,null,null,null,"Rouge garance",null,1052910,null,null,null,null,null,null,null,null,null,null,null,null,null,null,null,null,null,"cornsilk4",null,7899275]
[null,"Pantone 215",4457893,null,null,null,null,null,null,null,null,null,null,null,null,null,null,null,null,null,null,null,null,null,null,null,null,null,null,null,null,null,null,null,null,null,null,null,null,null,"Pelorous","B65-086-212",11704613,null,null,null,null,null,null,null,null,null,null,null,null,null,null,null,null,null,"Rouge groseille",null,1903311,null,null,null,null,null,null,null,null,null,null,null,null,null,null,null,null,null,"CSS Or",null,39372]
[null,"Pantone 511",4464992,null,null,null,null,null,null,null,null,null,null,null,null,null,null,null,null,null,null,null,null,null,null,null,null,null,null,null,null,null,null,null,null,null,null,null,null,null,"Wishlist","B65-031-208",9802341,null,null,null,null,null,null,null,null,null,null,null,null,null,null,null,null,null,"Rouge ponceau",null,2246,null,null,null,null,null,null,null,null,null,null,null,null,null,null,null,null,null,"Cuisse de nymphe",null,15788030]
[null,"Pantone 262",4465492,null,null,null,null,null,null,null,null,null,null,null,null,null,null,null,null,null,null,null,null,null,null,null,null,null,null,null,null,null,null,null,null,null,null,null,null,null,"Beyond","B66-035-274",11307648,null,null,null,null,null,null,null,null,null,null,null,null,null,null,null,null,null,"Rouge rubis",null,6230496,null,null,null,null,null,null,null,null,null,null,null,null,null,null,null,null,null,"Cuisse de nymphe émue",null,11823615]
[null,"Pantone 208",4465550,null,null,null,null,null,null,null,null,null,null,null,null,null,null,null,null,null,null,null,null,null,null,null,null,null,null,null,null,null,null,null,null,null,null,null,null,null,"Neutral Bay","B66-014-259",10063237,null,null,null,null,null,null,null,null,null,null,null,null,null,null,null,null,null,"Rouge sang",null,394885,null,null,null,null,null,null,null,null,null,null,null,null,null,null,null,null,null,"Cuivre",null,26547]
[null,"Pantone 518",4468049,null,null,null,null,null,null,null,null,null,null,null,null,null,null,null,null,null,null,null,null,null,null,null,null,null,null,null,null,null,null,null,null,null,null,null,null,null,"Ship Cove","B66-039-263",11241593,null,null,null,null,null,null,null,null,null,null,null,null,null,null,null,null,null,"Rouge tomate",null,1452510,null,null,null,null,null,null,null,null,null,null,null,null,null,null,null,null,null,"Cyan clair",null,16448043]
[null,"Pantone 5195",4469593,null,null,null,null,null,null,null,null,null,null,null,null,null,null,null,null,null,null,null,null,null,null,null,null,null,null,null,null,null,null,null,null,null,null,null,null,null,"Subzero","B66-066-246",12422491,null,null,null,null,null,null,null,null,null,null,null,null,null,null,null,null,null,"Rouge tomette",null,3426990,null,null,null,null,null,null,null,null,null,null,null,null,null,null,null,null,null,"Cyan secondaire",null,16776960]
[null,"Pantone 546",4470796,null,null,null,null,null,null,null,null,null,null,null,null,null,null,null,null,null,null,null,null,null,null,null,null,null,null,null,null,null,null,null,null,null,null,null,null,null,"Blue Moon","B67-032-238",11245170,null,null,null,null,null,null,null,null,null,null,null,null,null,null,null,null,null,"Rouge turc",null,70057,null,null,null,null,null,null,null,null,null,null,null,null,null,null,null,null,null,"cyan2",null,15658496]
[null,"Pantone 703",4470967,null,null,null,null,null,null,null,null,null,null,null,null,null,null,null,null,null,null,null,null,null,null,null,null,null,null,null,null,null,null,null,null,null,null,null,null,null,"Clouded Blue","B67-010-230",9867913,null,null,null,null,null,null,null,null,null,null,null,null,null,null,null,null,null,"Rouge vermillon",null,2508541,null,null,null,null,null,null,null,null,null,null,null,null,null,null,null,null,null,"cyan3",null,13487360]
[null,"Pantone 1575",4491260,null,null,null,null,null,null,null,null,null,null,null,null,null,null,null,null,null,null,null,null,null,null,null,null,null,null,null,null,null,null,null,null,null,null,null,null,null,"Shakespeare","B67-062-229",12098144,null,null,null,null,null,null,null,null,null,null,null,null,null,null,null,null,null,"Rouge vermillon",null,137179,null,null,null,null,null,null,null,null,null,null,null,null,null,null,null,null,null,"cyan4",null,9145088]
[null,"Pantone 354 2X",4495616,null,null,null,null,null,null,null,null,null,null,null,null,null,null,null,null,null,null,null,null,null,null,null,null,null,null,null,null,null,null,null,null,null,null,null,null,null,"Such Fun","B67-055-207",11050568,null,null,null,null,null,null,null,null,null,null,null,null,null,null,null,null,null,"Rouge-violet",null,8721863,null,null,null,null,null,null,null,null,null,null,null,null,null,null,null,null,null,"Denim",null,12410901]
[null,"Pantone 387",4517344,null,null,null,null,null,null,null,null,null,null,null,null,null,null,null,null,null,null,null,null,null,null,null,null,null,null,null,null,null,null,null,null,null,null,null,null,null,"Half Regent Grey","B68-010-237",10591635,null,null,null,null,null,null,null,null,null,null,null,null,null,null,null,null,null,"Rouille",null,1529752,null,null,null,null,null,null,null,null,null,null,null,null,null,null,null,null,null,"DodgerBleu",null,16748574]
[null,"Pantone 206",4654547,null,null,null,null,null,null,null,null,null,null,null,null,null,null,null,null,null,null,null,null,null,null,null,null,null,null,null,null,null,null,null,null,null,null,null,null,null,"Toto","B68-057-214",11509073,null,null,null,null,null,null,null,null,null,null,null,null,null,null,null,null,null,"Roux",null,610221,null,null,null,null,null,null,null,null,null,null,null,null,null,null,null,null,null,"DodgerBleu2",null,15631900]
[null,"Pantone 1925",4655072,null,null,null,null,null,null,null,null,null,null,null,null,null,null,null,null,null,null,null,null,null,null,null,null,null,null,null,null,null,null,null,null,null,null,null,null,null,"Zephyr","B68-045-263",13015680,null,null,null,null,null,null,null,null,null,null,null,null,null,null,null,null,null,"Sable",null,11128288,null,null,null,null,null,null,null,null,null,null,null,null,null,null,null,null,null,"DodgerBleu3",null,13464600]
[null,"Pantone 655",4660236,null,null,null,null,null,null,null,null,null,null,null,null,null,null,null,null,null,null,null,null,null,null,null,null,null,null,null,null,null,null,null,null,null,null,null,null,null,"Awash","B69-031-226",11115635,null,null,null,null,null,null,null,null,null,null,null,null,null,null,null,null,null,"Safran",null,3196148,null,null,null,null,null,null,null,null,null,null,null,null,null,null,null,null,null,"DodgerBleu4",null,9129488]
[null,"Pantone 276",4661547,null,null,null,null,null,null,null,null,null,null,null,null,null,null,null,null,null,null,null,null,null,null,null,null,null,null,null,null,null,null,null,null,null,null,null,null,null,"Birdcage","B69-025-283",12033181,null,null,null,null,null,null,null,null,null,null,null,null,null,null,null,null,null,"Safran",null,1562355,null,null,null,null,null,null,null,null,null,null,null,null,null,null,null,null,null,"Dorérod",null,2139610]
[null,"Pantone 296",4664576,null,null,null,null,null,null,null,null,null,null,null,null,null,null,null,null,null,null,null,null,null,null,null,null,null,null,null,null,null,null,null,null,null,null,null,null,null,"El Nino","B69-017-252",11313298,null,null,null,null,null,null,null,null,null,null,null,null,null,null,null,null,null,"Sang de boeuf",null,2163,null,null,null,null,null,null,null,null,null,null,null,null,null,null,null,null,null,"Dorérod",null,7396315]
[null,"Pantone 554",4677145,null,null,null,null,null,null,null,null,null,null,null,null,null,null,null,null,null,null,null,null,null,null,null,null,null,null,null,null,null,null,null,null,null,null,null,null,null,"Grey Suit","B69-016-281",10523027,null,null,null,null,null,null,null,null,null,null,null,null,null,null,null,null,null,"Saumon",null,5607160,null,null,null,null,null,null,null,null,null,null,null,null,null,null,null,null,null,"Dorérod1",null,2474495]
[null,"Pantone 3425",4679680,null,null,null,null,null,null,null,null,null,null,null,null,null,null,null,null,null,null,null,null,null,null,null,null,null,null,null,null,null,null,null,null,null,null,null,null,null,"Instinct","B69-011-236",10327948,null,null,null,null,null,null,null,null,null,null,null,null,null,null,null,null,null,"Senois",null,2375821,null,null,null,null,null,null,null,null,null,null,null,null,null,null,null,null,null,"Dorérod2",null,2274542]
[null,"Pantone 811",4682495,null,null,null,null,null,null,null,null,null,null,null,null,null,null,null,null,null,null,null,null,null,null,null,null,null,null,null,null,null,null,null,null,null,null,null,null,null,"Santas Grey","B69-015-278",10983577,null,null,null,null,null,null,null,null,null,null,null,null,null,null,null,null,null,"Sépia",null,6588846,null,null,null,null,null,null,null,null,null,null,null,null,null,null,null,null,null,"Dorérod3",null,1940429]
[null,"Pantone 101",4713972,null,null,null,null,null,null,null,null,null,null,null,null,null,null,null,null,null,null,null,null,null,null,null,null,null,null,null,null,null,null,null,null,null,null,null,null,null,"Submarine","B69-012-208",10263692,null,null,null,null,null,null,null,null,null,null,null,null,null,null,null,null,null,"Sépia",null,7900329,null,null,null,null,null,null,null,null,null,null,null,null,null,null,null,null,null,"Dorérod4",null,1337739]
[null,"Pantone 289",4793856,null,null,null,null,null,null,null,null,null,null,null,null,null,null,null,null,null,null,null,null,null,null,null,null,null,null,null,null,null,null,null,null,null,null,null,null,null,"Aquarius","B70-066-222",12953667,null,null,null,null,null,null,null,null,null,null,null,null,null,null,null,null,null,"Sinople",null,1348628,null,null,null,null,null,null,null,null,null,null,null,null,null,null,null,null,null,"Dorian (IPJ)",null,1447435]
[null,"Pantone 539",4796416,null,null,null,null,null,null,null,null,null,null,null,null,null,null,null,null,null,null,null,null,null,null,null,null,null,null,null,null,null,null,null,null,null,null,null,null,null,"Bali Hai","B70-024-230",11115652,null,null,null,null,null,null,null,null,null,null,null,null,null,null,null,null,null,"Soufre",null,7077887,null,null,null,null,null,null,null,null,null,null,null,null,null,null,null,null,null,"Dusty Rose",null,6513541]
[null,"Pantone 309",4800256,null,null,null,null,null,null,null,null,null,null,null,null,null,null,null,null,null,null,null,null,null,null,null,null,null,null,null,null,null,null,null,null,null,null,null,null,null,"Bounty","B70-011-212",10526609,null,null,null,null,null,null,null,null,null,null,null,null,null,null,null,null,null,"Tabac",null,1987999,null,null,null,null,null,null,null,null,null,null,null,null,null,null,null,null,null,"Écru",null,14745342]
[null,"Pantone 696",4802446,null,null,null,null,null,null,null,null,null,null,null,null,null,null,null,null,null,null,null,null,null,null,null,null,null,null,null,null,null,null,null,null,null,null,null,null,null,"Meltwater","B70-043-221",12627566,null,null,null,null,null,null,null,null,null,null,null,null,null,null,null,null,null,"Tangerine",null,32767,null,null,null,null,null,null,null,null,null,null,null,null,null,null,null,null,null,"Étain oxydé",null,12237498]
[null,"Pantone 4985",4802948,null,null,null,null,null,null,null,null,null,null,null,null,null,null,null,null,null,null,null,null,null,null,null,null,null,null,null,null,null,null,null,null,null,null,null,null,null,"Nauti","B70-044-235",12427884,null,null,null,null,null,null,null,null,null,null,null,null,null,null,null,null,null,"Tanné",null,152999,null,null,null,null,null,null,null,null,null,null,null,null,null,null,null,null,null,"Étain pur",null,15592941]
[null,"Pantone 446",4803657,null,null,null,null,null,null,null,null,null,null,null,null,null,null,null,null,null,null,null,null,null,null,null,null,null,null,null,null,null,null,null,null,null,null,null,null,null,"Picton Blue","B70-088-235",13672539,null,null,null,null,null,null,null,null,null,null,null,null,null,null,null,null,null,"Taupe",null,3292998,null,null,null,null,null,null,null,null,null,null,null,null,null,null,null,null,null,"Feldspath",null,7705297]
[null,"Pantone 355",4824576,null,null,null,null,null,null,null,null,null,null,null,null,null,null,null,null,null,null,null,null,null,null,null,null,null,null,null,null,null,null,null,null,null,null,null,null,null,"Tiebreaker","B70-022-264",11245454,null,null,null,null,null,null,null,null,null,null,null,null,null,null,null,null,null,"Terracotta",null,6049484,null,null,null,null,null,null,null,null,null,null,null,null,null,null,null,null,null,"Fer (héraldique)",null,8684676]
[null,"Pantone 715",4824828,null,null,null,null,null,null,null,null,null,null,null,null,null,null,null,null,null,null,null,null,null,null,null,null,null,null,null,null,null,null,null,null,null,null,null,null,null,"Delta Blue","B71-053-258",13474428,null,null,null,null,null,null,null,null,null,null,null,null,null,null,null,null,null,"Terre de Sienne",null,3429518,null,null,null,null,null,null,null,null,null,null,null,null,null,null,null,null,null,"Feu vif",null,84479]
[null,"Pantone 142",4833266,null,null,null,null,null,null,null,null,null,null,null,null,null,null,null,null,null,null,null,null,null,null,null,null,null,null,null,null,null,null,null,null,null,null,null,null,null,"Ziggurat","B71-029-207",11183745,null,null,null,null,null,null,null,null,null,null,null,null,null,null,null,null,null,"Terre d'ombre",null,2583954,null,null,null,null,null,null,null,null,null,null,null,null,null,null,null,null,null,"Feuille-morte",null,2838937]
[null,"Pantone 136",4833276,null,null,null,null,null,null,null,null,null,null,null,null,null,null,null,null,null,null,null,null,null,null,null,null,null,null,null,null,null,null,null,null,null,null,null,null,null,"Dusted Blue","B72-011-221",10657682,null,null,null,null,null,null,null,null,null,null,null,null,null,null,null,null,null,"Terre d'ombre",null,4741986,null,null,null,null,null,null,null,null,null,null,null,null,null,null,null,null,null,"Flave",null,9955046]
[null,"Pantone 1225",4836607,null,null,null,null,null,null,null,null,null,null,null,null,null,null,null,null,null,null,null,null,null,null,null,null,null,null,null,null,null,null,null,null,null,null,null,null,null,"Fountain Blue","B72-053-208",11709797,null,null,null,null,null,null,null,null,null,null,null,null,null,null,null,null,null,"Topaze",null,7596794,null,null,null,null,null,null,null,null,null,null,null,null,null,null,null,null,null,"FloralBlanc ",null,15792895]
[null,"Pantone 611",4837078,null,null,null,null,null,null,null,null,null,null,null,null,null,null,null,null,null,null,null,null,null,null,null,null,null,null,null,null,null,null,null,null,null,null,null,null,null,"Logan","B72-022-284",11836573,null,null,null,null,null,null,null,null,null,null,null,null,null,null,null,null,null,"Tourdille",null,11648961,null,null,null,null,null,null,null,null,null,null,null,null,null,null,null,null,null,"Forest vert, Khaki, Moyen Aquamarine",null,2330147]
[null,"Pantone 802",4840800,null,null,null,null,null,null,null,null,null,null,null,null,null,null,null,null,null,null,null,null,null,null,null,null,null,null,null,null,null,null,null,null,null,null,null,null,null,"Magic Carpet","B72-064-275",14194827,null,null,null,null,null,null,null,null,null,null,null,null,null,null,null,null,null,"Turquoise",null,15334693,null,null,null,null,null,null,null,null,null,null,null,null,null,null,null,null,null,"Forestvert",null,2263842]
[null,"Pantone 228",4980876,null,null,null,null,null,null,null,null,null,null,null,null,null,null,null,null,null,null,null,null,null,null,null,null,null,null,null,null,null,null,null,null,null,null,null,null,null,"Nepal","B72-023-237",12167827,null,null,null,null,null,null,null,null,null,null,null,null,null,null,null,null,null,"Vanille",null,10145505,null,null,null,null,null,null,null,null,null,null,null,null,null,null,null,null,null,"Fraise écrasée",null,2368676]
[null,"Pantone 2965",4993792,null,null,null,null,null,null,null,null,null,null,null,null,null,null,null,null,null,null,null,null,null,null,null,null,null,null,null,null,null,null,null,null,null,null,null,null,null,"Rock Blue","B72-025-255",12231315,null,null,null,null,null,null,null,null,null,null,null,null,null,null,null,null,null,"Vénitien",null,5548263,null,null,null,null,null,null,null,null,null,null,null,null,null,null,null,null,null,"Free Speech Aquamarine",null,7642370]
[null,"Pantone 411",5003622,null,null,null,null,null,null,null,null,null,null,null,null,null,null,null,null,null,null,null,null,null,null,null,null,null,null,null,null,null,null,null,null,null,null,null,null,null,"Smokescreen","B72-025-256",12034707,null,null,null,null,null,null,null,null,null,null,null,null,null,null,null,null,null,"Ventre de biche",null,11651561,null,null,null,null,null,null,null,null,null,null,null,null,null,null,null,null,null,"Free Speech Bleu",null,12932673]
[null,"Pantone 115",5038329,null,null,null,null,null,null,null,null,null,null,null,null,null,null,null,null,null,null,null,null,null,null,null,null,null,null,null,null,null,null,null,null,null,null,null,null,null,"Spun Pearl","B72-010-282",11313570,null,null,null,null,null,null,null,null,null,null,null,null,null,null,null,null,null,"Vermeil",null,2165247,null,null,null,null,null,null,null,null,null,null,null,null,null,null,null,null,null,"Free Speech gris ",null,8935011]
[null,"Pantone 114",5038841,null,null,null,null,null,null,null,null,null,null,null,null,null,null,null,null,null,null,null,null,null,null,null,null,null,null,null,null,null,null,null,null,null,null,null,null,null,"Stratosphere","B73-045-277",13541527,null,null,null,null,null,null,null,null,null,null,null,null,null,null,null,null,null,"Vert absinthe",null,5037439,null,null,null,null,null,null,null,null,null,null,null,null,null,null,null,null,null,"Free Speech Magenta",null,14179299]
[null,"Pantone 220",5177514,null,null,null,null,null,null,null,null,null,null,null,null,null,null,null,null,null,null,null,null,null,null,null,null,null,null,null,null,null,null,null,null,null,null,null,null,null,"Viking","B73-074-214",13152589,null,null,null,null,null,null,null,null,null,null,null,null,null,null,null,null,null,"Vert amande",null,7128194,null,null,null,null,null,null,null,null,null,null,null,null,null,null,null,null,null,"Free Speech Rouge ",null,192]
[null,"Pantone 812 2X",5179388,null,null,null,null,null,null,null,null,null,null,null,null,null,null,null,null,null,null,null,null,null,null,null,null,null,null,null,null,null,null,null,null,null,null,null,null,null,"Wistful","B73-042-284",13475490,null,null,null,null,null,null,null,null,null,null,null,null,null,null,null,null,null,"Vert anglais",null,1980696,null,null,null,null,null,null,null,null,null,null,null,null,null,null,null,null,null,"Free Speech vert",null,1177865]
[null,"Pantone 5255",5187125,null,null,null,null,null,null,null,null,null,null,null,null,null,null,null,null,null,null,null,null,null,null,null,null,null,null,null,null,null,null,null,null,null,null,null,null,null,"Blake","B74-041-252",13150088,null,null,null,null,null,null,null,null,null,null,null,null,null,null,null,null,null,"Vert anis",null,5630111,null,null,null,null,null,null,null,null,null,null,null,null,null,null,null,null,null,"Fumée blanche",null,16119285]
[null,"Pantone 683",5187711,null,null,null,null,null,null,null,null,null,null,null,null,null,null,null,null,null,null,null,null,null,null,null,null,null,null,null,null,null,null,null,null,null,null,null,null,null,"Botticelli","B74-022-222",11840658,null,null,null,null,null,null,null,null,null,null,null,null,null,null,null,null,null,"Vert avocat",null,229974,null,null,null,null,null,null,null,null,null,null,null,null,null,null,null,null,null,"gainsboro",null,14474460]
[null,"Pantone 1787",5193716,null,null,null,null,null,null,null,null,null,null,null,null,null,null,null,null,null,null,null,null,null,null,null,null,null,null,null,null,null,null,null,null,null,null,null,null,null,"Glacier","B74-043-216",12562808,null,null,null,null,null,null,null,null,null,null,null,null,null,null,null,null,null,"Vert bouteille",null,616969,null,null,null,null,null,null,null,null,null,null,null,null,null,null,null,null,null,"Garance",null,1052910]
[null,"Pantone 316",5196032,null,null,null,null,null,null,null,null,null,null,null,null,null,null,null,null,null,null,null,null,null,null,null,null,null,null,null,null,null,null,null,null,null,null,null,null,null,"Polo Blue","B74-042-254",13412234,null,null,null,null,null,null,null,null,null,null,null,null,null,null,null,null,null,"Vert chartreuse",null,3340226,null,null,null,null,null,null,null,null,null,null,null,null,null,null,null,null,null,"GhostBlanc ",null,16775416]
[null,"Pantone 5477",5199418,null,null,null,null,null,null,null,null,null,null,null,null,null,null,null,null,null,null,null,null,null,null,null,null,null,null,null,null,null,null,null,null,null,null,null,null,null,"Freestyling","B75-010-257",11577508,null,null,null,null,null,null,null,null,null,null,null,null,null,null,null,null,null,"Vert citron",null,65280,null,null,null,null,null,null,null,null,null,null,null,null,null,null,null,null,null,"Glauque",null,8952676]
[null,"Pantone 418",5201504,null,null,null,null,null,null,null,null,null,null,null,null,null,null,null,null,null,null,null,null,null,null,null,null,null,null,null,null,null,null,null,null,null,null,null,null,null,"Jordy Blue","B75-064-251",14723706,null,null,null,null,null,null,null,null,null,null,null,null,null,null,null,null,null,"Vert de chrome",null,1980696,null,null,null,null,null,null,null,null,null,null,null,null,null,null,null,null,null,"Glycine",null,14459081]
[null,"Pantone 405",5201515,null,null,null,null,null,null,null,null,null,null,null,null,null,null,null,null,null,null,null,null,null,null,null,null,null,null,null,null,null,null,null,null,null,null,null,null,null,"Moby","B75-030-221",12497550,null,null,null,null,null,null,null,null,null,null,null,null,null,null,null,null,null,"Vert de gris",null,9807253,null,null,null,null,null,null,null,null,null,null,null,null,null,null,null,null,null,"Grège",null,10006203]
[null,"Pantone 5773",5209207,null,null,null,null,null,null,null,null,null,null,null,null,null,null,null,null,null,null,null,null,null,null,null,null,null,null,null,null,null,null,null,null,null,null,null,null,null,"Forecast","B76-010-243",11643554,null,null,null,null,null,null,null,null,null,null,null,null,null,null,null,null,null,"Vert de vessie",null,1013794,null,null,null,null,null,null,null,null,null,null,null,null,null,null,null,null,null,"Grenat",null,1313646]
[null,"Pantone 5777",5214604,null,null,null,null,null,null,null,null,null,null,null,null,null,null,null,null,null,null,null,null,null,null,null,null,null,null,null,null,null,null,null,null,null,null,null,null,null,"Malibu","B76-074-233",14792550,null,null,null,null,null,null,null,null,null,null,null,null,null,null,null,null,null,"Vert d'eau",null,11989680,null,null,null,null,null,null,null,null,null,null,null,null,null,null,null,null,null,"Gris",null,6316128]
[null,"Pantone 157",5218541,null,null,null,null,null,null,null,null,null,null,null,null,null,null,null,null,null,null,null,null,null,null,null,null,null,null,null,null,null,null,null,null,null,null,null,null,null,"Mischka","B76-009-261",11708837,null,null,null,null,null,null,null,null,null,null,null,null,null,null,null,null,null,"Vert émeraude",null,5822209,null,null,null,null,null,null,null,null,null,null,null,null,null,null,null,null,null,"gris ",null,12500670]
[null,"Pantone 242",5315708,null,null,null,null,null,null,null,null,null,null,null,null,null,null,null,null,null,null,null,null,null,null,null,null,null,null,null,null,null,null,null,null,null,null,null,null,null,"Morepork","B76-012-284",12760504,null,null,null,null,null,null,null,null,null,null,null,null,null,null,null,null,null,"Vert empire",null,1791488,null,null,null,null,null,null,null,null,null,null,null,null,null,null,null,null,null,"gris , Silver",null,12632256]
[null,"Pantone 2768",5316881,null,null,null,null,null,null,null,null,null,null,null,null,null,null,null,null,null,null,null,null,null,null,null,null,null,null,null,null,null,null,null,null,null,null,null,null,null,"Parachute","B76-064-218",13744229,null,null,null,null,null,null,null,null,null,null,null,null,null,null,null,null,null,"Vert épinard",null,3299095,null,null,null,null,null,null,null,null,null,null,null,null,null,null,null,null,null,"gris 1",null,197379]
[null,"Pantone 710",5325536,null,null,null,null,null,null,null,null,null,null,null,null,null,null,null,null,null,null,null,null,null,null,null,null,null,null,null,null,null,null,null,null,null,null,null,null,null,"Seagull","B76-052-227",13678455,null,null,null,null,null,null,null,null,null,null,null,null,null,null,null,null,null,"Vert gazon",null,2334010,null,null,null,null,null,null,null,null,null,null,null,null,null,null,null,null,null,"gris 10",null,1710618]
[null,"Pantone 432",5328708,null,null,null,null,null,null,null,null,null,null,null,null,null,null,null,null,null,null,null,null,null,null,null,null,null,null,null,null,null,null,null,null,null,null,null,null,null,"Casper","B77-010-230",12105130,null,null,null,null,null,null,null,null,null,null,null,null,null,null,null,null,null,"Vert impérial",null,1791488,null,null,null,null,null,null,null,null,null,null,null,null,null,null,null,null,null,"gris 11",null,1842204]
[null,"Pantone 330",5331200,null,null,null,null,null,null,null,null,null,null,null,null,null,null,null,null,null,null,null,null,null,null,null,null,null,null,null,null,null,null,null,null,null,null,null,null,null,"Echo Blue","B77-030-264",13479844,null,null,null,null,null,null,null,null,null,null,null,null,null,null,null,null,null,"Vert kaki",null,3377529,null,null,null,null,null,null,null,null,null,null,null,null,null,null,null,null,null,"gris 12",null,2039583]
[null,"Pantone 805",5331449,null,null,null,null,null,null,null,null,null,null,null,null,null,null,null,null,null,null,null,null,null,null,null,null,null,null,null,null,null,null,null,null,null,null,null,null,null,"Eskimo","B77-018-230",12235938,null,null,null,null,null,null,null,null,null,null,null,null,null,null,null,null,null,"Vert lichen",null,8307077,null,null,null,null,null,null,null,null,null,null,null,null,null,null,null,null,null,"gris 13",null,2171169]
[null,"Warm Gray 11",5332589,null,null,null,null,null,null,null,null,null,null,null,null,null,null,null,null,null,null,null,null,null,null,null,null,null,null,null,null,null,null,null,null,null,null,null,null,null,"Half Dusted Blue","B77-009-229",12039851,null,null,null,null,null,null,null,null,null,null,null,null,null,null,null,null,null,"Vert lime",null,3734942,null,null,null,null,null,null,null,null,null,null,null,null,null,null,null,null,null,"gris 14",null,2368548]
[null,"Pantone 348",5342976,null,null,null,null,null,null,null,null,null,null,null,null,null,null,null,null,null,null,null,null,null,null,null,null,null,null,null,null,null,null,null,null,null,null,null,null,null,"Longitude","B77-012-244",12629934,null,null,null,null,null,null,null,null,null,null,null,null,null,null,null,null,null,"Vert malachite",null,5611551,null,null,null,null,null,null,null,null,null,null,null,null,null,null,null,null,null,"gris 15",null,2500134]
[null,"Pantone 4505",5345696,null,null,null,null,null,null,null,null,null,null,null,null,null,null,null,null,null,null,null,null,null,null,null,null,null,null,null,null,null,null,null,null,null,null,null,null,null,"Reflection","B77-041-230",13678467,null,null,null,null,null,null,null,null,null,null,null,null,null,null,null,null,null,"Vert mélèse",null,4747064,null,null,null,null,null,null,null,null,null,null,null,null,null,null,null,null,null,"gris 16",null,2697513]
[null,"Pantone 676",5505184,null,null,null,null,null,null,null,null,null,null,null,null,null,null,null,null,null,null,null,null,null,null,null,null,null,null,null,null,null,null,null,null,null,null,null,null,null,"Refresh","B77-049-218",13285489,null,null,null,null,null,null,null,null,null,null,null,null,null,null,null,null,null,"Vert militaire",null,4417113,null,null,null,null,null,null,null,null,null,null,null,null,null,null,null,null,null,"gris 17",null,2829099]
[null,"Pantone 235",5506446,null,null,null,null,null,null,null,null,null,null,null,null,null,null,null,null,null,null,null,null,null,null,null,null,null,null,null,null,null,null,null,null,null,null,null,null,null,"Relax","B77-035-261",13676185,null,null,null,null,null,null,null,null,null,null,null,null,null,null,null,null,null,"Vert mousse",null,5939047,null,null,null,null,null,null,null,null,null,null,null,null,null,null,null,null,null,"gris 18",null,3026478]
[null,"Pantone 275",5508902,null,null,null,null,null,null,null,null,null,null,null,null,null,null,null,null,null,null,null,null,null,null,null,null,null,null,null,null,null,null,null,null,null,null,null,null,null,"Bauhaus","B78-035-274",14003881,null,null,null,null,null,null,null,null,null,null,null,null,null,null,null,null,null,"Vert olive",null,2329968,null,null,null,null,null,null,null,null,null,null,null,null,null,null,null,null,null,"gris 2",null,328965]
[null,"Pantone 2757",5510676,null,null,null,null,null,null,null,null,null,null,null,null,null,null,null,null,null,null,null,null,null,null,null,null,null,null,null,null,null,null,null,null,null,null,null,null,null,"Frozen","B78-023-236",13022877,null,null,null,null,null,null,null,null,null,null,null,null,null,null,null,null,null,"Vert opaline",null,13033367,null,null,null,null,null,null,null,null,null,null,null,null,null,null,null,null,null,"gris 20",null,3355443]
[null,"Pantone 261",5513566,null,null,null,null,null,null,null,null,null,null,null,null,null,null,null,null,null,null,null,null,null,null,null,null,null,null,null,null,null,null,null,null,null,null,null,null,null,"Coastal Blue","B79-010-220",12302250,null,null,null,null,null,null,null,null,null,null,null,null,null,null,null,null,null,"Vert perroquet",null,4977210,null,null,null,null,null,null,null,null,null,null,null,null,null,null,null,null,null,"gris 21",null,3552822]
[null,"Pantone 282",5514752,null,null,null,null,null,null,null,null,null,null,null,null,null,null,null,null,null,null,null,null,null,null,null,null,null,null,null,null,null,null,null,null,null,null,null,null,null,"Heather","B79-012-235",12696494,null,null,null,null,null,null,null,null,null,null,null,null,null,null,null,null,null,"Vert pin",null,7305473,null,null,null,null,null,null,null,null,null,null,null,null,null,null,null,null,null,"gris 22",null,3684408]
[null,"Pantone 525",5514833,null,null,null,null,null,null,null,null,null,null,null,null,null,null,null,null,null,null,null,null,null,null,null,null,null,null,null,null,null,null,null,null,null,null,null,null,null,"Icebreaker","B79-023-257",13219753,null,null,null,null,null,null,null,null,null,null,null,null,null,null,null,null,null,"Vert pistache",null,7665086,null,null,null,null,null,null,null,null,null,null,null,null,null,null,null,null,null,"gris 23",null,3881787]
[null,"Pantone 303",5521152,null,null,null,null,null,null,null,null,null,null,null,null,null,null,null,null,null,null,null,null,null,null,null,null,null,null,null,null,null,null,null,null,null,null,null,null,null,"Shinto","B79-020-250",13022630,null,null,null,null,null,null,null,null,null,null,null,null,null,null,null,null,null,"Vert poireau",null,7054924,null,null,null,null,null,null,null,null,null,null,null,null,null,null,null,null,null,"gris 24",null,4013373]
[null,"Pantone 547",5521152,null,null,null,null,null,null,null,null,null,null,null,null,null,null,null,null,null,null,null,null,null,null,null,null,null,null,null,null,null,null,null,null,null,null,null,null,null,"Chi","B80-024-211",12763039,null,null,null,null,null,null,null,null,null,null,null,null,null,null,null,null,null,"Vert pomme",null,2410804,null,null,null,null,null,null,null,null,null,null,null,null,null,null,null,null,null,"gris 25",null,4210752]
[null,"Pantone 336",5531648,null,null,null,null,null,null,null,null,null,null,null,null,null,null,null,null,null,null,null,null,null,null,null,null,null,null,null,null,null,null,null,null,null,null,null,null,null,"Comfort Zone","B80-030-248",13810082,null,null,null,null,null,null,null,null,null,null,null,null,null,null,null,null,null,"Vert prairie",null,3921239,null,null,null,null,null,null,null,null,null,null,null,null,null,null,null,null,null,"gris 26",null,4342338]
[null,"Pantone 342",5532416,null,null,null,null,null,null,null,null,null,null,null,null,null,null,null,null,null,null,null,null,null,null,null,null,null,null,null,null,null,null,null,null,null,null,null,null,null,"Half Kumutoto","B80-028-205",13289628,null,null,null,null,null,null,null,null,null,null,null,null,null,null,null,null,null,"Vert prasin",null,7054924,null,null,null,null,null,null,null,null,null,null,null,null,null,null,null,null,null,"gris 27",null,4539717]
[null,"Pantone 555",5532935,null,null,null,null,null,null,null,null,null,null,null,null,null,null,null,null,null,null,null,null,null,null,null,null,null,null,null,null,null,null,null,null,null,null,null,null,null,"Nemo","B80-026-266",13875633,null,null,null,null,null,null,null,null,null,null,null,null,null,null,null,null,null,"Vert printemps",null,8322560,null,null,null,null,null,null,null,null,null,null,null,null,null,null,null,null,null,"gris 28",null,4671303]
[null,"Pantone 722",5541585,null,null,null,null,null,null,null,null,null,null,null,null,null,null,null,null,null,null,null,null,null,null,null,null,null,null,null,null,null,null,null,null,null,null,null,null,null,"PeekABlue","B80-045-270",15251884,null,null,null,null,null,null,null,null,null,null,null,null,null,null,null,null,null,"Vert sapin",null,2642441,null,null,null,null,null,null,null,null,null,null,null,null,null,null,null,null,null,"gris 29",null,4868682]
[null,"Rubine Red",5636305,null,null,null,null,null,null,null,null,null,null,null,null,null,null,null,null,null,null,null,null,null,null,null,null,null,null,null,null,null,null,null,null,null,null,null,null,null,"Alaska","B81-021-266",13482418,null,null,null,null,null,null,null,null,null,null,null,null,null,null,null,null,null,"Vert sauge",null,7445864,null,null,null,null,null,null,null,null,null,null,null,null,null,null,null,null,null,"gris 3",null,526344]
[null,"Pantone 214",5636812,null,null,null,null,null,null,null,null,null,null,null,null,null,null,null,null,null,null,null,null,null,null,null,null,null,null,null,null,null,null,null,null,null,null,null,null,null,"Escape","B81-028-221",13287582,null,null,null,null,null,null,null,null,null,null,null,null,null,null,null,null,null,"Vert smaragdin",null,5822209,null,null,null,null,null,null,null,null,null,null,null,null,null,null,null,null,null,"gris 30",null,5066061]
[null,"Pantone 2765",5639211,null,null,null,null,null,null,null,null,null,null,null,null,null,null,null,null,null,null,null,null,null,null,null,null,null,null,null,null,null,null,null,null,null,null,null,null,null,"Oxymoron","B81-044-248",14925724,null,null,null,null,null,null,null,null,null,null,null,null,null,null,null,null,null,"Vert tilleul",null,5427621,null,null,null,null,null,null,null,null,null,null,null,null,null,null,null,null,null,"gris 31",null,5197647]
[null,"Pantone 3292",5660672,null,null,null,null,null,null,null,null,null,null,null,null,null,null,null,null,null,null,null,null,null,null,null,null,null,null,null,null,null,null,null,null,null,null,null,null,null,"Ghost","B82-009-280",13090752,null,null,null,null,null,null,null,null,null,null,null,null,null,null,null,null,null,"Vert véronèse",null,2977624,null,null,null,null,null,null,null,null,null,null,null,null,null,null,null,null,null,"gris 32",null,5395026]
[null,"Pantone 5615",5662804,null,null,null,null,null,null,null,null,null,null,null,null,null,null,null,null,null,null,null,null,null,null,null,null,null,null,null,null,null,null,null,null,null,null,null,null,null,"Half Eskimo","B82-014-227",13551797,null,null,null,null,null,null,null,null,null,null,null,null,null,null,null,null,null,"Vert viride",null,7176768,null,null,null,null,null,null,null,null,null,null,null,null,null,null,null,null,null,"gris 34",null,5723991]
[null,"Pantone 150",5680636,null,null,null,null,null,null,null,null,null,null,null,null,null,null,null,null,null,null,null,null,null,null,null,null,null,null,null,null,null,null,null,null,null,null,null,null,null,"Heartbreaker","B82-022-275",14336705,null,null,null,null,null,null,null,null,null,null,null,null,null,null,null,null,null,"Violet d'évêque",null,6569586,null,null,null,null,null,null,null,null,null,null,null,null,null,null,null,null,null,"gris 35",null,5855577]
[null,"Pantone 122",5691644,null,null,null,null,null,null,null,null,null,null,null,null,null,null,null,null,null,null,null,null,null,null,null,null,null,null,null,null,null,null,null,null,null,null,null,null,null,"Spindle","B82-022-246",14206131,null,null,null,null,null,null,null,null,null,null,null,null,null,null,null,null,null,"Violine",null,8652449,null,null,null,null,null,null,null,null,null,null,null,null,null,null,null,null,null,"gris 36",null,6052956]
[null,"Pantone 269",5841732,null,null,null,null,null,null,null,null,null,null,null,null,null,null,null,null,null,null,null,null,null,null,null,null,null,null,null,null,null,null,null,null,null,null,null,null,null,"Spray","B82-056-214",14536062,null,null,null,null,null,null,null,null,null,null,null,null,null,null,null,null,null,"Zizolin",null,7799404,null,null,null,null,null,null,null,null,null,null,null,null,null,null,null,null,null,"gris 37",null,6184542]
[null,"Pantone 669",5843783,null,null,null,null,null,null,null,null,null,null,null,null,null,null,null,null,null,null,null,null,null,null,null,null,null,null,null,null,null,null,null,null,null,null,null,null,null,"Time Out","B82-036-253",14926506,null,null,null,null,null,null,null,null,null,null,null,null,null,null,null,null,null,"Blanc",null,16777215,null,null,null,null,null,null,null,null,null,null,null,null,null,null,null,null,null,"gris 38",null,6381921]
[null,"Pantone 2622",5844320,null,null,null,null,null,null,null,null,null,null,null,null,null,null,null,null,null,null,null,null,null,null,null,null,null,null,null,null,null,null,null,null,null,null,null,null,null,"Anakiwa","B83-054-228",15388300,null,null,null,null,null,null,null,null,null,null,null,null,null,null,null,null,null,"Bleu",null,16711680,null,null,null,null,null,null,null,null,null,null,null,null,null,null,null,null,null,"gris 39",null,6513507]
[null,"Pantone 548",5850112,null,null,null,null,null,null,null,null,null,null,null,null,null,null,null,null,null,null,null,null,null,null,null,null,null,null,null,null,null,null,null,null,null,null,null,null,null,"Oxygen","B83-017-252",14010043,null,null,null,null,null,null,null,null,null,null,null,null,null,null,null,null,null,"Brun",null,1129563,null,null,null,null,null,null,null,null,null,null,null,null,null,null,null,null,null,"gris 4",null,657930]
[null,"Pantone 1785",5853180,null,null,null,null,null,null,null,null,null,null,null,null,null,null,null,null,null,null,null,null,null,null,null,null,null,null,null,null,null,null,null,null,null,null,null,null,null,"Regent St Blue","B83-034-213",14273952,null,null,null,null,null,null,null,null,null,null,null,null,null,null,null,null,null,"Gris",null,6316128,null,null,null,null,null,null,null,null,null,null,null,null,null,null,null,null,null,"gris 40",null,6710886]
[null,"Pantone 445",5855574,null,null,null,null,null,null,null,null,null,null,null,null,null,null,null,null,null,null,null,null,null,null,null,null,null,null,null,null,null,null,null,null,null,null,null,null,null,"Breathless","B84-011-257",13813953,null,null,null,null,null,null,null,null,null,null,null,null,null,null,null,null,null,"Jaune",null,65535,null,null,null,null,null,null,null,null,null,null,null,null,null,null,null,null,null,"gris 41, Dimgris ",null,6908265]
[null,"Pantone 178",5857017,null,null,null,null,null,null,null,null,null,null,null,null,null,null,null,null,null,null,null,null,null,null,null,null,null,null,null,null,null,null,null,null,null,null,null,null,null,"Morning Glory","B84-035-208",13881758,null,null,null,null,null,null,null,null,null,null,null,null,null,null,null,null,null,"Noir",null,0,null,null,null,null,null,null,null,null,null,null,null,null,null,null,null,null,null,"gris 42",null,7039851]
[null,"Pantone 561",5858854,null,null,null,null,null,null,null,null,null,null,null,null,null,null,null,null,null,null,null,null,null,null,null,null,null,null,null,null,null,null,null,null,null,null,null,null,null,"Sail","B84-042-243",15519397,null,null,null,null,null,null,null,null,null,null,null,null,null,null,null,null,null,"Orange",null,1081325,null,null,null,null,null,null,null,null,null,null,null,null,null,null,null,null,null,"gris 43",null,7237230]
[null,"Pantone 3415",5864448,null,null,null,null,null,null,null,null,null,null,null,null,null,null,null,null,null,null,null,null,null,null,null,null,null,null,null,null,null,null,null,null,null,null,null,null,null,"Tropical Blue","B84-037-250",15452590,null,null,null,null,null,null,null,null,null,null,null,null,null,null,null,null,null,"Rose",null,10382589,null,null,null,null,null,null,null,null,null,null,null,null,null,null,null,null,null,"gris 44",null,7368816]
[null,"Pantone 5835",5872030,null,null,null,null,null,null,null,null,null,null,null,null,null,null,null,null,null,null,null,null,null,null,null,null,null,null,null,null,null,null,null,null,null,null,null,null,null,"Cut Glass","B85-012-208",14474185,null,null,null,null,null,null,null,null,null,null,null,null,null,null,null,null,null,"Rouge",null,255,null,null,null,null,null,null,null,null,null,null,null,null,null,null,null,null,null,"gris 45",null,7566195]
[null,"Pantone 618",5876405,null,null,null,null,null,null,null,null,null,null,null,null,null,null,null,null,null,null,null,null,null,null,null,null,null,null,null,null,null,null,null,null,null,null,null,null,null,"French Pass","B85-035-223",14733988,null,null,null,null,null,null,null,null,null,null,null,null,null,null,null,null,null,"Vert",null,65280,null,null,null,null,null,null,null,null,null,null,null,null,null,null,null,null,null,"gris 46",null,7697781]
[null,"Pantone 360",5883488,null,null,null,null,null,null,null,null,null,null,null,null,null,null,null,null,null,null,null,null,null,null,null,null,null,null,null,null,null,null,null,null,null,null,null,null,null,"Half Escape","B85-023-223",15063738,null,null,null,null,null,null,null,null,null,null,null,null,null,null,null,null,null,"Violet",null,10027110,null,null,null,null,null,null,null,null,null,null,null,null,null,null,null,null,null,"gris 47",null,7895160]
[null,"Pantone 106",5892343,null,null,null,null,null,null,null,null,null,null,null,null,null,null,null,null,null,null,null,null,null,null,null,null,null,null,null,null,null,null,null,null,null,null,null,null,null,"Fairytale","B86-020-276",14402758,null,null,null,null,null,null,null,null,null,null,null,null,null,null,null,null,null,null,null,null,null,null,null,null,null,null,null,null,null,null,null,null,null,null,null,null,null,"gris 48",null,8026746]
[null,"Pantone 2425",5963911,null,null,null,null,null,null,null,null,null,null,null,null,null,null,null,null,null,null,null,null,null,null,null,null,null,null,null,null,null,null,null,null,null,null,null,null,null,"Half Spindle","B86-017-245",14800066,null,null,null,null,null,null,null,null,null,null,null,null,null,null,null,null,null,null,null,null,null,null,null,null,null,null,null,null,null,null,null,null,null,null,null,null,null,"gris 49",null,8224125]
[null,"Pantone 227",5963949,null,null,null,null,null,null,null,null,null,null,null,null,null,null,null,null,null,null,null,null,null,null,null,null,null,null,null,null,null,null,null,null,null,null,null,null,null,"Sweetwaters","B86-020-249",14668227,null,null,null,null,null,null,null,null,null,null,null,null,null,null,null,null,null,null,null,null,null,null,null,null,null,null,null,null,null,null,null,null,null,null,null,null,null,"gris 5",null,855309]
[null,"Pantone 260",5971560,null,null,null,null,null,null,null,null,null,null,null,null,null,null,null,null,null,null,null,null,null,null,null,null,null,null,null,null,null,null,null,null,null,null,null,null,null,"Altitude","B87-022-233",14865596,null,null,null,null,null,null,null,null,null,null,null,null,null,null,null,null,null,null,null,null,null,null,null,null,null,null,null,null,null,null,null,null,null,null,null,null,null,"gris 51",null,8553090]
[null,"Pantone 2766",5973547,null,null,null,null,null,null,null,null,null,null,null,null,null,null,null,null,null,null,null,null,null,null,null,null,null,null,null,null,null,null,null,null,null,null,null,null,null,"Charlotte","B87-041-214",15129764,null,null,null,null,null,null,null,null,null,null,null,null,null,null,null,null,null,null,null,null,null,null,null,null,null,null,null,null,null,null,null,null,null,null,null,null,null,"gris 52",null,8750469]
[null,"Pantone 654",5974799,null,null,null,null,null,null,null,null,null,null,null,null,null,null,null,null,null,null,null,null,null,null,null,null,null,null,null,null,null,null,null,null,null,null,null,null,null,"Confederate Grey","B87-017-279",14601163,null,null,null,null,null,null,null,null,null,null,null,null,null,null,null,null,null,null,null,null,null,null,null,null,null,null,null,null,null,null,null,null,null,null,null,null,null,"gris 53",null,8882055]
[null,"Pantone 540",5976832,null,null,null,null,null,null,null,null,null,null,null,null,null,null,null,null,null,null,null,null,null,null,null,null,null,null,null,null,null,null,null,null,null,null,null,null,null,"Half Sail","B87-033-241",15786431,null,null,null,null,null,null,null,null,null,null,null,null,null,null,null,null,null,null,null,null,null,null,null,null,null,null,null,null,null,null,null,null,null,null,null,null,null,"gris 54",null,9079434]
[null,"Pantone 533",5979957,null,null,null,null,null,null,null,null,null,null,null,null,null,null,null,null,null,null,null,null,null,null,null,null,null,null,null,null,null,null,null,null,null,null,null,null,null,"Link Water","B87-014-263",14208455,null,null,null,null,null,null,null,null,null,null,null,null,null,null,null,null,null,null,null,null,null,null,null,null,null,null,null,null,null,null,null,null,null,null,null,null,null,"gris 55",null,9211020]
[null,"Pantone 3165",5985792,null,null,null,null,null,null,null,null,null,null,null,null,null,null,null,null,null,null,null,null,null,null,null,null,null,null,null,null,null,null,null,null,null,null,null,null,null,"Quarter Frozen","B87-015-234",14800582,null,null,null,null,null,null,null,null,null,null,null,null,null,null,null,null,null,null,null,null,null,null,null,null,null,null,null,null,null,null,null,null,null,null,null,null,null,"gris 56",null,9408399]
[null,"Pantone 425",5988448,null,null,null,null,null,null,null,null,null,null,null,null,null,null,null,null,null,null,null,null,null,null,null,null,null,null,null,null,null,null,null,null,null,null,null,null,null,"Hawkes Blue","B89-022-266",15588050,null,null,null,null,null,null,null,null,null,null,null,null,null,null,null,null,null,null,null,null,null,null,null,null,null,null,null,null,null,null,null,null,null,null,null,null,null,"gris 57",null,9539985]
[null,"Pantone 3298",5991168,null,null,null,null,null,null,null,null,null,null,null,null,null,null,null,null,null,null,null,null,null,null,null,null,null,null,null,null,null,null,null,null,null,null,null,null,null,"Designer White","B90-009-260",14866903,null,null,null,null,null,null,null,null,null,null,null,null,null,null,null,null,null,null,null,null,null,null,null,null,null,null,null,null,null,null,null,null,null,null,null,null,null,"gris 58",null,9737364]
[null,"Pantone 4715",5992601,null,null,null,null,null,null,null,null,null,null,null,null,null,null,null,null,null,null,null,null,null,null,null,null,null,null,null,null,null,null,null,null,null,null,null,null,null,"Dreamer","B91-019-237",15721939,null,null,null,null,null,null,null,null,null,null,null,null,null,null,null,null,null,null,null,null,null,null,null,null,null,null,null,null,null,null,null,null,null,null,null,null,null,"gris 59",null,9868950]
[null,"Pantone 113",6022649,null,null,null,null,null,null,null,null,null,null,null,null,null,null,null,null,null,null,null,null,null,null,null,null,null,null,null,null,null,null,null,null,null,null,null,null,null,"Onahau","B91-028-220",15525570,null,null,null,null,null,null,null,null,null,null,null,null,null,null,null,null,null,null,null,null,null,null,null,null,null,null,null,null,null,null,null,null,null,null,null,null,null,"gris 6",null,986895]
[null,"Pantone 603",6023405,null,null,null,null,null,null,null,null,null,null,null,null,null,null,null,null,null,null,null,null,null,null,null,null,null,null,null,null,null,null,null,null,null,null,null,null,null,"Half Cut Glass","B92-011-209",15000787,null,null,null,null,null,null,null,null,null,null,null,null,null,null,null,null,null,null,null,null,null,null,null,null,null,null,null,null,null,null,null,null,null,null,null,null,null,"gris 60",null,10066329]
[null,"Pantone 2627",6165580,null,null,null,null,null,null,null,null,null,null,null,null,null,null,null,null,null,null,null,null,null,null,null,null,null,null,null,null,null,null,null,null,null,null,null,null,null,"Oyster Bay","B92-020-215",15395537,null,null,null,null,null,null,null,null,null,null,null,null,null,null,null,null,null,null,null,null,null,null,null,null,null,null,null,null,null,null,null,null,null,null,null,null,null,"gris 61",null,10263708]
[null,"Pantone 2623",6166875,null,null,null,null,null,null,null,null,null,null,null,null,null,null,null,null,null,null,null,null,null,null,null,null,null,null,null,null,null,null,null,null,null,null,null,null,null,"Scandi (Double Solitude)","B92-016-260",15983834,null,null,null,null,null,null,null,null,null,null,null,null,null,null,null,null,null,null,null,null,null,null,null,null,null,null,null,null,null,null,null,null,null,null,null,null,null,"gris 63",null,10592673]
[null,"Pantone 2695",6169412,null,null,null,null,null,null,null,null,null,null,null,null,null,null,null,null,null,null,null,null,null,null,null,null,null,null,null,null,null,null,null,null,null,null,null,null,null,"Mabel","B93-022-207",15263947,null,null,null,null,null,null,null,null,null,null,null,null,null,null,null,null,null,null,null,null,null,null,null,null,null,null,null,null,null,null,null,null,null,null,null,null,null,"gris 64",null,10724259]
[null,"Pantone 648",6172672,null,null,null,null,null,null,null,null,null,null,null,null,null,null,null,null,null,null,null,null,null,null,null,null,null,null,null,null,null,null,null,null,null,null,null,null,null,"White Lilac","B93-010-266",15263207,null,null,null,null,null,null,null,null,null,null,null,null,null,null,null,null,null,null,null,null,null,null,null,null,null,null,null,null,null,null,null,null,null,null,null,null,null,"gris 65",null,10921638]
[null,"Pantone 519",6172771,null,null,null,null,null,null,null,null,null,null,null,null,null,null,null,null,null,null,null,null,null,null,null,null,null,null,null,null,null,null,null,null,null,null,null,null,null,"Solitude","B94-011-264",15854825,null,null,null,null,null,null,null,null,null,null,null,null,null,null,null,null,null,null,null,null,null,null,null,null,null,null,null,null,null,null,null,null,null,null,null,null,null,"gris 66",null,11053224]
[null,"Pantone 5545",6188367,null,null,null,null,null,null,null,null,null,null,null,null,null,null,null,null,null,null,null,null,null,null,null,null,null,null,null,null,null,null,null,null,null,null,null,null,null,"Tranquil","B95-014-211",15330781,null,null,null,null,null,null,null,null,null,null,null,null,null,null,null,null,null,null,null,null,null,null,null,null,null,null,null,null,null,null,null,null,null,null,null,null,null,"gris 67",null,11250603]
[null,"Pantone 569",6189061,null,null,null,null,null,null,null,null,null,null,null,null,null,null,null,null,null,null,null,null,null,null,null,null,null,null,null,null,null,null,null,null,null,null,null,null,null,"Aubergine","BR28-018-018",2630967,null,null,null,null,null,null,null,null,null,null,null,null,null,null,null,null,null,null,null,null,null,null,null,null,null,null,null,null,null,null,null,null,null,null,null,null,null,"gris 68",null,11382189]
[null,"Pantone 341",6191616,null,null,null,null,null,null,null,null,null,null,null,null,null,null,null,null,null,null,null,null,null,null,null,null,null,null,null,null,null,null,null,null,null,null,null,null,null,"Blackout","BR25-010-052",1448225,null,null,null,null,null,null,null,null,null,null,null,null,null,null,null,null,null,null,null,null,null,null,null,null,null,null,null,null,null,null,null,null,null,null,null,null,null,"gris 69",null,11579568]
[null,"Pantone 1365",6208252,null,null,null,null,null,null,null,null,null,null,null,null,null,null,null,null,null,null,null,null,null,null,null,null,null,null,null,null,null,null,null,null,null,null,null,null,null,"Livid Brown","BR29-009-030",2697777,null,null,null,null,null,null,null,null,null,null,null,null,null,null,null,null,null,null,null,null,null,null,null,null,null,null,null,null,null,null,null,null,null,null,null,null,null,"gris 7",null,1184274]
[null,"Pantone 249",6301823,null,null,null,null,null,null,null,null,null,null,null,null,null,null,null,null,null,null,null,null,null,null,null,null,null,null,null,null,null,null,null,null,null,null,null,null,null,"Loyal","BR26-011-004",1906984,null,null,null,null,null,null,null,null,null,null,null,null,null,null,null,null,null,null,null,null,null,null,null,null,null,null,null,null,null,null,null,null,null,null,null,null,null,"gris 70",null,11776947]
[null,"Pantone 5125",6309749,null,null,null,null,null,null,null,null,null,null,null,null,null,null,null,null,null,null,null,null,null,null,null,null,null,null,null,null,null,null,null,null,null,null,null,null,null,"Marbaroda","BR29-019-044",2961725,null,null,null,null,null,null,null,null,null,null,null,null,null,null,null,null,null,null,null,null,null,null,null,null,null,null,null,null,null,null,null,null,null,null,null,null,null,"gris 71",null,11908533]
[null,"Pantone 4645",6324914,null,null,null,null,null,null,null,null,null,null,null,null,null,null,null,null,null,null,null,null,null,null,null,null,null,null,null,null,null,null,null,null,null,null,null,null,null,"Nala","BR29-028-044",2633537,null,null,null,null,null,null,null,null,null,null,null,null,null,null,null,null,null,null,null,null,null,null,null,null,null,null,null,null,null,null,null,null,null,null,null,null,null,"gris 72",null,12105912]
[null,"Pantone 729",6328001,null,null,null,null,null,null,null,null,null,null,null,null,null,null,null,null,null,null,null,null,null,null,null,null,null,null,null,null,null,null,null,null,null,null,null,null,null,"Sepia","BR28-011-034",2961210,null,null,null,null,null,null,null,null,null,null,null,null,null,null,null,null,null,null,null,null,null,null,null,null,null,null,null,null,null,null,null,null,null,null,null,null,null,"gris 73",null,12303291]
[null,"Pantone 347",6331904,null,null,null,null,null,null,null,null,null,null,null,null,null,null,null,null,null,null,null,null,null,null,null,null,null,null,null,null,null,null,null,null,null,null,null,null,null,"Sooty","BR27-010-041",1645864,null,null,null,null,null,null,null,null,null,null,null,null,null,null,null,null,null,null,null,null,null,null,null,null,null,null,null,null,null,null,null,null,null,null,null,null,null,"gris 74",null,12434877]
[null,"Pantone 354",6338304,null,null,null,null,null,null,null,null,null,null,null,null,null,null,null,null,null,null,null,null,null,null,null,null,null,null,null,null,null,null,null,null,null,null,null,null,null,"Temptress","BR29-024-014",2498876,null,null,null,null,null,null,null,null,null,null,null,null,null,null,null,null,null,null,null,null,null,null,null,null,null,null,null,null,null,null,null,null,null,null,null,null,null,"gris 75",null,12566463]
[null,"Pantone 128",6347764,null,null,null,null,null,null,null,null,null,null,null,null,null,null,null,null,null,null,null,null,null,null,null,null,null,null,null,null,null,null,null,null,null,null,null,null,null,"Toorak","BR29-018-044",2303289,null,null,null,null,null,null,null,null,null,null,null,null,null,null,null,null,null,null,null,null,null,null,null,null,null,null,null,null,null,null,null,null,null,null,null,null,null,"gris 76",null,12763842]
[null,"Pantone 374",6351034,null,null,null,null,null,null,null,null,null,null,null,null,null,null,null,null,null,null,null,null,null,null,null,null,null,null,null,null,null,null,null,null,null,null,null,null,null,"Acadia","BR32-011-076",2896181,null,null,null,null,null,null,null,null,null,null,null,null,null,null,null,null,null,null,null,null,null,null,null,null,null,null,null,null,null,null,null,null,null,null,null,null,null,"gris 77",null,12895428]
[null,"Pantone 386",6352360,null,null,null,null,null,null,null,null,null,null,null,null,null,null,null,null,null,null,null,null,null,null,null,null,null,null,null,null,null,null,null,null,null,null,null,null,null,"Afficionado","BR37-014-011",3683909,null,null,null,null,null,null,null,null,null,null,null,null,null,null,null,null,null,null,null,null,null,null,null,null,null,null,null,null,null,null,null,null,null,null,null,null,null,"gris 78",null,13092807]
[null,"Pantone 5265",6503753,null,null,null,null,null,null,null,null,null,null,null,null,null,null,null,null,null,null,null,null,null,null,null,null,null,null,null,null,null,null,null,null,null,null,null,null,null,"Baked Earth","BR32-037-043",2633801,null,null,null,null,null,null,null,null,null,null,null,null,null,null,null,null,null,null,null,null,null,null,null,null,null,null,null,null,null,null,null,null,null,null,null,null,null,"gris 79",null,13224393]
[null,"Pantone 323",6514176,null,null,null,null,null,null,null,null,null,null,null,null,null,null,null,null,null,null,null,null,null,null,null,null,null,null,null,null,null,null,null,null,null,null,null,null,null,"Barista","BR35-013-026",3618885,null,null,null,null,null,null,null,null,null,null,null,null,null,null,null,null,null,null,null,null,null,null,null,null,null,null,null,null,null,null,null,null,null,null,null,null,null,"gris 8",null,1315860]
[null,"Cool Gray 11",6514280,null,null,null,null,null,null,null,null,null,null,null,null,null,null,null,null,null,null,null,null,null,null,null,null,null,null,null,null,null,null,null,null,null,null,null,null,null,"Bean  ","BR35-024-038",3224906,null,null,null,null,null,null,null,null,null,null,null,null,null,null,null,null,null,null,null,null,null,null,null,null,null,null,null,null,null,null,null,null,null,null,null,null,null,"gris 81",null,13619151]
[null,"Pantone 410",6516092,null,null,null,null,null,null,null,null,null,null,null,null,null,null,null,null,null,null,null,null,null,null,null,null,null,null,null,null,null,null,null,null,null,null,null,null,null,"Bivouac Green","BR35-026-068",2437696,null,null,null,null,null,null,null,null,null,null,null,null,null,null,null,null,null,null,null,null,null,null,null,null,null,null,null,null,null,null,null,null,null,null,null,null,null,"gris 82",null,13750737]
[null,"Pantone 417",6517367,null,null,null,null,null,null,null,null,null,null,null,null,null,null,null,null,null,null,null,null,null,null,null,null,null,null,null,null,null,null,null,null,null,null,null,null,null,"Black Magic","BR33-015-070",2239539,null,null,null,null,null,null,null,null,null,null,null,null,null,null,null,null,null,null,null,null,null,null,null,null,null,null,null,null,null,null,null,null,null,null,null,null,null,"gris 83",null,13948116]
[null,"Warm Gray 10",6517378,null,null,null,null,null,null,null,null,null,null,null,null,null,null,null,null,null,null,null,null,null,null,null,null,null,null,null,null,null,null,null,null,null,null,null,null,null,"Bootleg","BR30-029-042",1778748,null,null,null,null,null,null,null,null,null,null,null,null,null,null,null,null,null,null,null,null,null,null,null,null,null,null,null,null,null,null,null,null,null,null,null,null,null,"gris 84",null,14079702]
[null,"Pantone 135",6539772,null,null,null,null,null,null,null,null,null,null,null,null,null,null,null,null,null,null,null,null,null,null,null,null,null,null,null,null,null,null,null,null,null,null,null,null,null,"Bracken","BR39-036-067",2571611,null,null,null,null,null,null,null,null,null,null,null,null,null,null,null,null,null,null,null,null,null,null,null,null,null,null,null,null,null,null,null,null,null,null,null,null,null,"gris 85",null,14277081]
[null,"Pantone 234",6684842,null,null,null,null,null,null,null,null,null,null,null,null,null,null,null,null,null,null,null,null,null,null,null,null,null,null,null,null,null,null,null,null,null,null,null,null,null,"Bronze","BR37-024-062",3095369,null,null,null,null,null,null,null,null,null,null,null,null,null,null,null,null,null,null,null,null,null,null,null,null,null,null,null,null,null,null,null,null,null,null,null,null,null,"gris 86",null,14408667]
[null,"Pantone 274",6689067,null,null,null,null,null,null,null,null,null,null,null,null,null,null,null,null,null,null,null,null,null,null,null,null,null,null,null,null,null,null,null,null,null,null,null,null,null,"Brown Bramble","BR38-044-054",1979219,null,null,null,null,null,null,null,null,null,null,null,null,null,null,null,null,null,null,null,null,null,null,null,null,null,null,null,null,null,null,null,null,null,null,null,null,null,"gris 86/87",null,14540253]
[null,"Pantone 812",6693884,null,null,null,null,null,null,null,null,null,null,null,null,null,null,null,null,null,null,null,null,null,null,null,null,null,null,null,null,null,null,null,null,null,null,null,null,null,"Burnt Umber","BR31-023-061",2897216,null,null,null,null,null,null,null,null,null,null,null,null,null,null,null,null,null,null,null,null,null,null,null,null,null,null,null,null,null,null,null,null,null,null,null,null,null,"gris 87",null,14606046]
[null,"Pantone 689",6701715,null,null,null,null,null,null,null,null,null,null,null,null,null,null,null,null,null,null,null,null,null,null,null,null,null,null,null,null,null,null,null,null,null,null,null,null,null,"Cave Rock","BR34-009-020",2894903,null,null,null,null,null,null,null,null,null,null,null,null,null,null,null,null,null,null,null,null,null,null,null,null,null,null,null,null,null,null,null,null,null,null,null,null,null,"gris 88",null,14737632]
[null,"Pantone 329",6712576,null,null,null,null,null,null,null,null,null,null,null,null,null,null,null,null,null,null,null,null,null,null,null,null,null,null,null,null,null,null,null,null,null,null,null,null,null,"Cedar","BR36-018-038",3159110,null,null,null,null,null,null,null,null,null,null,null,null,null,null,null,null,null,null,null,null,null,null,null,null,null,null,null,null,null,null,null,null,null,null,null,null,null,"gris 89",null,14935011]
[null,"Pantone 404",6714754,null,null,null,null,null,null,null,null,null,null,null,null,null,null,null,null,null,null,null,null,null,null,null,null,null,null,null,null,null,null,null,null,null,null,null,null,null,"Cioccolato","BR37-035-052",3029853,null,null,null,null,null,null,null,null,null,null,null,null,null,null,null,null,null,null,null,null,null,null,null,null,null,null,null,null,null,null,null,null,null,null,null,null,null,"gris 9",null,1513239]
[null,"Pantone 335",6716416,null,null,null,null,null,null,null,null,null,null,null,null,null,null,null,null,null,null,null,null,null,null,null,null,null,null,null,null,null,null,null,null,null,null,null,null,null,"Clinker","BR37-029-068",2307654,null,null,null,null,null,null,null,null,null,null,null,null,null,null,null,null,null,null,null,null,null,null,null,null,null,null,null,null,null,null,null,null,null,null,null,null,null,"gris 90",null,15066597]
[null,"Pantone 2758",6824217,null,null,null,null,null,null,null,null,null,null,null,null,null,null,null,null,null,null,null,null,null,null,null,null,null,null,null,null,null,null,null,null,null,null,null,null,null,"Cocoa Brown","BR32-019-058",1976373,null,null,null,null,null,null,null,null,null,null,null,null,null,null,null,null,null,null,null,null,null,null,null,null,null,null,null,null,null,null,null,null,null,null,null,null,null,"gris 91",null,15263976]
[null,"Pantone 281",6825984,null,null,null,null,null,null,null,null,null,null,null,null,null,null,null,null,null,null,null,null,null,null,null,null,null,null,null,null,null,null,null,null,null,null,null,null,null,"Coffee Bean","BR33-011-045",2501942,null,null,null,null,null,null,null,null,null,null,null,null,null,null,null,null,null,null,null,null,null,null,null,null,null,null,null,null,null,null,null,null,null,null,null,null,null,"gris 92",null,15461355]
[null,"Pantone 141",6868722,null,null,null,null,null,null,null,null,null,null,null,null,null,null,null,null,null,null,null,null,null,null,null,null,null,null,null,null,null,null,null,null,null,null,null,null,null,"Cola","BR33-023-065",2305852,null,null,null,null,null,null,null,null,null,null,null,null,null,null,null,null,null,null,null,null,null,null,null,null,null,null,null,null,null,null,null,null,null,null,null,null,null,"gris 93",null,15658734]
[null,"Pantone 379",6875872,null,null,null,null,null,null,null,null,null,null,null,null,null,null,null,null,null,null,null,null,null,null,null,null,null,null,null,null,null,null,null,null,null,null,null,null,null,"Cowboy","BR34-015-029",3553092,null,null,null,null,null,null,null,null,null,null,null,null,null,null,null,null,null,null,null,null,null,null,null,null,null,null,null,null,null,null,null,null,null,null,null,null,null,"gris 94",null,15790320]
[null,"Pantone 213",7016426,null,null,null,null,null,null,null,null,null,null,null,null,null,null,null,null,null,null,null,null,null,null,null,null,null,null,null,null,null,null,null,null,null,null,null,null,null,"Creole","BR34-015-074",2568761,null,null,null,null,null,null,null,null,null,null,null,null,null,null,null,null,null,null,null,null,null,null,null,null,null,null,null,null,null,null,null,null,null,null,null,null,null,"gris 95",null,15921906]
[null,"Pantone 2747",7017500,null,null,null,null,null,null,null,null,null,null,null,null,null,null,null,null,null,null,null,null,null,null,null,null,null,null,null,null,null,null,null,null,null,null,null,null,null,"Dark Ginger","BR35-025-042",2699335,null,null,null,null,null,null,null,null,null,null,null,null,null,null,null,null,null,null,null,null,null,null,null,null,null,null,null,null,null,null,null,null,null,null,null,null,null,"gris 97",null,16250871]
[null,"Pantone 259",7018098,null,null,null,null,null,null,null,null,null,null,null,null,null,null,null,null,null,null,null,null,null,null,null,null,null,null,null,null,null,null,null,null,null,null,null,null,null,"Dark Rum","BR35-026-058",2831941,null,null,null,null,null,null,null,null,null,null,null,null,null,null,null,null,null,null,null,null,null,null,null,null,null,null,null,null,null,null,null,null,null,null,null,null,null,"gris 98",null,16448250]
[null,"Pantone 512",7020932,null,null,null,null,null,null,null,null,null,null,null,null,null,null,null,null,null,null,null,null,null,null,null,null,null,null,null,null,null,null,null,null,null,null,null,null,null,"Daytona","BR32-010-077",2892318,null,null,null,null,null,null,null,null,null,null,null,null,null,null,null,null,null,null,null,null,null,null,null,null,null,null,null,null,null,null,null,null,null,null,null,null,null,"gris 99",null,16579836]
[null,"Pantone 255",7023991,null,null,null,null,null,null,null,null,null,null,null,null,null,null,null,null,null,null,null,null,null,null,null,null,null,null,null,null,null,null,null,null,null,null,null,null,null,"Double Barista","BR32-015-035",2763833,null,null,null,null,null,null,null,null,null,null,null,null,null,null,null,null,null,null,null,null,null,null,null,null,null,null,null,null,null,null,null,null,null,null,null,null,null,"Gris acier",null,11513775]
[null,"Pantone 295",7026688,null,null,null,null,null,null,null,null,null,null,null,null,null,null,null,null,null,null,null,null,null,null,null,null,null,null,null,null,null,null,null,null,null,null,null,null,null,"Double Caffeine","BR30-012-013",2697011,null,null,null,null,null,null,null,null,null,null,null,null,null,null,null,null,null,null,null,null,null,null,null,null,null,null,null,null,null,null,null,null,null,null,null,null,null,"Gris anthracite",null,3158064]
[null,"Pantone 2955",7027968,null,null,null,null,null,null,null,null,null,null,null,null,null,null,null,null,null,null,null,null,null,null,null,null,null,null,null,null,null,null,null,null,null,null,null,null,null,"Double Felix","BR36-014-043",3290949,null,null,null,null,null,null,null,null,null,null,null,null,null,null,null,null,null,null,null,null,null,null,null,null,null,null,null,null,null,null,null,null,null,null,null,null,null,"Gris bleuté",null,9144193]
[null,"Pantone 191",7030772,null,null,null,null,null,null,null,null,null,null,null,null,null,null,null,null,null,null,null,null,null,null,null,null,null,null,null,null,null,null,null,null,null,null,null,null,null,"Double Masala","BR39-009-079",3752261,null,null,null,null,null,null,null,null,null,null,null,null,null,null,null,null,null,null,null,null,null,null,null,null,null,null,null,null,null,null,null,null,null,null,null,null,null,"Gris brunâtre",null,5197915]
[null,"Pantone 3025",7033856,null,null,null,null,null,null,null,null,null,null,null,null,null,null,null,null,null,null,null,null,null,null,null,null,null,null,null,null,null,null,null,null,null,null,null,null,null,"Double Mondo","BR38-014-074",3621450,null,null,null,null,null,null,null,null,null,null,null,null,null,null,null,null,null,null,null,null,null,null,null,null,null,null,null,null,null,null,null,null,null,null,null,null,null,"Gris clair",null,11909305]
[null,"Pantone 3035",7033856,null,null,null,null,null,null,null,null,null,null,null,null,null,null,null,null,null,null,null,null,null,null,null,null,null,null,null,null,null,null,null,null,null,null,null,null,null,"Earlybird","BR39-023-022",3750225,null,null,null,null,null,null,null,null,null,null,null,null,null,null,null,null,null,null,null,null,null,null,null,null,null,null,null,null,null,null,null,null,null,null,null,null,null,"Gris clair bleuté",null,12631220]
[null,"Pantone 437",7041164,null,null,null,null,null,null,null,null,null,null,null,null,null,null,null,null,null,null,null,null,null,null,null,null,null,null,null,null,null,null,null,null,null,null,null,null,null,"Hairy Heath","BR39-056-044",2635107,null,null,null,null,null,null,null,null,null,null,null,null,null,null,null,null,null,null,null,null,null,null,null,null,null,null,null,null,null,null,null,null,null,null,null,null,null,"Gris clair brunâtre",null,7963278]
[null,"Pantone 458",7064797,null,null,null,null,null,null,null,null,null,null,null,null,null,null,null,null,null,null,null,null,null,null,null,null,null,null,null,null,null,null,null,null,null,null,null,null,null,"Half Wood Bark","BR34-011-046",3619397,null,null,null,null,null,null,null,null,null,null,null,null,null,null,null,null,null,null,null,null,null,null,null,null,null,null,null,null,null,null,null,null,null,null,null,null,null,"Gris clair olivâtre",null,7767946]
[null,"Pantone 585",7069915,null,null,null,null,null,null,null,null,null,null,null,null,null,null,null,null,null,null,null,null,null,null,null,null,null,null,null,null,null,null,null,null,null,null,null,null,null,"Havana","BR30-016-026",2894651,null,null,null,null,null,null,null,null,null,null,null,null,null,null,null,null,null,null,null,null,null,null,null,null,null,null,null,null,null,null,null,null,null,null,null,null,null,"Gris clair violacé",null,12433855]
[null,"Pantone 2755",7143477,null,null,null,null,null,null,null,null,null,null,null,null,null,null,null,null,null,null,null,null,null,null,null,null,null,null,null,null,null,null,null,null,null,null,null,null,null,"Indian Tan","BR37-040-050",2043983,null,null,null,null,null,null,null,null,null,null,null,null,null,null,null,null,null,null,null,null,null,null,null,null,null,null,null,null,null,null,null,null,null,null,null,null,null,"Gris de lin",null,15518418]
[null,"Pantone 2613",7147878,null,null,null,null,null,null,null,null,null,null,null,null,null,null,null,null,null,null,null,null,null,null,null,null,null,null,null,null,null,null,null,null,null,null,null,null,null,"Jacko Bean","BR36-022-069",2635329,null,null,null,null,null,null,null,null,null,null,null,null,null,null,null,null,null,null,null,null,null,null,null,null,null,null,null,null,null,null,null,null,null,null,null,null,null,"Gris de maure",null,4415080]
[null,"Pantone 302",7163648,null,null,null,null,null,null,null,null,null,null,null,null,null,null,null,null,null,null,null,null,null,null,null,null,null,null,null,null,null,null,null,null,null,null,null,null,null,"Komakorau","BR39-049-041",2766180,null,null,null,null,null,null,null,null,null,null,null,null,null,null,null,null,null,null,null,null,null,null,null,null,null,null,null,null,null,null,null,null,null,null,null,null,null,"Gris de Payne",null,7958887]
[null,"Pantone 198",7165669,null,null,null,null,null,null,null,null,null,null,null,null,null,null,null,null,null,null,null,null,null,null,null,null,null,null,null,null,null,null,null,null,null,null,null,null,null,"Lignite","BR34-021-058",2700354,null,null,null,null,null,null,null,null,null,null,null,null,null,null,null,null,null,null,null,null,null,null,null,null,null,null,null,null,null,null,null,null,null,null,null,null,null,"Gris fer",null,8355711]
[null,"Pantone 702",7168214,null,null,null,null,null,null,null,null,null,null,null,null,null,null,null,null,null,null,null,null,null,null,null,null,null,null,null,null,null,null,null,null,null,null,null,null,null,"Madras","BR36-040-080",2309703,null,null,null,null,null,null,null,null,null,null,null,null,null,null,null,null,null,null,null,null,null,null,null,null,null,null,null,null,null,null,null,null,null,null,null,null,null,"Gris foncé",null,5592405]
[null,"Pantone 5473",7170086,null,null,null,null,null,null,null,null,null,null,null,null,null,null,null,null,null,null,null,null,null,null,null,null,null,null,null,null,null,null,null,null,null,null,null,null,null,"Mikado","BR36-024-078",2307647,null,null,null,null,null,null,null,null,null,null,null,null,null,null,null,null,null,null,null,null,null,null,null,null,null,null,null,null,null,null,null,null,null,null,null,null,null,"Gris foncé bleuté",null,6182993]
[null,"Pantone 4995",7170981,null,null,null,null,null,null,null,null,null,null,null,null,null,null,null,null,null,null,null,null,null,null,null,null,null,null,null,null,null,null,null,null,null,null,null,null,null,"Milk Chocolate","BR34-034-049",2700364,null,null,null,null,null,null,null,null,null,null,null,null,null,null,null,null,null,null,null,null,null,null,null,null,null,null,null,null,null,null,null,null,null,null,null,null,null,"Gris foncé rougeâtre",null,5197916]
[null,"Pantone 562",7174686,null,null,null,null,null,null,null,null,null,null,null,null,null,null,null,null,null,null,null,null,null,null,null,null,null,null,null,null,null,null,null,null,null,null,null,null,null,"Mission Brown","BR33-025-045",2633796,null,null,null,null,null,null,null,null,null,null,null,null,null,null,null,null,null,null,null,null,null,null,null,null,null,null,null,null,null,null,null,null,null,null,null,null,null,"Gris foncé violacé",null,5985629]
[null,"Pantone 1635",7180025,null,null,null,null,null,null,null,null,null,null,null,null,null,null,null,null,null,null,null,null,null,null,null,null,null,null,null,null,null,null,null,null,null,null,null,null,null,"Monkey","BR33-010-061",2633269,null,null,null,null,null,null,null,null,null,null,null,null,null,null,null,null,null,null,null,null,null,null,null,null,null,null,null,null,null,null,null,null,null,null,null,null,null,"Gris jaunâtre",null,10860735]
[null,"Pantone 367",7200170,null,null,null,null,null,null,null,null,null,null,null,null,null,null,null,null,null,null,null,null,null,null,null,null,null,null,null,null,null,null,null,null,null,null,null,null,null,"Morocco Brown","BR34-029-053",2174276,null,null,null,null,null,null,null,null,null,null,null,null,null,null,null,null,null,null,null,null,null,null,null,null,null,null,null,null,null,null,null,null,null,null,null,null,null,"Gris moyen",null,8553604]
[null,"Pantone 3935",7204338,null,null,null,null,null,null,null,null,null,null,null,null,null,null,null,null,null,null,null,null,null,null,null,null,null,null,null,null,null,null,null,null,null,null,null,null,null,"Night Owl","BR34-016-012",3486536,null,null,null,null,null,null,null,null,null,null,null,null,null,null,null,null,null,null,null,null,null,null,null,null,null,null,null,null,null,null,null,null,null,null,null,null,null,"Gris olivâtre",null,5002583]
[null,"Pantone 2415",7340187,null,null,null,null,null,null,null,null,null,null,null,null,null,null,null,null,null,null,null,null,null,null,null,null,null,null,null,null,null,null,null,null,null,null,null,null,null,"Paco","BR39-020-051",3620943,null,null,null,null,null,null,null,null,null,null,null,null,null,null,null,null,null,null,null,null,null,null,null,null,null,null,null,null,null,null,null,null,null,null,null,null,null,"Gris perle",null,13553358]
[null,"Pantone 226",7340758,null,null,null,null,null,null,null,null,null,null,null,null,null,null,null,null,null,null,null,null,null,null,null,null,null,null,null,null,null,null,null,null,null,null,null,null,null,"Platypus","BR35-009-015",3420989,null,null,null,null,null,null,null,null,null,null,null,null,null,null,null,null,null,null,null,null,null,null,null,null,null,null,null,null,null,null,null,null,null,null,null,null,null,"Gris plomb",null,8487033]
[null,"Pantone 2617",7343190,null,null,null,null,null,null,null,null,null,null,null,null,null,null,null,null,null,null,null,null,null,null,null,null,null,null,null,null,null,null,null,null,null,null,null,null,null,"Rangitoto Rock","BR33-017-053",3225667,null,null,null,null,null,null,null,null,null,null,null,null,null,null,null,null,null,null,null,null,null,null,null,null,null,null,null,null,null,null,null,null,null,null,null,null,null,"Gris rosé",null,11777729]
[null,"Pantone 268",7348559,null,null,null,null,null,null,null,null,null,null,null,null,null,null,null,null,null,null,null,null,null,null,null,null,null,null,null,null,null,null,null,null,null,null,null,null,null,"Rebel","BR34-020-035",3159109,null,null,null,null,null,null,null,null,null,null,null,null,null,null,null,null,null,null,null,null,null,null,null,null,null,null,null,null,null,null,null,null,null,null,null,null,null,"Gris rougeâtre",null,8356239]
[null,"Pantone 695",7367602,null,null,null,null,null,null,null,null,null,null,null,null,null,null,null,null,null,null,null,null,null,null,null,null,null,null,null,null,null,null,null,null,null,null,null,null,null,"Saddle Brown","BR36-049-065",1980496,null,null,null,null,null,null,null,null,null,null,null,null,null,null,null,null,null,null,null,null,null,null,null,null,null,null,null,null,null,null,null,null,null,null,null,null,null,"Gris souris",null,10395294]
[null,"Pantone 431",7368038,null,null,null,null,null,null,null,null,null,null,null,null,null,null,null,null,null,null,null,null,null,null,null,null,null,null,null,null,null,null,null,null,null,null,null,null,null,"Sambuca","BR32-018-058",2436667,null,null,null,null,null,null,null,null,null,null,null,null,null,null,null,null,null,null,null,null,null,null,null,null,null,null,null,null,null,null,null,null,null,null,null,null,null,"Gris taupe",null,3292998]
[null,"Pantone 328",7370496,null,null,null,null,null,null,null,null,null,null,null,null,null,null,null,null,null,null,null,null,null,null,null,null,null,null,null,null,null,null,null,null,null,null,null,null,null,"Slugger","BR34-020-054",2831426,null,null,null,null,null,null,null,null,null,null,null,null,null,null,null,null,null,null,null,null,null,null,null,null,null,null,null,null,null,null,null,null,null,null,null,null,null,"Gris tourdille (chevaux)",null,11648961]
[null,"Warm Gray 9",7372684,null,null,null,null,null,null,null,null,null,null,null,null,null,null,null,null,null,null,null,null,null,null,null,null,null,null,null,null,null,null,null,null,null,null,null,null,null,"Sofisticata","BR35-041-044",2174286,null,null,null,null,null,null,null,null,null,null,null,null,null,null,null,null,null,null,null,null,null,null,null,null,null,null,null,null,null,null,null,null,null,null,null,null,null,"Gris tourterelle",null,11316411]
[null,"Pantone 3288",7373312,null,null,null,null,null,null,null,null,null,null,null,null,null,null,null,null,null,null,null,null,null,null,null,null,null,null,null,null,null,null,null,null,null,null,null,null,null,"Space Shuttle","BR39-015-069",3883851,null,null,null,null,null,null,null,null,null,null,null,null,null,null,null,null,null,null,null,null,null,null,null,null,null,null,null,null,null,null,null,null,null,null,null,null,null,"Gris verdâtre",null,8685949]
[null,"Pantone 5625",7373938,null,null,null,null,null,null,null,null,null,null,null,null,null,null,null,null,null,null,null,null,null,null,null,null,null,null,null,null,null,null,null,null,null,null,null,null,null,"Stingray","BR34-014-035",3355973,null,null,null,null,null,null,null,null,null,null,null,null,null,null,null,null,null,null,null,null,null,null,null,null,null,null,null,null,null,null,null,null,null,null,null,null,null,"Gris verdâtre clair",null,11910834]
[null,"Pantone 479",7375279,null,null,null,null,null,null,null,null,null,null,null,null,null,null,null,null,null,null,null,null,null,null,null,null,null,null,null,null,null,null,null,null,null,null,null,null,null,"Tobago","BR35-022-060",2963012,null,null,null,null,null,null,null,null,null,null,null,null,null,null,null,null,null,null,null,null,null,null,null,null,null,null,null,null,null,null,null,null,null,null,null,null,null,"Gris verdâtre foncé",null,5592910]
[null,"Pantone 163",7380732,null,null,null,null,null,null,null,null,null,null,null,null,null,null,null,null,null,null,null,null,null,null,null,null,null,null,null,null,null,null,null,null,null,null,null,null,null,"Triple Mondo","BR36-016-072",2766656,null,null,null,null,null,null,null,null,null,null,null,null,null,null,null,null,null,null,null,null,null,null,null,null,null,null,null,null,null,null,null,null,null,null,null,null,null,"Gris violacé",null,9012619]
[null,"Pantone 5845",7383730,null,null,null,null,null,null,null,null,null,null,null,null,null,null,null,null,null,null,null,null,null,null,null,null,null,null,null,null,null,null,null,null,null,null,null,null,null,"Van Cleef","BR38-024-028",3553618,null,null,null,null,null,null,null,null,null,null,null,null,null,null,null,null,null,null,null,null,null,null,null,null,null,null,null,null,null,null,null,null,null,null,null,null,null,"Gueules (héraldique)",null,1250274]
[null,"Pantone 121",7397625,null,null,null,null,null,null,null,null,null,null,null,null,null,null,null,null,null,null,null,null,null,null,null,null,null,null,null,null,null,null,null,null,null,null,null,null,null,"Warmed Brown","BR35-031-042",2830410,null,null,null,null,null,null,null,null,null,null,null,null,null,null,null,null,null,null,null,null,null,null,null,null,null,null,null,null,null,null,null,null,null,null,null,null,null,"Havane",null,6324116]
[null,"Rhodamine Red 2X",7472593,null,null,null,null,null,null,null,null,null,null,null,null,null,null,null,null,null,null,null,null,null,null,null,null,null,null,null,null,null,null,null,null,null,null,null,null,null,"Wood Bark","BR30-013-056",2172464,null,null,null,null,null,null,null,null,null,null,null,null,null,null,null,null,null,null,null,null,null,null,null,null,null,null,null,null,null,null,null,null,null,null,null,null,null,"Héliotrope",null,16741343]
[null,"Pantone 2612",7478896,null,null,null,null,null,null,null,null,null,null,null,null,null,null,null,null,null,null,null,null,null,null,null,null,null,null,null,null,null,null,null,null,null,null,null,null,null,"Woodburn","BR35-025-061",2700870,null,null,null,null,null,null,null,null,null,null,null,null,null,null,null,null,null,null,null,null,null,null,null,null,null,null,null,null,null,null,null,null,null,null,null,null,null,"honeydew",null,15794160]
[null,"Pantone 520",7484784,null,null,null,null,null,null,null,null,null,null,null,null,null,null,null,null,null,null,null,null,null,null,null,null,null,null,null,null,null,null,null,null,null,null,null,null,null,"Artefact","BR47-010-034",5263965,null,null,null,null,null,null,null,null,null,null,null,null,null,null,null,null,null,null,null,null,null,null,null,null,null,null,null,null,null,null,null,null,null,null,null,null,null,"honeydew2",null,14741216]
[null,"Pantone 534",7489850,null,null,null,null,null,null,null,null,null,null,null,null,null,null,null,null,null,null,null,null,null,null,null,null,null,null,null,null,null,null,null,null,null,null,null,null,null,"Boomerang","BR48-059-056",3362425,null,null,null,null,null,null,null,null,null,null,null,null,null,null,null,null,null,null,null,null,null,null,null,null,null,null,null,null,null,null,null,null,null,null,null,null,null,"honeydew3",null,12701121]
[null,"Pantone 184",7495420,null,null,null,null,null,null,null,null,null,null,null,null,null,null,null,null,null,null,null,null,null,null,null,null,null,null,null,null,null,null,null,null,null,null,null,null,null,"Brown Derby","BR42-027-055",3622233,null,null,null,null,null,null,null,null,null,null,null,null,null,null,null,null,null,null,null,null,null,null,null,null,null,null,null,null,null,null,null,null,null,null,null,null,null,"honeydew4",null,8620931]
[null,"Pantone 322",7500288,null,null,null,null,null,null,null,null,null,null,null,null,null,null,null,null,null,null,null,null,null,null,null,null,null,null,null,null,null,null,null,null,null,null,null,null,null,"Brownie Points","BR44-049-043",3359342,null,null,null,null,null,null,null,null,null,null,null,null,null,null,null,null,null,null,null,null,null,null,null,null,null,null,null,null,null,null,null,null,null,null,null,null,null,"HotRose 1",null,11824895]
[null,"Cool Gray 10",7501687,null,null,null,null,null,null,null,null,null,null,null,null,null,null,null,null,null,null,null,null,null,null,null,null,null,null,null,null,null,null,null,null,null,null,null,null,null,"Cafe Royale","BR45-058-064",2640234,null,null,null,null,null,null,null,null,null,null,null,null,null,null,null,null,null,null,null,null,null,null,null,null,null,null,null,null,null,null,null,null,null,null,null,null,null,"HotRose 2",null,10971886]
[null,"Pantone 5487",7502950,null,null,null,null,null,null,null,null,null,null,null,null,null,null,null,null,null,null,null,null,null,null,null,null,null,null,null,null,null,null,null,null,null,null,null,null,null,"Carnaby Tan","BR40-050-056",2374235,null,null,null,null,null,null,null,null,null,null,null,null,null,null,null,null,null,null,null,null,null,null,null,null,null,null,null,null,null,null,null,null,null,null,null,null,null,"HotRose 3",null,9461965]
[null,"Pantone 3295",7504384,null,null,null,null,null,null,null,null,null,null,null,null,null,null,null,null,null,null,null,null,null,null,null,null,null,null,null,null,null,null,null,null,null,null,null,null,null,"Cigar","BR49-055-049",3690109,null,null,null,null,null,null,null,null,null,null,null,null,null,null,null,null,null,null,null,null,null,null,null,null,null,null,null,null,null,null,null,null,null,null,null,null,null,"HotRose 4",null,6437515]
[null,"Pantone 570",7505664,null,null,null,null,null,null,null,null,null,null,null,null,null,null,null,null,null,null,null,null,null,null,null,null,null,null,null,null,null,null,null,null,null,null,null,null,null,"Congo Brown","BR45-023-034",4803941,null,null,null,null,null,null,null,null,null,null,null,null,null,null,null,null,null,null,null,null,null,null,null,null,null,null,null,null,null,null,null,null,null,null,null,null,null,"Incarnadin",null,10524414]
[null,"Pantone 625",7505755,null,null,null,null,null,null,null,null,null,null,null,null,null,null,null,null,null,null,null,null,null,null,null,null,null,null,null,null,null,null,null,null,null,null,null,null,null,"Cork","BR45-024-062",4344922,null,null,null,null,null,null,null,null,null,null,null,null,null,null,null,null,null,null,null,null,null,null,null,null,null,null,null,null,null,null,null,null,null,null,null,null,null,"Incarnat",null,8220671]
[null,"Pantone 170",7506425,null,null,null,null,null,null,null,null,null,null,null,null,null,null,null,null,null,null,null,null,null,null,null,null,null,null,null,null,null,null,null,null,null,null,null,null,null,"Dallas","BR45-047-067",2968166,null,null,null,null,null,null,null,null,null,null,null,null,null,null,null,null,null,null,null,null,null,null,null,null,null,null,null,null,null,null,null,null,null,null,null,null,null,"Indian Rouge ",null,11586805]
[null,"Pantone 5783",7511707,null,null,null,null,null,null,null,null,null,null,null,null,null,null,null,null,null,null,null,null,null,null,null,null,null,null,null,null,null,null,null,null,null,null,null,null,null,"Deep Bronze","BR40-031-071",2965841,null,null,null,null,null,null,null,null,null,null,null,null,null,null,null,null,null,null,null,null,null,null,null,null,null,null,null,null,null,null,null,null,null,null,null,null,null,"IndianRouge ",null,6053069]
[null,"Pantone 610",7527394,null,null,null,null,null,null,null,null,null,null,null,null,null,null,null,null,null,null,null,null,null,null,null,null,null,null,null,null,null,null,null,null,null,null,null,null,null,"Domino","BR49-024-061",5004140,null,null,null,null,null,null,null,null,null,null,null,null,null,null,null,null,null,null,null,null,null,null,null,null,null,null,null,null,null,null,null,null,null,null,null,null,null,"IndianRouge 1",null,6974207]
[null,"Pantone 241",7667885,null,null,null,null,null,null,null,null,null,null,null,null,null,null,null,null,null,null,null,null,null,null,null,null,null,null,null,null,null,null,null,null,null,null,null,null,null,"Don Juan","BR45-009-002",5328730,null,null,null,null,null,null,null,null,null,null,null,null,null,null,null,null,null,null,null,null,null,null,null,null,null,null,null,null,null,null,null,null,null,null,null,null,null,"IndianRouge 2",null,6513646]
[null,"Pantone 662",7674124,null,null,null,null,null,null,null,null,null,null,null,null,null,null,null,null,null,null,null,null,null,null,null,null,null,null,null,null,null,null,null,null,null,null,null,null,null,"Double Buffalo","BR46-024-045",4607588,null,null,null,null,null,null,null,null,null,null,null,null,null,null,null,null,null,null,null,null,null,null,null,null,null,null,null,null,null,null,null,null,null,null,null,null,null,"IndianRouge 3",null,5592525]
[null,"Pantone 2756",7678003,null,null,null,null,null,null,null,null,null,null,null,null,null,null,null,null,null,null,null,null,null,null,null,null,null,null,null,null,null,null,null,null,null,null,null,null,null,"Double Oilskin","BR41-016-062",3818832,null,null,null,null,null,null,null,null,null,null,null,null,null,null,null,null,null,null,null,null,null,null,null,null,null,null,null,null,null,null,null,null,null,null,null,null,null,"IndianRouge 4",null,3816075]
[null,"Pantone 668",7686502,null,null,null,null,null,null,null,null,null,null,null,null,null,null,null,null,null,null,null,null,null,null,null,null,null,null,null,null,null,null,null,null,null,null,null,null,null,"Drumbeat","BR43-047-059",3097444,null,null,null,null,null,null,null,null,null,null,null,null,null,null,null,null,null,null,null,null,null,null,null,null,null,null,null,null,null,null,null,null,null,null,null,null,null,"Indigo",null,16260217]
[null,"Pantone 682",7688608,null,null,null,null,null,null,null,null,null,null,null,null,null,null,null,null,null,null,null,null,null,null,null,null,null,null,null,null,null,null,null,null,null,null,null,null,null,"Felix","BR41-016-039",4277587,null,null,null,null,null,null,null,null,null,null,null,null,null,null,null,null,null,null,null,null,null,null,null,null,null,null,null,null,null,null,null,null,null,null,null,null,null,"Indigo (teinture)",null,7077934]
[null,"Pantone 5405",7692351,null,null,null,null,null,null,null,null,null,null,null,null,null,null,null,null,null,null,null,null,null,null,null,null,null,null,null,null,null,null,null,null,null,null,null,null,null,"Fudge","BR41-057-049",2768490,null,null,null,null,null,null,null,null,null,null,null,null,null,null,null,null,null,null,null,null,null,null,null,null,null,null,null,null,null,null,null,null,null,null,null,null,null,"Iris Bleu",null,13153283]
[null,"Pantone 1777",7694076,null,null,null,null,null,null,null,null,null,null,null,null,null,null,null,null,null,null,null,null,null,null,null,null,null,null,null,null,null,null,null,null,null,null,null,null,null,"Groundbreaker","BR45-021-070",4214618,null,null,null,null,null,null,null,null,null,null,null,null,null,null,null,null,null,null,null,null,null,null,null,null,null,null,null,null,null,null,null,null,null,null,null,null,null,"Isabelle (chevaux)",null,3104376]
[null,"Pantone 3155",7695616,null,null,null,null,null,null,null,null,null,null,null,null,null,null,null,null,null,null,null,null,null,null,null,null,null,null,null,null,null,null,null,null,null,null,null,null,null,"Half Barista","BR40-014-021",4144977,null,null,null,null,null,null,null,null,null,null,null,null,null,null,null,null,null,null,null,null,null,null,null,null,null,null,null,null,null,null,null,null,null,null,null,null,null,"Ivoire",null,13959167]
[null,"Pantone 465",7710913,null,null,null,null,null,null,null,null,null,null,null,null,null,null,null,null,null,null,null,null,null,null,null,null,null,null,null,null,null,null,null,null,null,null,null,null,null,"Half Felix","BR48-013-039",5133154,null,null,null,null,null,null,null,null,null,null,null,null,null,null,null,null,null,null,null,null,null,null,null,null,null,null,null,null,null,null,null,null,null,null,null,null,null,"Ivoire",null,15794175]
[null,"Pantone 5787",7712170,null,null,null,null,null,null,null,null,null,null,null,null,null,null,null,null,null,null,null,null,null,null,null,null,null,null,null,null,null,null,null,null,null,null,null,null,null,"Half Hairy Heath","BR45-058-042",3753601,null,null,null,null,null,null,null,null,null,null,null,null,null,null,null,null,null,null,null,null,null,null,null,null,null,null,null,null,null,null,null,null,null,null,null,null,null,"Ivoire2",null,14741230]
[null,"Pantone 4515",7712188,null,null,null,null,null,null,null,null,null,null,null,null,null,null,null,null,null,null,null,null,null,null,null,null,null,null,null,null,null,null,null,null,null,null,null,null,null,"Half Lignite","BR43-015-055",4213078,null,null,null,null,null,null,null,null,null,null,null,null,null,null,null,null,null,null,null,null,null,null,null,null,null,null,null,null,null,null,null,null,null,null,null,null,null,"Ivoire3",null,12701133]
[null,"Pantone 2745",7798847,null,null,null,null,null,null,null,null,null,null,null,null,null,null,null,null,null,null,null,null,null,null,null,null,null,null,null,null,null,null,null,null,null,null,null,null,null,"Half Mondo","BR48-016-073",5069154,null,null,null,null,null,null,null,null,null,null,null,null,null,null,null,null,null,null,null,null,null,null,null,null,null,null,null,null,null,null,null,null,null,null,null,null,null,"Ivoire4",null,8620939]
[null,"Pantone 2748",7805982,null,null,null,null,null,null,null,null,null,null,null,null,null,null,null,null,null,null,null,null,null,null,null,null,null,null,null,null,null,null,null,null,null,null,null,null,null,"Irish Coffee","BR43-046-058",2835042,null,null,null,null,null,null,null,null,null,null,null,null,null,null,null,null,null,null,null,null,null,null,null,null,null,null,null,null,null,null,null,null,null,null,null,null,null,"Jaune auréolin",null,4379375]
[null,"Pantone 675",7813308,null,null,null,null,null,null,null,null,null,null,null,null,null,null,null,null,null,null,null,null,null,null,null,null,null,null,null,null,null,null,null,null,null,null,null,null,null,"Jambalaya","BR41-046-056",3426407,null,null,null,null,null,null,null,null,null,null,null,null,null,null,null,null,null,null,null,null,null,null,null,null,null,null,null,null,null,null,null,null,null,null,null,null,null,"Jaune banane",null,440017]
[null,"Pantone 543",7814912,null,null,null,null,null,null,null,null,null,null,null,null,null,null,null,null,null,null,null,null,null,null,null,null,null,null,null,null,null,null,null,null,null,null,null,null,null,"Judge Grey","BR46-018-071",4608861,null,null,null,null,null,null,null,null,null,null,null,null,null,null,null,null,null,null,null,null,null,null,null,null,null,null,null,null,null,null,null,null,null,null,null,null,null,"Jaune bouton d’or",null,1236214]
[null,"Pantone 5275",7820896,null,null,null,null,null,null,null,null,null,null,null,null,null,null,null,null,null,null,null,null,null,null,null,null,null,null,null,null,null,null,null,null,null,null,null,null,null,"Kakadu","BR40-044-078",2310485,null,null,null,null,null,null,null,null,null,null,null,null,null,null,null,null,null,null,null,null,null,null,null,null,null,null,null,null,null,null,null,null,null,null,null,null,null,"Jaune brillant",null,6216442]
[null,"Pantone 5205",7825550,null,null,null,null,null,null,null,null,null,null,null,null,null,null,null,null,null,null,null,null,null,null,null,null,null,null,null,null,null,null,null,null,null,null,null,null,null,"Kiwi","BR49-020-059",5200491,null,null,null,null,null,null,null,null,null,null,null,null,null,null,null,null,null,null,null,null,null,null,null,null,null,null,null,null,null,null,null,null,null,null,null,null,null,"Jaune canari",null,913639]
[null,"Pantone 709",7825650,null,null,null,null,null,null,null,null,null,null,null,null,null,null,null,null,null,null,null,null,null,null,null,null,null,null,null,null,null,null,null,null,null,null,null,null,null,"Masala","BR45-009-077",4936535,null,null,null,null,null,null,null,null,null,null,null,null,null,null,null,null,null,null,null,null,null,null,null,null,null,null,null,null,null,null,null,null,null,null,null,null,null,"Jaune citron",null,3997687]
[null,"Pantone 315",7826176,null,null,null,null,null,null,null,null,null,null,null,null,null,null,null,null,null,null,null,null,null,null,null,null,null,null,null,null,null,null,null,null,null,null,null,null,null,"Mash","BR44-019-058",4344922,null,null,null,null,null,null,null,null,null,null,null,null,null,null,null,null,null,null,null,null,null,null,null,null,null,null,null,null,null,null,null,null,null,null,null,null,null,"Jaune clair",null,8314616]
[null,"Pantone 424",7831426,null,null,null,null,null,null,null,null,null,null,null,null,null,null,null,null,null,null,null,null,null,null,null,null,null,null,null,null,null,null,null,null,null,null,null,null,null,"Mondo","BR43-014-073",4345173,null,null,null,null,null,null,null,null,null,null,null,null,null,null,null,null,null,null,null,null,null,null,null,null,null,null,null,null,null,null,null,null,null,null,null,null,null,"Jaune de chrome (pigment)",null,851949]
[null,"Pantone 327 2X",7833856,null,null,null,null,null,null,null,null,null,null,null,null,null,null,null,null,null,null,null,null,null,null,null,null,null,null,null,null,null,null,null,null,null,null,null,null,null,"Nest Egg","BR41-018-077",3818829,null,null,null,null,null,null,null,null,null,null,null,null,null,null,null,null,null,null,null,null,null,null,null,null,null,null,null,null,null,null,null,null,null,null,null,null,null,"Jaune de Mars",null,5493230]
[null,"Green 2X",7837184,null,null,null,null,null,null,null,null,null,null,null,null,null,null,null,null,null,null,null,null,null,null,null,null,null,null,null,null,null,null,null,null,null,null,null,null,null,"Nutmeg","BR48-056-043",3885694,null,null,null,null,null,null,null,null,null,null,null,null,null,null,null,null,null,null,null,null,null,null,null,null,null,null,null,null,null,null,null,null,null,null,null,null,null,"Jaune de Naples (pigment)",null,12382463]
[null,"Pantone 340",7837952,null,null,null,null,null,null,null,null,null,null,null,null,null,null,null,null,null,null,null,null,null,null,null,null,null,null,null,null,null,null,null,null,null,null,null,null,null,"Oilskin","BR46-016-062",4805461,null,null,null,null,null,null,null,null,null,null,null,null,null,null,null,null,null,null,null,null,null,null,null,null,null,null,null,null,null,null,null,null,null,null,null,null,null,"Jaune d'or",null,514287]
[null,"Pantone 4655",7838148,null,null,null,null,null,null,null,null,null,null,null,null,null,null,null,null,null,null,null,null,null,null,null,null,null,null,null,null,null,null,null,null,null,null,null,null,null,"Peanut","BR46-059-042",3425402,null,null,null,null,null,null,null,null,null,null,null,null,null,null,null,null,null,null,null,null,null,null,null,null,null,null,null,null,null,null,null,null,null,null,null,null,null,"Jaune fleur de soufre",null,7077887]
[null,"Pantone 1565",7841276,null,null,null,null,null,null,null,null,null,null,null,null,null,null,null,null,null,null,null,null,null,null,null,null,null,null,null,null,null,null,null,null,null,null,null,null,null,"Quarter Barista","BR47-013-018",5197665,null,null,null,null,null,null,null,null,null,null,null,null,null,null,null,null,null,null,null,null,null,null,null,null,null,null,null,null,null,null,null,null,null,null,null,null,null,"Jaune foncé",null,4493739]
[null,"Pantone 1485",7845887,null,null,null,null,null,null,null,null,null,null,null,null,null,null,null,null,null,null,null,null,null,null,null,null,null,null,null,null,null,null,null,null,null,null,null,null,null,"Quarter Lignite","BR48-015-059",5397355,null,null,null,null,null,null,null,null,null,null,null,null,null,null,null,null,null,null,null,null,null,null,null,null,null,null,null,null,null,null,null,null,null,null,null,null,null,"Jaune foncé grisâtre",null,6328225]
[null,"Reflex Blue 2X",7995420,null,null,null,null,null,null,null,null,null,null,null,null,null,null,null,null,null,null,null,null,null,null,null,null,null,null,null,null,null,null,null,null,null,null,null,null,null,"Quincy","BR48-028-057",4543594,null,null,null,null,null,null,null,null,null,null,null,null,null,null,null,null,null,null,null,null,null,null,null,null,null,null,null,null,null,null,null,null,null,null,null,null,null,"Jaune franc",null,3649492]
[null,"Pantone 2405",7995560,null,null,null,null,null,null,null,null,null,null,null,null,null,null,null,null,null,null,null,null,null,null,null,null,null,null,null,null,null,null,null,null,null,null,null,null,null,"Rambler","BR43-017-060",4015955,null,null,null,null,null,null,null,null,null,null,null,null,null,null,null,null,null,null,null,null,null,null,null,null,null,null,null,null,null,null,null,null,null,null,null,null,null,"Jaune grisâtre",null,8434370]
[null,"Pantone 2607",7995995,null,null,null,null,null,null,null,null,null,null,null,null,null,null,null,null,null,null,null,null,null,null,null,null,null,null,null,null,null,null,null,null,null,null,null,null,null,"Rock","BR45-019-063",4279642,null,null,null,null,null,null,null,null,null,null,null,null,null,null,null,null,null,null,null,null,null,null,null,null,null,null,null,null,null,null,null,null,null,null,null,null,null,"Jaune impérial",null,3597567]
[null,"Pantone 2603",8000624,null,null,null,null,null,null,null,null,null,null,null,null,null,null,null,null,null,null,null,null,null,null,null,null,null,null,null,null,null,null,null,null,null,null,null,null,null,"Rocky Road","BR41-021-061",3819095,null,null,null,null,null,null,null,null,null,null,null,null,null,null,null,null,null,null,null,null,null,null,null,null,null,null,null,null,null,null,null,null,null,null,null,null,null,"Jaune maïs",null,7724799]
[null,"Pantone 273",8001848,null,null,null,null,null,null,null,null,null,null,null,null,null,null,null,null,null,null,null,null,null,null,null,null,null,null,null,null,null,null,null,null,null,null,null,null,null,"Rough N Tumble","BR44-014-036",4738139,null,null,null,null,null,null,null,null,null,null,null,null,null,null,null,null,null,null,null,null,null,null,null,null,null,null,null,null,null,null,null,null,null,null,null,null,null,"Jaune mimosa",null,7141630]
[null,"Pantone 526",8003944,null,null,null,null,null,null,null,null,null,null,null,null,null,null,null,null,null,null,null,null,null,null,null,null,null,null,null,null,null,null,null,null,null,null,null,null,null,"Saddle","BR45-018-050",4607581,null,null,null,null,null,null,null,null,null,null,null,null,null,null,null,null,null,null,null,null,null,null,null,null,null,null,null,null,null,null,null,null,null,null,null,null,null,"Jaune moutarde",null,53191]
[null,"Warm Gray 8",8030614,null,null,null,null,null,null,null,null,null,null,null,null,null,null,null,null,null,null,null,null,null,null,null,null,null,null,null,null,null,null,null,null,null,null,null,null,null,"Spice","BR47-034-050",4149100,null,null,null,null,null,null,null,null,null,null,null,null,null,null,null,null,null,null,null,null,null,null,null,null,null,null,null,null,null,null,null,null,null,null,null,null,null,"Jaune moyen",null,6139593]
[null,"Pantone 416",8031374,null,null,null,null,null,null,null,null,null,null,null,null,null,null,null,null,null,null,null,null,null,null,null,null,null,null,null,null,null,null,null,null,null,null,null,null,null,"Tabac","BR46-016-074",4477016,null,null,null,null,null,null,null,null,null,null,null,null,null,null,null,null,null,null,null,null,null,null,null,null,null,null,null,null,null,null,null,null,null,null,null,null,null,"Jaune nankin",null,6939383]
[null,"Pantone 3405",8040960,null,null,null,null,null,null,null,null,null,null,null,null,null,null,null,null,null,null,null,null,null,null,null,null,null,null,null,null,null,null,null,null,null,null,null,null,null,"Tomahawk","BR42-014-031",4211538,null,null,null,null,null,null,null,null,null,null,null,null,null,null,null,null,null,null,null,null,null,null,null,null,null,null,null,null,null,null,null,null,null,null,null,null,null,"Jaune orangé clair",null,8374779]
[null,"Pantone 205",8146149,null,null,null,null,null,null,null,null,null,null,null,null,null,null,null,null,null,null,null,null,null,null,null,null,null,null,null,null,null,null,null,null,null,null,null,null,null,"Wombat","BR49-029-072",4478823,null,null,null,null,null,null,null,null,null,null,null,null,null,null,null,null,null,null,null,null,null,null,null,null,null,null,null,null,null,null,null,null,null,null,null,null,null,"Jaune orangé pâle",null,10868474]
[null,"Pantone 403",8162457,null,null,null,null,null,null,null,null,null,null,null,null,null,null,null,null,null,null,null,null,null,null,null,null,null,null,null,null,null,null,null,null,null,null,null,null,null,"Buffalo","BR52-023-041",5726070,null,null,null,null,null,null,null,null,null,null,null,null,null,null,null,null,null,null,null,null,null,null,null,null,null,null,null,null,null,null,null,null,null,null,null,null,null,"Jaune poussin",null,6284279]
[null,"Pantone 100",8187380,null,null,null,null,null,null,null,null,null,null,null,null,null,null,null,null,null,null,null,null,null,null,null,null,null,null,null,null,null,null,null,null,null,null,null,null,null,"Double Arrowtown","BR53-024-079",5465969,null,null,null,null,null,null,null,null,null,null,null,null,null,null,null,null,null,null,null,null,null,null,null,null,null,null,null,null,null,null,null,null,null,null,null,null,null,"Jaune verdâtre franc",null,3061694]
[null,"Pantone 5135",8350611,null,null,null,null,null,null,null,null,null,null,null,null,null,null,null,null,null,null,null,null,null,null,null,null,null,null,null,null,null,null,null,null,null,null,null,null,null,"Double Schooner","BR54-012-069",6449522,null,null,null,null,null,null,null,null,null,null,null,null,null,null,null,null,null,null,null,null,null,null,null,null,null,null,null,null,null,null,null,null,null,null,null,null,null,"Jaune verdâtre vif",null,54236]
[null,"Pantone 219",8530146,null,null,null,null,null,null,null,null,null,null,null,null,null,null,null,null,null,null,null,null,null,null,null,null,null,null,null,null,null,null,null,null,null,null,null,null,null,"Falcon","BR51-016-020",5986926,null,null,null,null,null,null,null,null,null,null,null,null,null,null,null,null,null,null,null,null,null,null,null,null,null,null,null,null,null,null,null,null,null,null,null,null,null,"Jaune4",null,35723]
[null,"Pantone 714",8567545,null,null,null,null,null,null,null,null,null,null,null,null,null,null,null,null,null,null,null,null,null,null,null,null,null,null,null,null,null,null,null,null,null,null,null,null,null,"Ironstone","BR51-055-042",4214918,null,null,null,null,null,null,null,null,null,null,null,null,null,null,null,null,null,null,null,null,null,null,null,null,null,null,null,null,null,null,null,null,null,null,null,null,null,"Lapis-lazuli",null,10248486]
[null,"Cool Gray 9",8685964,null,null,null,null,null,null,null,null,null,null,null,null,null,null,null,null,null,null,null,null,null,null,null,null,null,null,null,null,null,null,null,null,null,null,null,null,null,"Lotus","BR51-054-031",4935819,null,null,null,null,null,null,null,null,null,null,null,null,null,null,null,null,null,null,null,null,null,null,null,null,null,null,null,null,null,null,null,null,null,null,null,null,null,"LavenderBlush",null,16118015]
[null,"Pantone 653",8869427,null,null,null,null,null,null,null,null,null,null,null,null,null,null,null,null,null,null,null,null,null,null,null,null,null,null,null,null,null,null,null,null,null,null,null,null,null,"Pine Cone","BR53-023-065",5662069,null,null,null,null,null,null,null,null,null,null,null,null,null,null,null,null,null,null,null,null,null,null,null,null,null,null,null,null,null,null,null,null,null,null,null,null,null,"léger Acier Bleu",null,14599344]
[null,"Pantone 1355",8900348,null,null,null,null,null,null,null,null,null,null,null,null,null,null,null,null,null,null,null,null,null,null,null,null,null,null,null,null,null,null,null,null,null,null,null,null,null,"Roman Coffee","BR53-028-056",5728125,null,null,null,null,null,null,null,null,null,null,null,null,null,null,null,null,null,null,null,null,null,null,null,null,null,null,null,null,null,null,null,null,null,null,null,null,null,"léger Ardoise Bleu",null,16740484]
[null,"Pantone 667",9004671,null,null,null,null,null,null,null,null,null,null,null,null,null,null,null,null,null,null,null,null,null,null,null,null,null,null,null,null,null,null,null,null,null,null,null,null,null,"Spicy Mix","BR55-047-046",5070731,null,null,null,null,null,null,null,null,null,null,null,null,null,null,null,null,null,null,null,null,null,null,null,null,null,null,null,null,null,null,null,null,null,null,null,null,null,"léger Bleu3",null,13484186]
[null,"Pantone 321",9012992,null,null,null,null,null,null,null,null,null,null,null,null,null,null,null,null,null,null,null,null,null,null,null,null,null,null,null,null,null,null,null,null,null,null,null,null,null,"Stowaway","BR52-058-071",3759485,null,null,null,null,null,null,null,null,null,null,null,null,null,null,null,null,null,null,null,null,null,null,null,null,null,null,null,null,null,null,null,null,null,null,null,null,null,"léger Bleu4",null,9143144]
[null,"Pantone 5435",9206880,null,null,null,null,null,null,null,null,null,null,null,null,null,null,null,null,null,null,null,null,null,null,null,null,null,null,null,null,null,null,null,null,null,null,null,null,null,"Triple Rickshaw","BR59-036-062",5862288,null,null,null,null,null,null,null,null,null,null,null,null,null,null,null,null,null,null,null,null,null,null,null,null,null,null,null,null,null,null,null,null,null,null,null,null,null,"léger Corail ",null,8421616]
[null,"Pantone 694",9211081,null,null,null,null,null,null,null,null,null,null,null,null,null,null,null,null,null,null,null,null,null,null,null,null,null,null,null,null,null,null,null,null,null,null,null,null,null,"Zambezi","BR50-014-019",5921387,null,null,null,null,null,null,null,null,null,null,null,null,null,null,null,null,null,null,null,null,null,null,null,null,null,null,null,null,null,null,null,null,null,null,null,null,null,"léger Cyan3",null,13487540]
[null,"Pantone 339",9220608,null,null,null,null,null,null,null,null,null,null,null,null,null,null,null,null,null,null,null,null,null,null,null,null,null,null,null,null,null,null,null,null,null,null,null,null,null,"Bazaar","BR61-023-024",7829391,null,null,null,null,null,null,null,null,null,null,null,null,null,null,null,null,null,null,null,null,null,null,null,null,null,null,null,null,null,null,null,null,null,null,null,null,null,"léger Dorérod4",null,5013899]
[null,"Pantone 247",9306295,null,null,null,null,null,null,null,null,null,null,null,null,null,null,null,null,null,null,null,null,null,null,null,null,null,null,null,null,null,null,null,null,null,null,null,null,null,"Double Cougar","BR66-017-073",8425369,null,null,null,null,null,null,null,null,null,null,null,null,null,null,null,null,null,null,null,null,null,null,null,null,null,null,null,null,null,null,null,null,null,null,null,null,null,"léger Jaune3",null,11849165]
[null,"Pantone 190",9336316,null,null,null,null,null,null,null,null,null,null,null,null,null,null,null,null,null,null,null,null,null,null,null,null,null,null,null,null,null,null,null,null,null,null,null,null,null,"Double Rickshaw","BR63-038-063",6651805,null,null,null,null,null,null,null,null,null,null,null,null,null,null,null,null,null,null,null,null,null,null,null,null,null,null,null,null,null,null,null,null,null,null,null,null,null,"léger Rose 3",null,9800909]
[null,"Pantone 5793",9352629,null,null,null,null,null,null,null,null,null,null,null,null,null,null,null,null,null,null,null,null,null,null,null,null,null,null,null,null,null,null,null,null,null,null,null,null,null,"Eighth Oilskin","BR65-010-063",8555154,null,null,null,null,null,null,null,null,null,null,null,null,null,null,null,null,null,null,null,null,null,null,null,null,null,null,null,null,null,null,null,null,null,null,null,null,null,"léger Saumon 4",null,4347787]
[null,"Pantone 5483",9539936,null,null,null,null,null,null,null,null,null,null,null,null,null,null,null,null,null,null,null,null,null,null,null,null,null,null,null,null,null,null,null,null,null,null,null,null,null,"Half Sandstone","BR62-013-071",7766411,null,null,null,null,null,null,null,null,null,null,null,null,null,null,null,null,null,null,null,null,null,null,null,null,null,null,null,null,null,null,null,null,null,null,null,null,null,"Lilas",null,13788854]
[null,"Pantone 2735",9633871,null,null,null,null,null,null,null,null,null,null,null,null,null,null,null,null,null,null,null,null,null,null,null,null,null,null,null,null,null,null,null,null,null,null,null,null,null,"Hemp","BR62-025-045",7568792,null,null,null,null,null,null,null,null,null,null,null,null,null,null,null,null,null,null,null,null,null,null,null,null,null,null,null,null,null,null,null,null,null,null,null,null,null,"Magenta foncé",null,8388736]
[null,"Pantone 287",9648128,null,null,null,null,null,null,null,null,null,null,null,null,null,null,null,null,null,null,null,null,null,null,null,null,null,null,null,null,null,null,null,null,null,null,null,null,null,"Kubrick","BR60-021-028",7435406,null,null,null,null,null,null,null,null,null,null,null,null,null,null,null,null,null,null,null,null,null,null,null,null,null,null,null,null,null,null,null,null,null,null,null,null,null,"magenta4",null,9109643]
[null,"Pantone 5855",9684684,null,null,null,null,null,null,null,null,null,null,null,null,null,null,null,null,null,null,null,null,null,null,null,null,null,null,null,null,null,null,null,null,null,null,null,null,null,"Otter","BR62-021-052",7371663,null,null,null,null,null,null,null,null,null,null,null,null,null,null,null,null,null,null,null,null,null,null,null,null,null,null,null,null,null,null,null,null,null,null,null,null,null,"marin Coquillage 4",null,8554123]
[null,"Pantone 254",9842080,null,null,null,null,null,null,null,null,null,null,null,null,null,null,null,null,null,null,null,null,null,null,null,null,null,null,null,null,null,null,null,null,null,null,null,null,null,"Quarter Buffalo","BR66-014-033",8554137,null,null,null,null,null,null,null,null,null,null,null,null,null,null,null,null,null,null,null,null,null,null,null,null,null,null,null,null,null,null,null,null,null,null,null,null,null,"marin vert3",null,8441155]
[null,"Pantone 460",9887210,null,null,null,null,null,null,null,null,null,null,null,null,null,null,null,null,null,null,null,null,null,null,null,null,null,null,null,null,null,null,null,null,null,null,null,null,null,"Rascal","BR69-035-051",8097461,null,null,null,null,null,null,null,null,null,null,null,null,null,null,null,null,null,null,null,null,null,null,null,null,null,null,null,null,null,null,null,null,null,null,null,null,null,"Marron 2",null,10957038]
[null,"Pantone 609",9889258,null,null,null,null,null,null,null,null,null,null,null,null,null,null,null,null,null,null,null,null,null,null,null,null,null,null,null,null,null,null,null,null,null,null,null,null,null,"Rickshaw","BR69-031-063",8098218,null,null,null,null,null,null,null,null,null,null,null,null,null,null,null,null,null,null,null,null,null,null,null,null,null,null,null,null,null,null,null,null,null,null,null,null,null,"Marron 3",null,9447885]
[null,"Pantone 5145",10061741,null,null,null,null,null,null,null,null,null,null,null,null,null,null,null,null,null,null,null,null,null,null,null,null,null,null,null,null,null,null,null,null,null,null,null,null,null,"Spicy Pink","BR60-014-007",7894409,null,null,null,null,null,null,null,null,null,null,null,null,null,null,null,null,null,null,null,null,null,null,null,null,null,null,null,null,null,null,null,null,null,null,null,null,null,"MidnightBleu",null,7346457]
[null,"Pantone 708",10063609,null,null,null,null,null,null,null,null,null,null,null,null,null,null,null,null,null,null,null,null,null,null,null,null,null,null,null,null,null,null,null,null,null,null,null,null,null,"Stonehenge","BR61-012-073",7436930,null,null,null,null,null,null,null,null,null,null,null,null,null,null,null,null,null,null,null,null,null,null,null,null,null,null,null,null,null,null,null,null,null,null,null,null,null,"MintCream",null,16449525]
[null,"Pantone 5797",10077894,null,null,null,null,null,null,null,null,null,null,null,null,null,null,null,null,null,null,null,null,null,null,null,null,null,null,null,null,null,null,null,null,null,null,null,null,null,"Triple Drought","BR67-035-074",7376292,null,null,null,null,null,null,null,null,null,null,null,null,null,null,null,null,null,null,null,null,null,null,null,null,null,null,null,null,null,null,null,null,null,null,null,null,null,"Mordoré",null,1726855]
[null,"Pantone 808",10204416,null,null,null,null,null,null,null,null,null,null,null,null,null,null,null,null,null,null,null,null,null,null,null,null,null,null,null,null,null,null,null,null,null,null,null,null,null,"Triple Perfect Taupe","BR62-016-070",7305862,null,null,null,null,null,null,null,null,null,null,null,null,null,null,null,null,null,null,null,null,null,null,null,null,null,null,null,null,null,null,null,null,null,null,null,null,null,"Moyen Orchid",null,14381203]
[null,"Pantone 807",10354902,null,null,null,null,null,null,null,null,null,null,null,null,null,null,null,null,null,null,null,null,null,null,null,null,null,null,null,null,null,null,null,null,null,null,null,null,null,"Asteroid","BR71-012-035",9606821,null,null,null,null,null,null,null,null,null,null,null,null,null,null,null,null,null,null,null,null,null,null,null,null,null,null,null,null,null,null,null,null,null,null,null,null,null,"MoyenOrchid",null,13850042]
[null,"Pantone 687",10389961,null,null,null,null,null,null,null,null,null,null,null,null,null,null,null,null,null,null,null,null,null,null,null,null,null,null,null,null,null,null,null,null,null,null,null,null,null,"Calibre","BR71-055-063",7181507,null,null,null,null,null,null,null,null,null,null,null,null,null,null,null,null,null,null,null,null,null,null,null,null,null,null,null,null,null,null,null,null,null,null,null,null,null,"MoyenPourpre 1",null,16745131]
[null,"Pantone 3272",10398208,null,null,null,null,null,null,null,null,null,null,null,null,null,null,null,null,null,null,null,null,null,null,null,null,null,null,null,null,null,null,null,null,null,null,null,null,null,"Castaway","BR71-034-078",8034990,null,null,null,null,null,null,null,null,null,null,null,null,null,null,null,null,null,null,null,null,null,null,null,null,null,null,null,null,null,null,null,null,null,null,null,null,null,"MoyenPourpre 4",null,9127773]
[null,"Pantone 320",10526208,null,null,null,null,null,null,null,null,null,null,null,null,null,null,null,null,null,null,null,null,null,null,null,null,null,null,null,null,null,null,null,null,null,null,null,null,null,"Deja Vu","BR79-056-068",8498903,null,null,null,null,null,null,null,null,null,null,null,null,null,null,null,null,null,null,null,null,null,null,null,null,null,null,null,null,null,null,null,null,null,null,null,null,null,"NavajoBlanc 4",null,6191499]
[null,"Pantone 646",10715742,null,null,null,null,null,null,null,null,null,null,null,null,null,null,null,null,null,null,null,null,null,null,null,null,null,null,null,null,null,null,null,null,null,null,null,null,null,"Double Canterbury Clay","BR73-053-079",7315384,null,null,null,null,null,null,null,null,null,null,null,null,null,null,null,null,null,null,null,null,null,null,null,null,null,null,null,null,null,null,null,null,null,null,null,null,null,"Neige 3",null,13224397]
[null,"Pantone 480",10729427,null,null,null,null,null,null,null,null,null,null,null,null,null,null,null,null,null,null,null,null,null,null,null,null,null,null,null,null,null,null,null,null,null,null,null,null,null,"Double Tana","BR72-023-073",9217192,null,null,null,null,null,null,null,null,null,null,null,null,null,null,null,null,null,null,null,null,null,null,null,null,null,null,null,null,null,null,null,null,null,null,null,null,null,"New Tan",null,10405867]
[null,"Pantone 2592",10817427,null,null,null,null,null,null,null,null,null,null,null,null,null,null,null,null,null,null,null,null,null,null,null,null,null,null,null,null,null,null,null,null,null,null,null,null,null,"Half Doeskin","BR78-032-075",9678785,null,null,null,null,null,null,null,null,null,null,null,null,null,null,null,null,null,null,null,null,null,null,null,null,null,null,null,null,null,null,null,null,null,null,null,null,null,"Noir olivâtre",null,1909797]
[null,"Pantone 307",10844672,null,null,null,null,null,null,null,null,null,null,null,null,null,null,null,null,null,null,null,null,null,null,null,null,null,null,null,null,null,null,null,null,null,null,null,null,null,"Half Sandcastle","BR78-022-070",10597570,null,null,null,null,null,null,null,null,null,null,null,null,null,null,null,null,null,null,null,null,null,null,null,null,null,null,null,null,null,null,null,null,null,null,null,null,null,"Noisette",null,2643605]
[null,"Pantone 693",10856667,null,null,null,null,null,null,null,null,null,null,null,null,null,null,null,null,null,null,null,null,null,null,null,null,null,null,null,null,null,null,null,null,null,null,null,null,null,"Imagine","BR71-010-038",9738403,null,null,null,null,null,null,null,null,null,null,null,null,null,null,null,null,null,null,null,null,null,null,null,null,null,null,null,null,null,null,null,null,null,null,null,null,null,"Old Or",null,3913167]
[null,"Warm Gray 4",10859969,null,null,null,null,null,null,null,null,null,null,null,null,null,null,null,null,null,null,null,null,null,null,null,null,null,null,null,null,null,null,null,null,null,null,null,null,null,"Malta","BR70-023-073",8689573,null,null,null,null,null,null,null,null,null,null,null,null,null,null,null,null,null,null,null,null,null,null,null,null,null,null,null,null,null,null,null,null,null,null,null,null,null,"olive",null,32896]
[null,"Pantone 660",11034713,null,null,null,null,null,null,null,null,null,null,null,null,null,null,null,null,null,null,null,null,null,null,null,null,null,null,null,null,null,null,null,null,null,null,null,null,null,"Nobel","BR72-009-016",10329513,null,null,null,null,null,null,null,null,null,null,null,null,null,null,null,null,null,null,null,null,null,null,null,null,null,null,null,null,null,null,null,null,null,null,null,null,null,"Olive grisâtre",null,4347995]
[null,"Pantone 266",11151469,null,null,null,null,null,null,null,null,null,null,null,null,null,null,null,null,null,null,null,null,null,null,null,null,null,null,null,null,null,null,null,null,null,null,null,null,null,"Quarter Colins Wicket","BR74-032-080",8824759,null,null,null,null,null,null,null,null,null,null,null,null,null,null,null,null,null,null,null,null,null,null,null,null,null,null,null,null,null,null,null,null,null,null,null,null,null,"OliveDrab4",null,2263913]
[null,"Pantone 429",11186093,null,null,null,null,null,null,null,null,null,null,null,null,null,null,null,null,null,null,null,null,null,null,null,null,null,null,null,null,null,null,null,null,null,null,null,null,null,"Quarter Nullarbor","BR72-027-071",8953778,null,null,null,null,null,null,null,null,null,null,null,null,null,null,null,null,null,null,null,null,null,null,null,null,null,null,null,null,null,null,null,null,null,null,null,null,null,"Or3",null,44493]
[null,"Pantone 4745",11190232,null,null,null,null,null,null,null,null,null,null,null,null,null,null,null,null,null,null,null,null,null,null,null,null,null,null,null,null,null,null,null,null,null,null,null,null,null,"Routeburn","BR70-024-079",8559013,null,null,null,null,null,null,null,null,null,null,null,null,null,null,null,null,null,null,null,null,null,null,null,null,null,null,null,null,null,null,null,null,null,null,null,null,null,"Orange clair",null,8369658]
[null,"Pantone 615",11197410,null,null,null,null,null,null,null,null,null,null,null,null,null,null,null,null,null,null,null,null,null,null,null,null,null,null,null,null,null,null,null,null,null,null,null,null,null,"Shelter","BR75-031-078",8626612,null,null,null,null,null,null,null,null,null,null,null,null,null,null,null,null,null,null,null,null,null,null,null,null,null,null,null,null,null,null,null,null,null,null,null,null,null,"Orange rougeâtre foncé",null,3295134]
[null,"Pantone 2587",11356046,null,null,null,null,null,null,null,null,null,null,null,null,null,null,null,null,null,null,null,null,null,null,null,null,null,null,null,null,null,null,null,null,null,null,null,null,null,"Tabby","BR77-029-074",10007237,null,null,null,null,null,null,null,null,null,null,null,null,null,null,null,null,null,null,null,null,null,null,null,null,null,null,null,null,null,null,null,null,null,null,null,null,null,"Orange rougeâtre profond",null,1980586]
[null,"Pantone 461",11396589,null,null,null,null,null,null,null,null,null,null,null,null,null,null,null,null,null,null,null,null,null,null,null,null,null,null,null,null,null,null,null,null,null,null,null,null,null,"Half Biscotti","BR86-018-072",12307673,null,null,null,null,null,null,null,null,null,null,null,null,null,null,null,null,null,null,null,null,null,null,null,null,null,null,null,null,null,null,null,null,null,null,null,null,null,"orange4",null,23179]
[null,"Pantone 801 2X",11503872,null,null,null,null,null,null,null,null,null,null,null,null,null,null,null,null,null,null,null,null,null,null,null,null,null,null,null,null,null,null,null,null,null,null,null,null,null,"Soothe","BR81-014-041",11910096,null,null,null,null,null,null,null,null,null,null,null,null,null,null,null,null,null,null,null,null,null,null,null,null,null,null,null,null,null,null,null,null,null,null,null,null,null,"Orchid",null,14381275]
[null,"Cool Gray 5",11515834,null,null,null,null,null,null,null,null,null,null,null,null,null,null,null,null,null,null,null,null,null,null,null,null,null,null,null,null,null,null,null,null,null,null,null,null,null,"Helter Skelter","G29-009-099",2962227,null,null,null,null,null,null,null,null,null,null,null,null,null,null,null,null,null,null,null,null,null,null,null,null,null,null,null,null,null,null,null,null,null,null,null,null,null,"Orchidée",null,14053594]
[null,"Pantone 345",11524246,null,null,null,null,null,null,null,null,null,null,null,null,null,null,null,null,null,null,null,null,null,null,null,null,null,null,null,null,null,null,null,null,null,null,null,null,null,"Kermadec","G30-013-192",2763805,null,null,null,null,null,null,null,null,null,null,null,null,null,null,null,null,null,null,null,null,null,null,null,null,null,null,null,null,null,null,null,null,null,null,null,null,null,"PaleTurquoise1",null,16777147]
[null,"Pantone 645",11703927,null,null,null,null,null,null,null,null,null,null,null,null,null,null,null,null,null,null,null,null,null,null,null,null,null,null,null,null,null,null,null,null,null,null,null,null,null,"Green Waterloo","G31-009-105",2370860,null,null,null,null,null,null,null,null,null,null,null,null,null,null,null,null,null,null,null,null,null,null,null,null,null,null,null,null,null,null,null,null,null,null,null,null,null,"Palevert1",null,10157978]
[null,"Pantone 501",11711210,null,null,null,null,null,null,null,null,null,null,null,null,null,null,null,null,null,null,null,null,null,null,null,null,null,null,null,null,null,null,null,null,null,null,null,null,null,"Midnight Moss","G31-010-167",2633252,null,null,null,null,null,null,null,null,null,null,null,null,null,null,null,null,null,null,null,null,null,null,null,null,null,null,null,null,null,null,null,null,null,null,null,null,null,"PaleVioletRouge ",null,9662683]
[null,"Pantone 5507",11713199,null,null,null,null,null,null,null,null,null,null,null,null,null,null,null,null,null,null,null,null,null,null,null,null,null,null,null,null,null,null,null,null,null,null,null,null,null,"Rangoon Green","G31-010-112",2436651,null,null,null,null,null,null,null,null,null,null,null,null,null,null,null,null,null,null,null,null,null,null,null,null,null,null,null,null,null,null,null,null,null,null,null,null,null,"PaleVioletRouge 1",null,11240191]
[null,"Pantone 571",11716223,null,null,null,null,null,null,null,null,null,null,null,null,null,null,null,null,null,null,null,null,null,null,null,null,null,null,null,null,null,null,null,null,null,null,null,null,null,"Atlas","G33-028-195",3618577,null,null,null,null,null,null,null,null,null,null,null,null,null,null,null,null,null,null,null,null,null,null,null,null,null,null,null,null,null,null,null,null,null,null,null,null,null,"Papier bulle",null,9229293]
[null,"Pantone 3262",11911424,null,null,null,null,null,null,null,null,null,null,null,null,null,null,null,null,null,null,null,null,null,null,null,null,null,null,null,null,null,null,null,null,null,null,null,null,null,"Hunter Green","G34-013-109",2437423,null,null,null,null,null,null,null,null,null,null,null,null,null,null,null,null,null,null,null,null,null,null,null,null,null,null,null,null,null,null,null,null,null,null,null,null,null,"PeachPuff4",null,6649739]
[null,"Pantone 468",11917026,null,null,null,null,null,null,null,null,null,null,null,null,null,null,null,null,null,null,null,null,null,null,null,null,null,null,null,null,null,null,null,null,null,null,null,null,null,"Bottle Green","G35-028-166",3556901,null,null,null,null,null,null,null,null,null,null,null,null,null,null,null,null,null,null,null,null,null,null,null,null,null,null,null,null,null,null,null,null,null,null,null,null,null,"pierre à feu 1",null,3158271]
[null,"Pantone 5025",12041442,null,null,null,null,null,null,null,null,null,null,null,null,null,null,null,null,null,null,null,null,null,null,null,null,null,null,null,null,null,null,null,null,null,null,null,null,null,"Celtic","G36-020-170",3555115,null,null,null,null,null,null,null,null,null,null,null,null,null,null,null,null,null,null,null,null,null,null,null,null,null,null,null,null,null,null,null,null,null,null,null,null,null,"Plum",null,15379946]
[null,"Pantone 614",12051178,null,null,null,null,null,null,null,null,null,null,null,null,null,null,null,null,null,null,null,null,null,null,null,null,null,null,null,null,null,null,null,null,null,null,null,null,null,"Mallard","G36-024-126",3228986,null,null,null,null,null,null,null,null,null,null,null,null,null,null,null,null,null,null,null,null,null,null,null,null,null,null,null,null,null,null,null,null,null,null,null,null,null,"plum3",null,13473485]
[null,"Pantone 632",12230656,null,null,null,null,null,null,null,null,null,null,null,null,null,null,null,null,null,null,null,null,null,null,null,null,null,null,null,null,null,null,null,null,null,null,null,null,null,"County Green","G37-047-164",3492635,null,null,null,null,null,null,null,null,null,null,null,null,null,null,null,null,null,null,null,null,null,null,null,null,null,null,null,null,null,null,null,null,null,null,null,null,null,"Pourpre 1",null,16724123]
[null,"Pantone 4755",12242146,null,null,null,null,null,null,null,null,null,null,null,null,null,null,null,null,null,null,null,null,null,null,null,null,null,null,null,null,null,null,null,null,null,null,null,null,null,"Sherwood Green","G37-041-170",3556891,null,null,null,null,null,null,null,null,null,null,null,null,null,null,null,null,null,null,null,null,null,null,null,null,null,null,null,null,null,null,null,null,null,null,null,null,null,"Printempsvert3",null,6737152]
[null,"Pantone 514",12354776,null,null,null,null,null,null,null,null,null,null,null,null,null,null,null,null,null,null,null,null,null,null,null,null,null,null,null,null,null,null,null,null,null,null,null,null,null,"Goblin","G38-037-157",4018996,null,null,null,null,null,null,null,null,null,null,null,null,null,null,null,null,null,null,null,null,null,null,null,null,null,null,null,null,null,null,null,null,null,null,null,null,null,"Profond ciel Bleu4",null,9136128]
[null,"Pantone 581",12377568,null,null,null,null,null,null,null,null,null,null,null,null,null,null,null,null,null,null,null,null,null,null,null,null,null,null,null,null,null,null,null,null,null,null,null,null,null,"Seaweed","G38-025-121",2769207,null,null,null,null,null,null,null,null,null,null,null,null,null,null,null,null,null,null,null,null,null,null,null,null,null,null,null,null,null,null,null,null,null,null,null,null,null,"Prune",null,5444737]
[null,"Pantone 2577",12546730,null,null,null,null,null,null,null,null,null,null,null,null,null,null,null,null,null,null,null,null,null,null,null,null,null,null,null,null,null,null,null,null,null,null,null,null,null,"Jurassic","G40-011-170",4080695,null,null,null,null,null,null,null,null,null,null,null,null,null,null,null,null,null,null,null,null,null,null,null,null,null,null,null,null,null,null,null,null,null,null,null,null,null,"Rich Bleu",null,11229529]
[null,"Pantone 550",12562311,null,null,null,null,null,null,null,null,null,null,null,null,null,null,null,null,null,null,null,null,null,null,null,null,null,null,null,null,null,null,null,null,null,null,null,null,null,"Fervent Green","G41-046-129",2838329,null,null,null,null,null,null,null,null,null,null,null,null,null,null,null,null,null,null,null,null,null,null,null,null,null,null,null,null,null,null,null,null,null,null,null,null,null,"Rose 3",null,10392013]
[null,"Pantone 509",12565234,null,null,null,null,null,null,null,null,null,null,null,null,null,null,null,null,null,null,null,null,null,null,null,null,null,null,null,null,null,null,null,null,null,null,null,null,null,"Lush","G41-049-130",2640949,null,null,null,null,null,null,null,null,null,null,null,null,null,null,null,null,null,null,null,null,null,null,null,null,null,null,null,null,null,null,null,null,null,null,null,null,null,"Rose 4",null,7103371]
[null,"Pantone 5503",12567722,null,null,null,null,null,null,null,null,null,null,null,null,null,null,null,null,null,null,null,null,null,null,null,null,null,null,null,null,null,null,null,null,null,null,null,null,null,"Canyon","G42-012-165",4607555,null,null,null,null,null,null,null,null,null,null,null,null,null,null,null,null,null,null,null,null,null,null,null,null,null,null,null,null,null,null,null,null,null,null,null,null,null,"Rose clair",null,13290745]
[null,"Pantone 454",12572898,null,null,null,null,null,null,null,null,null,null,null,null,null,null,null,null,null,null,null,null,null,null,null,null,null,null,null,null,null,null,null,null,null,null,null,null,null,"Clover","G43-044-119",3102279,null,null,null,null,null,null,null,null,null,null,null,null,null,null,null,null,null,null,null,null,null,null,null,null,null,null,null,null,null,null,null,null,null,null,null,null,null,"Rose grisâtre",null,11382468]
[null,"Pantone 203",12693490,null,null,null,null,null,null,null,null,null,null,null,null,null,null,null,null,null,null,null,null,null,null,null,null,null,null,null,null,null,null,null,null,null,null,null,null,null,"Crusoe","G44-089-153",3234582,null,null,null,null,null,null,null,null,null,null,null,null,null,null,null,null,null,null,null,null,null,null,null,null,null,null,null,null,null,null,null,null,null,null,null,null,null,"Rose jaunâtre pâle",null,12965356]
[null,"Pantone 3248",12702586,null,null,null,null,null,null,null,null,null,null,null,null,null,null,null,null,null,null,null,null,null,null,null,null,null,null,null,null,null,null,null,null,null,null,null,null,null,"Saratoga","G44-055-106",2906965,null,null,null,null,null,null,null,null,null,null,null,null,null,null,null,null,null,null,null,null,null,null,null,null,null,null,null,null,null,null,null,null,null,null,null,null,null,"Rose pâle",null,14145770]
[null,"Pantone 265",12870550,null,null,null,null,null,null,null,null,null,null,null,null,null,null,null,null,null,null,null,null,null,null,null,null,null,null,null,null,null,null,null,null,null,null,null,null,null,"Green Pea","G45-060-159",4350502,null,null,null,null,null,null,null,null,null,null,null,null,null,null,null,null,null,null,null,null,null,null,null,null,null,null,null,null,null,null,null,null,null,null,null,null,null,"Rose violacé clair",null,13417455]
[null,"Pantone 672",12888810,null,null,null,null,null,null,null,null,null,null,null,null,null,null,null,null,null,null,null,null,null,null,null,null,null,null,null,null,null,null,null,null,null,null,null,null,null,"Dark Slate","G46-012-198",5395270,null,null,null,null,null,null,null,null,null,null,null,null,null,null,null,null,null,null,null,null,null,null,null,null,null,null,null,null,null,null,null,null,null,null,null,null,null,"Rose violacé profond",null,10579934]
[null,"Pantone 5235",12895965,null,null,null,null,null,null,null,null,null,null,null,null,null,null,null,null,null,null,null,null,null,null,null,null,null,null,null,null,null,null,null,null,null,null,null,null,null,"Blue Stone","G47-064-191",6382614,null,null,null,null,null,null,null,null,null,null,null,null,null,null,null,null,null,null,null,null,null,null,null,null,null,null,null,null,null,null,null,null,null,null,null,null,null,"RosyBrun 3",null,10197965]
[null,"Pantone 2655",13004187,null,null,null,null,null,null,null,null,null,null,null,null,null,null,null,null,null,null,null,null,null,null,null,null,null,null,null,null,null,null,null,null,null,null,null,null,null,"Jewel","G47-085-162",4417555,null,null,null,null,null,null,null,null,null,null,null,null,null,null,null,null,null,null,null,null,null,null,null,null,null,null,null,null,null,null,null,null,null,null,null,null,null,"Rouge capucine",null,5070591]
[null,"Pantone 631",13023060,null,null,null,null,null,null,null,null,null,null,null,null,null,null,null,null,null,null,null,null,null,null,null,null,null,null,null,null,null,null,null,null,null,null,null,null,null,"Green Fields","G48-055-134",3433278,null,null,null,null,null,null,null,null,null,null,null,null,null,null,null,null,null,null,null,null,null,null,null,null,null,null,null,null,null,null,null,null,null,null,null,null,null,"Rouge coquelicot",null,2246]
[null,"Pantone 428",13029073,null,null,null,null,null,null,null,null,null,null,null,null,null,null,null,null,null,null,null,null,null,null,null,null,null,null,null,null,null,null,null,null,null,null,null,null,null,"Caesar","G49-061-196",6776603,null,null,null,null,null,null,null,null,null,null,null,null,null,null,null,null,null,null,null,null,null,null,null,null,null,null,null,null,null,null,null,null,null,null,null,null,null,"Rouge écrevisse",null,73916]
[null,"Pantone 572",13032362,null,null,null,null,null,null,null,null,null,null,null,null,null,null,null,null,null,null,null,null,null,null,null,null,null,null,null,null,null,null,null,null,null,null,null,null,null,"Moxie","G49-096-154",3960576,null,null,null,null,null,null,null,null,null,null,null,null,null,null,null,null,null,null,null,null,null,null,null,null,null,null,null,null,null,null,null,null,null,null,null,null,null,"Rouge franc",null,4865980]
[null,"Pantone 245",13205480,null,null,null,null,null,null,null,null,null,null,null,null,null,null,null,null,null,null,null,null,null,null,null,null,null,null,null,null,null,null,null,null,null,null,null,null,null,"Robin Hood","G49-063-172",5730326,null,null,null,null,null,null,null,null,null,null,null,null,null,null,null,null,null,null,null,null,null,null,null,null,null,null,null,null,null,null,null,null,null,null,null,null,null,"Rouge grenadine",null,4143337]
[null,"Pantone 257",13215187,null,null,null,null,null,null,null,null,null,null,null,null,null,null,null,null,null,null,null,null,null,null,null,null,null,null,null,null,null,null,null,null,null,null,null,null,null,"Viktor","G49-012-146",5463637,null,null,null,null,null,null,null,null,null,null,null,null,null,null,null,null,null,null,null,null,null,null,null,null,null,null,null,null,null,null,null,null,null,null,null,null,null,"Rouge moyen",null,5394091]
[null,"Pantone 691",13226479,null,null,null,null,null,null,null,null,null,null,null,null,null,null,null,null,null,null,null,null,null,null,null,null,null,null,null,null,null,null,null,null,null,null,null,null,null,"Panzano","G50-020-119",5136987,null,null,null,null,null,null,null,null,null,null,null,null,null,null,null,null,null,null,null,null,null,null,null,null,null,null,null,null,null,null,null,null,null,null,null,null,null,"Rouge tomate",null,1452510]
[null,"Pantone 279",13404518,null,null,null,null,null,null,null,null,null,null,null,null,null,null,null,null,null,null,null,null,null,null,null,null,null,null,null,null,null,null,null,null,null,null,null,null,null,"Fiji Green","G52-083-106",2256739,null,null,null,null,null,null,null,null,null,null,null,null,null,null,null,null,null,null,null,null,null,null,null,null,null,null,null,null,null,null,null,null,null,null,null,null,null,"Rouge vif",null,3276990]
[null,"Pantone 5165",13421024,null,null,null,null,null,null,null,null,null,null,null,null,null,null,null,null,null,null,null,null,null,null,null,null,null,null,null,null,null,null,null,null,null,null,null,null,null,"Double Tapa","G53-011-101",6253162,null,null,null,null,null,null,null,null,null,null,null,null,null,null,null,null,null,null,null,null,null,null,null,null,null,null,null,null,null,null,null,null,null,null,null,null,null,"Rouge violacé profond",null,4855928]
[null,"Pantone 5595",13425624,null,null,null,null,null,null,null,null,null,null,null,null,null,null,null,null,null,null,null,null,null,null,null,null,null,null,null,null,null,null,null,null,null,null,null,null,null,"Siam","G53-028-105",5270376,null,null,null,null,null,null,null,null,null,null,null,null,null,null,null,null,null,null,null,null,null,null,null,null,null,null,null,null,null,null,null,null,null,null,null,null,null,"RoyalBleu",null,14772545]
[null,"Cool Gray 2",13555933,null,null,null,null,null,null,null,null,null,null,null,null,null,null,null,null,null,null,null,null,null,null,null,null,null,null,null,null,null,null,null,null,null,null,null,null,null,"Ming","G54-043-204",7828800,null,null,null,null,null,null,null,null,null,null,null,null,null,null,null,null,null,null,null,null,null,null,null,null,null,null,null,null,null,null,null,null,null,null,null,null,null,"RoyalBleu5",null,6693376]
[null,"Pantone 545",13744019,null,null,null,null,null,null,null,null,null,null,null,null,null,null,null,null,null,null,null,null,null,null,null,null,null,null,null,null,null,null,null,null,null,null,null,null,null,"Climate","G55-014-099",6188398,null,null,null,null,null,null,null,null,null,null,null,null,null,null,null,null,null,null,null,null,null,null,null,null,null,null,null,null,null,null,null,null,null,null,null,null,null,"Saumon",null,5607160]
[null,"Pantone 664",13749464,null,null,null,null,null,null,null,null,null,null,null,null,null,null,null,null,null,null,null,null,null,null,null,null,null,null,null,null,null,null,null,null,null,null,null,null,null,"Finlandia","G55-028-136",5993825,null,null,null,null,null,null,null,null,null,null,null,null,null,null,null,null,null,null,null,null,null,null,null,null,null,null,null,null,null,null,null,null,null,null,null,null,null,"Saumon 1",null,6917375]
[null,"Pantone 3245",13754508,null,null,null,null,null,null,null,null,null,null,null,null,null,null,null,null,null,null,null,null,null,null,null,null,null,null,null,null,null,null,null,null,null,null,null,null,null,"Socrates","G55-022-091",5860721,null,null,null,null,null,null,null,null,null,null,null,null,null,null,null,null,null,null,null,null,null,null,null,null,null,null,null,null,null,null,null,null,null,null,null,null,null,"Senois (héraldique)",null,2375821]
[null,"Pantone 236",13873145,null,null,null,null,null,null,null,null,null,null,null,null,null,null,null,null,null,null,null,null,null,null,null,null,null,null,null,null,null,null,null,null,null,null,null,null,null,"Breaker Bay","G56-035-195",7895889,null,null,null,null,null,null,null,null,null,null,null,null,null,null,null,null,null,null,null,null,null,null,null,null,null,null,null,null,null,null,null,null,null,null,null,null,null,"Sienne 2",null,4356590]
[null,"Pantone 5315",13882331,null,null,null,null,null,null,null,null,null,null,null,null,null,null,null,null,null,null,null,null,null,null,null,null,null,null,null,null,null,null,null,null,null,null,null,null,null,"Half Rivergum","G56-021-142",6583650,null,null,null,null,null,null,null,null,null,null,null,null,null,null,null,null,null,null,null,null,null,null,null,null,null,null,null,null,null,null,null,null,null,null,null,null,null,"Smalt",null,10040064]
[null,"Pantone 530",14069718,null,null,null,null,null,null,null,null,null,null,null,null,null,null,null,null,null,null,null,null,null,null,null,null,null,null,null,null,null,null,null,null,null,null,null,null,null,"Kokoda","G57-030-094",5929083,null,null,null,null,null,null,null,null,null,null,null,null,null,null,null,null,null,null,null,null,null,null,null,null,null,null,null,null,null,null,null,null,null,null,null,null,null,"Sombre marin vert4",null,6916969]
[null,"Pantone 256",14075109,null,null,null,null,null,null,null,null,null,null,null,null,null,null,null,null,null,null,null,null,null,null,null,null,null,null,null,null,null,null,null,null,null,null,null,null,null,"Willow Grove","G57-026-122",6059369,null,null,null,null,null,null,null,null,null,null,null,null,null,null,null,null,null,null,null,null,null,null,null,null,null,null,null,null,null,null,null,null,null,null,null,null,null,"Sombre Orchid",null,13447833]
[null,"Pantone 324",14081450,null,null,null,null,null,null,null,null,null,null,null,null,null,null,null,null,null,null,null,null,null,null,null,null,null,null,null,null,null,null,null,null,null,null,null,null,null,"Glade Green","G58-052-133",5341535,null,null,null,null,null,null,null,null,null,null,null,null,null,null,null,null,null,null,null,null,null,null,null,null,null,null,null,null,null,null,null,null,null,null,null,null,null,"Sombre Wood",null,4349573]
[null,"Pantone 5523",14081494,null,null,null,null,null,null,null,null,null,null,null,null,null,null,null,null,null,null,null,null,null,null,null,null,null,null,null,null,null,null,null,null,null,null,null,null,null,"Origin","G58-101-180",9083904,null,null,null,null,null,null,null,null,null,null,null,null,null,null,null,null,null,null,null,null,null,null,null,null,null,null,null,null,null,null,null,null,null,null,null,null,null,"SombreArdoise Bleu",null,9125192]
[null,"Pantone 2562",14199000,null,null,null,null,null,null,null,null,null,null,null,null,null,null,null,null,null,null,null,null,null,null,null,null,null,null,null,null,null,null,null,null,null,null,null,null,null,"Rolling Stone","G59-009-202",7764077,null,null,null,null,null,null,null,null,null,null,null,null,null,null,null,null,null,null,null,null,null,null,null,null,null,null,null,null,null,null,null,null,null,null,null,null,null,"SombreKhaki",null,7059389]
[null,"Pantone 649",14210774,null,null,null,null,null,null,null,null,null,null,null,null,null,null,null,null,null,null,null,null,null,null,null,null,null,null,null,null,null,null,null,null,null,null,null,null,null,"Tapa","G60-010-102",7502972,null,null,null,null,null,null,null,null,null,null,null,null,null,null,null,null,null,null,null,null,null,null,null,null,null,null,null,null,null,null,null,null,null,null,null,null,null,"SombreOrange",null,36095]
[null,"Pantone 284",14396021,null,null,null,null,null,null,null,null,null,null,null,null,null,null,null,null,null,null,null,null,null,null,null,null,null,null,null,null,null,null,null,null,null,null,null,null,null,"Half Evolution","G61-020-095",7044482,null,null,null,null,null,null,null,null,null,null,null,null,null,null,null,null,null,null,null,null,null,null,null,null,null,null,null,null,null,null,null,null,null,null,null,null,null,"SombreOrchid1",null,16727743]
[null,"Pantone 299",14525184,null,null,null,null,null,null,null,null,null,null,null,null,null,null,null,null,null,null,null,null,null,null,null,null,null,null,null,null,null,null,null,null,null,null,null,null,null,"Blue Chill","G62-057-202",9473856,null,null,null,null,null,null,null,null,null,null,null,null,null,null,null,null,null,null,null,null,null,null,null,null,null,null,null,null,null,null,null,null,null,null,null,null,null,"SombRouge orérod",null,755384]
[null,"Pantone 278",14531225,null,null,null,null,null,null,null,null,null,null,null,null,null,null,null,null,null,null,null,null,null,null,null,null,null,null,null,null,null,null,null,null,null,null,null,null,null,"Limeade","G62-123-120",2594655,null,null,null,null,null,null,null,null,null,null,null,null,null,null,null,null,null,null,null,null,null,null,null,null,null,null,null,null,null,null,null,null,null,null,null,null,null,"SombRouge orérod3",null,824781]
[null,"Pantone 636",14538393,null,null,null,null,null,null,null,null,null,null,null,null,null,null,null,null,null,null,null,null,null,null,null,null,null,null,null,null,null,null,null,null,null,null,null,null,null,"Xanadu","G62-025-136",7243637,null,null,null,null,null,null,null,null,null,null,null,null,null,null,null,null,null,null,null,null,null,null,null,null,null,null,null,null,null,null,null,null,null,null,null,null,null,"Tan",null,7377883]
[null,"Pantone 263",14733024,null,null,null,null,null,null,null,null,null,null,null,null,null,null,null,null,null,null,null,null,null,null,null,null,null,null,null,null,null,null,null,null,null,null,null,null,null,"Chateau Green","G63-098-149",5873473,null,null,null,null,null,null,null,null,null,null,null,null,null,null,null,null,null,null,null,null,null,null,null,null,null,null,null,null,null,null,null,null,null,null,null,null,null,"Terre de Sienne",null,3429518]
[null,"Pantone 283",14861467,null,null,null,null,null,null,null,null,null,null,null,null,null,null,null,null,null,null,null,null,null,null,null,null,null,null,null,null,null,null,null,null,null,null,null,null,null,"Spirulina","G63-050-136",6327400,null,null,null,null,null,null,null,null,null,null,null,null,null,null,null,null,null,null,null,null,null,null,null,null,null,null,null,null,null,null,null,null,null,null,null,null,null,"thistle2",null,15651566]
[null,"Pantone 304",14867877,null,null,null,null,null,null,null,null,null,null,null,null,null,null,null,null,null,null,null,null,null,null,null,null,null,null,null,null,null,null,null,null,null,null,null,null,null,"Double Lemon Grass","G64-022-101",7637899,null,null,null,null,null,null,null,null,null,null,null,null,null,null,null,null,null,null,null,null,null,null,null,null,null,null,null,null,null,null,null,null,null,null,null,null,null,"Tomate 3",null,3755981]
[null,null,null,null,null,null,null,null,null,null,null,null,null,null,null,null,null,null,null,null,null,null,null,null,null,null,null,null,null,null,null,null,null,null,null,null,null,null,null,null,"Wasabi","G64-096-105",3641732,null,null,null,null,null,null,null,null,null,null,null,null,null,null,null,null,null,null,null,null,null,null,null,null,null,null,null,null,null,null,null,null,null,null,null,null,null,"turquoise2",null,15656192]
[null,null,null,null,null,null,null,null,null,null,null,null,null,null,null,null,null,null,null,null,null,null,null,null,null,null,null,null,null,null,null,null,null,null,null,null,null,null,null,null,"Gossamer","G65-076-178",8822585,null,null,null,null,null,null,null,null,null,null,null,null,null,null,null,null,null,null,null,null,null,null,null,null,null,null,null,null,null,null,null,null,null,null,null,null,null,"Vanille",null,10145505]
[null,null,null,null,null,null,null,null,null,null,null,null,null,null,null,null,null,null,null,null,null,null,null,null,null,null,null,null,null,null,null,null,null,null,null,null,null,null,null,null,"Sushi","G65-114-110",3121020,null,null,null,null,null,null,null,null,null,null,null,null,null,null,null,null,null,null,null,null,null,null,null,null,null,null,null,null,null,null,null,null,null,null,null,null,null,"Vert anis",null,5630111]
[null,null,null,null,null,null,null,null,null,null,null,null,null,null,null,null,null,null,null,null,null,null,null,null,null,null,null,null,null,null,null,null,null,null,null,null,null,null,null,null,"Tree Frog","G65-143-134",4433744,null,null,null,null,null,null,null,null,null,null,null,null,null,null,null,null,null,null,null,null,null,null,null,null,null,null,null,null,null,null,null,null,null,null,null,null,null,"Vert avocat",null,229974]
[null,null,null,null,null,null,null,null,null,null,null,null,null,null,null,null,null,null,null,null,null,null,null,null,null,null,null,null,null,null,null,null,null,null,null,null,null,null,null,null,"Granny Smith","G66-020-189",9213051,null,null,null,null,null,null,null,null,null,null,null,null,null,null,null,null,null,null,null,null,null,null,null,null,null,null,null,null,null,null,null,null,null,null,null,null,null,"Vert bleuâtre moyen",null,7567409]
[null,null,null,null,null,null,null,null,null,null,null,null,null,null,null,null,null,null,null,null,null,null,null,null,null,null,null,null,null,null,null,null,null,null,null,null,null,null,null,null,"Quarter Evolution","G66-016-096",8426136,null,null,null,null,null,null,null,null,null,null,null,null,null,null,null,null,null,null,null,null,null,null,null,null,null,null,null,null,null,null,null,null,null,null,null,null,null,"Vert brillant",null,9024574]
[null,null,null,null,null,null,null,null,null,null,null,null,null,null,null,null,null,null,null,null,null,null,null,null,null,null,null,null,null,null,null,null,null,null,null,null,null,null,null,null,"Niagara","G67-091-177",9152809,null,null,null,null,null,null,null,null,null,null,null,null,null,null,null,null,null,null,null,null,null,null,null,null,null,null,null,null,null,null,null,null,null,null,null,null,null,"Vert de gris",null,9807253]
[null,null,null,null,null,null,null,null,null,null,null,null,null,null,null,null,null,null,null,null,null,null,null,null,null,null,null,null,null,null,null,null,null,null,null,null,null,null,null,null,"Amulet","G68-043-134",7511421,null,null,null,null,null,null,null,null,null,null,null,null,null,null,null,null,null,null,null,null,null,null,null,null,null,null,null,null,null,null,null,null,null,null,null,null,null,"Vert émeraude ou Smaragdin",null,5822209]
[null,null,null,null,null,null,null,null,null,null,null,null,null,null,null,null,null,null,null,null,null,null,null,null,null,null,null,null,null,null,null,null,null,null,null,null,null,null,null,null,"Lucky","G68-141-092",1874603,null,null,null,null,null,null,null,null,null,null,null,null,null,null,null,null,null,null,null,null,null,null,null,null,null,null,null,null,null,null,null,null,null,null,null,null,null,"Vert grisâtre",null,6975838]
[null,null,null,null,null,null,null,null,null,null,null,null,null,null,null,null,null,null,null,null,null,null,null,null,null,null,null,null,null,null,null,null,null,null,null,null,null,null,null,null,"Gingko","G69-074-092",5610661,null,null,null,null,null,null,null,null,null,null,null,null,null,null,null,null,null,null,null,null,null,null,null,null,null,null,null,null,null,null,null,null,null,null,null,null,null,"Vert jaunâtre foncé",null,3890741]
[null,null,null,null,null,null,null,null,null,null,null,null,null,null,null,null,null,null,null,null,null,null,null,null,null,null,null,null,null,null,null,null,null,null,null,null,null,null,null,null,"Frontier","G70-033-106",8035737,null,null,null,null,null,null,null,null,null,null,null,null,null,null,null,null,null,null,null,null,null,null,null,null,null,null,null,null,null,null,null,null,null,null,null,null,null,"Vert jaunâtre très profond",null,1585408]
[null,null,null,null,null,null,null,null,null,null,null,null,null,null,null,null,null,null,null,null,null,null,null,null,null,null,null,null,null,null,null,null,null,null,null,null,null,null,null,null,"Organic","G70-027-114",8428950,null,null,null,null,null,null,null,null,null,null,null,null,null,null,null,null,null,null,null,null,null,null,null,null,null,null,null,null,null,null,null,null,null,null,null,null,null,"Vert jaune grisâtre",null,7968655]
[null,null,null,null,null,null,null,null,null,null,null,null,null,null,null,null,null,null,null,null,null,null,null,null,null,null,null,null,null,null,null,null,null,null,null,null,null,null,null,null,"Apple","G71-106-132",4764518,null,null,null,null,null,null,null,null,null,null,null,null,null,null,null,null,null,null,null,null,null,null,null,null,null,null,null,null,null,null,null,null,null,null,null,null,null,"Vert kaki",null,3377529]
[null,null,null,null,null,null,null,null,null,null,null,null,null,null,null,null,null,null,null,null,null,null,null,null,null,null,null,null,null,null,null,null,null,null,null,null,null,null,null,null,"Envy","G71-028-149",9414027,null,null,null,null,null,null,null,null,null,null,null,null,null,null,null,null,null,null,null,null,null,null,null,null,null,null,null,null,null,null,null,null,null,null,null,null,null,"Vert mélèze",null,4747064]
[null,null,null,null,null,null,null,null,null,null,null,null,null,null,null,null,null,null,null,null,null,null,null,null,null,null,null,null,null,null,null,null,null,null,null,null,null,null,null,null,"Double Ash","G72-016-092",9610151,null,null,null,null,null,null,null,null,null,null,null,null,null,null,null,null,null,null,null,null,null,null,null,null,null,null,null,null,null,null,null,null,null,null,null,null,null,"Vert noirâtre",null,2171930]
[null,null,null,null,null,null,null,null,null,null,null,null,null,null,null,null,null,null,null,null,null,null,null,null,null,null,null,null,null,null,null,null,null,null,null,null,null,null,null,null,"Neptune","G72-036-204",11249783,null,null,null,null,null,null,null,null,null,null,null,null,null,null,null,null,null,null,null,null,null,null,null,null,null,null,null,null,null,null,null,null,null,null,null,null,null,"Vert olive grisâtre",null,4478801]
[null,null,null,null,null,null,null,null,null,null,null,null,null,null,null,null,null,null,null,null,null,null,null,null,null,null,null,null,null,null,null,null,null,null,null,null,null,null,null,null,"Tradewind","G72-047-191",10989421,null,null,null,null,null,null,null,null,null,null,null,null,null,null,null,null,null,null,null,null,null,null,null,null,null,null,null,null,null,null,null,null,null,null,null,null,null,"Vert olive moyen",null,2317642]
[null,null,null,null,null,null,null,null,null,null,null,null,null,null,null,null,null,null,null,null,null,null,null,null,null,null,null,null,null,null,null,null,null,null,null,null,null,null,null,null,"Elixir","G73-042-109",8301220,null,null,null,null,null,null,null,null,null,null,null,null,null,null,null,null,null,null,null,null,null,null,null,null,null,null,null,null,null,null,null,null,null,null,null,null,null,"Vert pin",null,7305473]
[null,null,null,null,null,null,null,null,null,null,null,null,null,null,null,null,null,null,null,null,null,null,null,null,null,null,null,null,null,null,null,null,null,null,null,null,null,null,null,null,"Padua","G73-044-161",9745278,null,null,null,null,null,null,null,null,null,null,null,null,null,null,null,null,null,null,null,null,null,null,null,null,null,null,null,null,null,null,null,null,null,null,null,null,null,"Vert printemps",null,8322560]
[null,null,null,null,null,null,null,null,null,null,null,null,null,null,null,null,null,null,null,null,null,null,null,null,null,null,null,null,null,null,null,null,null,null,null,null,null,null,null,null,"Half Limerick","G74-150-109",1949336,null,null,null,null,null,null,null,null,null,null,null,null,null,null,null,null,null,null,null,null,null,null,null,null,null,null,null,null,null,null,null,null,null,null,null,null,null,"Vert tilleul",null,5427621]
[null,null,null,null,null,null,null,null,null,null,null,null,null,null,null,null,null,null,null,null,null,null,null,null,null,null,null,null,null,null,null,null,null,null,null,null,null,null,null,null,"Puerto Rico","G74-068-179",10730073,null,null,null,null,null,null,null,null,null,null,null,null,null,null,null,null,null,null,null,null,null,null,null,null,null,null,null,null,null,null,null,null,null,null,null,null,null,"Vert Véronèse (pigment)",null,2188634]
[null,null,null,null,null,null,null,null,null,null,null,null,null,null,null,null,null,null,null,null,null,null,null,null,null,null,null,null,null,null,null,null,null,null,null,null,null,null,null,null,"Freelance","G75-066-183",11386709,null,null,null,null,null,null,null,null,null,null,null,null,null,null,null,null,null,null,null,null,null,null,null,null,null,null,null,null,null,null,null,null,null,null,null,null,null,"vertJaune",null,3145645]
[null,null,null,null,null,null,null,null,null,null,null,null,null,null,null,null,null,null,null,null,null,null,null,null,null,null,null,null,null,null,null,null,null,null,null,null,null,null,null,null,"Silver Tree","G75-070-162",9485927,null,null,null,null,null,null,null,null,null,null,null,null,null,null,null,null,null,null,null,null,null,null,null,null,null,null,null,null,null,null,null,null,null,null,null,null,null,"Violet",null,5189455]
[null,null,null,null,null,null,null,null,null,null,null,null,null,null,null,null,null,null,null,null,null,null,null,null,null,null,null,null,null,null,null,null,null,null,null,null,null,null,null,null,"Dizzy Lizzy","G76-163-118",2869889,null,null,null,null,null,null,null,null,null,null,null,null,null,null,null,null,null,null,null,null,null,null,null,null,null,null,null,null,null,null,null,null,null,null,null,null,null,"Violet foncé",null,6044758]
[null,null,null,null,null,null,null,null,null,null,null,null,null,null,null,null,null,null,null,null,null,null,null,null,null,null,null,null,null,null,null,null,null,null,null,null,null,null,null,null,"Stone Age","G76-041-095",8762038,null,null,null,null,null,null,null,null,null,null,null,null,null,null,null,null,null,null,null,null,null,null,null,null,null,null,null,null,null,null,null,null,null,null,null,null,null,"Violet pâle",null,11114666]
[null,null,null,null,null,null,null,null,null,null,null,null,null,null,null,null,null,null,null,null,null,null,null,null,null,null,null,null,null,null,null,null,null,null,null,null,null,null,null,null,"Bel Air","G77-009-139",11187629,null,null,null,null,null,null,null,null,null,null,null,null,null,null,null,null,null,null,null,null,null,null,null,null,null,null,null,null,null,null,null,null,null,null,null,null,null,"Violet rougeâtre franc",null,8933278]
[null,null,null,null,null,null,null,null,null,null,null,null,null,null,null,null,null,null,null,null,null,null,null,null,null,null,null,null,null,null,null,null,null,null,null,null,null,null,null,null,"Quarter Taupe Grey","G77-008-093",10726831,null,null,null,null,null,null,null,null,null,null,null,null,null,null,null,null,null,null,null,null,null,null,null,null,null,null,null,null,null,null,null,null,null,null,null,null,null,"Violet rougeâtre très foncé",null,3217204]
[null,null,null,null,null,null,null,null,null,null,null,null,null,null,null,null,null,null,null,null,null,null,null,null,null,null,null,null,null,null,null,null,null,null,null,null,null,null,null,null,"Copyrite","G78-010-098",10924724,null,null,null,null,null,null,null,null,null,null,null,null,null,null,null,null,null,null,null,null,null,null,null,null,null,null,null,null,null,null,null,null,null,null,null,null,null,"Violet très pâle",null,14535382]
[null,null,null,null,null,null,null,null,null,null,null,null,null,null,null,null,null,null,null,null,null,null,null,null,null,null,null,null,null,null,null,null,null,null,null,null,null,null,null,null,"Pebble Grey","G78-012-098",10793908,null,null,null,null,null,null,null,null,null,null,null,null,null,null,null,null,null,null,null,null,null,null,null,null,null,null,null,null,null,null,null,null,null,null,null,null,null,"VioletRouge 2",null,9190126]
[null,null,null,null,null,null,null,null,null,null,null,null,null,null,null,null,null,null,null,null,null,null,null,null,null,null,null,null,null,null,null,null,null,null,null,null,null,null,null,null,"Quarter Crisp Green","G78-055-100",8107192,null,null,null,null,null,null,null,null,null,null,null,null,null,null,null,null,null,null,null,null,null,null,null,null,null,null,null,null,null,null,null,null,null,null,null,null,null,"VioletRouge 3",null,7877325]
[null,null,null,null,null,null,null,null,null,null,null,null,null,null,null,null,null,null,null,null,null,null,null,null,null,null,null,null,null,null,null,null,null,null,null,null,null,null,null,null,"Bird Flower","G79-178-093",1556944,null,null,null,null,null,null,null,null,null,null,null,null,null,null,null,null,null,null,null,null,null,null,null,null,null,null,null,null,null,null,null,null,null,null,null,null,null,"Wheat",null,12572888]
[null,null,null,null,null,null,null,null,null,null,null,null,null,null,null,null,null,null,null,null,null,null,null,null,null,null,null,null,null,null,null,null,null,null,null,null,null,null,null,null,"Happy Hour","G79-120-111",4835753,null,null,null,null,null,null,null,null,null,null,null,null,null,null,null,null,null,null,null,null,null,null,null,null,null,null,null,null,null,null,null,null,null,null,null,null,null,null,null,8947848]
[null,null,null,null,null,null,null,null,null,null,null,null,null,null,null,null,null,null,null,null,null,null,null,null,null,null,null,null,null,null,null,null,null,null,null,null,null,null,null,null,"Rivendell","G79-014-177",11976105,null,null,null,null,null,null,null,null,null,null,null,null,null,null,null,null,null,null,null,null,null,null,null,null,null,null,null,null,null,null,null,null,null,null,null,null,null,null,null,13408614]
[null,null,null,null,null,null,null,null,null,null,null,null,null,null,null,null,null,null,null,null,null,null,null,null,null,null,null,null,null,null,null,null,null,null,null,null,null,null,null,null,"Barberry","G80-159-093",2082514]
[null,null,null,null,null,null,null,null,null,null,null,null,null,null,null,null,null,null,null,null,null,null,null,null,null,null,null,null,null,null,null,null,null,null,null,null,null,null,null,null,"Linen","G80-020-097",10663866]
[null,null,null,null,null,null,null,null,null,null,null,null,null,null,null,null,null,null,null,null,null,null,null,null,null,null,null,null,null,null,null,null,null,null,null,null,null,null,null,null,"Quarter Lemon Grass","G80-013-109",11517626]
[null,null,null,null,null,null,null,null,null,null,null,null,null,null,null,null,null,null,null,null,null,null,null,null,null,null,null,null,null,null,null,null,null,null,null,null,null,null,null,null,"Kidnapper","G81-015-104",11255999]
[null,null,null,null,null,null,null,null,null,null,null,null,null,null,null,null,null,null,null,null,null,null,null,null,null,null,null,null,null,null,null,null,null,null,null,null,null,null,null,null,"Beryl Green","G82-021-109",11059132]
[null,null,null,null,null,null,null,null,null,null,null,null,null,null,null,null,null,null,null,null,null,null,null,null,null,null,null,null,null,null,null,null,null,null,null,null,null,null,null,null,"Ipanema","G82-121-094",4966108]
[null,null,null,null,null,null,null,null,null,null,null,null,null,null,null,null,null,null,null,null,null,null,null,null,null,null,null,null,null,null,null,null,null,null,null,null,null,null,null,null,"Onepoto","G82-048-194",13751169]
[null,null,null,null,null,null,null,null,null,null,null,null,null,null,null,null,null,null,null,null,null,null,null,null,null,null,null,null,null,null,null,null,null,null,null,null,null,null,null,null,"Feijoa","G83-077-128",8771493]
[null,null,null,null,null,null,null,null,null,null,null,null,null,null,null,null,null,null,null,null,null,null,null,null,null,null,null,null,null,null,null,null,null,null,null,null,null,null,null,null,"Nebula","G83-012-165",12502712]
[null,null,null,null,null,null,null,null,null,null,null,null,null,null,null,null,null,null,null,null,null,null,null,null,null,null,null,null,null,null,null,null,null,null,null,null,null,null,null,null,"Pixie Green","G83-034-121",10866107]
[null,null,null,null,null,null,null,null,null,null,null,null,null,null,null,null,null,null,null,null,null,null,null,null,null,null,null,null,null,null,null,null,null,null,null,null,null,null,null,null,"Conifer","G84-124-113",5430705]
[null,null,null,null,null,null,null,null,null,null,null,null,null,null,null,null,null,null,null,null,null,null,null,null,null,null,null,null,null,null,null,null,null,null,null,null,null,null,null,null,"Paris White","G84-013-147",12635583]
[null,null,null,null,null,null,null,null,null,null,null,null,null,null,null,null,null,null,null,null,null,null,null,null,null,null,null,null,null,null,null,null,null,null,null,null,null,null,null,null,"Titania","G84-012-095",12175306]
[null,null,null,null,null,null,null,null,null,null,null,null,null,null,null,null,null,null,null,null,null,null,null,null,null,null,null,null,null,null,null,null,null,null,null,null,null,null,null,null,"Bright Lights","G85-160-095",2480105]
[null,null,null,null,null,null,null,null,null,null,null,null,null,null,null,null,null,null,null,null,null,null,null,null,null,null,null,null,null,null,null,null,null,null,null,null,null,null,null,null,"Miso","G85-031-094",11062482]
[null,null,null,null,null,null,null,null,null,null,null,null,null,null,null,null,null,null,null,null,null,null,null,null,null,null,null,null,null,null,null,null,null,null,null,null,null,null,null,null,"Yellow Submarine","G85-158-092",3396328]
[null,null,null,null,null,null,null,null,null,null,null,null,null,null,null,null,null,null,null,null,null,null,null,null,null,null,null,null,null,null,null,null,null,null,null,null,null,null,null,null,"Manz","G86-120-095",5626852]
[null,null,null,null,null,null,null,null,null,null,null,null,null,null,null,null,null,null,null,null,null,null,null,null,null,null,null,null,null,null,null,null,null,null,null,null,null,null,null,null,"Surf Crest","G86-021-137",12441283]
[null,null,null,null,null,null,null,null,null,null,null,null,null,null,null,null,null,null,null,null,null,null,null,null,null,null,null,null,null,null,null,null,null,null,null,null,null,null,null,null,"Wild Rice","G86-088-092",7656675]
[null,null,null,null,null,null,null,null,null,null,null,null,null,null,null,null,null,null,null,null,null,null,null,null,null,null,null,null,null,null,null,null,null,null,null,null,null,null,null,null,"Kandinsky","G87-027-134",12441795]
[null,null,null,null,null,null,null,null,null,null,null,null,null,null,null,null,null,null,null,null,null,null,null,null,null,null,null,null,null,null,null,null,null,null,null,null,null,null,null,null,"Woodstock","G87-058-119",6331523]
[null,null,null,null,null,null,null,null,null,null,null,null,null,null,null,null,null,null,null,null,null,null,null,null,null,null,null,null,null,null,null,null,null,null,null,null,null,null,null,null,"Hypnotic","G88-080-108",8577489]
[null,null,null,null,null,null,null,null,null,null,null,null,null,null,null,null,null,null,null,null,null,null,null,null,null,null,null,null,null,null,null,null,null,null,null,null,null,null,null,null,"Ice Cold","G88-034-184",14082991]
[null,null,null,null,null,null,null,null,null,null,null,null,null,null,null,null,null,null,null,null,null,null,null,null,null,null,null,null,null,null,null,null,null,null,null,null,null,null,null,null,"Quarter Linen","G88-011-094",13161944]
[null,null,null,null,null,null,null,null,null,null,null,null,null,null,null,null,null,null,null,null,null,null,null,null,null,null,null,null,null,null,null,null,null,null,null,null,null,null,null,null,"Carefree","G89-010-157",14015953]
[null,null,null,null,null,null,null,null,null,null,null,null,null,null,null,null,null,null,null,null,null,null,null,null,null,null,null,null,null,null,null,null,null,null,null,null,null,null,null,null,"Reservoir","G89-023-183",14475967]
[null,null,null,null,null,null,null,null,null,null,null,null,null,null,null,null,null,null,null,null,null,null,null,null,null,null,null,null,null,null,null,null,null,null,null,null,null,null,null,null,"Ying Yang","G89-025-104",12508378]
[null,null,null,null,null,null,null,null,null,null,null,null,null,null,null,null,null,null,null,null,null,null,null,null,null,null,null,null,null,null,null,null,null,null,null,null,null,null,null,null,"Eighth Tana","G90-010-096",13754080]
[null,null,null,null,null,null,null,null,null,null,null,null,null,null,null,null,null,null,null,null,null,null,null,null,null,null,null,null,null,null,null,null,null,null,null,null,null,null,null,null,"Half Ecru White","G90-013-091",13425888]
[null,null,null,null,null,null,null,null,null,null,null,null,null,null,null,null,null,null,null,null,null,null,null,null,null,null,null,null,null,null,null,null,null,null,null,null,null,null,null,null,"Mindaro","G90-106-105",7334618]
[null,null,null,null,null,null,null,null,null,null,null,null,null,null,null,null,null,null,null,null,null,null,null,null,null,null,null,null,null,null,null,null,null,null,null,null,null,null,null,null,"Travertine","G90-020-091",13098466]
[null,null,null,null,null,null,null,null,null,null,null,null,null,null,null,null,null,null,null,null,null,null,null,null,null,null,null,null,null,null,null,null,null,null,null,null,null,null,null,null,"Aero Blue","G91-027-163",14018752]
[null,null,null,null,null,null,null,null,null,null,null,null,null,null,null,null,null,null,null,null,null,null,null,null,null,null,null,null,null,null,null,null,null,null,null,null,null,null,null,null,"Honeysuckle","G91-113-100",6942184]
[null,null,null,null,null,null,null,null,null,null,null,null,null,null,null,null,null,null,null,null,null,null,null,null,null,null,null,null,null,null,null,null,null,null,null,null,null,null,null,null,"Cararra","G92-014-091",14018027]
[null,null,null,null,null,null,null,null,null,null,null,null,null,null,null,null,null,null,null,null,null,null,null,null,null,null,null,null,null,null,null,null,null,null,null,null,null,null,null,null,"Half Moonbeam","G92-063-092",11201012]
[null,null,null,null,null,null,null,null,null,null,null,null,null,null,null,null,null,null,null,null,null,null,null,null,null,null,null,null,null,null,null,null,null,null,null,null,null,null,null,null,"Half Reservoir","G92-020-182",15067852]
[null,null,null,null,null,null,null,null,null,null,null,null,null,null,null,null,null,null,null,null,null,null,null,null,null,null,null,null,null,null,null,null,null,null,null,null,null,null,null,null,"Willow Brook","G92-014-125",13625055]
[null,null,null,null,null,null,null,null,null,null,null,null,null,null,null,null,null,null,null,null,null,null,null,null,null,null,null,null,null,null,null,null,null,null,null,null,null,null,null,null,"Quarter Moonbeam","G93-045-097",12709620]
[null,null,null,null,null,null,null,null,null,null,null,null,null,null,null,null,null,null,null,null,null,null,null,null,null,null,null,null,null,null,null,null,null,null,null,null,null,null,null,null,"Quarter Titania","G93-009-096",14345961]
[null,null,null,null,null,null,null,null,null,null,null,null,null,null,null,null,null,null,null,null,null,null,null,null,null,null,null,null,null,null,null,null,null,null,null,null,null,null,null,null,"Half Villa White","G94-013-091",14675699]
[null,null,null,null,null,null,null,null,null,null,null,null,null,null,null,null,null,null,null,null,null,null,null,null,null,null,null,null,null,null,null,null,null,null,null,null,null,null,null,null,"Smiles","G94-108-095",7598331]
[null,null,null,null,null,null,null,null,null,null,null,null,null,null,null,null,null,null,null,null,null,null,null,null,null,null,null,null,null,null,null,null,null,null,null,null,null,null,null,null,"Australian Mint","G95-063-105",11204847]
[null,null,null,null,null,null,null,null,null,null,null,null,null,null,null,null,null,null,null,null,null,null,null,null,null,null,null,null,null,null,null,null,null,null,null,null,null,null,null,null,"Eighth Wheatfield","G95-009-091",15135220]
[null,null,null,null,null,null,null,null,null,null,null,null,null,null,null,null,null,null,null,null,null,null,null,null,null,null,null,null,null,null,null,null,null,null,null,null,null,null,null,null,"Carla","G96-038-108",13367797]
[null,null,null,null,null,null,null,null,null,null,null,null,null,null,null,null,null,null,null,null,null,null,null,null,null,null,null,null,null,null,null,null,null,null,null,null,null,null,null,null,"Frosted Mint","G96-014-175",15004386]
[null,null,null,null,null,null,null,null,null,null,null,null,null,null,null,null,null,null,null,null,null,null,null,null,null,null,null,null,null,null,null,null,null,null,null,null,null,null,null,null,"Promenade","G96-018-104",14677752]
[null,null,null,null,null,null,null,null,null,null,null,null,null,null,null,null,null,null,null,null,null,null,null,null,null,null,null,null,null,null,null,null,null,null,null,null,null,null,null,null,"Chilean Heath","G97-020-097",14612473]
[null,null,null,null,null,null,null,null,null,null,null,null,null,null,null,null,null,null,null,null,null,null,null,null,null,null,null,null,null,null,null,null,null,null,null,null,null,null,null,null,"Light Year","M34-014-338",4340806]
[null,null,null,null,null,null,null,null,null,null,null,null,null,null,null,null,null,null,null,null,null,null,null,null,null,null,null,null,null,null,null,null,null,null,null,null,null,null,null,null,"Rattlesnake","M34-015-036",3487814]
[null,null,null,null,null,null,null,null,null,null,null,null,null,null,null,null,null,null,null,null,null,null,null,null,null,null,null,null,null,null,null,null,null,null,null,null,null,null,null,null,"Blue Zodiac","M37-024-268",5522236]
[null,null,null,null,null,null,null,null,null,null,null,null,null,null,null,null,null,null,null,null,null,null,null,null,null,null,null,null,null,null,null,null,null,null,null,null,null,null,null,null,"Sputnik","M37-031-265",5520951]
[null,null,null,null,null,null,null,null,null,null,null,null,null,null,null,null,null,null,null,null,null,null,null,null,null,null,null,null,null,null,null,null,null,null,null,null,null,null,null,null,"Metallic Bronze","M40-023-069",3951189]
[null,null,null,null,null,null,null,null,null,null,null,null,null,null,null,null,null,null,null,null,null,null,null,null,null,null,null,null,null,null,null,null,null,null,null,null,null,null,null,null,"Basalt","M43-005-325",5262930]
[null,null,null,null,null,null,null,null,null,null,null,null,null,null,null,null,null,null,null,null,null,null,null,null,null,null,null,null,null,null,null,null,null,null,null,null,null,null,null,null,"Old Copper","M45-048-056",3887219]
[null,null,null,null,null,null,null,null,null,null,null,null,null,null,null,null,null,null,null,null,null,null,null,null,null,null,null,null,null,null,null,null,null,null,null,null,null,null,null,null,"Magnetic","M46-016-114",5003861]
[null,null,null,null,null,null,null,null,null,null,null,null,null,null,null,null,null,null,null,null,null,null,null,null,null,null,null,null,null,null,null,null,null,null,null,null,null,null,null,null,"Bright Grey","M47-006-264",6117719]
[null,null,null,null,null,null,null,null,null,null,null,null,null,null,null,null,null,null,null,null,null,null,null,null,null,null,null,null,null,null,null,null,null,null,null,null,null,null,null,null,"Transformer","M48-006-342",4933711]
[null,null,null,null,null,null,null,null,null,null,null,null,null,null,null,null,null,null,null,null,null,null,null,null,null,null,null,null,null,null,null,null,null,null,null,null,null,null,null,null,"Super Sonic","M49-055-264",6767671]
[null,null,null,null,null,null,null,null,null,null,null,null,null,null,null,null,null,null,null,null,null,null,null,null,null,null,null,null,null,null,null,null,null,null,null,null,null,null,null,null,"Hauraki","M50-023-179",4803898]
[null,null,null,null,null,null,null,null,null,null,null,null,null,null,null,null,null,null,null,null,null,null,null,null,null,null,null,null,null,null,null,null,null,null,null,null,null,null,null,null,"Vault","M51-028-100",4216662]
[null,null,null,null,null,null,null,null,null,null,null,null,null,null,null,null,null,null,null,null,null,null,null,null,null,null,null,null,null,null,null,null,null,null,null,null,null,null,null,null,"Bedazzle","M54-081-355",6767516]
[null,null,null,null,null,null,null,null,null,null,null,null,null,null,null,null,null,null,null,null,null,null,null,null,null,null,null,null,null,null,null,null,null,null,null,null,null,null,null,null,"Boomtown","M54-045-219",7497268]
[null,null,null,null,null,null,null,null,null,null,null,null,null,null,null,null,null,null,null,null,null,null,null,null,null,null,null,null,null,null,null,null,null,null,null,null,null,null,null,null,"Bandit","M56-027-073",5202546]
[null,null,null,null,null,null,null,null,null,null,null,null,null,null,null,null,null,null,null,null,null,null,null,null,null,null,null,null,null,null,null,null,null,null,null,null,null,null,null,null,"Burnished Orange","M58-070-049",3822738]
[null,null,null,null,null,null,null,null,null,null,null,null,null,null,null,null,null,null,null,null,null,null,null,null,null,null,null,null,null,null,null,null,null,null,null,null,null,null,null,null,"Quantum Leap","M59-041-256",9136463]
[null,null,null,null,null,null,null,null,null,null,null,null,null,null,null,null,null,null,null,null,null,null,null,null,null,null,null,null,null,null,null,null,null,null,null,null,null,null,null,null,"Karens Pewter","M60-015-085",5661030]
[null,null,null,null,null,null,null,null,null,null,null,null,null,null,null,null,null,null,null,null,null,null,null,null,null,null,null,null,null,null,null,null,null,null,null,null,null,null,null,null,"Gateway","M64-018-220",7696734]
[null,null,null,null,null,null,null,null,null,null,null,null,null,null,null,null,null,null,null,null,null,null,null,null,null,null,null,null,null,null,null,null,null,null,null,null,null,null,null,null,"Synchronise","M65-015-090",6583673]
[null,null,null,null,null,null,null,null,null,null,null,null,null,null,null,null,null,null,null,null,null,null,null,null,null,null,null,null,null,null,null,null,null,null,null,null,null,null,null,null,"Triumph","M66-066-069",3825801]
[null,null,null,null,null,null,null,null,null,null,null,null,null,null,null,null,null,null,null,null,null,null,null,null,null,null,null,null,null,null,null,null,null,null,null,null,null,null,null,null,"White Metal","M67-001-219",9737620]
[null,null,null,null,null,null,null,null,null,null,null,null,null,null,null,null,null,null,null,null,null,null,null,null,null,null,null,null,null,null,null,null,null,null,null,null,null,null,null,null,"Seismic","M68-030-060",6782364]
[null,null,null,null,null,null,null,null,null,null,null,null,null,null,null,null,null,null,null,null,null,null,null,null,null,null,null,null,null,null,null,null,null,null,null,null,null,null,null,null,"Gold","M70-060-089",5476255]
[null,null,null,null,null,null,null,null,null,null,null,null,null,null,null,null,null,null,null,null,null,null,null,null,null,null,null,null,null,null,null,null,null,null,null,null,null,null,null,null,"Piston","M71-024-087",7177356]
[null,null,null,null,null,null,null,null,null,null,null,null,null,null,null,null,null,null,null,null,null,null,null,null,null,null,null,null,null,null,null,null,null,null,null,null,null,null,null,null,"Silver Lining","M72-001-132",8224639]
[null,null,null,null,null,null,null,null,null,null,null,null,null,null,null,null,null,null,null,null,null,null,null,null,null,null,null,null,null,null,null,null,null,null,null,null,null,null,null,null,"Go Go Go","M73-080-131",5025142]
[null,null,null,null,null,null,null,null,null,null,null,null,null,null,null,null,null,null,null,null,null,null,null,null,null,null,null,null,null,null,null,null,null,null,null,null,null,null,null,null,"Platinum","M74-026-093",8626341]
[null,null,null,null,null,null,null,null,null,null,null,null,null,null,null,null,null,null,null,null,null,null,null,null,null,null,null,null,null,null,null,null,null,null,null,null,null,null,null,null,"Industrial Silver","M75-004-123",7961980]
[null,null,null,null,null,null,null,null,null,null,null,null,null,null,null,null,null,null,null,null,null,null,null,null,null,null,null,null,null,null,null,null,null,null,null,null,null,null,null,null,"Nitro","M77-020-321",9798551]
[null,null,null,null,null,null,null,null,null,null,null,null,null,null,null,null,null,null,null,null,null,null,null,null,null,null,null,null,null,null,null,null,null,null,null,null,null,null,null,null,"Quicksilver","M80-015-184",9935496]
[null,null,null,null,null,null,null,null,null,null,null,null,null,null,null,null,null,null,null,null,null,null,null,null,null,null,null,null,null,null,null,null,null,null,null,null,null,null,null,null,"All Black","N25-001-264",1579032]
[null,null,null,null,null,null,null,null,null,null,null,null,null,null,null,null,null,null,null,null,null,null,null,null,null,null,null,null,null,null,null,null,null,null,null,null,null,null,null,null,"Cosmonaut","N27-007-048",2040102]
[null,null,null,null,null,null,null,null,null,null,null,null,null,null,null,null,null,null,null,null,null,null,null,null,null,null,null,null,null,null,null,null,null,null,null,null,null,null,null,null,"Double Barbecue","N29-006-028",2105384]
[null,null,null,null,null,null,null,null,null,null,null,null,null,null,null,null,null,null,null,null,null,null,null,null,null,null,null,null,null,null,null,null,null,null,null,null,null,null,null,null,"Diesel","N30-006-032",2829362]
[null,null,null,null,null,null,null,null,null,null,null,null,null,null,null,null,null,null,null,null,null,null,null,null,null,null,null,null,null,null,null,null,null,null,null,null,null,null,null,null,"Wine Trail","N31-006-263",2959655]
[null,null,null,null,null,null,null,null,null,null,null,null,null,null,null,null,null,null,null,null,null,null,null,null,null,null,null,null,null,null,null,null,null,null,null,null,null,null,null,null,"Woodsmoke","N33-006-185",3158571]
[null,null,null,null,null,null,null,null,null,null,null,null,null,null,null,null,null,null,null,null,null,null,null,null,null,null,null,null,null,null,null,null,null,null,null,null,null,null,null,null,"Nocturnal","N34-002-275",3223855]
[null,null,null,null,null,null,null,null,null,null,null,null,null,null,null,null,null,null,null,null,null,null,null,null,null,null,null,null,null,null,null,null,null,null,null,null,null,null,null,null,"Tao Grey","N35-005-256",3552306]
[null,null,null,null,null,null,null,null,null,null,null,null,null,null,null,null,null,null,null,null,null,null,null,null,null,null,null,null,null,null,null,null,null,null,null,null,null,null,null,null,"Zeus","N35-004-121",3685435]
[null,null,null,null,null,null,null,null,null,null,null,null,null,null,null,null,null,null,null,null,null,null,null,null,null,null,null,null,null,null,null,null,null,null,null,null,null,null,null,null,"Triple Dune","N36-005-085",3356730]
[null,null,null,null,null,null,null,null,null,null,null,null,null,null,null,null,null,null,null,null,null,null,null,null,null,null,null,null,null,null,null,null,null,null,null,null,null,null,null,null,"Double Gravel","N37-005-114",3750970]
[null,null,null,null,null,null,null,null,null,null,null,null,null,null,null,null,null,null,null,null,null,null,null,null,null,null,null,null,null,null,null,null,null,null,null,null,null,null,null,null,"Quarter Bokara Grey","N38-002-331",5197651]
[null,null,null,null,null,null,null,null,null,null,null,null,null,null,null,null,null,null,null,null,null,null,null,null,null,null,null,null,null,null,null,null,null,null,null,null,null,null,null,null,"Half Nocturnal","N40-003-264",4539203]
[null,null,null,null,null,null,null,null,null,null,null,null,null,null,null,null,null,null,null,null,null,null,null,null,null,null,null,null,null,null,null,null,null,null,null,null,null,null,null,null,"Gravel","N42-005-114",4606794]
[null,null,null,null,null,null,null,null,null,null,null,null,null,null,null,null,null,null,null,null,null,null,null,null,null,null,null,null,null,null,null,null,null,null,null,null,null,null,null,null,"Merlin","N43-006-095",4738639]
[null,null,null,null,null,null,null,null,null,null,null,null,null,null,null,null,null,null,null,null,null,null,null,null,null,null,null,null,null,null,null,null,null,null,null,null,null,null,null,null,"Dune","N44-006-089",4869969]
[null,null,null,null,null,null,null,null,null,null,null,null,null,null,null,null,null,null,null,null,null,null,null,null,null,null,null,null,null,null,null,null,null,null,null,null,null,null,null,null,"Quarter Karaka","N45-007-125",5002576]
[null,null,null,null,null,null,null,null,null,null,null,null,null,null,null,null,null,null,null,null,null,null,null,null,null,null,null,null,null,null,null,null,null,null,null,null,null,null,null,null,"Tundora","N45-003-047",5395544]
[null,null,null,null,null,null,null,null,null,null,null,null,null,null,null,null,null,null,null,null,null,null,null,null,null,null,null,null,null,null,null,null,null,null,null,null,null,null,null,null,"Wireless","N46-002-099",5264213]
[null,null,null,null,null,null,null,null,null,null,null,null,null,null,null,null,null,null,null,null,null,null,null,null,null,null,null,null,null,null,null,null,null,null,null,null,null,null,null,null,"Quarter Fuscous Grey","N50-004-271",6183513]
[null,null,null,null,null,null,null,null,null,null,null,null,null,null,null,null,null,null,null,null,null,null,null,null,null,null,null,null,null,null,null,null,null,null,null,null,null,null,null,null,"Half Sidewinder","N53-006-336",7104367]
[null,null,null,null,null,null,null,null,null,null,null,null,null,null,null,null,null,null,null,null,null,null,null,null,null,null,null,null,null,null,null,null,null,null,null,null,null,null,null,null,"Quarter Baltic Sea","N54-005-257",6775904]
[null,null,null,null,null,null,null,null,null,null,null,null,null,null,null,null,null,null,null,null,null,null,null,null,null,null,null,null,null,null,null,null,null,null,null,null,null,null,null,null,"Scarpa Flow","N55-002-289",7105131]
[null,null,null,null,null,null,null,null,null,null,null,null,null,null,null,null,null,null,null,null,null,null,null,null,null,null,null,null,null,null,null,null,null,null,null,null,null,null,null,null,"Half Chicago","N56-005-113",7370615]
[null,null,null,null,null,null,null,null,null,null,null,null,null,null,null,null,null,null,null,null,null,null,null,null,null,null,null,null,null,null,null,null,null,null,null,null,null,null,null,null,"Tarmac","N57-001-177",7237487]
[null,null,null,null,null,null,null,null,null,null,null,null,null,null,null,null,null,null,null,null,null,null,null,null,null,null,null,null,null,null,null,null,null,null,null,null,null,null,null,null,"Dove Grey","N59-004-094",7501431]
[null,null,null,null,null,null,null,null,null,null,null,null,null,null,null,null,null,null,null,null,null,null,null,null,null,null,null,null,null,null,null,null,null,null,null,null,null,null,null,null,"Concord","N62-007-087",7962498]
[null,null,null,null,null,null,null,null,null,null,null,null,null,null,null,null,null,null,null,null,null,null,null,null,null,null,null,null,null,null,null,null,null,null,null,null,null,null,null,null,"Eighth Gravel","N64-005-121",8686216]
[null,null,null,null,null,null,null,null,null,null,null,null,null,null,null,null,null,null,null,null,null,null,null,null,null,null,null,null,null,null,null,null,null,null,null,null,null,null,null,null,"Half Gauntlet","N65-001-078",8948363]
[null,null,null,null,null,null,null,null,null,null,null,null,null,null,null,null,null,null,null,null,null,null,null,null,null,null,null,null,null,null,null,null,null,null,null,null,null,null,null,null,"Delta","N69-004-123",9804697]
[null,null,null,null,null,null,null,null,null,null,null,null,null,null,null,null,null,null,null,null,null,null,null,null,null,null,null,null,null,null,null,null,null,null,null,null,null,null,null,null,"Half Stack","N70-002-168",10067096]
[null,null,null,null,null,null,null,null,null,null,null,null,null,null,null,null,null,null,null,null,null,null,null,null,null,null,null,null,null,null,null,null,null,null,null,null,null,null,null,null,"Mountain Mist","N71-003-088",10264480]
[null,null,null,null,null,null,null,null,null,null,null,null,null,null,null,null,null,null,null,null,null,null,null,null,null,null,null,null,null,null,null,null,null,null,null,null,null,null,null,null,"Star Dust","N73-008-106",9937312]
[null,null,null,null,null,null,null,null,null,null,null,null,null,null,null,null,null,null,null,null,null,null,null,null,null,null,null,null,null,null,null,null,null,null,null,null,null,null,null,null,"Bombay","N75-001-199",11382446]
[null,null,null,null,null,null,null,null,null,null,null,null,null,null,null,null,null,null,null,null,null,null,null,null,null,null,null,null,null,null,null,null,null,null,null,null,null,null,null,null,"Atmosphere","N76-004-127",10922664]
[null,null,null,null,null,null,null,null,null,null,null,null,null,null,null,null,null,null,null,null,null,null,null,null,null,null,null,null,null,null,null,null,null,null,null,null,null,null,null,null,"Silver Chalice","N76-003-139",11120300]
[null,null,null,null,null,null,null,null,null,null,null,null,null,null,null,null,null,null,null,null,null,null,null,null,null,null,null,null,null,null,null,null,null,null,null,null,null,null,null,null,"Eighth Stonehenge","N79-006-075",11712957]
[null,null,null,null,null,null,null,null,null,null,null,null,null,null,null,null,null,null,null,null,null,null,null,null,null,null,null,null,null,null,null,null,null,null,null,null,null,null,null,null,"Eighth Castle Rock","N80-007-099",11845054]
[null,null,null,null,null,null,null,null,null,null,null,null,null,null,null,null,null,null,null,null,null,null,null,null,null,null,null,null,null,null,null,null,null,null,null,null,null,null,null,null,"Half Silver Chalice","N80-002-146",11975351]
[null,null,null,null,null,null,null,null,null,null,null,null,null,null,null,null,null,null,null,null,null,null,null,null,null,null,null,null,null,null,null,null,null,null,null,null,null,null,null,null,"Half Atmosphere","N81-005-110",12042174]
[null,null,null,null,null,null,null,null,null,null,null,null,null,null,null,null,null,null,null,null,null,null,null,null,null,null,null,null,null,null,null,null,null,null,null,null,null,null,null,null,"Tiara","N81-007-165",12501945]
[null,null,null,null,null,null,null,null,null,null,null,null,null,null,null,null,null,null,null,null,null,null,null,null,null,null,null,null,null,null,null,null,null,null,null,null,null,null,null,null,"AquaShield Tasman","N83-007-142",11780282]
[null,null,null,null,null,null,null,null,null,null,null,null,null,null,null,null,null,null,null,null,null,null,null,null,null,null,null,null,null,null,null,null,null,null,null,null,null,null,null,null,"Flotsam","N84-002-071",12633288]
[null,null,null,null,null,null,null,null,null,null,null,null,null,null,null,null,null,null,null,null,null,null,null,null,null,null,null,null,null,null,null,null,null,null,null,null,null,null,null,null,"Quarter Silver Chalice","N84-002-149",13027527]
[null,null,null,null,null,null,null,null,null,null,null,null,null,null,null,null,null,null,null,null,null,null,null,null,null,null,null,null,null,null,null,null,null,null,null,null,null,null,null,null,"Half Duck Egg Blue","N85-005-175",13290694]
[null,null,null,null,null,null,null,null,null,null,null,null,null,null,null,null,null,null,null,null,null,null,null,null,null,null,null,null,null,null,null,null,null,null,null,null,null,null,null,null,"Iron","N86-002-236",13487563]
[null,null,null,null,null,null,null,null,null,null,null,null,null,null,null,null,null,null,null,null,null,null,null,null,null,null,null,null,null,null,null,null,null,null,null,null,null,null,null,null,"Whiteout","N86-003-062",13159118]
[null,null,null,null,null,null,null,null,null,null,null,null,null,null,null,null,null,null,null,null,null,null,null,null,null,null,null,null,null,null,null,null,null,null,null,null,null,null,null,null,"Concrete","N87-002-093",13488594]
[null,null,null,null,null,null,null,null,null,null,null,null,null,null,null,null,null,null,null,null,null,null,null,null,null,null,null,null,null,null,null,null,null,null,null,null,null,null,null,null,"Mercury","N87-001-005",13750997]
[null,null,null,null,null,null,null,null,null,null,null,null,null,null,null,null,null,null,null,null,null,null,null,null,null,null,null,null,null,null,null,null,null,null,null,null,null,null,null,null,"Half Breathless","N88-008-258",15393760]
[null,null,null,null,null,null,null,null,null,null,null,null,null,null,null,null,null,null,null,null,null,null,null,null,null,null,null,null,null,null,null,null,null,null,null,null,null,null,null,null,"Urbane","N88-005-036",13619673]
[null,null,null,null,null,null,null,null,null,null,null,null,null,null,null,null,null,null,null,null,null,null,null,null,null,null,null,null,null,null,null,null,null,null,null,null,null,null,null,null,"Quarter Cloud","N89-007-079",13950177]
[null,null,null,null,null,null,null,null,null,null,null,null,null,null,null,null,null,null,null,null,null,null,null,null,null,null,null,null,null,null,null,null,null,null,null,null,null,null,null,null,"Double Black White","N90-005-099",14344932]
[null,null,null,null,null,null,null,null,null,null,null,null,null,null,null,null,null,null,null,null,null,null,null,null,null,null,null,null,null,null,null,null,null,null,null,null,null,null,null,null,"Milk White","N90-007-075",13490652]
[null,null,null,null,null,null,null,null,null,null,null,null,null,null,null,null,null,null,null,null,null,null,null,null,null,null,null,null,null,null,null,null,null,null,null,null,null,null,null,null,"Whitewater","N90-002-111",14475745]
[null,null,null,null,null,null,null,null,null,null,null,null,null,null,null,null,null,null,null,null,null,null,null,null,null,null,null,null,null,null,null,null,null,null,null,null,null,null,null,null,"Half Concrete","N91-001-126",14737890]
[null,null,null,null,null,null,null,null,null,null,null,null,null,null,null,null,null,null,null,null,null,null,null,null,null,null,null,null,null,null,null,null,null,null,null,null,null,null,null,null,"Aqua Squeeze","N92-007-157",14476507]
[null,null,null,null,null,null,null,null,null,null,null,null,null,null,null,null,null,null,null,null,null,null,null,null,null,null,null,null,null,null,null,null,null,null,null,null,null,null,null,null,"Half Carefree","N92-006-152",14936289]
[null,null,null,null,null,null,null,null,null,null,null,null,null,null,null,null,null,null,null,null,null,null,null,null,null,null,null,null,null,null,null,null,null,null,null,null,null,null,null,null,"Spring Wood","N92-008-062",14279145]
[null,null,null,null,null,null,null,null,null,null,null,null,null,null,null,null,null,null,null,null,null,null,null,null,null,null,null,null,null,null,null,null,null,null,null,null,null,null,null,null,"Half Wan White","N93-004-098",14870761]
[null,null,null,null,null,null,null,null,null,null,null,null,null,null,null,null,null,null,null,null,null,null,null,null,null,null,null,null,null,null,null,null,null,null,null,null,null,null,null,null,"Quarter White Pointer","N93-006-091",14805226]
[null,null,null,null,null,null,null,null,null,null,null,null,null,null,null,null,null,null,null,null,null,null,null,null,null,null,null,null,null,null,null,null,null,null,null,null,null,null,null,null,"White Linen","N93-007-073",14477294]
[null,null,null,null,null,null,null,null,null,null,null,null,null,null,null,null,null,null,null,null,null,null,null,null,null,null,null,null,null,null,null,null,null,null,null,null,null,null,null,null,"Half Black White","N94-004-096",15396592]
[null,null,null,null,null,null,null,null,null,null,null,null,null,null,null,null,null,null,null,null,null,null,null,null,null,null,null,null,null,null,null,null,null,null,null,null,null,null,null,null,"Double Alabaster","N95-004-106",15594483]
[null,null,null,null,null,null,null,null,null,null,null,null,null,null,null,null,null,null,null,null,null,null,null,null,null,null,null,null,null,null,null,null,null,null,null,null,null,null,null,null,"Quarter Wan White","N95-004-098",15133933]
[null,null,null,null,null,null,null,null,null,null,null,null,null,null,null,null,null,null,null,null,null,null,null,null,null,null,null,null,null,null,null,null,null,null,null,null,null,null,null,null,"Manyana","N96-007-101",15266034]
[null,null,null,null,null,null,null,null,null,null,null,null,null,null,null,null,null,null,null,null,null,null,null,null,null,null,null,null,null,null,null,null,null,null,null,null,null,null,null,null,"Quarter Alabaster","N97-004-102",15922935]
[null,null,null,null,null,null,null,null,null,null,null,null,null,null,null,null,null,null,null,null,null,null,null,null,null,null,null,null,null,null,null,null,null,null,null,null,null,null,null,null,"White","N97-006-096",15922677]
[null,null,null,null,null,null,null,null,null,null,null,null,null,null,null,null,null,null,null,null,null,null,null,null,null,null,null,null,null,null,null,null,null,null,null,null,null,null,null,null,"Antique Brass","O44-078-067",2049644]
[null,null,null,null,null,null,null,null,null,null,null,null,null,null,null,null,null,null,null,null,null,null,null,null,null,null,null,null,null,null,null,null,null,null,null,null,null,null,null,null,"Cape Palliser","O47-063-054",3098741]
[null,null,null,null,null,null,null,null,null,null,null,null,null,null,null,null,null,null,null,null,null,null,null,null,null,null,null,null,null,null,null,null,null,null,null,null,null,null,null,null,"Waiwherowhero","O47-070-052",2902406]
[null,null,null,null,null,null,null,null,null,null,null,null,null,null,null,null,null,null,null,null,null,null,null,null,null,null,null,null,null,null,null,null,null,null,null,null,null,null,null,null,"Tandoori","O49-083-044",3294605]
[null,null,null,null,null,null,null,null,null,null,null,null,null,null,null,null,null,null,null,null,null,null,null,null,null,null,null,null,null,null,null,null,null,null,null,null,null,null,null,null,"Tia Maria","O50-112-047",2966167]
[null,null,null,null,null,null,null,null,null,null,null,null,null,null,null,null,null,null,null,null,null,null,null,null,null,null,null,null,null,null,null,null,null,null,null,null,null,null,null,null,"Rock Spray","O52-125-048",2966685]
[null,null,null,null,null,null,null,null,null,null,null,null,null,null,null,null,null,null,null,null,null,null,null,null,null,null,null,null,null,null,null,null,null,null,null,null,null,null,null,null,"Wild West","O52-076-043",4215962]
[null,null,null,null,null,null,null,null,null,null,null,null,null,null,null,null,null,null,null,null,null,null,null,null,null,null,null,null,null,null,null,null,null,null,null,null,null,null,null,null,"Legend","O53-067-054",3888780]
[null,null,null,null,null,null,null,null,null,null,null,null,null,null,null,null,null,null,null,null,null,null,null,null,null,null,null,null,null,null,null,null,null,null,null,null,null,null,null,null,"Hazard","O54-116-055",2773923]
[null,null,null,null,null,null,null,null,null,null,null,null,null,null,null,null,null,null,null,null,null,null,null,null,null,null,null,null,null,null,null,null,null,null,null,null,null,null,null,null,"Bring It On","O56-161-040",3883715]
[null,null,null,null,null,null,null,null,null,null,null,null,null,null,null,null,null,null,null,null,null,null,null,null,null,null,null,null,null,null,null,null,null,null,null,null,null,null,null,null,"Rose Of Sharon","O56-129-052",2970028]
[null,null,null,null,null,null,null,null,null,null,null,null,null,null,null,null,null,null,null,null,null,null,null,null,null,null,null,null,null,null,null,null,null,null,null,null,null,null,null,null,"Footloose","O57-105-058",3826084]
[null,null,null,null,null,null,null,null,null,null,null,null,null,null,null,null,null,null,null,null,null,null,null,null,null,null,null,null,null,null,null,null,null,null,null,null,null,null,null,null,"Christine","O59-130-059",3040703]
[null,null,null,null,null,null,null,null,null,null,null,null,null,null,null,null,null,null,null,null,null,null,null,null,null,null,null,null,null,null,null,null,null,null,null,null,null,null,null,null,"Double Kalgoorie Sands","O60-063-059",5141160]
[null,null,null,null,null,null,null,null,null,null,null,null,null,null,null,null,null,null,null,null,null,null,null,null,null,null,null,null,null,null,null,null,null,null,null,null,null,null,null,null,"Claypot","O61-066-047",5269931]
[null,null,null,null,null,null,null,null,null,null,null,null,null,null,null,null,null,null,null,null,null,null,null,null,null,null,null,null,null,null,null,null,null,null,null,null,null,null,null,null,"Pendragon","O61-082-063",4092594]
[null,null,null,null,null,null,null,null,null,null,null,null,null,null,null,null,null,null,null,null,null,null,null,null,null,null,null,null,null,null,null,null,null,null,null,null,null,null,null,null,"Chilean Fire","O63-162-052",3432144]
[null,null,null,null,null,null,null,null,null,null,null,null,null,null,null,null,null,null,null,null,null,null,null,null,null,null,null,null,null,null,null,null,null,null,null,null,null,null,null,null,"Adrenalin","O64-179-050",21247]
[null,null,null,null,null,null,null,null,null,null,null,null,null,null,null,null,null,null,null,null,null,null,null,null,null,null,null,null,null,null,null,null,null,null,null,null,null,null,null,null,"Red Damask","O65-099-047",4878283]
[null,null,null,null,null,null,null,null,null,null,null,null,null,null,null,null,null,null,null,null,null,null,null,null,null,null,null,null,null,null,null,null,null,null,null,null,null,null,null,null,"Energise","O66-161-060",28401]
[null,null,null,null,null,null,null,null,null,null,null,null,null,null,null,null,null,null,null,null,null,null,null,null,null,null,null,null,null,null,null,null,null,null,null,null,null,null,null,null,"Brandy Punch","O67-108-065",4226240]
[null,null,null,null,null,null,null,null,null,null,null,null,null,null,null,null,null,null,null,null,null,null,null,null,null,null,null,null,null,null,null,null,null,null,null,null,null,null,null,null,"Sorbus","O67-152-054",3697629]
[null,null,null,null,null,null,null,null,null,null,null,null,null,null,null,null,null,null,null,null,null,null,null,null,null,null,null,null,null,null,null,null,null,null,null,null,null,null,null,null,"Hi Jinx","O69-171-062",4030437]
[null,null,null,null,null,null,null,null,null,null,null,null,null,null,null,null,null,null,null,null,null,null,null,null,null,null,null,null,null,null,null,null,null,null,null,null,null,null,null,null,"Roxy","O70-111-059",5277919]
[null,null,null,null,null,null,null,null,null,null,null,null,null,null,null,null,null,null,null,null,null,null,null,null,null,null,null,null,null,null,null,null,null,null,null,null,null,null,null,null,"Outrageous","O72-179-061",30463]
[null,null,null,null,null,null,null,null,null,null,null,null,null,null,null,null,null,null,null,null,null,null,null,null,null,null,null,null,null,null,null,null,null,null,null,null,null,null,null,null,"West Side","O73-180-064",3834597]
[null,null,null,null,null,null,null,null,null,null,null,null,null,null,null,null,null,null,null,null,null,null,null,null,null,null,null,null,null,null,null,null,null,null,null,null,null,null,null,null,"Sun","O74-181-067",3706607]
[null,null,null,null,null,null,null,null,null,null,null,null,null,null,null,null,null,null,null,null,null,null,null,null,null,null,null,null,null,null,null,null,null,null,null,null,null,null,null,null,"Brandy","O80-054-069",9090780]
[null,null,null,null,null,null,null,null,null,null,null,null,null,null,null,null,null,null,null,null,null,null,null,null,null,null,null,null,null,null,null,null,null,null,null,null,null,null,null,null,"Touche","O80-110-065",5613055]
[null,null,null,null,null,null,null,null,null,null,null,null,null,null,null,null,null,null,null,null,null,null,null,null,null,null,null,null,null,null,null,null,null,null,null,null,null,null,null,null,"Consuela","O82-094-067",7190525]
[null,null,null,null,null,null,null,null,null,null,null,null,null,null,null,null,null,null,null,null,null,null,null,null,null,null,null,null,null,null,null,null,null,null,null,null,null,null,null,null,"Sakura","O82-037-041",11122665]
[null,null,null,null,null,null,null,null,null,null,null,null,null,null,null,null,null,null,null,null,null,null,null,null,null,null,null,null,null,null,null,null,null,null,null,null,null,null,null,null,"Just Right","O83-029-056",11321308]
[null,null,null,null,null,null,null,null,null,null,null,null,null,null,null,null,null,null,null,null,null,null,null,null,null,null,null,null,null,null,null,null,null,null,null,null,null,null,null,null,"Mandys Pink","O83-055-048",10074101]
[null,null,null,null,null,null,null,null,null,null,null,null,null,null,null,null,null,null,null,null,null,null,null,null,null,null,null,null,null,null,null,null,null,null,null,null,null,null,null,null,"Dust Storm","O87-020-041",12634853]
[null,null,null,null,null,null,null,null,null,null,null,null,null,null,null,null,null,null,null,null,null,null,null,null,null,null,null,null,null,null,null,null,null,null,null,null,null,null,null,null,"Soft Pink","O89-032-044",12307954]
[null,null,null,null,null,null,null,null,null,null,null,null,null,null,null,null,null,null,null,null,null,null,null,null,null,null,null,null,null,null,null,null,null,null,null,null,null,null,null,null,"Karry","O92-031-064",12705022]
[null,null,null,null,null,null,null,null,null,null,null,null,null,null,null,null,null,null,null,null,null,null,null,null,null,null,null,null,null,null,null,null,null,null,null,null,null,null,null,null,"Half Pot Pourri","O93-011-049",14870776]
[null,null,null,null,null,null,null,null,null,null,null,null,null,null,null,null,null,null,null,null,null,null,null,null,null,null,null,null,null,null,null,null,null,null,null,null,null,null,null,null,"Chardon","O95-011-053",14674680]
[null,null,null,null,null,null,null,null,null,null,null,null,null,null,null,null,null,null,null,null,null,null,null,null,null,null,null,null,null,null,null,null,null,null,null,null,null,null,null,null,"Castro","R30-032-003",3089220]
[null,null,null,null,null,null,null,null,null,null,null,null,null,null,null,null,null,null,null,null,null,null,null,null,null,null,null,null,null,null,null,null,null,null,null,null,null,null,null,null,"Arthouse","R31-045-003",3022925]
[null,null,null,null,null,null,null,null,null,null,null,null,null,null,null,null,null,null,null,null,null,null,null,null,null,null,null,null,null,null,null,null,null,null,null,null,null,null,null,null,"Courage","R32-034-017",2762059]
[null,null,null,null,null,null,null,null,null,null,null,null,null,null,null,null,null,null,null,null,null,null,null,null,null,null,null,null,null,null,null,null,null,null,null,null,null,null,null,null,"Red Baron","R32-055-023",2235729]
[null,null,null,null,null,null,null,null,null,null,null,null,null,null,null,null,null,null,null,null,null,null,null,null,null,null,null,null,null,null,null,null,null,null,null,null,null,null,null,null,"Zibibbo","R32-044-016",2827345]
[null,null,null,null,null,null,null,null,null,null,null,null,null,null,null,null,null,null,null,null,null,null,null,null,null,null,null,null,null,null,null,null,null,null,null,null,null,null,null,null,"Madam M","R33-062-020",1903713]
[null,null,null,null,null,null,null,null,null,null,null,null,null,null,null,null,null,null,null,null,null,null,null,null,null,null,null,null,null,null,null,null,null,null,null,null,null,null,null,null,"Black Rose","R34-042-010",3418451]
[null,null,null,null,null,null,null,null,null,null,null,null,null,null,null,null,null,null,null,null,null,null,null,null,null,null,null,null,null,null,null,null,null,null,null,null,null,null,null,null,"Jazz","R34-058-021",3091551]
[null,null,null,null,null,null,null,null,null,null,null,null,null,null,null,null,null,null,null,null,null,null,null,null,null,null,null,null,null,null,null,null,null,null,null,null,null,null,null,null,"Breakfree","R35-059-018",2759013]
[null,null,null,null,null,null,null,null,null,null,null,null,null,null,null,null,null,null,null,null,null,null,null,null,null,null,null,null,null,null,null,null,null,null,null,null,null,null,null,null,"Lip Service","R35-077-358",3675493]
[null,null,null,null,null,null,null,null,null,null,null,null,null,null,null,null,null,null,null,null,null,null,null,null,null,null,null,null,null,null,null,null,null,null,null,null,null,null,null,null,"Coco","R36-055-029",2631784]
[null,null,null,null,null,null,null,null,null,null,null,null,null,null,null,null,null,null,null,null,null,null,null,null,null,null,null,null,null,null,null,null,null,null,null,null,null,null,null,null,"Red Devil","R36-072-025",2894438]
[null,null,null,null,null,null,null,null,null,null,null,null,null,null,null,null,null,null,null,null,null,null,null,null,null,null,null,null,null,null,null,null,null,null,null,null,null,null,null,null,"Barn Red","R37-069-035",2173024]
[null,null,null,null,null,null,null,null,null,null,null,null,null,null,null,null,null,null,null,null,null,null,null,null,null,null,null,null,null,null,null,null,null,null,null,null,null,null,null,null,"Jalapeno","R37-114-026",2628720]
[null,null,null,null,null,null,null,null,null,null,null,null,null,null,null,null,null,null,null,null,null,null,null,null,null,null,null,null,null,null,null,null,null,null,null,null,null,null,null,null,"Tamarillo","R37-089-029",3091317]
[null,null,null,null,null,null,null,null,null,null,null,null,null,null,null,null,null,null,null,null,null,null,null,null,null,null,null,null,null,null,null,null,null,null,null,null,null,null,null,null,"Fahrenheit","R38-068-033",2829927]
[null,null,null,null,null,null,null,null,null,null,null,null,null,null,null,null,null,null,null,null,null,null,null,null,null,null,null,null,null,null,null,null,null,null,null,null,null,null,null,null,"Redwood","R38-041-036",3028059]
[null,null,null,null,null,null,null,null,null,null,null,null,null,null,null,null,null,null,null,null,null,null,null,null,null,null,null,null,null,null,null,null,null,null,null,null,null,null,null,null,"Tipping Point","R38-050-035",2436193]
[null,null,null,null,null,null,null,null,null,null,null,null,null,null,null,null,null,null,null,null,null,null,null,null,null,null,null,null,null,null,null,null,null,null,null,null,null,null,null,null,"Bullseye","R40-129-031",2826877]
[null,null,null,null,null,null,null,null,null,null,null,null,null,null,null,null,null,null,null,null,null,null,null,null,null,null,null,null,null,null,null,null,null,null,null,null,null,null,null,null,"Shiraz","R40-100-021",3352708]
[null,null,null,null,null,null,null,null,null,null,null,null,null,null,null,null,null,null,null,null,null,null,null,null,null,null,null,null,null,null,null,null,null,null,null,null,null,null,null,null,"Triple Lumberjack","R40-036-037",3094362]
[null,null,null,null,null,null,null,null,null,null,null,null,null,null,null,null,null,null,null,null,null,null,null,null,null,null,null,null,null,null,null,null,null,null,null,null,null,null,null,null,"Lexington","R41-038-034",3620456]
[null,null,null,null,null,null,null,null,null,null,null,null,null,null,null,null,null,null,null,null,null,null,null,null,null,null,null,null,null,null,null,null,null,null,null,null,null,null,null,null,"Quarter Pohutukawa","R41-092-015",3941780]
[null,null,null,null,null,null,null,null,null,null,null,null,null,null,null,null,null,null,null,null,null,null,null,null,null,null,null,null,null,null,null,null,null,null,null,null,null,null,null,null,"Rosehip","R42-106-015",3744132]
[null,null,null,null,null,null,null,null,null,null,null,null,null,null,null,null,null,null,null,null,null,null,null,null,null,null,null,null,null,null,null,null,null,null,null,null,null,null,null,null,"Tawny Port","R42-037-360",4733540]
[null,null,null,null,null,null,null,null,null,null,null,null,null,null,null,null,null,null,null,null,null,null,null,null,null,null,null,null,null,null,null,null,null,null,null,null,null,null,null,null,"Smashing","R43-123-029",2097325]
[null,null,null,null,null,null,null,null,null,null,null,null,null,null,null,null,null,null,null,null,null,null,null,null,null,null,null,null,null,null,null,null,null,null,null,null,null,null,null,null,"Erica","R44-097-038",2962305]
[null,null,null,null,null,null,null,null,null,null,null,null,null,null,null,null,null,null,null,null,null,null,null,null,null,null,null,null,null,null,null,null,null,null,null,null,null,null,null,null,"Stiletto","R44-070-026",4078979]
[null,null,null,null,null,null,null,null,null,null,null,null,null,null,null,null,null,null,null,null,null,null,null,null,null,null,null,null,null,null,null,null,null,null,null,null,null,null,null,null,"Fast Lane","R45-139-030",3220617]
[null,null,null,null,null,null,null,null,null,null,null,null,null,null,null,null,null,null,null,null,null,null,null,null,null,null,null,null,null,null,null,null,null,null,null,null,null,null,null,null,"Simply Red","R45-096-027",2894491]
[null,null,null,null,null,null,null,null,null,null,null,null,null,null,null,null,null,null,null,null,null,null,null,null,null,null,null,null,null,null,null,null,null,null,null,null,null,null,null,null,"Camelot","R46-061-009",4930176]
[null,null,null,null,null,null,null,null,null,null,null,null,null,null,null,null,null,null,null,null,null,null,null,null,null,null,null,null,null,null,null,null,null,null,null,null,null,null,null,null,"Roadster","R46-145-029",3615903]
[null,null,null,null,null,null,null,null,null,null,null,null,null,null,null,null,null,null,null,null,null,null,null,null,null,null,null,null,null,null,null,null,null,null,null,null,null,null,null,null,"Red Robin","R47-061-035",3686781]
[null,null,null,null,null,null,null,null,null,null,null,null,null,null,null,null,null,null,null,null,null,null,null,null,null,null,null,null,null,null,null,null,null,null,null,null,null,null,null,null,"Roller Coaster","R47-117-038",3160210]
[null,null,null,null,null,null,null,null,null,null,null,null,null,null,null,null,null,null,null,null,null,null,null,null,null,null,null,null,null,null,null,null,null,null,null,null,null,null,null,null,"Buccaneer","R48-025-024",5263726]
[null,null,null,null,null,null,null,null,null,null,null,null,null,null,null,null,null,null,null,null,null,null,null,null,null,null,null,null,null,null,null,null,null,null,null,null,null,null,null,null,"Bombshell","R49-145-027",4075438]
[null,null,null,null,null,null,null,null,null,null,null,null,null,null,null,null,null,null,null,null,null,null,null,null,null,null,null,null,null,null,null,null,null,null,null,null,null,null,null,null,"Knock Out","R50-127-018",4265672]
[null,null,null,null,null,null,null,null,null,null,null,null,null,null,null,null,null,null,null,null,null,null,null,null,null,null,null,null,null,null,null,null,null,null,null,null,null,null,null,null,"Matrix","R50-065-034",4541838]
[null,null,null,null,null,null,null,null,null,null,null,null,null,null,null,null,null,null,null,null,null,null,null,null,null,null,null,null,null,null,null,null,null,null,null,null,null,null,null,null,"Cognac","R51-088-035",4015770]
[null,null,null,null,null,null,null,null,null,null,null,null,null,null,null,null,null,null,null,null,null,null,null,null,null,null,null,null,null,null,null,null,null,null,null,null,null,null,null,null,"Bliss","R52-101-028",4078003]
[null,null,null,null,null,null,null,null,null,null,null,null,null,null,null,null,null,null,null,null,null,null,null,null,null,null,null,null,null,null,null,null,null,null,null,null,null,null,null,null,"Vibe","R52-131-026",4338092]
[null,null,null,null,null,null,null,null,null,null,null,null,null,null,null,null,null,null,null,null,null,null,null,null,null,null,null,null,null,null,null,null,null,null,null,null,null,null,null,null,"Memphis Belle","R53-118-022",4403146]
[null,null,null,null,null,null,null,null,null,null,null,null,null,null,null,null,null,null,null,null,null,null,null,null,null,null,null,null,null,null,null,null,null,null,null,null,null,null,null,null,"Vin Rouge","R53-054-005",6574741]
[null,null,null,null,null,null,null,null,null,null,null,null,null,null,null,null,null,null,null,null,null,null,null,null,null,null,null,null,null,null,null,null,null,null,null,null,null,null,null,null,"Alter Ego","R55-089-031",4738219]
[null,null,null,null,null,null,null,null,null,null,null,null,null,null,null,null,null,null,null,null,null,null,null,null,null,null,null,null,null,null,null,null,null,null,null,null,null,null,null,null,"Royal Heath","R57-085-358",7556021]
[null,null,null,null,null,null,null,null,null,null,null,null,null,null,null,null,null,null,null,null,null,null,null,null,null,null,null,null,null,null,null,null,null,null,null,null,null,null,null,null,"Minnelli","R59-048-007",7957425]
[null,null,null,null,null,null,null,null,null,null,null,null,null,null,null,null,null,null,null,null,null,null,null,null,null,null,null,null,null,null,null,null,null,null,null,null,null,null,null,null,"Miss Hussy","R59-099-013",6440900]
[null,null,null,null,null,null,null,null,null,null,null,null,null,null,null,null,null,null,null,null,null,null,null,null,null,null,null,null,null,null,null,null,null,null,null,null,null,null,null,null,"Rapture","R60-126-029",4999414]
[null,null,null,null,null,null,null,null,null,null,null,null,null,null,null,null,null,null,null,null,null,null,null,null,null,null,null,null,null,null,null,null,null,null,null,null,null,null,null,null,"Coral Tree","R62-052-031",6778539]
[null,null,null,null,null,null,null,null,null,null,null,null,null,null,null,null,null,null,null,null,null,null,null,null,null,null,null,null,null,null,null,null,null,null,null,null,null,null,null,null,"Foxtrot","R63-053-026",7303350]
[null,null,null,null,null,null,null,null,null,null,null,null,null,null,null,null,null,null,null,null,null,null,null,null,null,null,null,null,null,null,null,null,null,null,null,null,null,null,null,null,"Contessa","R65-067-031",6844353]
[null,null,null,null,null,null,null,null,null,null,null,null,null,null,null,null,null,null,null,null,null,null,null,null,null,null,null,null,null,null,null,null,null,null,null,null,null,null,null,null,"Glamour Puss","R68-082-013",9139448]
[null,null,null,null,null,null,null,null,null,null,null,null,null,null,null,null,null,null,null,null,null,null,null,null,null,null,null,null,null,null,null,null,null,null,null,null,null,null,null,null,"Sea Pink","R71-069-027",8290779]
[null,null,null,null,null,null,null,null,null,null,null,null,null,null,null,null,null,null,null,null,null,null,null,null,null,null,null,null,null,null,null,null,null,null,null,null,null,null,null,null,"My Pink","R72-061-034",8424406]
[null,null,null,null,null,null,null,null,null,null,null,null,null,null,null,null,null,null,null,null,null,null,null,null,null,null,null,null,null,null,null,null,null,null,null,null,null,null,null,null,"Rose","R76-041-039",9740755]
[null,null,null,null,null,null,null,null,null,null,null,null,null,null,null,null,null,null,null,null,null,null,null,null,null,null,null,null,null,null,null,null,null,null,null,null,null,null,null,null,"Illusion","R77-059-001",11441647]
[null,null,null,null,null,null,null,null,null,null,null,null,null,null,null,null,null,null,null,null,null,null,null,null,null,null,null,null,null,null,null,null,null,null,null,null,null,null,null,null,"Boutique","R79-032-004",12037343]
[null,null,null,null,null,null,null,null,null,null,null,null,null,null,null,null,null,null,null,null,null,null,null,null,null,null,null,null,null,null,null,null,null,null,null,null,null,null,null,null,"Oyster Pink","R81-022-033",11580884]
[null,null,null,null,null,null,null,null,null,null,null,null,null,null,null,null,null,null,null,null,null,null,null,null,null,null,null,null,null,null,null,null,null,null,null,null,null,null,null,null,"Sweet As","R82-024-031",11843803]
[null,null,null,null,null,null,null,null,null,null,null,null,null,null,null,null,null,null,null,null,null,null,null,null,null,null,null,null,null,null,null,null,null,null,null,null,null,null,null,null,"Sweet Spot","R82-032-021",12040170]
[null,null,null,null,null,null,null,null,null,null,null,null,null,null,null,null,null,null,null,null,null,null,null,null,null,null,null,null,null,null,null,null,null,null,null,null,null,null,null,null,"Beauty Bush","R84-035-031",11778539]
[null,null,null,null,null,null,null,null,null,null,null,null,null,null,null,null,null,null,null,null,null,null,null,null,null,null,null,null,null,null,null,null,null,null,null,null,null,null,null,null,"Sundown","R86-048-026",11120632]
[null,null,null,null,null,null,null,null,null,null,null,null,null,null,null,null,null,null,null,null,null,null,null,null,null,null,null,null,null,null,null,null,null,null,null,null,null,null,null,null,"Vanilla Ice","R89-016-019",13751019]
[null,null,null,null,null,null,null,null,null,null,null,null,null,null,null,null,null,null,null,null,null,null,null,null,null,null,null,null,null,null,null,null,null,null,null,null,null,null,null,null,"Pale Rose","R90-016-359",14341871]
[null,null,null,null,null,null,null,null,null,null,null,null,null,null,null,null,null,null,null,null,null,null,null,null,null,null,null,null,null,null,null,null,null,null,null,null,null,null,null,null,"Carousel Pink","R92-017-008",14736376]
[null,null,null,null,null,null,null,null,null,null,null,null,null,null,null,null,null,null,null,null,null,null,null,null,null,null,null,null,null,null,null,null,null,null,null,null,null,null,null,null,"Wisp Pink","R94-012-027",14870777]
[null,null,null,null,null,null,null,null,null,null,null,null,null,null,null,null,null,null,null,null,null,null,null,null,null,null,null,null,null,null,null,null,null,null,null,null,null,null,null,null,"Blackcurrant","V28-048-308",3872814]
[null,null,null,null,null,null,null,null,null,null,null,null,null,null,null,null,null,null,null,null,null,null,null,null,null,null,null,null,null,null,null,null,null,null,null,null,null,null,null,null,"Mardi Gras","V29-026-322",3482165]
[null,null,null,null,null,null,null,null,null,null,null,null,null,null,null,null,null,null,null,null,null,null,null,null,null,null,null,null,null,null,null,null,null,null,null,null,null,null,null,null,"Sonic Boom","V29-043-293",4333605]
[null,null,null,null,null,null,null,null,null,null,null,null,null,null,null,null,null,null,null,null,null,null,null,null,null,null,null,null,null,null,null,null,null,null,null,null,null,null,null,null,"Chocolate Fish","V30-020-343",3352634]
[null,null,null,null,null,null,null,null,null,null,null,null,null,null,null,null,null,null,null,null,null,null,null,null,null,null,null,null,null,null,null,null,null,null,null,null,null,null,null,null,"Sumptuous","V30-021-341",3089721]
[null,null,null,null,null,null,null,null,null,null,null,null,null,null,null,null,null,null,null,null,null,null,null,null,null,null,null,null,null,null,null,null,null,null,null,null,null,null,null,null,"Violent Violet","V30-051-297",4792878]
[null,null,null,null,null,null,null,null,null,null,null,null,null,null,null,null,null,null,null,null,null,null,null,null,null,null,null,null,null,null,null,null,null,null,null,null,null,null,null,null,"Tolopea","V31-035-295",4269357]
[null,null,null,null,null,null,null,null,null,null,null,null,null,null,null,null,null,null,null,null,null,null,null,null,null,null,null,null,null,null,null,null,null,null,null,null,null,null,null,null,"Blast Off","V33-085-285",5711910]
[null,null,null,null,null,null,null,null,null,null,null,null,null,null,null,null,null,null,null,null,null,null,null,null,null,null,null,null,null,null,null,null,null,null,null,null,null,null,null,null,"Grapevine","V34-056-314",5186883]
[null,null,null,null,null,null,null,null,null,null,null,null,null,null,null,null,null,null,null,null,null,null,null,null,null,null,null,null,null,null,null,null,null,null,null,null,null,null,null,null,"Voodoo","V34-022-328",4207172]
[null,null,null,null,null,null,null,null,null,null,null,null,null,null,null,null,null,null,null,null,null,null,null,null,null,null,null,null,null,null,null,null,null,null,null,null,null,null,null,null,"Deep Koamaru","V36-092-288",6763572]
[null,null,null,null,null,null,null,null,null,null,null,null,null,null,null,null,null,null,null,null,null,null,null,null,null,null,null,null,null,null,null,null,null,null,null,null,null,null,null,null,"Martinique","V36-021-294",4732732]
[null,null,null,null,null,null,null,null,null,null,null,null,null,null,null,null,null,null,null,null,null,null,null,null,null,null,null,null,null,null,null,null,null,null,null,null,null,null,null,null,"Vortex","V37-046-286",5978170]
[null,null,null,null,null,null,null,null,null,null,null,null,null,null,null,null,null,null,null,null,null,null,null,null,null,null,null,null,null,null,null,null,null,null,null,null,null,null,null,null,"Blue Diamond","V39-091-303",7482699]
[null,null,null,null,null,null,null,null,null,null,null,null,null,null,null,null,null,null,null,null,null,null,null,null,null,null,null,null,null,null,null,null,null,null,null,null,null,null,null,null,"Fandango","V41-036-334",5322842]
[null,null,null,null,null,null,null,null,null,null,null,null,null,null,null,null,null,null,null,null,null,null,null,null,null,null,null,null,null,null,null,null,null,null,null,null,null,null,null,null,"Giggle","V42-081-321",7221865]
[null,null,null,null,null,null,null,null,null,null,null,null,null,null,null,null,null,null,null,null,null,null,null,null,null,null,null,null,null,null,null,null,null,null,null,null,null,null,null,null,"Wave Rider","V42-060-286",7225153]
[null,null,null,null,null,null,null,null,null,null,null,null,null,null,null,null,null,null,null,null,null,null,null,null,null,null,null,null,null,null,null,null,null,null,null,null,null,null,null,null,"Finn","V44-034-349",5522793]
[null,null,null,null,null,null,null,null,null,null,null,null,null,null,null,null,null,null,null,null,null,null,null,null,null,null,null,null,null,null,null,null,null,null,null,null,null,null,null,null,"Chapta And Verse","V45-021-309",6179927]
[null,null,null,null,null,null,null,null,null,null,null,null,null,null,null,null,null,null,null,null,null,null,null,null,null,null,null,null,null,null,null,null,null,null,null,null,null,null,null,null,"Cordite","V47-034-348",5785197]
[null,null,null,null,null,null,null,null,null,null,null,null,null,null,null,null,null,null,null,null,null,null,null,null,null,null,null,null,null,null,null,null,null,null,null,null,null,null,null,null,"Daisy Bush","V47-100-299",9453147]
[null,null,null,null,null,null,null,null,null,null,null,null,null,null,null,null,null,null,null,null,null,null,null,null,null,null,null,null,null,null,null,null,null,null,null,null,null,null,null,null,"Scrumptious","V49-112-356",6430135]
[null,null,null,null,null,null,null,null,null,null,null,null,null,null,null,null,null,null,null,null,null,null,null,null,null,null,null,null,null,null,null,null,null,null,null,null,null,null,null,null,"Salt Box","V51-008-317",6840937]
[null,null,null,null,null,null,null,null,null,null,null,null,null,null,null,null,null,null,null,null,null,null,null,null,null,null,null,null,null,null,null,null,null,null,null,null,null,null,null,null,"Dolphin","V53-012-291",7563370]
[null,null,null,null,null,null,null,null,null,null,null,null,null,null,null,null,null,null,null,null,null,null,null,null,null,null,null,null,null,null,null,null,null,null,null,null,null,null,null,null,"Arabella","V55-029-354",7234437]
[null,null,null,null,null,null,null,null,null,null,null,null,null,null,null,null,null,null,null,null,null,null,null,null,null,null,null,null,null,null,null,null,null,null,null,null,null,null,null,null,"Blue Marguerite","V57-089-289",11623274]
[null,null,null,null,null,null,null,null,null,null,null,null,null,null,null,null,null,null,null,null,null,null,null,null,null,null,null,null,null,null,null,null,null,null,null,null,null,null,null,null,"Smitten","V58-106-347",8798408]
[null,null,null,null,null,null,null,null,null,null,null,null,null,null,null,null,null,null,null,null,null,null,null,null,null,null,null,null,null,null,null,null,null,null,null,null,null,null,null,null,"Rhythm","V60-034-285",9926264]
[null,null,null,null,null,null,null,null,null,null,null,null,null,null,null,null,null,null,null,null,null,null,null,null,null,null,null,null,null,null,null,null,null,null,null,null,null,null,null,null,"Dancing Girl","V64-080-301",12873876]
[null,null,null,null,null,null,null,null,null,null,null,null,null,null,null,null,null,null,null,null,null,null,null,null,null,null,null,null,null,null,null,null,null,null,null,null,null,null,null,null,"Bouquet","V67-033-338",10060199]
[null,null,null,null,null,null,null,null,null,null,null,null,null,null,null,null,null,null,null,null,null,null,null,null,null,null,null,null,null,null,null,null,null,null,null,null,null,null,null,null,"Effortless","V71-016-304",10983072]
[null,null,null,null,null,null,null,null,null,null,null,null,null,null,null,null,null,null,null,null,null,null,null,null,null,null,null,null,null,null,null,null,null,null,null,null,null,null,null,null,"Vision","V72-022-292",11705248]
[null,null,null,null,null,null,null,null,null,null,null,null,null,null,null,null,null,null,null,null,null,null,null,null,null,null,null,null,null,null,null,null,null,null,null,null,null,null,null,null,"Wonderland","V75-040-318",12294075]
[null,null,null,null,null,null,null,null,null,null,null,null,null,null,null,null,null,null,null,null,null,null,null,null,null,null,null,null,null,null,null,null,null,null,null,null,null,null,null,null,"Lola","V77-015-313",12299449]
[null,null,null,null,null,null,null,null,null,null,null,null,null,null,null,null,null,null,null,null,null,null,null,null,null,null,null,null,null,null,null,null,null,null,null,null,null,null,null,null,"Alluring","V79-019-340",12168132]
[null,null,null,null,null,null,null,null,null,null,null,null,null,null,null,null,null,null,null,null,null,null,null,null,null,null,null,null,null,null,null,null,null,null,null,null,null,null,null,null,"I Do","V82-012-336",13024460]
[null,null,null,null,null,null,null,null,null,null,null,null,null,null,null,null,null,null,null,null,null,null,null,null,null,null,null,null,null,null,null,null,null,null,null,null,null,null,null,null,"Zappo","V83-028-285",14860484]
[null,null,null,null,null,null,null,null,null,null,null,null,null,null,null,null,null,null,null,null,null,null,null,null,null,null,null,null,null,null,null,null,null,null,null,null,null,null,null,null,"Lullaby","V87-014-352",14011874]
[null,null,null,null,null,null,null,null,null,null,null,null,null,null,null,null,null,null,null,null,null,null,null,null,null,null,null,null,null,null,null,null,null,null,null,null,null,null,null,null,"Snuff","V90-017-303",15063012]
[null,null,null,null,null,null,null,null,null,null,null,null,null,null,null,null,null,null,null,null,null,null,null,null,null,null,null,null,null,null,null,null,null,null,null,null,null,null,null,null,"Amour","V94-012-340",15394549]
[null,null,null,null,null,null,null,null,null,null,null,null,null,null,null,null,null,null,null,null,null,null,null,null,null,null,null,null,null,null,null,null,null,null,null,null,null,null,null,null,"Daintree","WD015",4276007]
[null,null,null,null,null,null,null,null,null,null,null,null,null,null,null,null,null,null,null,null,null,null,null,null,null,null,null,null,null,null,null,null,null,null,null,null,null,null,null,null,"Jacaranda","WD019",3681590]
[null,null,null,null,null,null,null,null,null,null,null,null,null,null,null,null,null,null,null,null,null,null,null,null,null,null,null,null,null,null,null,null,null,null,null,null,null,null,null,null,"Oiled Cedar","WD028",2963046]
[null,null,null,null,null,null,null,null,null,null,null,null,null,null,null,null,null,null,null,null,null,null,null,null,null,null,null,null,null,null,null,null,null,null,null,null,null,null,null,null,"Touch Wood","WD036",3028794]
[null,null,null,null,null,null,null,null,null,null,null,null,null,null,null,null,null,null,null,null,null,null,null,null,null,null,null,null,null,null,null,null,null,null,null,null,null,null,null,null,"Bleached Riverstone","WW0820",7436930]
[null,null,null,null,null,null,null,null,null,null,null,null,null,null,null,null,null,null,null,null,null,null,null,null,null,null,null,null,null,null,null,null,null,null,null,null,null,null,null,null,"Evergreen","WW0813",3094312]
[null,null,null,null,null,null,null,null,null,null,null,null,null,null,null,null,null,null,null,null,null,null,null,null,null,null,null,null,null,null,null,null,null,null,null,null,null,null,null,null,"Riverstone","WW0805",6779001]
[null,null,null,null,null,null,null,null,null,null,null,null,null,null,null,null,null,null,null,null,null,null,null,null,null,null,null,null,null,null,null,null,null,null,null,null,null,null,null,null,"Shadow Match","WW0808",2895665]
[null,null,null,null,null,null,null,null,null,null,null,null,null,null,null,null,null,null,null,null,null,null,null,null,null,null,null,null,null,null,null,null,null,null,null,null,null,null,null,null,"Uluru","WW0814",6790079]
[null,null,null,null,null,null,null,null,null,null,null,null,null,null,null,null,null,null,null,null,null,null,null,null,null,null,null,null,null,null,null,null,null,null,null,null,null,null,null,null,"Limed Gum","WW12",4021099]
[null,null,null,null,null,null,null,null,null,null,null,null,null,null,null,null,null,null,null,null,null,null,null,null,null,null,null,null,null,null,null,null,null,null,null,null,null,null,null,null,"Pickled Bean","WW18",4085107]
[null,null,null,null,null,null,null,null,null,null,null,null,null,null,null,null,null,null,null,null,null,null,null,null,null,null,null,null,null,null,null,null,null,null,null,null,null,null,null,null,"Dark Oak","WW7",2831445]
[null,null,null,null,null,null,null,null,null,null,null,null,null,null,null,null,null,null,null,null,null,null,null,null,null,null,null,null,null,null,null,null,null,null,null,null,null,null,null,null,"Haka","Y33-014-083",2634553]
[null,null,null,null,null,null,null,null,null,null,null,null,null,null,null,null,null,null,null,null,null,null,null,null,null,null,null,null,null,null,null,null,null,null,null,null,null,null,null,null,"Suburban","Y38-026-088",2900040]
[null,null,null,null,null,null,null,null,null,null,null,null,null,null,null,null,null,null,null,null,null,null,null,null,null,null,null,null,null,null,null,null,null,null,null,null,null,null,null,null,"Punga","Y41-034-083",3230035]
[null,null,null,null,null,null,null,null,null,null,null,null,null,null,null,null,null,null,null,null,null,null,null,null,null,null,null,null,null,null,null,null,null,null,null,null,null,null,null,null,"Triple Stonewall","Y46-022-082",4676193]
[null,null,null,null,null,null,null,null,null,null,null,null,null,null,null,null,null,null,null,null,null,null,null,null,null,null,null,null,null,null,null,null,null,null,null,null,null,null,null,null,"Acorn","Y51-065-084",3171187]
[null,null,null,null,null,null,null,null,null,null,null,null,null,null,null,null,null,null,null,null,null,null,null,null,null,null,null,null,null,null,null,null,null,null,null,null,null,null,null,null,"Fiddlesticks","Y52-083-084",1926269]
[null,null,null,null,null,null,null,null,null,null,null,null,null,null,null,null,null,null,null,null,null,null,null,null,null,null,null,null,null,null,null,null,null,null,null,null,null,null,null,null,"Coffee","Y54-026-081",5334898]
[null,null,null,null,null,null,null,null,null,null,null,null,null,null,null,null,null,null,null,null,null,null,null,null,null,null,null,null,null,null,null,null,null,null,null,null,null,null,null,null,"Crocodile","Y55-028-088",5269872]
[null,null,null,null,null,null,null,null,null,null,null,null,null,null,null,null,null,null,null,null,null,null,null,null,null,null,null,null,null,null,null,null,null,null,null,null,null,null,null,null,"Grass Hopper","Y56-083-090",2716282]
[null,null,null,null,null,null,null,null,null,null,null,null,null,null,null,null,null,null,null,null,null,null,null,null,null,null,null,null,null,null,null,null,null,null,null,null,null,null,null,null,"Corn Harvest","Y58-089-080",2781325]
[null,null,null,null,null,null,null,null,null,null,null,null,null,null,null,null,null,null,null,null,null,null,null,null,null,null,null,null,null,null,null,null,null,null,null,null,null,null,null,null,"Kowhai","Y60-092-075",4887488]
[null,null,null,null,null,null,null,null,null,null,null,null,null,null,null,null,null,null,null,null,null,null,null,null,null,null,null,null,null,null,null,null,null,null,null,null,null,null,null,null,"Clay Creek","Y62-039-088",5865097]
[null,null,null,null,null,null,null,null,null,null,null,null,null,null,null,null,null,null,null,null,null,null,null,null,null,null,null,null,null,null,null,null,null,null,null,null,null,null,null,null,"Olive Haze","Y62-030-087",6586504]
[null,null,null,null,null,null,null,null,null,null,null,null,null,null,null,null,null,null,null,null,null,null,null,null,null,null,null,null,null,null,null,null,null,null,null,null,null,null,null,null,"Half Stonewall","Y64-017-083",8097171]
[null,null,null,null,null,null,null,null,null,null,null,null,null,null,null,null,null,null,null,null,null,null,null,null,null,null,null,null,null,null,null,null,null,null,null,null,null,null,null,null,"Frizzell","Y65-111-080",3113389]
[null,null,null,null,null,null,null,null,null,null,null,null,null,null,null,null,null,null,null,null,null,null,null,null,null,null,null,null,null,null,null,null,null,null,null,null,null,null,null,null,"Jandal","Y66-106-071",3769015]
[null,null,null,null,null,null,null,null,null,null,null,null,null,null,null,null,null,null,null,null,null,null,null,null,null,null,null,null,null,null,null,null,null,null,null,null,null,null,null,null,"Turmeric","Y66-095-081",4296878]
[null,null,null,null,null,null,null,null,null,null,null,null,null,null,null,null,null,null,null,null,null,null,null,null,null,null,null,null,null,null,null,null,null,null,null,null,null,null,null,null,"Hokey Pokey","Y67-119-079",3444411]
[null,null,null,null,null,null,null,null,null,null,null,null,null,null,null,null,null,null,null,null,null,null,null,null,null,null,null,null,null,null,null,null,null,null,null,null,null,null,null,null,"Cappuccino","Y68-078-073",5673409]
[null,null,null,null,null,null,null,null,null,null,null,null,null,null,null,null,null,null,null,null,null,null,null,null,null,null,null,null,null,null,null,null,null,null,null,null,null,null,null,null,"Dixie","Y68-146-070",3245261]
[null,null,null,null,null,null,null,null,null,null,null,null,null,null,null,null,null,null,null,null,null,null,null,null,null,null,null,null,null,null,null,null,null,null,null,null,null,null,null,null,"Nugget","Y68-131-080",2724540]
[null,null,null,null,null,null,null,null,null,null,null,null,null,null,null,null,null,null,null,null,null,null,null,null,null,null,null,null,null,null,null,null,null,null,null,null,null,null,null,null,"Half Pravda","Y69-014-081",9083296]
[null,null,null,null,null,null,null,null,null,null,null,null,null,null,null,null,null,null,null,null,null,null,null,null,null,null,null,null,null,null,null,null,null,null,null,null,null,null,null,null,"Triple Tana","Y69-025-082",8559519]
[null,null,null,null,null,null,null,null,null,null,null,null,null,null,null,null,null,null,null,null,null,null,null,null,null,null,null,null,null,null,null,null,null,null,null,null,null,null,null,null,"Grey Olive","Y70-027-089",8362657]
[null,null,null,null,null,null,null,null,null,null,null,null,null,null,null,null,null,null,null,null,null,null,null,null,null,null,null,null,null,null,null,null,null,null,null,null,null,null,null,null,"Canvas","Y71-036-087",7838115]
[null,null,null,null,null,null,null,null,null,null,null,null,null,null,null,null,null,null,null,null,null,null,null,null,null,null,null,null,null,null,null,null,null,null,null,null,null,null,null,null,"Half Craigieburn","Y72-018-083",9413033]
[null,null,null,null,null,null,null,null,null,null,null,null,null,null,null,null,null,null,null,null,null,null,null,null,null,null,null,null,null,null,null,null,null,null,null,null,null,null,null,null,"Afterglow","Y73-138-079",3315662]
[null,null,null,null,null,null,null,null,null,null,null,null,null,null,null,null,null,null,null,null,null,null,null,null,null,null,null,null,null,null,null,null,null,null,null,null,null,null,null,null,"Good As Gold","Y73-094-080",4955080]
[null,null,null,null,null,null,null,null,null,null,null,null,null,null,null,null,null,null,null,null,null,null,null,null,null,null,null,null,null,null,null,null,null,null,null,null,null,null,null,null,"Mandrake","Y74-021-089",9742768]
[null,null,null,null,null,null,null,null,null,null,null,null,null,null,null,null,null,null,null,null,null,null,null,null,null,null,null,null,null,null,null,null,null,null,null,null,null,null,null,null,"Coromandel","Y75-054-089",7579833]
[null,null,null,null,null,null,null,null,null,null,null,null,null,null,null,null,null,null,null,null,null,null,null,null,null,null,null,null,null,null,null,null,null,null,null,null,null,null,null,null,"Quarter Sorrell Brown","Y75-039-067",8233153]
[null,null,null,null,null,null,null,null,null,null,null,null,null,null,null,null,null,null,null,null,null,null,null,null,null,null,null,null,null,null,null,null,null,null,null,null,null,null,null,null,"Lemoncello","Y76-143-076",4106727]
[null,null,null,null,null,null,null,null,null,null,null,null,null,null,null,null,null,null,null,null,null,null,null,null,null,null,null,null,null,null,null,null,null,null,null,null,null,null,null,null,"Overland","Y76-021-088",9743026]
[null,null,null,null,null,null,null,null,null,null,null,null,null,null,null,null,null,null,null,null,null,null,null,null,null,null,null,null,null,null,null,null,null,null,null,null,null,null,null,null,"Apache","Y77-086-077",6072787]
[null,null,null,null,null,null,null,null,null,null,null,null,null,null,null,null,null,null,null,null,null,null,null,null,null,null,null,null,null,null,null,null,null,null,null,null,null,null,null,null,"Lemon","Y77-179-085",2142937]
[null,null,null,null,null,null,null,null,null,null,null,null,null,null,null,null,null,null,null,null,null,null,null,null,null,null,null,null,null,null,null,null,null,null,null,null,null,null,null,null,"Corkscrew","Y78-015-086",10860221]
[null,null,null,null,null,null,null,null,null,null,null,null,null,null,null,null,null,null,null,null,null,null,null,null,null,null,null,null,null,null,null,null,null,null,null,null,null,null,null,null,"Matchstick","Y78-037-085",9286595]
[null,null,null,null,null,null,null,null,null,null,null,null,null,null,null,null,null,null,null,null,null,null,null,null,null,null,null,null,null,null,null,null,null,null,null,null,null,null,null,null,"Akaroa","Y79-026-082",10138302]
[null,null,null,null,null,null,null,null,null,null,null,null,null,null,null,null,null,null,null,null,null,null,null,null,null,null,null,null,null,null,null,null,null,null,null,null,null,null,null,null,"Cotton Seed","Y80-009-081",11516607]
[null,null,null,null,null,null,null,null,null,null,null,null,null,null,null,null,null,null,null,null,null,null,null,null,null,null,null,null,null,null,null,null,null,null,null,null,null,null,null,null,"Essential Cream","Y80-079-077",7321308]
[null,null,null,null,null,null,null,null,null,null,null,null,null,null,null,null,null,null,null,null,null,null,null,null,null,null,null,null,null,null,null,null,null,null,null,null,null,null,null,null,"Ronchi","Y80-109-078",5421290]
[null,null,null,null,null,null,null,null,null,null,null,null,null,null,null,null,null,null,null,null,null,null,null,null,null,null,null,null,null,null,null,null,null,null,null,null,null,null,null,null,"Yuma","Y80-052-088",8566983]
[null,null,null,null,null,null,null,null,null,null,null,null,null,null,null,null,null,null,null,null,null,null,null,null,null,null,null,null,null,null,null,null,null,null,null,null,null,null,null,null,"Half Bison Hide","Y81-018-082",11255239]
[null,null,null,null,null,null,null,null,null,null,null,null,null,null,null,null,null,null,null,null,null,null,null,null,null,null,null,null,null,null,null,null,null,null,null,null,null,null,null,null,"Quarter Napa","Y81-013-083",11911879]
[null,null,null,null,null,null,null,null,null,null,null,null,null,null,null,null,null,null,null,null,null,null,null,null,null,null,null,null,null,null,null,null,null,null,null,null,null,null,null,null,"Alpaca","Y82-024-071",11190483]
[null,null,null,null,null,null,null,null,null,null,null,null,null,null,null,null,null,null,null,null,null,null,null,null,null,null,null,null,null,null,null,null,null,null,null,null,null,null,null,null,"Chenin","Y82-083-085",7455710]
[null,null,null,null,null,null,null,null,null,null,null,null,null,null,null,null,null,null,null,null,null,null,null,null,null,null,null,null,null,null,null,null,null,null,null,null,null,null,null,null,"Grain Brown","Y82-025-072",10664138]
[null,null,null,null,null,null,null,null,null,null,null,null,null,null,null,null,null,null,null,null,null,null,null,null,null,null,null,null,null,null,null,null,null,null,null,null,null,null,null,null,"Quarter Doeskin","Y82-025-071",11124689]
[null,null,null,null,null,null,null,null,null,null,null,null,null,null,null,null,null,null,null,null,null,null,null,null,null,null,null,null,null,null,null,null,null,null,null,null,null,null,null,null,"Bite Me","Y83-181-087",2475499]
[null,null,null,null,null,null,null,null,null,null,null,null,null,null,null,null,null,null,null,null,null,null,null,null,null,null,null,null,null,null,null,null,null,null,null,null,null,null,null,null,"Hitchhiker","Y83-028-088",11061200]
[null,null,null,null,null,null,null,null,null,null,null,null,null,null,null,null,null,null,null,null,null,null,null,null,null,null,null,null,null,null,null,null,null,null,null,null,null,null,null,null,"Starbell","Y83-112-082",5620203]
[null,null,null,null,null,null,null,null,null,null,null,null,null,null,null,null,null,null,null,null,null,null,null,null,null,null,null,null,null,null,null,null,null,null,null,null,null,null,null,null,"Triple Wheatfield","Y83-031-086",10929873]
[null,null,null,null,null,null,null,null,null,null,null,null,null,null,null,null,null,null,null,null,null,null,null,null,null,null,null,null,null,null,null,null,null,null,null,null,null,null,null,null,"Butter","Y84-069-089",8506334]
[null,null,null,null,null,null,null,null,null,null,null,null,null,null,null,null,null,null,null,null,null,null,null,null,null,null,null,null,null,null,null,null,null,null,null,null,null,null,null,null,"Fizz","Y84-198-087",2346229]
[null,null,null,null,null,null,null,null,null,null,null,null,null,null,null,null,null,null,null,null,null,null,null,null,null,null,null,null,null,null,null,null,null,null,null,null,null,null,null,null,"Moon Yellow","Y84-168-085",2147568]
[null,null,null,null,null,null,null,null,null,null,null,null,null,null,null,null,null,null,null,null,null,null,null,null,null,null,null,null,null,null,null,null,null,null,null,null,null,null,null,null,"Sandspit Brown","Y84-017-074",11978450]
[null,null,null,null,null,null,null,null,null,null,null,null,null,null,null,null,null,null,null,null,null,null,null,null,null,null,null,null,null,null,null,null,null,null,null,null,null,null,null,null,"Double Blanc","Y85-019-079",12242648]
[null,null,null,null,null,null,null,null,null,null,null,null,null,null,null,null,null,null,null,null,null,null,null,null,null,null,null,null,null,null,null,null,null,null,null,null,null,null,null,null,"Eighth Napa","Y85-011-086",12766676]
[null,null,null,null,null,null,null,null,null,null,null,null,null,null,null,null,null,null,null,null,null,null,null,null,null,null,null,null,null,null,null,null,null,null,null,null,null,null,null,null,"Quarter Putty","Y85-045-079",10472416]
[null,null,null,null,null,null,null,null,null,null,null,null,null,null,null,null,null,null,null,null,null,null,null,null,null,null,null,null,null,null,null,null,null,null,null,null,null,null,null,null,"Southern Cross","Y85-185-090",55295]
[null,null,null,null,null,null,null,null,null,null,null,null,null,null,null,null,null,null,null,null,null,null,null,null,null,null,null,null,null,null,null,null,null,null,null,null,null,null,null,null,"Eighth Malta","Y86-023-073",13161176]
[null,null,null,null,null,null,null,null,null,null,null,null,null,null,null,null,null,null,null,null,null,null,null,null,null,null,null,null,null,null,null,null,null,null,null,null,null,null,null,null,"Quarter Akaroa","Y86-017-086",12571353]
[null,null,null,null,null,null,null,null,null,null,null,null,null,null,null,null,null,null,null,null,null,null,null,null,null,null,null,null,null,null,null,null,null,null,null,null,null,null,null,null,"Chardonnay","Y87-090-075",7915775]
[null,null,null,null,null,null,null,null,null,null,null,null,null,null,null,null,null,null,null,null,null,null,null,null,null,null,null,null,null,null,null,null,null,null,null,null,null,null,null,null,"Givry","Y87-040-078",11457771]
[null,null,null,null,null,null,null,null,null,null,null,null,null,null,null,null,null,null,null,null,null,null,null,null,null,null,null,null,null,null,null,null,null,null,null,null,null,null,null,null,"Half Turbo","Y87-168-089",2349053]
[null,null,null,null,null,null,null,null,null,null,null,null,null,null,null,null,null,null,null,null,null,null,null,null,null,null,null,null,null,null,null,null,null,null,null,null,null,null,null,null,"Hampton","Y87-046-085",10671336]
[null,null,null,null,null,null,null,null,null,null,null,null,null,null,null,null,null,null,null,null,null,null,null,null,null,null,null,null,null,null,null,null,null,null,null,null,null,null,null,null,"Happy","Y87-189-090",55295]
[null,null,null,null,null,null,null,null,null,null,null,null,null,null,null,null,null,null,null,null,null,null,null,null,null,null,null,null,null,null,null,null,null,null,null,null,null,null,null,null,"Last Chance","Y87-010-079",13161176]
[null,null,null,null,null,null,null,null,null,null,null,null,null,null,null,null,null,null,null,null,null,null,null,null,null,null,null,null,null,null,null,null,null,null,null,null,null,null,null,null,"Quarter Pavlova","Y87-029-084",11850718]
[null,null,null,null,null,null,null,null,null,null,null,null,null,null,null,null,null,null,null,null,null,null,null,null,null,null,null,null,null,null,null,null,null,null,null,null,null,null,null,null,"Quarter Turbo","Y87-143-090",4317438]
[null,null,null,null,null,null,null,null,null,null,null,null,null,null,null,null,null,null,null,null,null,null,null,null,null,null,null,null,null,null,null,null,null,null,null,null,null,null,null,null,"Sapling","Y87-042-089",10933729]
[null,null,null,null,null,null,null,null,null,null,null,null,null,null,null,null,null,null,null,null,null,null,null,null,null,null,null,null,null,null,null,null,null,null,null,null,null,null,null,null,"Twentyfourseven","Y87-145-086",4445434]
[null,null,null,null,null,null,null,null,null,null,null,null,null,null,null,null,null,null,null,null,null,null,null,null,null,null,null,null,null,null,null,null,null,null,null,null,null,null,null,null,"AquaShield Spanish White","Y88-024-082",12046814]
[null,null,null,null,null,null,null,null,null,null,null,null,null,null,null,null,null,null,null,null,null,null,null,null,null,null,null,null,null,null,null,null,null,null,null,null,null,null,null,null,"Bavarian Cream","Y88-044-088",10999525]
[null,null,null,null,null,null,null,null,null,null,null,null,null,null,null,null,null,null,null,null,null,null,null,null,null,null,null,null,null,null,null,null,null,null,null,null,null,null,null,null,"Blanc","Y88-015-078",12701913]
[null,null,null,null,null,null,null,null,null,null,null,null,null,null,null,null,null,null,null,null,null,null,null,null,null,null,null,null,null,null,null,null,null,null,null,null,null,null,null,null,"Double Chandelier","Y88-038-085",11392997]
[null,null,null,null,null,null,null,null,null,null,null,null,null,null,null,null,null,null,null,null,null,null,null,null,null,null,null,null,null,null,null,null,null,null,null,null,null,null,null,null,"Double Merino","Y88-009-076",14214381]
[null,null,null,null,null,null,null,null,null,null,null,null,null,null,null,null,null,null,null,null,null,null,null,null,null,null,null,null,null,null,null,null,null,null,null,null,null,null,null,null,"Eighth Bison Hide","Y88-011-080",13359070]
[null,null,null,null,null,null,null,null,null,null,null,null,null,null,null,null,null,null,null,null,null,null,null,null,null,null,null,null,null,null,null,null,null,null,null,null,null,null,null,null,"Eighth Canterbury Clay","Y88-023-082",12572643]
[null,null,null,null,null,null,null,null,null,null,null,null,null,null,null,null,null,null,null,null,null,null,null,null,null,null,null,null,null,null,null,null,null,null,null,null,null,null,null,null,"Eighth Joss","Y88-011-073",13424864]
[null,null,null,null,null,null,null,null,null,null,null,null,null,null,null,null,null,null,null,null,null,null,null,null,null,null,null,null,null,null,null,null,null,null,null,null,null,null,null,null,"Enchante","Y88-031-077",12244462]
[null,null,null,null,null,null,null,null,null,null,null,null,null,null,null,null,null,null,null,null,null,null,null,null,null,null,null,null,null,null,null,null,null,null,null,null,null,null,null,null,"Golden Glow","Y88-084-085",8312825]
[null,null,null,null,null,null,null,null,null,null,null,null,null,null,null,null,null,null,null,null,null,null,null,null,null,null,null,null,null,null,null,null,null,null,null,null,null,null,null,null,"Half Parchment","Y88-023-090",12835552]
[null,null,null,null,null,null,null,null,null,null,null,null,null,null,null,null,null,null,null,null,null,null,null,null,null,null,null,null,null,null,null,null,null,null,null,null,null,null,null,null,"Half Sandspit Brown","Y88-012-079",13030106]
[null,null,null,null,null,null,null,null,null,null,null,null,null,null,null,null,null,null,null,null,null,null,null,null,null,null,null,null,null,null,null,null,null,null,null,null,null,null,null,null,"Mellow Yellow","Y88-063-089",9820394]
[null,null,null,null,null,null,null,null,null,null,null,null,null,null,null,null,null,null,null,null,null,null,null,null,null,null,null,null,null,null,null,null,null,null,null,null,null,null,null,null,"Oscar","Y88-042-074",11326964]
[null,null,null,null,null,null,null,null,null,null,null,null,null,null,null,null,null,null,null,null,null,null,null,null,null,null,null,null,null,null,null,null,null,null,null,null,null,null,null,null,"Periwinkle","Y88-032-075",12048108]
[null,null,null,null,null,null,null,null,null,null,null,null,null,null,null,null,null,null,null,null,null,null,null,null,null,null,null,null,null,null,null,null,null,null,null,null,null,null,null,null,"Popcorn","Y88-041-081",11196394]
[null,null,null,null,null,null,null,null,null,null,null,null,null,null,null,null,null,null,null,null,null,null,null,null,null,null,null,null,null,null,null,null,null,null,null,null,null,null,null,null,"Quarter Biscotti","Y88-017-075",13096931]
[null,null,null,null,null,null,null,null,null,null,null,null,null,null,null,null,null,null,null,null,null,null,null,null,null,null,null,null,null,null,null,null,null,null,null,null,null,null,null,null,"Quarter Sisal","Y88-021-084",12901092]
[null,null,null,null,null,null,null,null,null,null,null,null,null,null,null,null,null,null,null,null,null,null,null,null,null,null,null,null,null,null,null,null,null,null,null,null,null,null,null,null,"Tequila","Y88-049-070",10801396]
[null,null,null,null,null,null,null,null,null,null,null,null,null,null,null,null,null,null,null,null,null,null,null,null,null,null,null,null,null,null,null,null,null,null,null,null,null,null,null,null,"Tinkerbell","Y88-117-087",6543356]
[null,null,null,null,null,null,null,null,null,null,null,null,null,null,null,null,null,null,null,null,null,null,null,null,null,null,null,null,null,null,null,null,null,null,null,null,null,null,null,null,"AquaShield Astra","Y89-047-080",10933741]
[null,null,null,null,null,null,null,null,null,null,null,null,null,null,null,null,null,null,null,null,null,null,null,null,null,null,null,null,null,null,null,null,null,null,null,null,null,null,null,null,"Beeswax","Y89-043-083",11261929]
[null,null,null,null,null,null,null,null,null,null,null,null,null,null,null,null,null,null,null,null,null,null,null,null,null,null,null,null,null,null,null,null,null,null,null,null,null,null,null,null,"Chandelier","Y89-034-085",12115949]
[null,null,null,null,null,null,null,null,null,null,null,null,null,null,null,null,null,null,null,null,null,null,null,null,null,null,null,null,null,null,null,null,null,null,null,null,null,null,null,null,"Eighth Akaroa","Y89-013-080",13688294]
[null,null,null,null,null,null,null,null,null,null,null,null,null,null,null,null,null,null,null,null,null,null,null,null,null,null,null,null,null,null,null,null,null,null,null,null,null,null,null,null,"Eighth Drought","Y89-013-082",13556707]
[null,null,null,null,null,null,null,null,null,null,null,null,null,null,null,null,null,null,null,null,null,null,null,null,null,null,null,null,null,null,null,null,null,null,null,null,null,null,null,null,"Eighth Putty","Y89-036-080",11655400]
[null,null,null,null,null,null,null,null,null,null,null,null,null,null,null,null,null,null,null,null,null,null,null,null,null,null,null,null,null,null,null,null,null,null,null,null,null,null,null,null,"La Luna","Y89-089-085",8050943]
[null,null,null,null,null,null,null,null,null,null,null,null,null,null,null,null,null,null,null,null,null,null,null,null,null,null,null,null,null,null,null,null,null,null,null,null,null,null,null,null,"Oopsy Daisy","Y89-090-080",8115967]
[null,null,null,null,null,null,null,null,null,null,null,null,null,null,null,null,null,null,null,null,null,null,null,null,null,null,null,null,null,null,null,null,null,null,null,null,null,null,null,null,"Quarter Caraway","Y89-014-086",13425633]
[null,null,null,null,null,null,null,null,null,null,null,null,null,null,null,null,null,null,null,null,null,null,null,null,null,null,null,null,null,null,null,null,null,null,null,null,null,null,null,null,"Quarter Fossil","Y89-015-082",13360356]
[null,null,null,null,null,null,null,null,null,null,null,null,null,null,null,null,null,null,null,null,null,null,null,null,null,null,null,null,null,null,null,null,null,null,null,null,null,null,null,null,"Quarter Tea","Y89-010-084",13687520]
[null,null,null,null,null,null,null,null,null,null,null,null,null,null,null,null,null,null,null,null,null,null,null,null,null,null,null,null,null,null,null,null,null,null,null,null,null,null,null,null,"Sidecar","Y89-044-085",11131369]
[null,null,null,null,null,null,null,null,null,null,null,null,null,null,null,null,null,null,null,null,null,null,null,null,null,null,null,null,null,null,null,null,null,null,null,null,null,null,null,null,"Splash","Y89-056-080",10409969]
[null,null,null,null,null,null,null,null,null,null,null,null,null,null,null,null,null,null,null,null,null,null,null,null,null,null,null,null,null,null,null,null,null,null,null,null,null,null,null,null,"Wheatfield","Y89-023-088",12441567]
[null,null,null,null,null,null,null,null,null,null,null,null,null,null,null,null,null,null,null,null,null,null,null,null,null,null,null,null,null,null,null,null,null,null,null,null,null,null,null,null,"Albescent White","Y90-013-085",13359841]
[null,null,null,null,null,null,null,null,null,null,null,null,null,null,null,null,null,null,null,null,null,null,null,null,null,null,null,null,null,null,null,null,null,null,null,null,null,null,null,null,"Anglaise","Y90-025-077",12902126]
[null,null,null,null,null,null,null,null,null,null,null,null,null,null,null,null,null,null,null,null,null,null,null,null,null,null,null,null,null,null,null,null,null,null,null,null,null,null,null,null,"Caramel","Y90-061-074",10147327]
[null,null,null,null,null,null,null,null,null,null,null,null,null,null,null,null,null,null,null,null,null,null,null,null,null,null,null,null,null,null,null,null,null,null,null,null,null,null,null,null,"Circus","Y90-057-073",10541055]
[null,null,null,null,null,null,null,null,null,null,null,null,null,null,null,null,null,null,null,null,null,null,null,null,null,null,null,null,null,null,null,null,null,null,null,null,null,null,null,null,"Double Villa White","Y90-020-087",12967142]
[null,null,null,null,null,null,null,null,null,null,null,null,null,null,null,null,null,null,null,null,null,null,null,null,null,null,null,null,null,null,null,null,null,null,null,null,null,null,null,null,"Eighth Pavlova","Y90-024-086",13099242]
[null,null,null,null,null,null,null,null,null,null,null,null,null,null,null,null,null,null,null,null,null,null,null,null,null,null,null,null,null,null,null,null,null,null,null,null,null,null,null,null,"Melting Moment","Y90-060-085",10411764]
[null,null,null,null,null,null,null,null,null,null,null,null,null,null,null,null,null,null,null,null,null,null,null,null,null,null,null,null,null,null,null,null,null,null,null,null,null,null,null,null,"Quarter Haystack","Y90-024-076",12901614]
[null,null,null,null,null,null,null,null,null,null,null,null,null,null,null,null,null,null,null,null,null,null,null,null,null,null,null,null,null,null,null,null,null,null,null,null,null,null,null,null,"Solitaire","Y90-023-077",12770026]
[null,null,null,null,null,null,null,null,null,null,null,null,null,null,null,null,null,null,null,null,null,null,null,null,null,null,null,null,null,null,null,null,null,null,null,null,null,null,null,null,"Sweet Corn","Y90-097-090",7791097]
[null,null,null,null,null,null,null,null,null,null,null,null,null,null,null,null,null,null,null,null,null,null,null,null,null,null,null,null,null,null,null,null,null,null,null,null,null,null,null,null,"Triple Dutch White","Y90-050-078",11131635]
[null,null,null,null,null,null,null,null,null,null,null,null,null,null,null,null,null,null,null,null,null,null,null,null,null,null,null,null,null,null,null,null,null,null,null,null,null,null,null,null,"Triple Rice Cake","Y90-016-087",13491941]
[null,null,null,null,null,null,null,null,null,null,null,null,null,null,null,null,null,null,null,null,null,null,null,null,null,null,null,null,null,null,null,null,null,null,null,null,null,null,null,null,"Buttermilk","Y91-055-084",10805494]
[null,null,null,null,null,null,null,null,null,null,null,null,null,null,null,null,null,null,null,null,null,null,null,null,null,null,null,null,null,null,null,null,null,null,null,null,null,null,null,null,"Cream Brulee","Y91-072-082",10216447]
[null,null,null,null,null,null,null,null,null,null,null,null,null,null,null,null,null,null,null,null,null,null,null,null,null,null,null,null,null,null,null,null,null,null,null,null,null,null,null,null,"Double Dutch White","Y91-043-079",12050935]
[null,null,null,null,null,null,null,null,null,null,null,null,null,null,null,null,null,null,null,null,null,null,null,null,null,null,null,null,null,null,null,null,null,null,null,null,null,null,null,null,"Eighth Sisal","Y91-016-083",13755115]
[null,null,null,null,null,null,null,null,null,null,null,null,null,null,null,null,null,null,null,null,null,null,null,null,null,null,null,null,null,null,null,null,null,null,null,null,null,null,null,null,"Half Albescent White","Y91-010-082",13950949]
[null,null,null,null,null,null,null,null,null,null,null,null,null,null,null,null,null,null,null,null,null,null,null,null,null,null,null,null,null,null,null,null,null,null,null,null,null,null,null,null,"Half Astra","Y91-035-081",12247541]
[null,null,null,null,null,null,null,null,null,null,null,null,null,null,null,null,null,null,null,null,null,null,null,null,null,null,null,null,null,null,null,null,null,null,null,null,null,null,null,null,"Half Blanc","Y91-011-080",13950693]
[null,null,null,null,null,null,null,null,null,null,null,null,null,null,null,null,null,null,null,null,null,null,null,null,null,null,null,null,null,null,null,null,null,null,null,null,null,null,null,null,"Half Melting Moment","Y91-046-085",11855865]
[null,null,null,null,null,null,null,null,null,null,null,null,null,null,null,null,null,null,null,null,null,null,null,null,null,null,null,null,null,null,null,null,null,null,null,null,null,null,null,null,"Half Popcorn","Y91-033-083",12706803]
[null,null,null,null,null,null,null,null,null,null,null,null,null,null,null,null,null,null,null,null,null,null,null,null,null,null,null,null,null,null,null,null,null,null,null,null,null,null,null,null,"Half Spanish White","Y91-020-082",13097958]
[null,null,null,null,null,null,null,null,null,null,null,null,null,null,null,null,null,null,null,null,null,null,null,null,null,null,null,null,null,null,null,null,null,null,null,null,null,null,null,null,"Half Splash","Y91-041-080",11985658]
[null,null,null,null,null,null,null,null,null,null,null,null,null,null,null,null,null,null,null,null,null,null,null,null,null,null,null,null,null,null,null,null,null,null,null,null,null,null,null,null,"Half Vienna","Y91-031-086",12838387]
[null,null,null,null,null,null,null,null,null,null,null,null,null,null,null,null,null,null,null,null,null,null,null,null,null,null,null,null,null,null,null,null,null,null,null,null,null,null,null,null,"Hathaway","Y91-070-086",9756407]
[null,null,null,null,null,null,null,null,null,null,null,null,null,null,null,null,null,null,null,null,null,null,null,null,null,null,null,null,null,null,null,null,null,null,null,null,null,null,null,null,"Merino","Y91-009-076",13687777]
[null,null,null,null,null,null,null,null,null,null,null,null,null,null,null,null,null,null,null,null,null,null,null,null,null,null,null,null,null,null,null,null,null,null,null,null,null,null,null,null,"Quarter Parchment","Y91-016-088",13623782]
[null,null,null,null,null,null,null,null,null,null,null,null,null,null,null,null,null,null,null,null,null,null,null,null,null,null,null,null,null,null,null,null,null,null,null,null,null,null,null,null,"Quarter Sandspit Brown","Y91-010-078",13621985]
[null,null,null,null,null,null,null,null,null,null,null,null,null,null,null,null,null,null,null,null,null,null,null,null,null,null,null,null,null,null,null,null,null,null,null,null,null,null,null,null,"Triple Pearl Lusta","Y91-029-084",12836843]
[null,null,null,null,null,null,null,null,null,null,null,null,null,null,null,null,null,null,null,null,null,null,null,null,null,null,null,null,null,null,null,null,null,null,null,null,null,null,null,null,"Vis Vis","Y91-072-088",9889017]
[null,null,null,null,null,null,null,null,null,null,null,null,null,null,null,null,null,null,null,null,null,null,null,null,null,null,null,null,null,null,null,null,null,null,null,null,null,null,null,null,"Barley White","Y92-044-087",12051959]
[null,null,null,null,null,null,null,null,null,null,null,null,null,null,null,null,null,null,null,null,null,null,null,null,null,null,null,null,null,null,null,null,null,null,null,null,null,null,null,null,"Blondee","Y92-038-086",12313588]
[null,null,null,null,null,null,null,null,null,null,null,null,null,null,null,null,null,null,null,null,null,null,null,null,null,null,null,null,null,null,null,null,null,null,null,null,null,null,null,null,"Cape Honey","Y92-058-079",10871038]
[null,null,null,null,null,null,null,null,null,null,null,null,null,null,null,null,null,null,null,null,null,null,null,null,null,null,null,null,null,null,null,null,null,null,null,null,null,null,null,null,"Double Pearl Lusta","Y92-024-085",12508393]
[null,null,null,null,null,null,null,null,null,null,null,null,null,null,null,null,null,null,null,null,null,null,null,null,null,null,null,null,null,null,null,null,null,null,null,null,null,null,null,null,"Drover","Y92-064-090",10218491]
[null,null,null,null,null,null,null,null,null,null,null,null,null,null,null,null,null,null,null,null,null,null,null,null,null,null,null,null,null,null,null,null,null,null,null,null,null,null,null,null,"Eighth Fossil","Y92-009-077",14542573]
[null,null,null,null,null,null,null,null,null,null,null,null,null,null,null,null,null,null,null,null,null,null,null,null,null,null,null,null,null,null,null,null,null,null,null,null,null,null,null,null,"Fleece","Y92-016-088",13820905]
[null,null,null,null,null,null,null,null,null,null,null,null,null,null,null,null,null,null,null,null,null,null,null,null,null,null,null,null,null,null,null,null,null,null,null,null,null,null,null,null,"Half Colonial White","Y92-044-086",12576242]
[null,null,null,null,null,null,null,null,null,null,null,null,null,null,null,null,null,null,null,null,null,null,null,null,null,null,null,null,null,null,null,null,null,null,null,null,null,null,null,null,"Half Wheatfield","Y92-018-086",13690090]
[null,null,null,null,null,null,null,null,null,null,null,null,null,null,null,null,null,null,null,null,null,null,null,null,null,null,null,null,null,null,null,null,null,null,null,null,null,null,null,null,"Honeymoon","Y92-046-086",11526644]
[null,null,null,null,null,null,null,null,null,null,null,null,null,null,null,null,null,null,null,null,null,null,null,null,null,null,null,null,null,null,null,null,null,null,null,null,null,null,null,null,"Quarter Joanna","Y92-010-090",14345962]
[null,null,null,null,null,null,null,null,null,null,null,null,null,null,null,null,null,null,null,null,null,null,null,null,null,null,null,null,null,null,null,null,null,null,null,null,null,null,null,null,"Villa White","Y92-018-087",14084592]
[null,null,null,null,null,null,null,null,null,null,null,null,null,null,null,null,null,null,null,null,null,null,null,null,null,null,null,null,null,null,null,null,null,null,null,null,null,null,null,null,"Baja White","Y93-034-082",12312560]
[null,null,null,null,null,null,null,null,null,null,null,null,null,null,null,null,null,null,null,null,null,null,null,null,null,null,null,null,null,null,null,null,null,null,null,null,null,null,null,null,"Bleach White","Y93-018-082",13558251]
[null,null,null,null,null,null,null,null,null,null,null,null,null,null,null,null,null,null,null,null,null,null,null,null,null,null,null,null,null,null,null,null,null,null,null,null,null,null,null,null,"Clotted Cream","Y93-023-084",13691637]
[null,null,null,null,null,null,null,null,null,null,null,null,null,null,null,null,null,null,null,null,null,null,null,null,null,null,null,null,null,null,null,null,null,null,null,null,null,null,null,null,"Egg Sour","Y93-031-074",12969209]
[null,null,null,null,null,null,null,null,null,null,null,null,null,null,null,null,null,null,null,null,null,null,null,null,null,null,null,null,null,null,null,null,null,null,null,null,null,null,null,null,"Eighth Biscotti","Y93-012-075",14543089]
[null,null,null,null,null,null,null,null,null,null,null,null,null,null,null,null,null,null,null,null,null,null,null,null,null,null,null,null,null,null,null,null,null,null,null,null,null,null,null,null,"Eighth Parchment","Y93-011-089",14477805]
[null,null,null,null,null,null,null,null,null,null,null,null,null,null,null,null,null,null,null,null,null,null,null,null,null,null,null,null,null,null,null,null,null,null,null,null,null,null,null,null,"Half Chandelier","Y93-025-089",13363699]
[null,null,null,null,null,null,null,null,null,null,null,null,null,null,null,null,null,null,null,null,null,null,null,null,null,null,null,null,null,null,null,null,null,null,null,null,null,null,null,null,"Half Solitaire","Y93-020-080",13755889]
[null,null,null,null,null,null,null,null,null,null,null,null,null,null,null,null,null,null,null,null,null,null,null,null,null,null,null,null,null,null,null,null,null,null,null,null,null,null,null,null,"Orange White","Y93-017-089",13493226]
[null,null,null,null,null,null,null,null,null,null,null,null,null,null,null,null,null,null,null,null,null,null,null,null,null,null,null,null,null,null,null,null,null,null,null,null,null,null,null,null,"Pipi","Y93-033-081",12904181]
[null,null,null,null,null,null,null,null,null,null,null,null,null,null,null,null,null,null,null,null,null,null,null,null,null,null,null,null,null,null,null,null,null,null,null,null,null,null,null,null,"Quarter Popcorn","Y93-025-084",13560565]
[null,null,null,null,null,null,null,null,null,null,null,null,null,null,null,null,null,null,null,null,null,null,null,null,null,null,null,null,null,null,null,null,null,null,null,null,null,null,null,null,"Quarter Spanish White","Y93-015-083",13820651]
[null,null,null,null,null,null,null,null,null,null,null,null,null,null,null,null,null,null,null,null,null,null,null,null,null,null,null,null,null,null,null,null,null,null,null,null,null,null,null,null,"Chalk Dust","Y94-010-085",14543086]
[null,null,null,null,null,null,null,null,null,null,null,null,null,null,null,null,null,null,null,null,null,null,null,null,null,null,null,null,null,null,null,null,null,null,null,null,null,null,null,null,"Derby","Y94-033-078",13034745]
[null,null,null,null,null,null,null,null,null,null,null,null,null,null,null,null,null,null,null,null,null,null,null,null,null,null,null,null,null,null,null,null,null,null,null,null,null,null,null,null,"Double Bianca","Y94-016-087",14808575]
[null,null,null,null,null,null,null,null,null,null,null,null,null,null,null,null,null,null,null,null,null,null,null,null,null,null,null,null,null,null,null,null,null,null,null,null,null,null,null,null,"Eighth Spanish White","Y94-010-075",14872310]
[null,null,null,null,null,null,null,null,null,null,null,null,null,null,null,null,null,null,null,null,null,null,null,null,null,null,null,null,null,null,null,null,null,null,null,null,null,null,null,null,"Gin Fizz","Y94-028-083",13298424]
[null,null,null,null,null,null,null,null,null,null,null,null,null,null,null,null,null,null,null,null,null,null,null,null,null,null,null,null,null,null,null,null,null,null,null,null,null,null,null,null,"Half Dutch White","Y94-027-084",14086395]
[null,null,null,null,null,null,null,null,null,null,null,null,null,null,null,null,null,null,null,null,null,null,null,null,null,null,null,null,null,null,null,null,null,null,null,null,null,null,null,null,"Half Gin Fizz","Y94-021-084",14282744]
[null,null,null,null,null,null,null,null,null,null,null,null,null,null,null,null,null,null,null,null,null,null,null,null,null,null,null,null,null,null,null,null,null,null,null,null,null,null,null,null,"Half Milk Punch","Y94-022-084",14020346]
[null,null,null,null,null,null,null,null,null,null,null,null,null,null,null,null,null,null,null,null,null,null,null,null,null,null,null,null,null,null,null,null,null,null,null,null,null,null,null,null,"Half Scotch Mist","Y94-020-089",14283001]
[null,null,null,null,null,null,null,null,null,null,null,null,null,null,null,null,null,null,null,null,null,null,null,null,null,null,null,null,null,null,null,null,null,null,null,null,null,null,null,null,"Milk Punch","Y94-033-084",12641779]
[null,null,null,null,null,null,null,null,null,null,null,null,null,null,null,null,null,null,null,null,null,null,null,null,null,null,null,null,null,null,null,null,null,null,null,null,null,null,null,null,"Peach","Y94-032-075",12772859]
[null,null,null,null,null,null,null,null,null,null,null,null,null,null,null,null,null,null,null,null,null,null,null,null,null,null,null,null,null,null,null,null,null,null,null,null,null,null,null,null,"Pearl Lusta","Y94-018-087",13164778]
[null,null,null,null,null,null,null,null,null,null,null,null,null,null,null,null,null,null,null,null,null,null,null,null,null,null,null,null,null,null,null,null,null,null,null,null,null,null,null,null,"Quarter Solitaire","Y94-014-081",14675445]
[null,null,null,null,null,null,null,null,null,null,null,null,null,null,null,null,null,null,null,null,null,null,null,null,null,null,null,null,null,null,null,null,null,null,null,null,null,null,null,null,"Scotch Mist","Y94-027-087",13166574]
[null,null,null,null,null,null,null,null,null,null,null,null,null,null,null,null,null,null,null,null,null,null,null,null,null,null,null,null,null,null,null,null,null,null,null,null,null,null,null,null,"Buttery White","Y95-015-090",14347249]
[null,null,null,null,null,null,null,null,null,null,null,null,null,null,null,null,null,null,null,null,null,null,null,null,null,null,null,null,null,null,null,null,null,null,null,null,null,null,null,null,"Half Pearl Lusta","Y95-012-089",14150385]
[null,null,null,null,null,null,null,null,null,null,null,null,null,null,null,null,null,null,null,null,null,null,null,null,null,null,null,null,null,null,null,null,null,null,null,null,null,null,null,null,"Honey","Y95-035-085",12971516]
[null,null,null,null,null,null,null,null,null,null,null,null,null,null,null,null,null,null,null,null,null,null,null,null,null,null,null,null,null,null,null,null,null,null,null,null,null,null,null,null,"Oasis","Y95-035-085",12971516]
[null,null,null,null,null,null,null,null,null,null,null,null,null,null,null,null,null,null,null,null,null,null,null,null,null,null,null,null,null,null,null,null,null,null,null,null,null,null,null,null,"Quarter Villa White","Y95-010-090",15200757]
[null,null,null,null,null,null,null,null,null,null,null,null,null,null,null,null,null,null,null,null,null,null,null,null,null,null,null,null,null,null,null,null,null,null,null,null,null,null,null,null,"Varden","Y95-024-081",13889533]
[null,null,null,null,null,null,null,null,null,null,null,null,null,null,null,null,null,null,null,null,null,null,null,null,null,null,null,null,null,null,null,null,null,null,null,null,null,null,null,null,"Apricot White","Y96-017-088",14414071]
[null,null,null,null,null,null,null,null,null,null,null,null,null,null,null,null,null,null,null,null,null,null,null,null,null,null,null,null,null,null,null,null,null,null,null,null,null,null,null,null,"Bianca","Y96-012-090",14741492]
[null,null,null,null,null,null,null,null,null,null,null,null,null,null,null,null,null,null,null,null,null,null,null,null,null,null,null,null,null,null,null,null,null,null,null,null,null,null,null,null,"Early Dawn","Y96-020-089",14414587]
[null,null,null,null,null,null,null,null,null,null,null,null,null,null,null,null,null,null,null,null,null,null,null,null,null,null,null,null,null,null,null,null,null,null,null,null,null,null,null,null,"Eighth Dutch White","Y96-012-089",15201529]
[null,null,null,null,null,null,null,null,null,null,null,null,null,null,null,null,null,null,null,null,null,null,null,null,null,null,null,null,null,null,null,null,null,null,null,null,null,null,null,null,"Forget Me Not","Y96-020-081",14413821]
[null,null,null,null,null,null,null,null,null,null,null,null,null,null,null,null,null,null,null,null,null,null,null,null,null,null,null,null,null,null,null,null,null,null,null,null,null,null,null,null,"Island Spice","Y96-015-073",14413304]
[null,null,null,null,null,null,null,null,null,null,null,null,null,null,null,null,null,null,null,null,null,null,null,null,null,null,null,null,null,null,null,null,null,null,null,null,null,null,null,null,"Off Yellow","Y96-020-085",14480378]
[null,null,null,null,null,null,null,null,null,null,null,null,null,null,null,null,null,null,null,null,null,null,null,null,null,null,null,null,null,null,null,null,null,null,null,null,null,null,null,null,"Orchid White","Y96-015-089",14281713]
[null,null,null,null,null,null,null,null,null,null,null,null,null,null,null,null,null,null,null,null,null,null,null,null,null,null,null,null,null,null,null,null,null,null,null,null,null,null,null,null,"Quarter Dutch White","Y96-018-085",14677243]

{"sheet":"Nuancier","index":3,"n_rows":39,"n_cols":50,"rows_kept":39,"cut":false,"hidden":false,"merged":[[3,4,3,5],[3,20,3,21],[3,24,3,25],[3,28,3,29],[3,32,3,33],[3,44,3,45],[3,48,3,49],[3,16,3,17],[3,12,3,13],[3,8,3,9],[3,36,3,37],[3,40,3,41]]}
[]
[null,null,null,null,null,null,null,null,null,null,null,null," "]
[null,null,"Les notions d'harmonies s'entendent : par distribution sur le cercle chromatique pour  des  saturations et luminosités  comparables"]
[null,null,null,null,"Harmonies étendues",null,null,null,"Harmonies voisines",null,null,null,"Harmonies 60°",null,null,null,"Harmonie 120°",null,null,null,"Harmonies opposées",null,null,null,"Harmonie -120°",null,null,null,"Harmonie -60°",null,null,null,"Purete",null,null,null,"Lumiere",null,null,null,"Influences Rouges",null,null,null,"Influences Vertes",null,null,null,"Influences Bleues"]
[null,null,"349°",null,3877009,null,"349°",null,3877009,null,"349°",null,3877009,null,"349°",null,3877009,null,"349°",null,3877009,null,"349°",null,3877009,null,"349°",null,3877009,null,0.56999999999999995,null,3877009,null,0.36,null,3877009,null,"R:145",null,3877009,null,"V:40",null,3877009,null,"B:59",null,3877009]
[null,null,null,null,"&h3B2891",null,null,null,"&h3B2891",null,null,null,"&h3B2891",null,null,null,"&h3B2891",null,null,null,"&h3B2891",null,null,null,"&h3B2891",null,null,null,"&h3B2891",null,null,null,"&h3B2891",null,null,null,"&h3B2891",null,null,null,"&h3B2891",null,null,null,"&h3B2891",null,null,null,"&h3B2891"]
[]
[null,null,"19°",null,null,2640273,"39°",null,null,2649233,"99°",null,null,2658637,"159°",null,null,7115048,"219°",null,null,9522472,"279°",null,null,9513068,"339°",null,null,5056657,1,null,null,2162873,1,null,null,16777215,0,null,null,3876864,0,null,null,3866769,0,null,null,10385]
[null,null,null,null,null,"&h284991",null,null,null,"&h286C91",null,null,null,"&h28914D",null,null,null,"&h6C9128",null,null,null,"&h914D28",null,null,null,"&h91286C",null,null,null,"&h4D2891",null,null,null,"&h2100B9",null,null,null,"&hFFFFFF",null,null,null,"&h3B2800",null,null,null,"&h3B0091",null,null,null,"&h002891"]
[]
[null,null,"49°",null,null,2653841,"29°",null,null,2644881,"89°",null,null,2658654,"149°",null,null,6000936,"209°",null,null,9526824,"269°",null,null,9513051,"329°",null,null,6170769,0.9,null,null,2558384,0.9,null,null,14473204,26,null,null,3876890,26,null,null,3873425,26,null,null,1714321]
[null,null,null,null,null,"&h287E91",null,null,null,"&h285B91",null,null,null,"&h28915E",null,null,null,"&h5B9128",null,null,null,"&h915E28",null,null,null,"&h91285B",null,null,null,"&h5E2891",null,null,null,"&h2709B0",null,null,null,"&hDCD7F4",null,null,null,"&h3B281A",null,null,null,"&h3B1A91",null,null,null,"&h1A2891"]
[]
[null,null,"79°",null,null,2658672,"19°",null,null,2640273,"79°",null,null,2658672,"139°",null,null,4821288,"199°",null,null,9531432,"259°",null,null,9513033,"319°",null,null,7350417,0.8,null,null,2953894,0.8,null,null,12234729,51,null,null,3876915,51,null,null,3879825,51,null,null,3352721]
[null,null,null,null,null,"&h289170",null,null,null,"&h284991",null,null,null,"&h289170",null,null,null,"&h499128",null,null,null,"&h917028",null,null,null,"&h912849",null,null,null,"&h702891",null,null,null,"&h2D12A6",null,null,null,"&hBAAFE9",null,null,null,"&h3B2833",null,null,null,"&h3B3391",null,null,null,"&h332891"]
[]
[null,null,"109°",null,null,2658619,"9°",null,null,2635921,"69°",null,null,2658689,"129°",null,null,3707176,"189°",null,null,9535784,"249°",null,null,9513016,"309°",null,null,8464529,0.7,null,null,3349661,0.7,null,null,9930718,76,null,null,3876940,76,null,null,3886225,76,null,null,4991121]
[null,null,null,null,null,"&h28913B",null,null,null,"&h283891",null,null,null,"&h289181",null,null,null,"&h389128",null,null,null,"&h918128",null,null,null,"&h912838",null,null,null,"&h812891",null,null,null,"&h331C9D",null,null,null,"&h9787DE",null,null,null,"&h3B284C",null,null,null,"&h3B4C91",null,null,null,"&h4C2891"]
[]
[null,null,"139°",null,null,4821288,"359°",null,null,2762897,"59°",null,null,2658193,"119°",null,null,2658602,"179°",null,null,9408808,"239°",null,null,9513512,"299°",null,null,9513103,0.6,null,null,3745172,0.6,null,null,7626707,102,null,null,3876966,102,null,null,3892881,102,null,null,6695057]
[null,null,null,null,null,"&h499128",null,null,null,"&h2A2891",null,null,null,"&h288F91",null,null,null,"&h28912A",null,null,null,"&h8F9128",null,null,null,"&h912A28",null,null,null,"&h91288F",null,null,null,"&h392594",null,null,null,"&h745FD3",null,null,null,"&h3B2866",null,null,null,"&h3B6691",null,null,null,"&h662891"]
[]
[null,null,"169°",null,null,8294696,"349°",null,null,3877009,"49°",null,null,2653841,"109°",null,null,2658619,"169°",null,null,8294696,"229°",null,null,9517864,"289°",null,null,9513086,0.5,null,null,4140683,0.5,null,null,5322696,128,null,null,3876992,128,null,null,3899537,128,null,null,8398993]
[null,null,null,null,null,"&h7E9128",null,null,null,"&h3B2891",null,null,null,"&h287E91",null,null,null,"&h28913B",null,null,null,"&h7E9128",null,null,null,"&h913B28",null,null,null,"&h91287E",null,null,null,"&h3F2E8B",null,null,null,"&h5137C8",null,null,null,"&h3B2880",null,null,null,"&h3B8091",null,null,null,"&h802891"]
[]
[null,null,"199°",null,null,9531432,"339°",null,null,5056657,"39°",null,null,2649233,"99°",null,null,2658637,"159°",null,null,7115048,"219°",null,null,9522472,"279°",null,null,9513068,0.4,null,null,4536450,0.4,null,null,4271264,153,null,null,3877017,153,null,null,3905937,153,null,null,10037393]
[null,null,null,null,null,"&h917028",null,null,null,"&h4D2891",null,null,null,"&h286C91",null,null,null,"&h28914D",null,null,null,"&h6C9128",null,null,null,"&h914D28",null,null,null,"&h91286C",null,null,null,"&h453882",null,null,null,"&h412CA0",null,null,null,"&h3B2899",null,null,null,"&h3B9991",null,null,null,"&h992891"]
[]
[null,null,"229°",null,null,9517864,"329°",null,null,6170769,"29°",null,null,2644881,"89°",null,null,2658654,"149°",null,null,6000936,"209°",null,null,9526824,"269°",null,null,9513051,0.3,null,null,4931960,0.3,null,null,3219832,178,null,null,3877042,178,null,null,3912337,178,null,null,11675793]
[null,null,null,null,null,"&h913B28",null,null,null,"&h5E2891",null,null,null,"&h285B91",null,null,null,"&h28915E",null,null,null,"&h5B9128",null,null,null,"&h915E28",null,null,null,"&h91285B",null,null,null,"&h4B4178",null,null,null,"&h312178",null,null,null,"&h3B28B2",null,null,null,"&h3BB291",null,null,null,"&hB22891"]
[]
[null,null,"259°",null,null,9513033,"319°",null,null,7350417,"19°",null,null,2640273,"79°",null,null,2658672,"139°",null,null,4821288,"199°",null,null,9531432,"259°",null,null,9513033,0.2,null,null,5327471,0.2,null,null,2168400,204,null,null,3877068,204,null,null,3918993,204,null,null,13379729]
[null,null,null,null,null,"&h912849",null,null,null,"&h702891",null,null,null,"&h284991",null,null,null,"&h289170",null,null,null,"&h499128",null,null,null,"&h917028",null,null,null,"&h912849",null,null,null,"&h514A6F",null,null,null,"&h211650",null,null,null,"&h3B28CC",null,null,null,"&h3BCC91",null,null,null,"&hCC2891"]
[]
[null,null,"289°",null,null,9513086,"309°",null,null,8464529,"9°",null,null,2635921,"69°",null,null,2658689,"129°",null,null,3707176,"189°",null,null,9535784,"249°",null,null,9513016,0.1,null,null,5722982,0.1,null,null,1051432,230,null,null,3877094,230,null,null,3925649,230,null,null,15083665]
[null,null,null,null,null,"&h91287E",null,null,null,"&h812891",null,null,null,"&h283891",null,null,null,"&h289181",null,null,null,"&h389128",null,null,null,"&h918128",null,null,null,"&h912838",null,null,null,"&h575366",null,null,null,"&h100B28",null,null,null,"&h3B28E6",null,null,null,"&h3BE691",null,null,null,"&hE62891"]
[]
[null,null,"319°",null,null,7350417,"299°",null,null,9513103,"359°",null,null,2762897,"59°",null,null,2658193,"119°",null,null,2658602,"179°",null,null,9408808,"239°",null,null,9513512,0,null,null,6052956,0,null,null,0,255,null,null,3877119,255,null,null,3932049,255,null,null,16722065]
[null,null,null,null,null,"&h702891",null,null,null,"&h91288F",null,null,null,"&h2A2891",null,null,null,"&h288F91",null,null,null,"&h28912A",null,null,null,"&h8F9128",null,null,null,"&h912A28",null,null,null,"&h5C5C5C",null,null,null,"&h000000",null,null,null,"&h3B28FF",null,null,null,"&h3BFF91",null,null,null,"&hFF2891"]